Workbook

Sheet 教师分布现状汇总表 (hidden)
B1: 南昌县2020年中小学教师补充计划测算表
D2: 2 | E2: 2 | F2: 2 | H2: 5 | J2: 2 | S2: 2 | V2: 2 | Y2: 2 | Z2: 2 | AO2: 3 | AP2: 3 | AQ2: 3 | AR2: 3 | AS2: 3 | AT2: 3 | BM2: 7 | BN2: 7 | BP2: 2 | BQ2: 4 | BU2: 2 | BV2: 4 | BW2: 7 | BZ2: 2 | CA2: 4 | CB2: 7 | CD2: 2 | CE2: 4 | CF2: 7 | CM2: 8 | CN2: 8 | CO2: 8 | CP2: 8 | CQ2: 8 | CR2: 8
B3: 序号 | C3: 学校名称 | D3: 序号 （合并九年一贯制学校） | E3: 学校名称 （合并九年一贯制学校） | F3: 学段 （合并九年一贯制学校） | G3: 学段 | H3: 类别 | I3: 2019年秋季学生数（统计表） | J3: 2019年秋季学生数 （合并九年一贯制学校） | K3: 2019年秋季学生数 | L3: 2019年秋季班级数（统计表） | M3: 2019年秋季班级数 （统计表2） （扣除教学点班级数） | N3: 2019年秋季班级数 | O3: 其中：教学点个数（统计表） | P3: 其中：教学点个数 | Q3: 其中：教学点班级数（统计表） | R3: 其中：教学点班级数 | S3: 行政教辅人员 （合并九年一贯制学校） | T3: 行政教辅人员 （未计入村小计算机管理员） | U3: 教师需求数 （已计入村小计算机管理员，不含行政教辅人员） | V3: 教师需求数 （已计入村小计算机管理员，不含行政教辅人员） （合并九年一贯制学校） | W3: 教师需求数 （据统计表数据计算） （函数结果） | X3: 教师需求数 （据统计表数据计算） | Y3: 教师需求数 （函数） （合并九年一贯制学校） | Z3: 教师需求数 （合并九年一贯制学校） | AA3: 教师需求数 | AB3: 在编教师数（编制册） | AC3: 在编教师数（各校上报数据） | AE3: 待上下编教师数 | BF3: 编外幼儿园转岗任教小学教师人数 | BG3: 轮岗交流人数 | BI3: 请假人数 | BK3: 退休人数 | BM3: 现有教师数 | BN3: 现有教师数 （合并九年一贯制学校） | BO3: 现有教师数 | BP3: 现有教师数 （合并九年一贯制学校） | BQ3: 现有教师数 （合并九年一贯制学校） | BR3: 教师补充计划数1 | BS3: 教师缺额 | BT3: 教师缺额 （编制册） | BU3: 教师缺额 （合并九年一贯制学校） | BV3: 教师缺额 （合并九年一贯制学校） | BW3: 教师缺额 （合并九年一贯制学校） | BX3: 教师缺额（超额清零处理） | BY3: 教师缺额（超额清零处理） | BZ3: 教师缺额 （超额清零处理） （合并九年一贯制学校） | CA3: 教师缺额 （超额清零处理） （合并九年一贯制学校） | CB3: 教师缺额 （超额清零处理） （合并九年一贯制学校） | CC3: 教师缺额（超额清零处理） （粘贴为数值） | CD3: 教师缺额 （超额清零处理） （粘贴为数值） （合并九年一贯制学校） | CE3: 教师缺额 （超额清零处理） （粘贴为数值） （合并九年一贯制学校） | CF3: 教师缺额 （超额清零处理） （粘贴为数值） （合并九年一贯制学校） | CG3: 2020教师补充计划数2 | CI3: 2019年调整后编制数2 | CJ3: 聘用教师控制数 | CK3: 备注 | CM3: 申报补充 （小学） | CN3: 申报补充 （初中） | CO3: 申报补充 （高中） | CP3: 申报补充 总计 （小学+初中） | CQ3: 备注 | CR3: 最终结果 | CS3: 考虑增加 班级问题 后的 最终结果 | CT3: 增加实录
AD4: 2019全省选调91人（邓） | AE4: 全省选调 | AF4: 2019全省统招312人（邓） | AG4: 全省统招 | AH4: 2016特岗教师51人（邓） | AI4: 2017特岗教师76人（邓） | AJ4: 2018特岗教师48人（邓） | AK4: 2019特岗教师127人（邓） | AL4: 特岗教师 | AM4: 其中：2016年特岗 | AN4: 2019定向师范毕业48人（邓） | AO4: 2015招录定向师范毕业生50人（邓） | AP4: 2016招录定向师范毕业生76人（邓） | AQ4: 2017招录定向师范毕业生77人（邓） | AR4: 2018招录定向师范毕业生73人（邓） | AS4: 2019招录定向师范毕业生79人（邓） | AT4: 2015-2019年招录定向师范毕业生355人（邓） | AU4: 定向师范毕业生 | AV4: 2019公费师范毕业生23人（邓） | AW4: 免（公）费师范毕业生 | AX4: 2016三支一扶介绍信6人（邓） | AY4: 2017三支一扶介绍信9人（邓） | AZ4: 2018三支一扶介绍信10人（邓） | BA4: 2019三支一扶介绍信15人（邓） | BB4: 三支一扶 | BC4: 其中：2017年三支一扶 | BD4: 2019县内选调（邓） | BE4: 县内选调（出为负数，入为正数） | BG4: 交流接收人数 | BH4: 交流流出人数 | BI4: 长期病假且已执行病假工资人数 | BJ4: 停职领办创办企业未到返岗期人数（2021年8月31日） | BK4: 2020年1月1日至2020年12月31日退休人数 | BL4: 2021年1月1日至2020年8月31日退休人数
A5: 1 | B5: 1 | C5: 南新中小 | D5: 1 | E5: 南新中小 | F5: 小学 | G5: 小学 | H5: 乡镇中心小学 | I5: 1722 | J5: 1722 | K5: 2040 | L5: 78 | M5: =L5-Q5 -> 73 | N5: 86 | O5: 2 | P5: 5 | Q5: 5 | R5: 5 | S5: 3 | T5: 3 | U5: =W5-T5 -> 155.5 | V5: 155.5 | W5: =M5*2+Q5*1.5+O5+T5 -> 158.5 | X5: 159 | Y5: =S5+V5 -> 158.5 | Z5: 159 | AA5: 180 | AB5: 192 | AC5: 192 | AD5: 3 | AH5: 5 | AI5: 6 | AJ5: 2 | AK5: 5 | AL5: 17 | AM5: 4 | AN5: 9 | AO5: 8 | AP5: 8 | AQ5: 14 | AR5: 10 | AS5: 9 | AT5: =SUM(AO5:AS5) -> 49 | AU5: 9 | AX5: 1 | AY5: 2 | AZ5: 1 | BA5: 1 | BB5: 2 | BC5: 2 | BD5: -2 | BE5: -2 | BF5: 0 | BG5: 1 | BH5: -34 | BI5: -1 | BJ5: -1 | BK5: -6 | BL5: -9 | BM5: =AB5+AD5+AF5+AH5+AI5+AJ5+AK5+AN5+AO5+AV5+AZ5+BA5+BD5+BF5+BG5+BH5+BI5+BJ5+BK5+BL5 -> 180 | BN5: 180 | BO5: =AB5+AE5+AG5+AL5-AM5+AU5+AW5+BB5-BC5+BE5+BF5+BG5+BH5+BI5+BJ5+BK5+BL5 -> 162 | BP5: 162 | BQ5: 162 | BR5: 9 | BS5: =AA5-BO5 -> 18 | BT5: =X5-BO5 -> -4 | BU5: =Z5-BP5 -> -4 | BV5: =Z5-BQ5 -> -4 | BW5: =Z5-BN5 -> -22 | BX5: =BS5 -> 18 | BY5: 0 | BZ5: 0 | CA5: 0 | CB5: 0 | CC5: 0 | CD5: 0 | CE5: 0 | CF5: 0 | CG5: 6 | CI5: 150 | CK5: 3人外借 | CM5: 9
A6: 2 | B6: 2 | C6: 蒋巷中小 | D6: 2 | E6: 蒋巷中小 | F6: 小学 | G6: 小学 | H6: 乡镇中心小学 | I6: 5113 | J6: 5113 | K6: 5113 | L6: 127 | M6: 120 | N6: 127 | O6: 4 | P6: 7 | Q6: 7 | R6: 7 | S6: 7 | T6: 7 | U6: 254.5 | V6: 254.5 | W6: 261.5 | X6: 262 | Y6: 261.5 | Z6: 262 | AA6: 276 | AB6: 235 | AC6: 241 | AD6: 6 | AH6: 7 | AJ6: 5 | AK6: 16 | AL6: 29 | AM6: 7 | AN6: 10 | AO6: 8 | AP6: 11 | AQ6: 15 | AR6: 11 | AS6: 12 | AT6: 57 | AU6: 10 | AX6: 1 | AZ6: 2 | BA6: 5 | BB6: 7 | BD6: -2 | BE6: -1 | BF6: 0 | BG6: 2 | BH6: -22 | BI6: 0 | BJ6: 0 | BK6: -12 | BL6: -2 | BM6: 258 | BN6: 258 | BO6: 239 | BP6: 239 | BQ6: 239 | BR6: 24 | BS6: 37 | BT6: 23 | BU6: 23 | BV6: 23 | BW6: 4 | BX6: 37 | BY6: =BT6 -> 23 | BZ6: 23 | CA6: 23 | CB6: 4 | CC6: 23 | CD6: 23 | CE6: 23 | CF6: 4 | CG6: 20 | CH6: 13 | CI6: 252 | CM6: 24
A7: 3 | B7: 3 | C7: 塘南中小 | D7: 3 | E7: 塘南中小 | F7: 小学 | G7: 小学 | H7: 乡镇中心小学 | I7: 1682 | J7: 1682 | K7: 1786 | L7: 101 | M7: 96 | N7: 96 | O7: 2 | P7: 5 | Q7: 5 | R7: 5 | S7: 3 | T7: 3 | U7: 201.5 | V7: 201.5 | W7: 204.5 | X7: 205 | Y7: 204.5 | Z7: 205 | AA7: 197 | AB7: 172 | AC7: 173 | AD7: 3 | AH7: 8 | AI7: 12 | AJ7: 2 | AK7: 9 | AL7: 31 | AM7: 8 | AN7: 10 | AO7: 8 | AP7: 10 | AQ7: 13 | AR7: 9 | AS7: 9 | AT7: 49 | AU7: 10 | AY7: 2 | BC7: 2 | BD7: -3 | BE7: -3 | BG7: 2 | BH7: -25 | BJ7: -1 | BK7: -1 | BL7: -3 | BM7: 193 | BN7: 193 | BO7: 172 | BP7: 172 | BQ7: 172 | BR7: 23 | BS7: 25 | BT7: 33 | BU7: 33 | BV7: 33 | BW7: 12 | BX7: 25 | BY7: 33 | BZ7: 33 | CA7: 33 | CB7: 12 | CC7: 33 | CD7: 33 | CE7: 33 | CF7: 12 | CG7: 6 | CI7: 162 | CM7: 23
A8: 4 | B8: 4 | C8: 泾口中小 | D8: 4 | E8: 泾口中小 | F8: 小学 | G8: 小学 | H8: 乡镇中心小学 | I8: 1565 | J8: 1565 | K8: 1639 | L8: 71 | M8: 64 | N8: 72 | O8: 4 | P8: 7 | Q8: 7 | R8: 7 | S8: 3 | T8: 3 | U8: 142.5 | V8: 142.5 | W8: 145.5 | X8: 146 | Y8: 145.5 | Z8: 146 | AA8: 162 | AB8: 177 | AC8: 177 | AD8: 3 | AE8: 0 | AG8: 0 | AH8: 5 | AI8: 5 | AJ8: 2 | AK8: 2 | AL8: 14 | AM8: 5 | AN8: 9 | AO8: 8 | AP8: 10 | AQ8: 15 | AR8: 12 | AS8: 9 | AT8: 54 | AU8: 9 | AW8: 0 | AX8: 1 | AY8: 1 | BB8: 0 | BC8: 1 | BD8: -3 | BE8: -3 | BF8: 1 | BG8: 1 | BH8: -31 | BI8: 0 | BJ8: 0 | BK8: -6 | BL8: -2 | BM8: 171 | BN8: 171 | BO8: 154 | BP8: 154 | BQ8: 154 | BR8: 6 | BS8: 8 | BT8: -9 | BU8: -9 | BV8: -9 | BW8: -26 | BX8: 8 | BY8: 0 | BZ8: 0 | CA8: 0 | CB8: 0 | CC8: 0 | CD8: 0 | CE8: 0 | CF8: 0 | CG8: 6 | CI8: 139 | CM8: 6
A9: 5 | B9: 5 | C9: 塔城中小 | D9: 5 | E9: 塔城中小 | F9: 小学 | G9: 小学 | H9: 乡镇中心小学 | I9: 832 | J9: 832 | K9: 1089 | L9: 24 | M9: 24 | N9: 27 | P9: 6 | R9: 6 | S9: 3 | T9: 3 | U9: 48 | V9: 48 | W9: 51 | X9: 51 | Y9: 51 | Z9: 51 | AA9: 74 | AB9: 87 | AC9: 86 | AE9: 0 | AG9: 0 | AH9: 1 | AK9: 2 | AL9: 3 | AM9: 1 | AU9: 0 | AW9: 0 | BB9: 0 | BD9: -2 | BE9: -2 | BF9: 0 | BG9: 0 | BH9: -10 | BI9: -2 | BJ9: 0 | BK9: -7 | BL9: -4 | BM9: 65 | BN9: 65 | BO9: 64 | BP9: 64 | BQ9: 64 | BR9: 5 | BS9: 10 | BT9: -13 | BU9: -13 | BV9: -13 | BW9: -14 | BX9: 10 | BY9: 0 | BZ9: 0 | CA9: 0 | CB9: 0 | CC9: 0 | CD9: 0 | CE9: 0 | CF9: 0 | CI9: 48
A10: 6 | B10: 6 | C10: 武阳中小 | D10: 6 | E10: 武阳中小 | F10: 小学 | G10: 小学 | H10: 乡镇中心小学 | I10: 2263 | J10: 2263 | K10: 2263 | L10: 54 | M10: 54 | N10: 64 | P10: 0 | R10: 64 | S10: 5 | T10: 5 | U10: 108 | V10: 108 | W10: 113 | X10: 113 | Y10: 113 | Z10: 113 | AA10: 133 | AB10: 147 | AC10: 147 | AE10: 0 | AF10: 2 | AG10: 2 | AH10: 3 | AI10: 10 | AJ10: 1 | AK10: 3 | AL10: 17 | AM10: 3 | AP10: 2 | AT10: =SUM(AO10:AS10) -> 2 | AU10: 0 | AW10: 0 | AY10: 2 | AZ10: 1 | BB10: 1 | BC10: 2 | BE10: 0 | BF10: 3 | BG10: 3 | BH10: -27 | BI10: 0 | BJ10: -1 | BK10: -5 | BL10: -3 | BM10: 137 | BN10: 137 | BO10: 132 | BP10: 132 | BQ10: 132 | BR10: 0 | BS10: 1 | BT10: -19 | BU10: -19 | BV10: -19 | BW10: -24 | BX10: 1 | BY10: 0 | BZ10: 0 | CA10: 0 | CB10: 0 | CC10: 0 | CD10: 0 | CE10: 0 | CF10: 0 | CI10: 108 | CK10: 交流流出中含借调1人 | CM10: 0
A11: 7 | B11: 7 | C11: 向塘中小 | D11: 7 | E11: 向塘中小 | F11: 小学 | G11: 小学 | H11: 乡镇中心小学 | I11: 3256 | J11: 3256 | K11: 3252 | L11: 115 | M11: 115 | N11: 121 | P11: 0 | R11: 0 | S11: 7 | T11: 7 | U11: 230 | V11: 230 | W11: 237 | X11: 237 | Y11: 237 | Z11: 237 | AA11: 249 | AB11: 211 | AC11: 208 | AD11: 3 | AE11: 1 | AF11: 2 | AG11: 2 | AH11: 4 | AJ11: 6 | AK11: 2 | AL11: 12 | AM11: 4 | AP11: 8 | AS11: 5 | AT11: 13 | AU11: 0 | AW11: 0 | BA11: 2 | BB11: 2 | BD11: -1 | BE11: -1 | BF11: 8 | BG11: 3 | BH11: -18 | BI11: -2 | BJ11: -1 | BK11: -5 | BL11: -4 | BM11: 210 | BN11: 210 | BO11: 204 | BP11: 204 | BQ11: 204 | BR11: 44 | BS11: 45 | BT11: 33 | BU11: 33 | BV11: 33 | BW11: 27 | BX11: 45 | BY11: 33 | BZ11: 33 | CA11: 33 | CB11: 27 | CC11: 33 | CD11: 33 | CE11: 33 | CF11: 27 | CG11: 16 | CH11: 7 | CI11: 212 | CM11: 44
A12: 8 | B12: 8 | C12: 黄马中小 | D12: 8 | E12: 黄马中小 | F12: 小学 | G12: 小学 | H12: 乡镇中心小学 | I12: 856 | J12: 856 | K12: 581 | L12: 53 | M12: 27 | N12: 22 | O12: 6 | P12: 32 | Q12: 26 | R12: 32 | S12: 3 | T12: 3 | U12: 99 | V12: 99 | W12: 102 | X12: 102 | Y12: 102 | Z12: 102 | AA12: 47 | AB12: 138 | AC12: 138 | AE12: 0 | AG12: 0 | AI12: 5 | AJ12: 2 | AK12: 3 | AL12: 10 | AO12: 4 | AP12: 9 | AR12: 10 | AS12: 6 | AT12: 29 | AU12: 0 | AW12: 0 | BB12: 0 | BD12: -3 | BE12: -3 | BF12: 0 | BG12: 2 | BH12: -18 | BI12: 0 | BJ12: 0 | BK12: -4 | BL12: -2 | BM12: 127 | BN12: 127 | BO12: 123 | BP12: 123 | BQ12: 123 | BR12: 0 | BS12: -76 | BT12: -21 | BU12: -21 | BV12: -21 | BW12: -25 | BY12: 0 | BZ12: 0 | CA12: 0 | CB12: 0 | CC12: 0 | CD12: 0 | CE12: 0 | CF12: 0 | CI12: 99 | CM12: 0
A13: 9 | B13: 9 | C13: 三江中小 | D13: 9 | E13: 三江中小 | F13: 小学 | G13: 小学 | H13: 乡镇中心小学 | I13: 1500 | J13: 1500 | K13: 1497 | L13: 42 | M13: 18 | N13: 24 | O13: 8 | P13: 24 | Q13: 24 | R13: 24 | S13: 3 | T13: 3 | U13: 80 | V13: 80 | W13: 83 | X13: 83 | Y13: 83 | Z13: 83 | AA13: 95 | AB13: 118 | AC13: 118 | AD13: 2 | AI13: 2 | AJ13: 4 | AK13: 5 | AL13: 11 | AO13: 3 | AP13: 6 | AQ13: 10 | AR13: 8 | AS13: 8 | AT13: 35 | BD13: -1 | BG13: 1 | BH13: -21 | BK13: -7 | BL13: -7 | BM13: 99 | BN13: 99 | BO13: 95 | BP13: 95 | BQ13: 95 | BR13: 0 | BS13: 0 | BT13: -12 | BU13: -12 | BV13: -12 | BW13: -16 | BX13: =BS13 -> 0 | BY13: 0 | BZ13: 0 | CA13: 0 | CB13: 0 | CC13: 0 | CD13: 0 | CE13: 0 | CF13: 0 | CI13: 75 | CM13: 0
A14: 10 | B14: 10 | C14: 冈上中小 | D14: 10 | E14: 冈上中小 | F14: 小学 | G14: 小学 | H14: 乡镇中心小学 | I14: 1658 | J14: 1658 | K14: 1620 | L14: 63 | M14: 63 | N14: 63 | P14: 0 | R14: 63 | S14: 3 | T14: 3 | U14: 126 | V14: 126 | W14: 129 | X14: 129 | Y14: 129 | Z14: 129 | AA14: 131 | AB14: 133 | AC14: 133 | AE14: 0 | AH14: 1 | AI14: 5 | AJ14: 3 | AK14: 7 | AL14: 16 | AM14: 1 | AS14: 5 | AT14: 5 | AU14: 0 | AW14: 0 | BB14: 1 | BD14: -1 | BE14: -1 | BF14: 0 | BG14: 1 | BH14: -22 | BI14: 0 | BJ14: 0 | BK14: -3 | BL14: -3 | BM14: 121 | BN14: 121 | BO14: 121 | BP14: 121 | BQ14: 121 | BR14: 8 | BS14: 10 | BT14: 8 | BU14: 8 | BV14: 8 | BW14: 8 | BX14: 10 | BY14: =BT14 -> 8 | BZ14: 8 | CA14: 8 | CB14: 8 | CC14: 8 | CD14: 8 | CE14: 8 | CF14: 8 | CG14: 5 | CH14: 5 | CI14: 126 | CM14: 8
A15: 11 | B15: 11 | C15: 广福中小 | D15: 11 | E15: 广福中小 | F15: 小学 | G15: 小学 | H15: 乡镇中心小学 | I15: 2154 | J15: 2154 | K15: 2235 | L15: 92 | M15: 92 | N15: 107 | P15: 0 | R15: 18 | S15: 5 | T15: 5 | U15: 184 | V15: 184 | W15: 189 | X15: 189 | Y15: 189 | Z15: 189 | AA15: 214 | AB15: 157 | AC15: 157 | AD15: 5 | AE15: 5 | AG15: 0 | AI15: 14 | AJ15: 3 | AK15: 16 | AL15: 33 | AO15: 3 | AP15: 3 | AQ15: 10 | AR15: 10 | AS15: 8 | AT15: 34 | AU15: 0 | AW15: 0 | AY15: 2 | BA15: 4 | BB15: 4 | BC15: 2 | BD15: -4 | BE15: -4 | BF15: 3 | BG15: 3 | BH15: -29 | BI15: 0 | BJ15: -1 | BK15: -5 | BL15: -4 | BM15: 165 | BN15: 165 | BO15: 160 | BP15: 160 | BQ15: 160 | BR15: 22 | BS15: 54 | BT15: 29 | BU15: 29 | BV15: 29 | BW15: 24 | BX15: 54 | BY15: 29 | BZ15: 29 | CA15: 29 | CB15: 24 | CC15: 29 | CD15: 29 | CE15: 29 | CF15: 24 | CG15: 13 | CH15: 13 | CI15: 175 | CK15: 编外幼儿教师9人 | CM15: 22
A16: 12 | B16: 12 | C16: 富山中小 | D16: 12 | E16: 富山中小 | F16: 小学 | G16: 小学 | H16: 乡镇中心小学 | I16: 2000 | J16: 2000 | K16: 2031 | L16: 84 | M16: 84 | N16: 85 | R16: 0 | S16: 5 | T16: 5 | U16: 168 | V16: 168 | W16: 173 | X16: 173 | Y16: 173 | Z16: 173 | AA16: 175 | AB16: 131 | AC16: 131 | AF16: 7 | AG16: 7 | AH16: 3 | AI16: 8 | AJ16: 5 | AK16: 6 | AL16: 22 | AM16: 3 | BD16: -3 | BE16: -3 | BF16: 2 | BG16: 1 | BH16: -20 | BK16: -8 | BL16: -5 | BM16: 127 | BN16: 127 | BO16: 124 | BP16: 124 | BQ16: 124 | BR16: 48 | BS16: 51 | BT16: 49 | BU16: 49 | BV16: 49 | BW16: 46 | BX16: 51 | BY16: 49 | BZ16: 49 | CA16: 49 | CB16: 46 | CC16: 49 | CD16: 49 | CE16: 49 | CF16: 46 | CG16: 19 | CH16: 12 | CI16: 168 | CM16: 48
A17: 13 | B17: 13 | C17: 东新中小 | D17: 13 | E17: 东新中小 | F17: 小学 | G17: 小学 | H17: 乡镇中心小学 | I17: 1769 | J17: 1769 | K17: 2200 | L17: 45 | M17: 45 | N17: 45 | R17: 0 | S17: 3 | T17: 3 | U17: 90 | V17: 90 | W17: 93 | X17: 93 | Y17: 93 | Z17: 93 | AA17: 97 | AB17: 92 | AC17: 92 | AF17: 15 | AG17: 15 | AH17: 3 | AI17: 3 | AJ17: 4 | AK17: 3 | AL17: 13 | AM17: 3 | BF17: 0 | BG17: 4 | BH17: -7 | BJ17: -2 | BK17: -4 | BL17: -1 | BM17: 110 | BN17: 110 | BO17: 107 | BP17: 107 | BQ17: 107 | BR17: 20 | BS17: -10 | BT17: -14 | BU17: -14 | BV17: -14 | BW17: -17 | BY17: 0 | BZ17: 0 | CA17: 0 | CB17: 0 | CC17: 0 | CD17: 0 | CE17: 0 | CF17: 0 | CG17: 5 | CI17: 90 | CM17: 20
A18: 14 | B18: 14 | C18: 八一中小 | D18: 14 | E18: 八一中小 | F18: 小学 | G18: 小学 | H18: 乡镇中心小学 | I18: 1410 | J18: 1410 | K18: 1407 | L18: 64 | M18: 54 | N18: 53 | O18: 2 | P18: 10 | Q18: 10 | R18: 10 | S18: 3 | T18: 3 | U18: 125 | V18: 125 | W18: 128 | X18: 128 | Y18: 128 | Z18: 128 | AA18: 126 | AB18: 135 | AC18: 135 | AE18: 0 | AG18: 0 | AH18: 2 | AJ18: 2 | AK18: 5 | AL18: 8 | AM18: 2 | AU18: 0 | AW18: 0 | BB18: 0 | BE18: 0 | BF18: 1 | BG18: 2 | BH18: -18 | BI18: 0 | BJ18: 0 | BK18: -4 | BL18: -2 | BM18: 123 | BN18: 123 | BO18: 120 | BP18: 120 | BQ18: 120 | BR18: 4 | BS18: 6 | BT18: 8 | BU18: 8 | BV18: 8 | BW18: 5 | BX18: =BS18 -> 6 | BY18: =BT18 -> 8 | BZ18: 8 | CA18: 8 | CB18: 5 | CC18: 8 | CD18: 8 | CE18: 8 | CF18: 5 | CG18: 2 | CI18: 121 | CM18: 4
A19: 15 | B19: 15 | C19: 莲塘中小 | D19: 15 | E19: 莲塘中小 | F19: 小学 | G19: 小学 | H19: 县直学校 | I19: 1848 | J19: 1848 | K19: 1846 | L19: 40 | M19: 40 | N19: 45 | R19: 0 | S19: 5 | T19: 3 | U19: 80 | V19: 80 | W19: 83 | X19: 83 | Y19: 85 | Z19: 85 | AA19: 95 | AB19: 73 | AC19: 73 | AE19: 0 | AF19: 10 | AG19: 10 | AL19: 0 | AM19: 0 | AU19: 0 | AW19: 0 | BB19: 0 | BE19: 0 | BF19: 0 | BG19: 6 | BH19: -6 | BI19: 0 | BJ19: 0 | BK19: -1 | BL19: -1 | BM19: 81 | BN19: 81 | BO19: 81 | BP19: 81 | BQ19: 81 | BR19: 14 | BS19: 14 | BT19: 2 | BU19: 4 | BV19: 4 | BW19: 4 | BX19: 14 | BY19: =BT19 -> 2 | BZ19: 4 | CA19: 4 | CB19: 4 | CC19: 2 | CD19: 4 | CE19: 4 | CF19: 4 | CG19: 14 | CH19: 9 | CI19: 80 | CM19: 14
A20: 16 | B20: 16 | C20: 莲塘一小 | D20: 16 | E20: 莲塘一小 | F20: 小学 | G20: 小学 | H20: 县直学校 | I20: 3961 | J20: 3961 | K20: 3962 | L20: 69 | M20: 69 | N20: 69 | R20: 0 | S20: 9 | T20: 9 | U20: 138 | V20: 138 | W20: 147 | X20: 147 | Y20: 147 | Z20: 147 | AA20: 147 | AB20: 161 | AC20: 161 | AF20: 2 | AG20: 2 | BG20: 14 | BH20: -16 | BK20: -1 | BL20: -3 | BM20: 157 | BN20: 157 | BO20: 157 | BP20: 157 | BQ20: 157 | BR20: 6 | BS20: -10 | BT20: -10 | BU20: -10 | BV20: -10 | BW20: -10 | BY20: 0 | BZ20: 0 | CA20: 0 | CB20: 0 | CC20: 0 | CD20: 0 | CE20: 0 | CF20: 0 | CH20: 6 | CJ20: 36 | CM20: 6
A21: 17 | B21: 17 | C21: 莲塘二小 | D21: 17 | E21: 莲塘二小 | F21: 小学 | G21: 小学 | H21: 县直学校 | I21: 3446 | J21: 3446 | K21: 3497 | L21: 54 | M21: 54 | N21: 57 | P21: 0 | R21: 0 | S21: 9 | T21: 9 | U21: 108 | V21: 108 | W21: 117 | X21: 117 | Y21: 117 | Z21: 117 | AA21: 123 | AB21: 116 | AC21: 116 | AE21: 0 | AF21: 4 | AG21: 4 | AL21: 0 | AM21: 0 | AU21: 0 | AW21: 0 | BB21: 0 | BE21: 0 | BF21: 0 | BG21: 19 | BH21: -2 | BI21: 0 | BJ21: -1 | BK21: -2 | BL21: -3 | BM21: 131 | BN21: 131 | BO21: 131 | BP21: 131 | BQ21: 131 | BR21: -8 | BS21: -8 | BT21: -14 | BU21: -14 | BV21: -14 | BW21: -14 | BY21: 0 | BZ21: 0 | CA21: 0 | CB21: 0 | CC21: 0 | CD21: 0 | CE21: 0 | CF21: 0 | CJ21: 32 | CM21: 0
A22: 18 | B22: 18 | C22: 莲塘三小 | D22: 18 | E22: 莲塘三小 | F22: 小学 | G22: 小学 | H22: 县直学校 | I22: 5250 | J22: 5250 | K22: 5358 | L22: 82 | M22: 82 | N22: 82 | R22: 0 | S22: 9 | T22: 9 | U22: 164 | V22: 164 | W22: 173 | X22: 173 | Y22: 173 | Z22: 173 | AA22: 173 | AB22: 202 | AC22: 202 | AF22: 1 | AG22: 1 | BF22: 1 | BG22: 26 | BH22: -25 | BM22: 205 | BN22: 205 | BO22: 205 | BP22: 205 | BQ22: 205 | BR22: -32 | BS22: -32 | BT22: -32 | BU22: -32 | BV22: -32 | BW22: -32 | BY22: 0 | BZ22: 0 | CA22: 0 | CB22: 0 | CC22: 0 | CD22: 0 | CE22: 0 | CF22: 0 | CG22: 0 | CJ22: 87 | CM22: 0
A23: 19 | B23: 19 | C23: 莲塘四小 | D23: 19 | E23: 莲塘四小 | F23: 小学 | G23: 小学 | H23: 县直学校 | I23: 2851 | J23: 2851 | K23: 2809 | L23: 44 | M23: 44 | N23: 57 | P23: 0 | R23: 0 | S23: 7 | T23: 7 | U23: 88 | V23: 88 | W23: 95 | X23: 95 | Y23: 95 | Z23: 95 | AA23: 121 | AB23: 71 | AC23: 71 | AE23: 0 | AF23: 2 | AG23: 3 | AL23: 0 | AU23: 0 | AW23: 0 | BB23: 0 | BE23: 0 | BF23: 0 | BG23: 36 | BH23: -10 | BI23: 0 | BJ23: -1 | BK23: 0 | BL23: 0 | BM23: 98 | BN23: 98 | BO23: 99 | BP23: 99 | BQ23: 99 | BR23: 22 | BS23: 22 | BT23: -4 | BU23: -4 | BV23: -4 | BW23: -3 | BX23: 22 | BY23: 0 | BZ23: 0 | CA23: 0 | CB23: 0 | CC23: 0 | CD23: 0 | CE23: 0 | CF23: 0 | CG23: 0 | CJ23: 19 | CM23: 22
A24: 20 | B24: 20 | C24: 特殊教育学校 | D24: 20 | E24: 特殊教育学校 | F24: 特殊教育 | G24: 特殊教育 | H24: 县直学校 | J24: 76 | K24: 76 | M24: 0 | N24: 7 | P24: 1 | R24: 0 | S24: 3 | T24: 3 | Y24: 3 | Z24: 0 | AA24: 19 | AB24: 18 | AC24: 18 | AE24: 0 | AG24: 0 | AL24: 0 | AU24: 0 | AW24: 0 | BB24: 0 | BE24: 0 | BF24: 0 | BG24: 4 | BH24: -6 | BI24: 0 | BJ24: 0 | BK24: -1 | BL24: -1 | BM24: 14 | BN24: 14 | BO24: 14 | BP24: 14 | BQ24: 14 | BR24: 2 | BS24: 5 | BU24: -14 | BV24: -14 | BW24: -14 | BX24: 5 | BZ24: 0 | CA24: 0 | CB24: 0 | CD24: 0 | CE24: 0 | CF24: 0 | CG24: 8 | CH24: 1 | CR24: +1 | CS24: 1 | CT24: 1
A25: 21 | B25: 25 | C25: 莲塘实验学校（小学） | D25: 25 | E25: 莲塘实验学校 | F25: 县直九年一贯制学校 | G25: 小学 | H25: 县直学校 | I25: 402 | J25: 554 | K25: 438 | L25: 7 | M25: 7 | N25: 10 | P25: 0 | R25: 0 | S25: 3 | T25: 3 | U25: =W25-T25 -> 14 | V25: 22.4 | W25: =M25*2+Q25*1.5+O25+T25 -> 17 | X25: 17 | Y25: 25.4 | Z25: 25 | AA25: 23 | AB25: 19 | AC25: 19 | AE25: 0 | AG25: 0 | AL25: 0 | AU25: 0 | AW25: 0 | BB25: 0 | BE25: 0 | BF25: 0 | BG25: 2 | BH25: 0 | BI25: 0 | BJ25: 0 | BK25: 0 | BL25: 0 | BM25: 21 | BN25: 31 | BO25: 21 | BP25: 31 | BQ25: 31 | BR25: 2 | BS25: 2 | BT25: =X25-BO25 -> -4 | BU25: -6 | BV25: -6 | BW25: -6 | BX25: 2 | BY25: 0 | BZ25: 0 | CA25: 0 | CB25: 0 | CC25: 0 | CD25: 0 | CE25: 0 | CF25: 0 | CG25: 0
A26: 23 | B26: 26 | C26: 昌南实验学校（小学） | D26: 26 | E26: 昌南实验学校 | F26: 县直九年一贯制学校 | G26: 小学 | H26: 县直学校 | I26: 378 | J26: 603 | K26: 407 | L26: 7 | M26: 7 | N26: 13 | R26: 0 | S26: 3 | T26: 3 | U26: 14 | V26: 30.8 | W26: 17 | X26: 17 | Y26: 33.8 | Z26: 34 | AA26: 26 | AB26: 22 | AC26: 22 | AF26: 2 | AG26: 3 | AM26: 0 | AW26: 1 | BG26: 2 | BH26: -5 | BM26: 21 | BN26: 37 | BO26: 23 | BP26: 38 | BQ26: 38 | BR26: 3 | BS26: 3 | BT26: -6 | BU26: -4 | BV26: -4 | BW26: -3 | BX26: 3 | BY26: 0 | BZ26: 0 | CA26: 0 | CB26: 0 | CC26: 0 | CD26: 0 | CE26: 0 | CF26: 0 | CM26: 4 | CN26: 2
A27: 25 | B27: 27 | C27: 黄马凤凰沟实验学校（小学） | D27: 27 | E27: 黄马凤凰沟实验学校 | F27: 乡镇九年一贯制学校 | G27: 小学 | H27: 乡镇中心小学 | I27: 219 | J27: 311 | K27: 221 | L27: 6 | M27: 6 | N27: 6 | P27: 0 | R27: 0 | S27: 3 | T27: 3 | U27: 12 | V27: 20.4 | W27: 15 | X27: 15 | Y27: 23.4 | Z27: 23 | AA27: 15 | AB27: 13 | AC27: 12 | AK27: 1 | AL27: 1 | BD27: -1 | BE27: -1 | BM27: 13 | BN27: 25 | BO27: 13 | BP27: 25 | BQ27: 25 | BS27: 2 | BT27: 2 | BU27: -2 | BV27: -2 | BW27: -2 | BX27: 2 | BY27: =BT27 -> 2 | BZ27: 0 | CA27: 0 | CB27: 0 | CC27: 2 | CD27: 0 | CE27: 0 | CF27: 0 | CG27: 22 | CH27: 1 | CN27: 2
A28: 27 | B28: 28 | C28: 银三角实验学校（小学） | D28: 28 | E28: 银三角实验学校 | F28: 县直九年一贯制学校 | G28: 小学 | H28: 县直学校 | I28: 863 | J28: 1240 | K28: 947 | L28: 18 | M28: 18 | N28: 21 | P28: 0 | R28: 0 | S28: 5 | T28: 3 | U28: 36 | V28: 61.2 | W28: 39 | X28: 39 | Y28: 66.2 | Z28: 66 | AA28: 45 | AB28: 33 | AC28: 33 | AD28: 2 | AE28: 0 | AF28: 10 | AG28: 9 | AL28: 0 | AM28: 0 | AU28: 0 | AW28: 0 | BB28: 0 | BE28: 0 | BF28: 0 | BG28: 2 | BH28: -1 | BI28: 0 | BJ28: 0 | BK28: -3 | BL28: 0 | BM28: 43 | BN28: 68 | BO28: 40 | BP28: 82 | BQ28: 66 | BR28: 5 | BS28: 5 | BT28: -1 | BU28: -16 | BV28: 0 | BW28: -2 | BY28: 0 | BZ28: 0 | CA28: 0 | CB28: 0 | CC28: 0 | CD28: 0 | CE28: 0 | CF28: 0 | CG28: 3 | CH28: 5
A29: 29 | B29: 29 | C29: 县中专 | D29: 29 | E29: 县中专 | F29: 县中专 | G29: 县中专 | H29: 县直学校 | J29: 2348 | K29: 2348 | M29: 0 | N29: 47 | R29: 0 | S29: 7 | T29: 7 | Y29: 7 | Z29: 0 | AA29: 120 | AB29: 26 | AC29: 26 | BG29: 18 | BH29: -2 | BI29: 0 | BJ29: 0 | BK29: -1 | BL29: -1 | BM29: 40 | BN29: 40 | BO29: 40 | BP29: 48 | BQ29: 40 | BR29: 8 | BS29: 80 | BU29: -48 | BV29: -40 | BW29: -40 | BX29: =BS29 -> 80 | BZ29: 0 | CA29: 0 | CB29: 0 | CD29: 0 | CE29: 0 | CF29: 0 | CG29: 15
A30: 30 | B30: 30 | C30: 金沙路小学 | D30: 30 | E30: 金沙路小学 | F30: 小学 | G30: 小学 | H30: 县直学校 | I30: 3606 | J30: 3606 | K30: 3587 | L30: 58 | M30: 58 | N30: 78 | R30: 0 | S30: 9 | T30: 9 | U30: =W30-T30 -> 116 | V30: 116 | W30: =M30*2+Q30*1.5+O30+T30 -> 125 | X30: 125 | Y30: 125 | Z30: 125 | AA30: 165 | AB30: 126 | AC30: 126 | AD30: 4 | AF30: 6 | AG30: 6 | BD30: 2 | BE30: 2 | BG30: 5 | BH30: -6 | BK30: -1 | BM30: 136 | BN30: 136 | BO30: 132 | BP30: 132 | BQ30: 132 | BR30: 33 | BS30: 33 | BT30: =X30-BO30 -> -7 | BU30: -7 | BV30: -7 | BW30: -11 | BX30: 33 | BY30: 0 | BZ30: 0 | CA30: 0 | CB30: 0 | CC30: 0 | CD30: 0 | CE30: 0 | CF30: 0 | CG30: 15 | CH30: 12 | CJ30: 31 | CM30: 33 | CR30: +10 | CS30: 10 | CT30: 10
A31: 31 | B31: 31 | C31: 振兴路小学 | D31: 31 | E31: 振兴路小学 | F31: 小学 | G31: 小学 | H31: 县直学校 | I31: 3882 | J31: 3882 | K31: 3882 | L31: 59 | M31: 59 | N31: 59 | R31: 未交材料1的报告 | S31: 9 | T31: 9 | U31: 118 | V31: 118 | W31: 127 | X31: 127 | Y31: 127 | Z31: 127 | AA31: 127 | AB31: 109 | AC31: 104 | AD31: 4 | AF31: 2 | AG31: 2 | BF31: 1 | BG31: 15 | BH31: -5 | BI31: 0 | BJ31: 0 | BK31: -2 | BL31: -3 | BM31: 121 | BN31: 121 | BO31: 117 | BP31: 117 | BQ31: 117 | BR31: 21 | BS31: 10 | BT31: 10 | BU31: 10 | BV31: 10 | BW31: 6 | BX31: 10 | BY31: 10 | BZ31: 10 | CA31: 10 | CB31: 6 | CC31: 10 | CD31: 10 | CE31: 10 | CF31: 6 | CG31: 3 | CJ31: 33 | CM31: 21 | CS31: 6 | CT31: 0
A32: 32 | B32: 32 | C32: 墨山街小学 | D32: 32 | E32: 墨山街小学 | F32: 小学 | G32: 小学 | H32: 县直学校 | I32: 719 | J32: 719 | K32: 736 | L32: 17 | M32: 17 | N32: 17 | P32: 0 | R32: 0 | S32: 3 | T32: 3 | U32: 34 | V32: 34 | W32: 37 | X32: 37 | Y32: 37 | Z32: 37 | AA32: 37 | AB32: 35 | AC32: 35 | AD32: 2 | AE32: 0 | AF32: 3 | AG32: 4 | AL32: 0 | AM32: 0 | AU32: 0 | AW32: 0 | BB32: 0 | BD32: 1 | BE32: 1 | BF32: 0 | BG32: 4 | BH32: -7 | BI32: 0 | BJ32: 0 | BK32: -2 | BL32: -1 | BM32: 35 | BN32: 35 | BO32: 34 | BP32: 34 | BQ32: 34 | BR32: 3 | BS32: 3 | BT32: 3 | BU32: 3 | BV32: 3 | BW32: 2 | BX32: 3 | BY32: 3 | BZ32: 3 | CA32: 3 | CB32: 2 | CC32: 3 | CD32: 3 | CE32: 3 | CF32: 2 | CG32: 3 | CM32: 3 | CS32: 2 | CT32: 0
A33: 33 | B33: 33 | C33: 南昌县斗柏路小学 | D33: 33 | E33: 南昌县斗柏路小学 | F33: 小学 | G33: 小学 | H33: 县直学校 | I33: 2729 | J33: 2729 | K33: 2731 | L33: 48 | M33: 48 | N33: 54 | P33: 2 | R33: 2 | S33: 7 | T33: 7 | U33: 96 | V33: 96 | W33: 103 | X33: 103 | Y33: 103 | Z33: 103 | AA33: 115 | AB33: 63 | AC33: 63 | AE33: 0 | AF33: 1 | AG33: 1 | AL33: 0 | AM33: 0 | AU33: 0 | AW33: 0 | BB33: 0 | BE33: 0 | BF33: 0 | BG33: 72 | BH33: -10 | BI33: 0 | BJ33: 0 | BK33: -1 | BL33: 0 | BM33: 125 | BN33: 125 | BO33: 125 | BP33: 125 | BQ33: 125 | BR33: 4 | BS33: -10 | BT33: -22 | BU33: -22 | BV33: -22 | BW33: -22 | BY33: 0 | BZ33: 0 | CA33: 0 | CB33: 0 | CC33: 0 | CD33: 0 | CE33: 0 | CF33: 0 | CJ33: 18 | CM33: 4 | CR33: +1 | CS33: 1 | CT33: 1
A34: 34 | B34: 34 | C34: 南新中学 | D34: 34 | E34: 南新中学 | F34: 初中 | G34: 初中 | H34: 农村初级中学 | I34: 938 | J34: 938 | K34: 978 | L34: 18 | M34: 18 | N34: 18 | P34: 0 | R34: 0 | S34: 3 | T34: 3 | U34: 50.4 | V34: 50.4 | W34: =M34*2.8+T34 -> 53.4 | X34: 53 | Y34: 53.4 | Z34: 53 | AA34: 54 | AB34: 84 | AC34: 82 | AE34: 0 | AG34: 0 | AK34: 2 | AL34: 2 | AM34: 0 | AU34: 0 | AW34: 0 | AZ34: 1 | BA34: 2 | BB34: 3 | BE34: 0 | BF34: 0 | BG34: 0 | BH34: -2 | BI34: 0 | BJ34: 0 | BK34: -2 | BL34: 0 | BM34: 85 | BN34: 85 | BO34: 85 | BP34: 93 | BQ34: 85 | BR34: 1 | BS34: -31 | BT34: -32 | BU34: -40 | BV34: -32 | BW34: -32 | BY34: 0 | BZ34: 0 | CA34: 0 | CB34: 0 | CC34: 0 | CD34: 0 | CE34: 0 | CF34: 0 | CG34: 12 | CK34: 我校无音乐教师。 | CN34: 1 | CQ34: 我校无音乐教师，因结构比例原因，申请补充1名初中音乐教师 | CR34: +1 | CS34: 1 | CT34: 1
A35: 35 | B35: 35 | C35: 蒋巷二中 | D35: 35 | E35: 蒋巷二中 | F35: 初中 | G35: 初中 | H35: 农村初级中学 | I35: 2588 | J35: 2588 | K35: 2585 | L35: 42 | M35: 42 | N35: 50 | R35: 0 | S35: 7 | T35: 7 | U35: 117.6 | V35: 117.6 | W35: 124.6 | X35: 125 | Y35: 124.6 | Z35: 125 | AA35: 140 | AB35: 127 | AC35: 127 | AD35: 3 | AE35: 3 | AK35: 7 | AL35: 7 | AM35: 0 | AX35: 1 | BD35: -1 | BG35: 1 | BH35: -7 | BI35: -2 | BK35: -2 | BM35: 126 | BN35: 126 | BO35: 127 | BP35: 127 | BQ35: 127 | BR35: 13 | BS35: 13 | BT35: -2 | BU35: -2 | BV35: -2 | BW35: -1 | BX35: =BS35 -> 13 | BY35: 0 | BZ35: 0 | CA35: 0 | CB35: 0 | CC35: 0 | CD35: 0 | CE35: 0 | CF35: 0 | CG35: 4 | CH35: 5 | CJ35: 31 | CM35: 9 | CN35: 4
A36: 36 | B36: 36 | C36: 塘南中学 | D36: 36 | E36: 塘南中学 | F36: 初中 | G36: 初中 | H36: 农村初级中学 | I36: 702 | J36: 702 | K36: 704 | L36: 12 | M36: 12 | N36: 15 | P36: 0 | R36: 0 | S36: 3 | T36: 3 | U36: 33.6 | V36: 33.6 | W36: 36.6 | X36: 37 | Y36: 36.6 | Z36: 37 | AA36: 45 | AB36: 55 | AC36: 56 | AE36: 0 | AG36: 0 | AL36: 0 | AU36: 0 | AW36: 0 | AZ36: 2 | BB36: 2 | BE36: -1 | BF36: 0 | BG36: 1 | BH36: -5 | BI36: 0 | BJ36: 0 | BK36: 0 | BL36: 0 | BM36: 53 | BN36: 53 | BO36: 52 | BP36: 52 | BQ36: 52 | BR36: 3 | BS36: -7 | BT36: -15 | BU36: -15 | BV36: -15 | BW36: -16 | BY36: 0 | BZ36: 0 | CA36: 0 | CB36: 0 | CC36: 0 | CD36: 0 | CE36: 0 | CF36: 0 | CG36: 28 | CJ36: 5 | CK36: 学校教师结构性缺员 | CN36: 3 | CQ36: 我校因教师结构性缺员，严重缺少初中数学、初中英语、初中体育等专业教师，导致很难按需求开展正常班级授课 | CR36: +3 | CS36: 2 | CT36: 2
A37: 37 | B37: 37 | C37: 新联学校（小学） | D37: 37 | E37: 新联学校 | F37: 乡镇九年一贯制学校 | G37: 小学 | H37: 乡镇中心小学 | I37: 344 | J37: 651 | K37: 281 | L37: 20 | M37: 20 | N37: 10 | P37: 8 | R37: 18 | S37: 3 | T37: 3 | U37: 40 | V37: 65.2 | W37: =M37*2+Q37*1.5+O37+T37 -> 43 | X37: 43 | Y37: 68.2 | Z37: 68 | AA37: 36 | AB37: 39 | AC37: 39 | AE37: 0 | AG37: 0 | AI37: 6 | AJ37: 1 | AK37: 8 | AL37: 6 | AR37: 3 | AS37: 5 | AT37: =SUM(AO37:AS37) -> 8 | AU37: 0 | AW37: 0 | BB37: 0 | BE37: 0 | BF37: 0 | BG37: 0 | BH37: -4 | BI37: 0 | BJ37: 0 | BK37: -2 | BL37: 0 | BM37: 48 | BN37: 72 | BO37: 39 | BP37: 57 | BQ37: 57 | BR37: 9 | BS37: -3 | BT37: 4 | BU37: 11 | BV37: 11 | BW37: -4 | BY37: =BT37 -> 4 | BZ37: 11 | CA37: 11 | CB37: 0 | CC37: 4 | CD37: 11 | CE37: 11 | CF37: 0 | CG37: 8 | CN37: 6
A38: 39 | B38: 38 | C38: 泾口中学 | D38: 38 | E38: 泾口中学 | F38: 初中 | G38: 初中 | H38: 农村初级中学 | I38: 551 | J38: 1064 | K38: 592 | L38: 12 | M38: 12 | N38: 12 | R38: 0 | S38: 5 | T38: 3 | U38: 33.6 | V38: 33.6 | W38: =M38*2.8+T38 -> 36.6 | X38: 37 | Y38: 38.6 | Z38: 39 | AA38: 37 | AB38: 83 | AC38: 83 | AZ38: 1 | BB38: 1 | BG38: 1 | BH38: -6 | BK38: -1 | BM38: 78 | BN38: 78 | BO38: 78 | BP38: 78 | BQ38: 78 | BR38: -41 | BS38: -41 | BT38: -41 | BU38: -39 | BV38: -39 | BW38: -39 | BY38: 0 | BZ38: 0 | CA38: 0 | CB38: 0 | CC38: 0 | CD38: 0 | CE38: 0 | CF38: 0 | CG38: 19 | CN38: 5
A39: 40 | B39: 39 | C39: 幽兰学校（小学） | D39: 39 | E39: 幽兰学校 | F39: 乡镇九年一贯制学校 | G39: 小学 | H39: 乡镇中心小学 | I39: 513 | J39: 868 | K39: 514 | L39: 20 | M39: 20 | N39: 20 | R39: 0 | S39: 3 | T39: 3 | U39: 40 | V39: 62.4 | W39: 43 | X39: 43 | Y39: 65.4 | Z39: 65 | AA39: 43 | AB39: 107 | AC39: 97 | AH39: 9 | AL39: 4 | AM39: 4 | AN39: 5 | AO39: 4 | AP39: 9 | AT39: 13 | AU39: 5 | BD39: -1 | BE39: -1 | BG39: 2 | BH39: -16 | BK39: -5 | BL39: -1 | BM39: 104 | BN39: 148 | BO39: 91 | BP39: 135 | BQ39: 135 | BR39: -43 | BS39: -48 | BT39: -48 | BU39: -70 | BV39: -70 | BW39: -83 | BY39: 0 | BZ39: 0 | CA39: 0 | CB39: 0 | CC39: 0 | CD39: 0 | CE39: 0 | CF39: 0 | CG39: 19 | CN39: 0
A40: 42 | B40: 40 | C40: 渡头学校（小学） | D40: 40 | E40: 渡头学校 | F40: 乡镇九年一贯制学校 | G40: 小学 | H40: 乡镇中心小学 | I40: 603 | J40: 886 | K40: 595 | L40: 23 | M40: 17 | N40: 17 | O40: 5 | P40: 0 | Q40: 6 | R40: 0 | S40: 3 | T40: 3 | U40: 48 | V40: 67.6 | W40: 51 | X40: 51 | Y40: 70.6 | Z40: 71 | AA40: 38 | AB40: 75 | AC40: 75 | AE40: 0 | AG40: 0 | AL40: 5 | AM40: 5 | AN40: 5 | AO40: 4 | AT40: 4 | AU40: 1 | AW40: 0 | BB40: 0 | BD40: -3 | BE40: -3 | BF40: 0 | BG40: 0 | BH40: -21 | BI40: 0 | BJ40: 0 | BK40: 0 | BL40: 0 | BM40: 60 | BN40: 105 | BO40: 52 | BP40: 101 | BQ40: 101 | BR40: -11 | BS40: -14 | BT40: -1 | BU40: -30 | BV40: -30 | BW40: -34 | BY40: 0 | BZ40: 0 | CA40: 0 | CB40: 0 | CC40: 0 | CD40: 0 | CE40: 0 | CF40: 0 | CG40: 24 | CN40: 0
A41: 44 | B41: 41 | C41: 塔城中学 | D41: 41 | E41: 塔城中学 | F41: 初中 | G41: 初中 | H41: 农村初级中学 | I41: 350 | J41: 350 | K41: 341 | L41: 9 | M41: 9 | N41: 9 | P41: 0 | R41: 0 | S41: 3 | T41: 3 | U41: 25.2 | V41: 25.2 | W41: 28.2 | X41: 28 | Y41: 28.2 | Z41: 28 | AA41: =ROUNDUP(N41*2.8+3,0) -> 29 | AB41: 50 | AC41: 50 | AM41: 0 | AX41: 1 | BD41: -1 | BE41: -1 | BH41: -10 | BJ41: -2 | BK41: -1 | BM41: 36 | BN41: 36 | BO41: 36 | BP41: 36 | BQ41: 36 | BR41: =AA41-(AB41+AE41+AG41+AL41+AU41+AW41+BB41+BE41+BF41+BG41-BH41-BI41-BJ41-BK41-BL41) -> -33 | BS41: -7 | BT41: -8 | BU41: -8 | BV41: -8 | BW41: -8 | BY41: 0 | BZ41: 0 | CA41: 0 | CB41: 0 | CC41: 0 | CD41: 0 | CE41: 0 | CF41: 0 | CG41: 52 | CN41: 1 | CQ41: 因农村中学教师年龄结构偏大，学校数学教师结构性缺少。因此2020年申请补充初中数学教师1人。 | CR41: +1 | CS41: 1 | CT41: 1
A42: 45 | B42: 42 | C42: 武阳中学 | D42: 42 | E42: 武阳中学 | F42: 初中 | G42: 初中 | H42: 农村初级中学 | I42: 1489 | J42: 1489 | K42: 1492 | L42: 28 | M42: 28 | N42: 29 | R42: 0 | S42: 5 | T42: 5 | U42: 78.4 | V42: 78.4 | W42: 83.4 | X42: 83 | Y42: 83.4 | Z42: 83 | AA42: 89 | AB42: 76 | AC42: 76 | AD42: 1 | AF42: 5 | AG42: 6 | AZ42: 1 | BD42: -1 | BE42: -1 | BG42: 2 | BH42: -4 | BK42: -1 | BL42: -1 | BM42: 78 | BN42: 78 | BO42: 77 | BP42: 77 | BQ42: 77 | BR42: 12 | BS42: 12 | BT42: 6 | BU42: 6 | BV42: 6 | BW42: 5 | BX42: =BS42 -> 12 | BY42: =BT42 -> 6 | BZ42: 6 | CA42: 6 | CB42: 5 | CC42: 6 | CD42: 6 | CE42: 6 | CF42: 6 | CG42: 2 | CH42: 5 | CJ42: 5 | CN42: 12
A43: 46 | B43: 43 | C43: 向塘二中 | D43: 43 | E43: 向塘二中 | F43: 初中 | G43: 初中 | H43: 农村初级中学 | I43: 1324 | J43: 1324 | K43: 1326 | L43: 26 | M43: 26 | N43: 27 | P43: 0 | R43: 0 | S43: 5 | T43: 5 | U43: 72.8 | V43: 72.8 | W43: 77.8 | X43: 78 | Y43: 77.8 | Z43: 78 | AA43: 76 | AB43: 131 | AC43: 130 | AE43: 0 | AG43: 0 | AL43: 0 | AM43: 0 | AU43: 0 | AW43: 0 | BB43: 0 | BE43: 0 | BF43: 0 | BG43: 0 | BH43: -7 | BI43: 0 | BJ43: -1 | BK43: -6 | BL43: -3 | BM43: 114 | BN43: 114 | BO43: 114 | BP43: 114 | BQ43: 114 | BS43: -38 | BT43: -36 | BU43: -36 | BV43: -36 | BW43: -36 | BY43: 0 | BZ43: 0 | CA43: 0 | CB43: 0 | CC43: 0 | CD43: 0 | CE43: 0 | CF43: 0 | CG43: 1 | CN43: 0
A44: 47 | B44: 44 | C44: 向塘实验学校（小学） | D44: 44 | E44: 向塘实验学校 | F44: 乡镇九年一贯制学校 | G44: 小学 | H44: 乡镇中心小学 | I44: 2243 | J44: 3595 | K44: 2608 | L44: 34 | M44: 34 | N44: 42 | P44: 0 | R44: 0 | S44: 7 | T44: 5 | U44: 68 | V44: 126.8 | W44: =M44*2+Q44*1.5+O44+T44 -> 73 | X44: 73 | Y44: 133.8 | Z44: 134 | AA44: 90 | AB44: 98 | AC44: 98 | AE44: 0 | AF44: 6 | AG44: 4 | AJ44: 5 | AK44: 2 | AL44: 9 | AU44: 0 | AW44: 0 | BB44: 0 | BE44: 0 | BF44: 0 | BG44: 3 | BH44: -2 | BI44: 0 | BJ44: 0 | BK44: 0 | BL44: -3 | BM44: 109 | BN44: 192 | BO44: 109 | BP44: 190 | BQ44: 190 | BR44: 8 | BS44: -19 | BT44: -36 | BU44: -56 | BV44: -56 | BW44: -58 | BY44: 0 | BZ44: 0 | CA44: 0 | CB44: 0 | CC44: 0 | CD44: 0 | CE44: 0 | CF44: 0 | CG44: 13 | CH44: 2 | CJ44: 33 | CM44: 8 | CN44: 12
A45: 49 | B45: 45 | C45: 向塘向阳学校(小学） | D45: 45 | E45: 向塘向阳学校 | F45: 乡镇九年一贯制学校 | G45: 小学 | H45: 乡镇中心小学 | I45: 204 | J45: 379 | K45: 205 | L45: 14 | M45: 4 | N45: 15 | O45: 3 | P45: 3 | Q45: 10 | R45: 11 | S45: 3 | T45: 3 | U45: 26 | V45: 42.8 | W45: =M45*2+Q45*1.5+O45+T45 -> 29 | X45: 29 | Y45: 45.8 | Z45: 46 | AA45: 29 | AB45: 32 | AC45: 32 | AE45: 0 | AG45: 0 | AJ45: 1 | AK45: 1 | AL45: 2 | AS45: 3 | AT45: =SUM(AO45:AS45) -> 3 | AU45: 0 | AW45: 0 | BB45: 0 | BE45: 0 | BF45: 0 | BG45: 0 | BH45: -5 | BI45: 0 | BJ45: 0 | BK45: 0 | BL45: 0 | BM45: 29 | BN45: 51 | BO45: 29 | BP45: 64 | BQ45: 52 | BR45: 0 | BS45: 0 | BT45: 0 | BU45: -18 | BV45: -6 | BW45: -5 | BY45: 0 | BZ45: 0 | CA45: 0 | CB45: 0 | CC45: 0 | CD45: 0 | CE45: 0 | CF45: 0 | CG45: 6 | CN45: 0
A46: 51 | B46: 46 | C46: 黄马中学 | D46: 46 | E46: 黄马中学 | F46: 初中 | G46: 初中 | H46: 农村初级中学 | I46: 494 | J46: 494 | K46: 509 | L46: 11 | M46: 11 | N46: 10 | P46: 1 | R46: 10 | S46: 3 | T46: 3 | U46: 30.8 | V46: 30.8 | W46: =M46*2.8+T46 -> 33.8 | X46: 34 | Y46: 33.8 | Z46: 34 | AA46: 31 | AB46: 52 | AC46: 52 | AK46: 1 | AL46: 1 | BD46: -1 | BE46: -1 | BG46: 1 | BH46: -1 | BK46: -1 | BL46: -1 | BM46: 50 | BN46: 50 | BO46: 50 | BP46: 50 | BQ46: 50 | BR46: 1 | BS46: -19 | BT46: -16 | BU46: -16 | BV46: -16 | BW46: -16 | BY46: 0 | BZ46: 0 | CA46: 0 | CB46: 0 | CC46: 0 | CD46: 0 | CE46: 0 | CF46: 0 | CG46: 0 | CN46: 1
A47: 52 | B47: 47 | C47: 三江中学 | D47: 47 | E47: 三江中学 | F47: 初中 | G47: 初中 | H47: 农村初级中学 | I47: 839 | J47: 839 | K47: 835 | L47: 15 | M47: 15 | N47: 18 | P47: 1 | R47: 0 | S47: 3 | T47: 3 | U47: 42 | V47: 42 | W47: 45 | X47: 45 | Y47: 45 | Z47: 45 | AA47: 56 | AB47: 68 | AC47: 62 | AE47: 3 | AK47: 1 | AM47: 0 | BH47: -3 | BI47: -2 | BJ47: -1 | BK47: -2 | BL47: -2 | BM47: 59 | BN47: 59 | BO47: 61 | BP47: 61 | BQ47: 61 | BR47: 5 | BS47: -5 | BT47: -16 | BU47: -16 | BV47: -16 | BW47: -14 | BY47: 0 | BZ47: 0 | CA47: 0 | CB47: 0 | CC47: 0 | CD47: 0 | CE47: 0 | CF47: 0 | CG47: 0 | CN47: 5
A48: 53 | B48: 48 | C48: 广福一中 | D48: 48 | E48: 广福一中 | F48: 初中 | G48: 初中 | H48: 农村初级中学 | I48: 559 | J48: 559 | K48: 608 | L48: 12 | M48: 12 | N48: 12 | P48: 1 | R48: 0 | S48: 3 | T48: 3 | U48: 33.6 | V48: 33.6 | W48: 36.6 | X48: 37 | Y48: 36.6 | Z48: 37 | AA48: 37 | AB48: 48 | AC48: 49 | AD48: 1 | AE48: 0 | AF48: 1 | AG48: 1 | AK48: 1 | AL48: 1 | AU48: 0 | AW48: 0 | AZ48: 1 | BA48: 1 | BB48: 2 | BE48: 0 | BF48: 0 | BG48: 1 | BH48: -10 | BI48: 0 | BJ48: 0 | BK48: 0 | BL48: 0 | BM48: 44 | BN48: 44 | BO48: 43 | BP48: 43 | BQ48: 43 | BR48: 6 | BS48: -6 | BT48: -6 | BU48: -6 | BV48: -6 | BW48: -7 | BY48: 0 | BZ48: 0 | CA48: 0 | CB48: 0 | CC48: 0 | CD48: 0 | CE48: 0 | CF48: 0 | CG48: 0 | CN48: 6
A49: 54 | B49: 49 | C49: 广福二中 | D49: 49 | E49: 广福二中 | F49: 初中 | G49: 初中 | H49: 农村初级中学 | I49: 1041 | J49: 1041 | K49: 1037 | L49: 17 | M49: 17 | N49: 17 | P49: 0 | R49: 0 | S49: 5 | T49: 5 | U49: 47.6 | V49: 47.6 | W49: 52.6 | X49: 53 | Y49: 52.6 | Z49: 53 | AA49: 53 | AB49: 53 | AC49: 53 | AD49: 2 | AE49: 2 | AF49: 4 | AG49: 4 | AK49: 7 | AL49: 7 | AM49: 0 | AU49: 0 | AW49: 0 | BB49: 0 | BD49: -6 | BE49: -6 | BF49: 0 | BG49: 1 | BH49: -7 | BI49: 0 | BJ49: 0 | BK49: 0 | BL49: -1 | BM49: 53 | BN49: 53 | BO49: 53 | BP49: 69 | BQ49: 53 | BR49: 5 | BS49: 0 | BT49: -0 | BU49: -16 | BV49: -0 | BW49: -0 | BY49: 0 | BZ49: 0 | CA49: 0 | CB49: 0 | CC49: 0 | CD49: 0 | CE49: 0 | CF49: 0 | CG49: 10 | CN49: 5 | CQ49: 因结构性缺编，特申报2020年补充教师5人。具体学科分别为:初中语文2人，初中物理2人，初中地理1人。 | CR49: +5 | CS49: 3 | CT49: 3
A50: 55 | B50: 50 | C50: 冈上中学 | D50: 50 | E50: 冈上中学 | F50: 初中 | G50: 初中 | H50: 农村初级中学 | I50: 533 | J50: 533 | K50: 547 | L50: 11 | M50: 11 | N50: 12 | R50: 0 | S50: 3 | T50: 3 | U50: 30.8 | V50: 30.8 | W50: 33.8 | X50: 34 | Y50: 33.8 | Z50: 34 | AA50: 37 | AB50: 58 | AC50: 57 | AE50: 0 | AG50: 0 | AL50: 0 | AM50: 0 | AU50: 0 | AW50: 0 | BB50: 0 | BE50: 0 | BF50: 0 | BG50: 0 | BH50: -5 | BI50: 0 | BJ50: 0 | BK50: -1 | BL50: 0 | BM50: 52 | BN50: 52 | BO50: 52 | BP50: 52 | BQ50: 52 | BR50: 2 | BS50: -15 | BT50: -18 | BU50: -18 | BV50: -18 | BW50: -18 | BY50: 0 | BZ50: 0 | CA50: 0 | CB50: 0 | CC50: 0 | CD50: 0 | CE50: 0 | CF50: 0 | CK50: 缺少英语教师2名 | CN50: 2
A51: 56 | B51: 51 | C51: 富山中学 | D51: 51 | E51: 富山中学 | F51: 初中 | G51: 初中 | H51: 农村初级中学 | I51: 1451 | J51: 1451 | K51: 1453 | L51: 23 | M51: 23 | N51: 28 | P51: 0 | R51: 0 | S51: 5 | T51: 5 | U51: 64.4 | V51: 64.4 | W51: 69.4 | X51: 69 | Y51: 69.4 | Z51: 69 | AA51: 78 | AB51: 97 | AC51: 97 | AG51: 1 | AM51: 0 | BG51: 1 | BH51: -14 | BI51: 0 | BJ51: -1 | BK51: 0 | BL51: -2 | BM51: 81 | BN51: 81 | BO51: 82 | BP51: 82 | BQ51: 82 | BR51: -4 | BS51: -4 | BT51: -13 | BU51: -13 | BV51: -13 | BW51: -12 | BY51: 0 | BZ51: 0 | CA51: 0 | CB51: 0 | CC51: 0 | CD51: 0 | CE51: 0 | CF51: 0 | CG51: 12 | CN51: 2
A52: 57 | B52: 52 | C52: 东新中学 | D52: 52 | E52: 东新中学 | F52: 初中 | G52: 初中 | H52: 农村初级中学 | I52: 1134 | J52: 1134 | K52: 1153 | L52: 21 | M52: 21 | N52: 24 | P52: 1 | R52: 0 | S52: 5 | T52: 5 | U52: 58.8 | V52: 58.8 | W52: 63.8 | X52: 64 | Y52: 63.8 | Z52: 64 | AA52: 72 | AB52: 66 | AC52: 66 | AE52: 0 | AG52: 0 | AL52: 0 | AU52: 0 | AW52: 0 | BB52: 0 | BE52: 0 | BF52: 0 | BG52: 3 | BH52: -3 | BI52: 0 | BJ52: 0 | BK52: -1 | BL52: 0 | BM52: 65 | BN52: 65 | BO52: 65 | BP52: 73 | BQ52: 65 | BR52: 7 | BS52: 7 | BT52: -1 | BU52: -9 | BV52: -1 | BW52: -1 | BY52: 0 | BZ52: 0 | CA52: 0 | CB52: 0 | CC52: 0 | CD52: 0 | CE52: 0 | CF52: 0 | CG52: 0 | CN52: 7
A53: 58 | B53: 53 | C53: 八一中学 | D53: 53 | E53: 八一中学 | F53: 初中 | G53: 初中 | H53: 农村初级中学 | I53: 668 | J53: 668 | K53: 662 | L53: 14 | M53: 14 | N53: 14 | P53: 0 | R53: 0 | S53: 3 | T53: 3 | U53: 39.2 | V53: 39.2 | W53: 42.2 | X53: 42 | Y53: 42.2 | Z53: 42 | AA53: 42 | AB53: 97 | AC53: 98 | AE53: 0 | AG53: 0 | AL53: 0 | AM53: 0 | AU53: 0 | AW53: 0 | BB53: 0 | BF53: 0 | BG53: 0 | BH53: -11 | BI53: 0 | BJ53: -1 | BK53: -8 | BL53: -5 | BM53: 72 | BN53: 72 | BO53: 72 | BP53: 72 | BQ53: 72 | BR53: 0 | BS53: -30 | BT53: -30 | BU53: -30 | BV53: -30 | BW53: -30 | BY53: 0 | BZ53: 0 | CA53: 0 | CB53: 0 | CC53: 0 | CD53: 0 | CE53: 0 | CF53: 0 | CG53: 1 | CK53: 超编 | CN53: 0
A54: 59 | B54: 54 | C54: 莲塘一中 | D54: 54 | E54: 莲塘一中 | F54: 高中 | G54: 高中 | H54: 县直学校 | I54: 4956 | J54: 4956 | K54: 5400 | L54: 86 | M54: 86 | N54: 101 | R54: 0 | S54: 9 | T54: 9 | U54: 396.48 | V54: 396.48 | W54: =I54/12.5+T54 -> 405.48 | X54: 405 | Y54: 405.48 | Z54: 405 | AA54: 404 | AB54: 393 | AC54: 387 | AM54: 0 | AV54: 5 | AW54: 5 | BG54: 2 | BH54: -3 | BK54: -1 | BL54: -5 | BM54: 391 | BN54: 391 | BO54: 391 | BP54: 391 | BQ54: 391 | BR54: 17 | BS54: 13 | BT54: 14 | BU54: 14 | BV54: 14 | BW54: 14 | BX54: =BS54 -> 13 | BY54: =BT54 -> 14 | BZ54: 14 | CA54: 14 | CB54: 14 | CC54: 14 | CD54: 14 | CE54: 14 | CF54: 14 | CG54: 2 | CH54: 17 | CJ54: ='[1]11'!M67-'[1]11'!W67 -> 13 | CO54: 17
A55: 60 | B55: 55 | C55: 莲塘二中 | D55: 55 | E55: 莲塘二中 | F55: 高中 | G55: 高中 | H55: 县直学校 | I55: 3367 | J55: 3367 | K55: 4500 | L55: 63 | M55: 63 | N55: 71 | R55: 0 | S55: 9 | T55: 9 | U55: 269.36 | V55: 269.36 | W55: 278.36 | X55: 278 | Y55: 278.36 | Z55: 278 | AA55: 284 | AB55: 230 | AC55: 230 | AV55: 9 | AW55: 9 | BH55: -4 | BJ55: -1 | BK55: -1 | BL55: -1 | BM55: 232 | BN55: 232 | BO55: 232 | BP55: 232 | BQ55: 232 | BR55: 14 | BS55: 52 | BT55: 46 | BU55: 46 | BV55: 46 | BW55: 46 | BX55: 52 | BY55: 46 | BZ55: 46 | CA55: 46 | CB55: 46 | CC55: 46 | CD55: 46 | CE55: 46 | CF55: 46 | CG55: 0 | CH55: 7 | CJ55: 21 | CO55: 14
A56: 61 | B56: 56 | C56: 莲塘三中 | D56: 56 | E56: 莲塘三中 | F56: 高中 | G56: 高中 | H56: 县直学校 | I56: 3309 | J56: 3309 | K56: 3511 | L56: 52 | M56: 52 | N56: 61 | R56: 0 | S56: 9 | T56: 9 | U56: 264.72 | V56: 264.72 | W56: 273.72 | X56: 274 | Y56: 273.72 | Z56: 274 | AA56: 246 | AB56: 241 | AC56: 241 | AM56: 0 | AV56: 5 | AW56: 5 | BE56: 1 | BG56: 1 | BK56: -2 | BL56: -4 | BM56: 241 | BN56: 241 | BO56: 242 | BP56: 242 | BQ56: 242 | BR56: 47 | BS56: 4 | BT56: 32 | BU56: 32 | BV56: 32 | BW56: 33 | BX56: 4 | BY56: 32 | BZ56: 32 | CA56: 32 | CB56: 33 | CC56: 32 | CD56: 32 | CE56: 32 | CF56: 33 | CG56: 3 | CH56: 6 | CO56: 47
A57: 62 | B57: 57 | C57: 莲塘四中 | D57: 57 | E57: 莲塘四中 | F57: 初中 | G57: 初中 | H57: 县直学校 | I57: 5069 | J57: 5069 | K57: 5085 | L57: 76 | M57: 76 | N57: 85 | R57: 0 | S57: 9 | T57: 9 | U57: 212.8 | V57: 212.8 | W57: =M57*2.8+T57 -> 221.8 | X57: 222 | Y57: 221.8 | Z57: 222 | AA57: 247 | AB57: 151 | AC57: 151 | AF57: 18 | AG57: 18 | BD57: 1 | BE57: 1 | BG57: 30 | BH57: -3 | BK57: -2 | BL57: -2 | BM57: 193 | BN57: 193 | BO57: 193 | BP57: 193 | BQ57: 193 | BR57: 55 | BS57: 55 | BT57: 29 | BU57: 29 | BV57: 29 | BW57: 29 | BX57: 55 | BY57: 29 | BZ57: 29 | CA57: 29 | CB57: 29 | CC57: 29 | CD57: 29 | CE57: 29 | CF57: 29 | CG57: 2 | CH57: 19 | CJ57: 76 | CK57: 补充计划数需+1（1人被判刑待办理下编手续） | CN57: 55 | CQ57: 补充计划数需+1（1人被判刑待办理下编手续） | CR57: +1 | CS57: 30 | CT57: 1
A58: 63 | B58: 58 | C58: 莲塘五中 | D58: 58 | E58: 莲塘五中 | F58: 初中 | G58: 初中 | H58: 县直学校 | I58: 2606 | J58: 2606 | K58: 2611 | L58: 42 | M58: 42 | N58: 42 | R58: 0 | S58: 7 | T58: 7 | U58: 117.6 | V58: 117.6 | W58: 124.6 | X58: 125 | Y58: 124.6 | Z58: 125 | AA58: 125 | AB58: 133 | AC58: 133 | AF58: 3 | AG58: 3 | BG58: 7 | BH58: -5 | BK58: -3 | BM58: 135 | BN58: 135 | BO58: 135 | BP58: 135 | BQ58: 135 | BR58: 12 | BS58: =AA58-BO58 -> -10 | BT58: -10 | BU58: -10 | BV58: -10 | BW58: -10 | BY58: 0 | BZ58: 0 | CA58: 0 | CB58: 0 | CC58: 0 | CD58: 0 | CE58: 0 | CF58: 0 | CG58: 0 | CJ58: 30 | CN58: 12
A59: 64 | B59: 59 | C59: 莲塘六中 | D59: 59 | E59: 莲塘六中 | F59: 初中 | G59: 初中 | H59: 县直学校 | I59: 2770 | J59: 2770 | K59: 2904 | L59: 44 | M59: 44 | N59: 41 | R59: 0 | S59: 7 | T59: 7 | U59: 123.2 | V59: 123.2 | W59: 130.2 | X59: 130 | Y59: 130.2 | Z59: 130 | AA59: 122 | AB59: 136 | AC59: 136 | AE59: 5 | AF59: 5 | BG59: 9 | BH59: -1 | BK59: -3 | BL59: -3 | BM59: 143 | BN59: 143 | BO59: 143 | BP59: 143 | BQ59: 143 | BR59: 4 | BS59: -21 | BT59: -13 | BU59: -13 | BV59: -13 | BW59: -13 | BY59: 0 | BZ59: 0 | CA59: 0 | CB59: 0 | CC59: 0 | CD59: 0 | CE59: 0 | CF59: 0 | CG59: 7 | CJ59: 27 | CN59: 4
A60: 65 | B60: 60 | C60: 莲塘七中 | D60: 60 | E60: 莲塘七中 | F60: 初中 | G60: 初中 | H60: 县直学校 | I60: 1877 | J60: 1877 | K60: 1878 | L60: 30 | M60: 30 | N60: 30 | P60: 0 | R60: 0 | S60: 5 | T60: 5 | U60: 84 | V60: 84 | W60: 89 | X60: 89 | Y60: 89 | Z60: 89 | AA60: 89 | AB60: 109 | AC60: 109 | AE60: 0 | AF60: 3 | AG60: 3 | AL60: 0 | AU60: 0 | AW60: 0 | BB60: 0 | BG60: 1 | BH60: -8 | BI60: 0 | BJ60: 0 | BK60: -2 | BL60: -2 | BM60: 101 | BN60: 101 | BO60: 101 | BP60: 101 | BQ60: 101 | BR60: 7 | BS60: -12 | BT60: -12 | BU60: -12 | BV60: -12 | BW60: -12 | BY60: 0 | BZ60: 0 | CA60: 0 | CB60: 0 | CC60: 0 | CD60: 0 | CE60: 0 | CF60: 0 | CG60: 0 | CN60: 7
A61: 66 | B61: 61 | C61: 银河学校（小学） | D61: 61 | E61: 银河学校 | F61: 县直九年一贯制学校 | G61: 小学 | H61: 县直学校 | I61: 2980 | J61: 4340 | K61: 2983 | L61: 48 | M61: 48 | N61: 48 | P61: 1 | R61: 0 | S61: 9 | T61: 7 | U61: 96 | V61: 163.2 | W61: =M61*2+Q61*1.5+O61+T61 -> 103 | X61: 103 | Y61: 172.2 | Z61: 172 | AA61: 101 | AB61: 92 | AC61: 92 | AD61: 2 | AE61: 3 | AF61: 15 | AG61: 15 | BD61: 1 | BE61: 1 | BG61: 12 | BH61: -19 | BM61: 103 | BN61: 191 | BO61: 104 | BP61: 192 | BQ61: 192 | BR61: 0 | BS61: -3 | BT61: -1 | BU61: -20 | BV61: -20 | BW61: -19 | BY61: 0 | BZ61: 0 | CA61: 0 | CB61: 0 | CC61: 0 | CD61: 0 | CE61: 0 | CF61: 0 | CG61: 1 | CJ61: 39 | CM61: 10 | CN61: 2 | CQ61: 虽现有教师数大于需求数，但因学科人数不平衡，还需申报2020年补充教师12人。 | CR61: +12 | CS61: 8 | CT61: 8
A62: 68 | B62: 62 | C62: 洪州学校(小学含莲六小） | D62: 62 | E62: 洪州学校 | F62: 县直九年一贯制学校 | G62: 小学 | H62: 县直学校 | I62: 3549 | J62: 5281 | K62: 3545 | L62: 57 | M62: 57 | N62: 57 | P62: 4 | R62: 4 | S62: 9 | T62: 9 | U62: 114 | V62: 192.4 | W62: 123 | X62: 123 | Y62: 201.4 | Z62: 201 | AA62: 114 | AB62: 69 | AC62: 69 | AE62: 0 | AF62: 5 | AG62: 5 | AL62: 0 | AU62: 0 | AW62: 0 | BB62: 0 | BE62: 0 | BF62: 0 | BG62: 49 | BH62: -2 | BI62: 0 | BJ62: -1 | BK62: 0 | BL62: 0 | BM62: 120 | BN62: 228 | BO62: 120 | BP62: 228 | BQ62: 228 | BR62: 56 | BS62: -6 | BT62: 3 | BU62: -27 | BV62: -27 | BW62: -27 | BY62: =BT62 -> 3 | BZ62: 0 | CA62: 0 | CB62: 0 | CC62: 3 | CD62: 0 | CE62: 0 | CF62: 0 | CG62: 0 | CH62: 13 | CJ62: 76 | CK62: 化解大班额问题 | CM62: 56 | CN62: 5 | CQ62: 由于化解大班额问题，故教师需求数61人。 | CR62: +34 | CS62: 34 | CT62: 34
A63: 70 | B63: 63 | C63: 新城学校（小学） | D63: 63 | E63: 新城学校 | F63: 县直九年一贯制学校 | G63: 小学 | H63: 县直学校 | I63: 1743 | J63: 3106 | K63: 1750 | L63: 31 | M63: 31 | N63: 31 | R63: 0 | S63: 9 | T63: 5 | U63: 62 | V63: 126.4 | W63: 67 | X63: 67 | Y63: 135.4 | Z63: 135 | AA63: 71 | AB63: 53 | AC63: 53 | AD63: 3 | AE63: 0 | AF63: 6 | AG63: 12 | AL63: 0 | AU63: 0 | AW63: 0 | BB63: 0 | BD63: 2 | BE63: 2 | BF63: 0 | BG63: 1 | BH63: -1 | BI63: 0 | BJ63: 0 | BK63: 0 | BL63: 0 | BM63: 64 | BN63: 137 | BO63: 67 | BP63: 132 | BQ63: 132 | BR63: 4 | BS63: 4 | BT63: 0 | BU63: 3 | BV63: 3 | BW63: -2 | BX63: =BS63 -> 4 | BY63: 0 | BZ63: 3 | CA63: 3 | CB63: 0 | CC63: 0 | CD63: 3 | CE63: 3 | CF63: 0 | CH63: 4 | CJ63: 36 | CM63: 4 | CQ63: 小学增加9个班，初中增加4个班 | CR63: +29 | CS63: 28 | CT63: 27
A64: 72 | B64: 64 | C64: 诚义学校（小学） | D64: 64 | E64: 诚义学校 | F64: 县直九年一贯制学校 | G64: 小学 | H64: 县直学校 | I64: 2622 | J64: 3655 | K64: 2556 | L64: 44 | M64: 44 | N64: 52 | P64: 0 | R64: 0 | S64: 9 | T64: 7 | U64: 88 | V64: 138.4 | W64: 95 | X64: 95 | Y64: 147.4 | Z64: 147 | AA64: 111 | AB64: 61 | AC64: 61 | AD64: 5 | AF64: 12 | AG64: 15 | AM64: 0 | AU64: 0 | AW64: 0 | BB64: 0 | BD64: 2 | BE64: 3 | BF64: 0 | BG64: 11 | BH64: -2 | BI64: 0 | BJ64: 0 | BK64: 0 | BL64: 0 | BM64: 89 | BN64: 167 | BO64: 88 | BP64: 159 | BQ64: 159 | BR64: 28 | BS64: 23 | BT64: 7 | BU64: -12 | BV64: -12 | BW64: -20 | BX64: 23 | BY64: 7 | BZ64: 0 | CA64: 0 | CB64: 0 | CC64: 7 | CD64: 0 | CE64: 0 | CF64: 0 | CH64: 15 | CJ64: 36 | CM64: 28 | CN64: 9 | CR64: 3 | CS64: 3 | CT64: 3
A65: 74 | B65: 65 | C65: 芳草学校（小学） | D65: 65 | E65: 芳草学校 | F65: 县直九年一贯制学校 | G65: 小学 | H65: 县直学校 | I65: 2222 | J65: 2934 | K65: 2069 | L65: 42 | M65: 42 | N65: 41 | R65: 0 | S65: 7 | T65: 7 | U65: 84 | V65: 120.4 | W65: 91 | X65: 91 | Y65: 127.4 | Z65: 127 | AA65: 82 | AB65: 72 | AC65: 72 | AD65: 3 | AE65: 2 | AF65: 10 | AG65: 11 | BD65: 1 | BG65: 8 | BM65: 94 | BN65: 149 | BO65: 93 | BP65: 148 | BQ65: 148 | BR65: 8 | BS65: -11 | BT65: -2 | BU65: -21 | BV65: -21 | BW65: -22 | BY65: 0 | BZ65: 0 | CA65: 0 | CB65: 0 | CC65: 0 | CD65: 0 | CE65: 0 | CF65: 0 | CG65: 18 | CH65: 8 | CJ65: 30 | CM65: 8 | CN65: 18 | CR65: 3 | CS65: 3 | CT65: 3
A66: 76 | B66: 66 | C66: 洪州汇仁学校(小学） | D66: 66 | E66: 洪州汇仁学校 | F66: 县直九年一贯制学校 | G66: 小学 | H66: 县直学校 | I66: 1658 | J66: 2337 | K66: 1657 | L66: 26 | M66: 26 | N66: 26 | R66: 0 | S66: 7 | T66: 5 | U66: 52 | V66: 85.6 | W66: 57 | X66: 57 | Y66: 92.6 | Z66: 93 | AA66: 57 | AB66: 40 | AC66: 40 | AD66: 2 | AE66: 2 | BD66: 1 | BE66: 1 | BG66: 16 | BK66: -1 | BM66: 58 | BN66: 97 | BO66: 58 | BP66: 97 | BQ66: 97 | BR66: 21 | BS66: -1 | BT66: -1 | BU66: -4 | BV66: -4 | BW66: -4 | BY66: 0 | BZ66: 0 | CA66: 0 | CB66: 0 | CC66: 0 | CD66: 0 | CE66: 0 | CF66: 0 | CG66: 9 | CH66: 10 | CJ66: 18 | CK66: 产假人数5人 | CM66: 21 | CN66: 10 | CQ66: 预计一年级净增9个班需教师21人，七年级净增3个班需教师10人。 | CR66: +27 | CS66: 23 | CT66: 23
A67: 78 | B67: 67 | C67: 洪燕学校（小学） | D67: 67 | E67: 洪燕学校 | F67: 县直九年一贯制学校 | G67: 小学 | H67: 县直学校 | I67: 2474 | J67: 3281 | K67: 2436 | L67: 41 | M67: 41 | N67: 49 | R67: 0 | S67: 9 | T67: 7 | U67: 82 | V67: 121.2 | W67: 89 | X67: 89 | Y67: 130.2 | Z67: 130 | AA67: 101 | AB67: 51 | AC67: 51 | AD67: 3 | AE67: 3 | AF67: 13 | AG67: 13 | BD67: 3 | BG67: 5 | BH67: -2 | BM67: 73 | BN67: 128 | BO67: 70 | BP67: 125 | BQ67: 125 | BR67: 31 | BS67: 31 | BT67: 19 | BU67: 5 | BV67: 5 | BW67: 2 | BX67: 31 | BY67: 19 | BZ67: 5 | CA67: 5 | CB67: 2 | CC67: 19 | CD67: 5 | CE67: 5 | CF67: 2 | CG67: 10 | CH67: 10 | CJ67: 31 | CM67: 19 | CN67: 10 | CR67: +27 | CS67: 29 | CT67: 27
A68: 80 | B68: 68 | C68: 洪亿学校（小学） | D68: 68 | E68: 洪亿学校 | F68: 县直九年一贯制学校 | G68: 小学 | H68: 县直学校 | I68: 618 | J68: 746 | K68: 622 | L68: 15 | M68: 15 | N68: 15 | R68: 0 | S68: 3 | T68: 3 | U68: 30 | V68: 38.4 | W68: 33 | X68: 33 | Y68: 41.4 | Z68: 41 | AA68: 59 | AB68: 22 | AC68: 20 | AD68: 2 | AE68: 5 | AF68: 1 | AG68: 2 | AM68: 0 | BD68: 2 | BE68: 3 | BG68: 10 | BH68: 0 | BM68: 37 | BN68: 51 | BO68: 42 | BP68: 55 | BQ68: 55 | BR68: 19 | BS68: 17 | BT68: -9 | BU68: -14 | BV68: -14 | BW68: -10 | BX68: 17 | BY68: 0 | BZ68: 0 | CA68: 0 | CB68: 0 | CC68: 0 | CD68: 0 | CE68: 0 | CF68: 0 | CG68: 9 | CH68: 10 | CM68: 19 | CN68: 9 | CQ68: 预计接收新生一年级6个班，七年级4个班，转学生200人左右4个班。申报2020年补充教师28人。 | CR68: +24 | CS68: 14 | CT68: 14
A69: 82 | B69: 69 | C69: 洪科小学 | D69: 69 | E69: 洪科小学 | F69: 小学 | G69: 小学 | H69: 县直学校 | I69: 781 | J69: 781 | K69: 784 | L69: 20 | M69: =L69-Q69 -> 20 | N69: 20 | P69: 0 | R69: 0 | S69: 3 | T69: 3 | U69: 40 | V69: 40 | W69: 43 | X69: 43 | Y69: =S69+V69 -> 43 | Z69: 43 | AA69: 45 | AB69: 10 | AC69: 10 | AD69: 2 | AE69: 2 | AF69: 12 | AG69: 13 | AL69: 0 | AU69: 0 | AW69: 0 | BB69: 0 | BD69: 1 | BE69: 2 | BF69: 0 | BG69: 14 | BH69: 0 | BI69: 0 | BJ69: 0 | BK69: 0 | BL69: 0 | BM69: =AB69+AD69+AF69+AH69+AI69+AJ69+AK69+AN69+AO69+AV69+AZ69+BA69+BD69+BF69+BG69+BH69+BI69+BJ69+BK69+BL69 -> 39 | BN69: 39 | BO69: =AB69+AE69+AG69+AL69-AM69+AU69+AW69+BB69-BC69+BE69+BF69+BG69+BH69+BI69+BJ69+BK69+BL69 -> 41 | BP69: 41 | BQ69: 41 | BR69: 4 | BS69: 4 | BT69: 2 | BU69: =Z69-BP69 -> 2 | BV69: =Z69-BQ69 -> 2 | BW69: =Z69-BN69 -> 4 | BX69: 4 | BY69: =BT69 -> 2 | BZ69: 2 | CA69: 2 | CB69: 4 | CC69: 2 | CD69: 2 | CE69: 2 | CF69: 4 | CG69: 30 | CH69: 4 | CK69: 2020年秋季学校扩班11个，共需求教师26名。 | CM69: 26 | CQ69: 鉴于万科楼盘入住率不断提高，2020年学校秋季计划扩班招生，故申报2020年补充教师26人。 | CR69: +22 | CS69: 26 | CT69: 22
A70: 83 | B70: 70 | C70: 八一分校（小学） | D70: 70 | E70: 八一分校 | F70: 县直九年一贯制学校 | G70: 小学 | H70: 县直学校 | I70: 1317 | J70: 1731 | K70: 1322 | L70: 22 | M70: 22 | N70: 27 | R70: 0 | S70: 5 | T70: 5 | U70: 44 | V70: 63.6 | W70: 49 | X70: 49 | Y70: 68.6 | Z70: 69 | AA70: 58 | AB70: 4 | AC70: 4 | AD70: 2 | AE70: 2 | AF70: 8 | AG70: 14 | BD70: 2 | BE70: 2 | BG70: 11 | BK70: -1 | BM70: 26 | BN70: 54 | BO70: 32 | BP70: 54 | BQ70: 54 | BR70: =AA70-(AB70+AE70+AG70+AL70+AU70+AW70+BB70+BE70+BF70-BI70-BJ70-BK70-BL70+BG70-BH70) -> 24 | BS70: 26 | BT70: 17 | BU70: 15 | BV70: 15 | BW70: 15 | BX70: 26 | BY70: 17 | BZ70: 15 | CA70: 15 | CB70: 15 | CC70: 17 | CD70: 15 | CE70: 15 | CF70: 15 | CG70: 1 | CH70: 12 | CJ70: 10 | CK70: 2020年预计一年级净增200人（减六年级毕业生） | CM70: 26 | CN70: 17 | CQ70: 预计初中新增6个年级，学生300名；小学新增5个班级学生200名。 | CR70: +27 | CS70: 42 | CT70: 27
A71: 85 | B71: 71 | C71: 洪范学校（小学） | D71: 71 | E71: 洪范学校 | F71: 县直九年一贯制学校 | G71: 小学 | H71: 县直学校 | I71: 595 | J71: 965 | K71: 600 | L71: 14 | M71: 14 | N71: 14 | P71: 0 | R71: 0 | S71: 3 | T71: 3 | U71: 28 | V71: 50.4 | W71: 31 | X71: 31 | Y71: 53.4 | Z71: 53 | AA71: 63 | AC71: 0 | AE71: 0 | AF71: 9 | AG71: 9 | AL71: 0 | AU71: 0 | AW71: 4 | BB71: 0 | BD71: 12 | BE71: 12 | BF71: 0 | BG71: 12 | BH71: 0 | BI71: 0 | BJ71: 0 | BK71: 0 | BL71: 0 | BM71: 33 | BN71: 59 | BO71: 37 | BP71: 59 | BQ71: 59 | BR71: 26 | BS71: 26 | BT71: -6 | BU71: -6 | BV71: -6 | BW71: -6 | BX71: 26 | BY71: 0 | BZ71: 0 | CA71: 0 | CB71: 0 | CC71: 0 | CD71: 0 | CE71: 0 | CF71: 0 | CG71: 17 | CH71: 13 | CJ71: 27 | CM71: 26 | CN71: 30 | CQ71: 预计初中新增10个班级，小学新增12个班级 | CR71: +52 | CS71: 46 | CT71: 46
A72: 87 | B72: 72 | C72: 洪新小学 | D72: 72 | E72: 洪新小学 | F72: 小学 | G72: 小学 | H72: 县直学校 | K72: 413 | L72: 9 | M72: 9 | N72: 9 | S72: 3 | T72: 3 | U72: 18 | V72: 18 | W72: 21 | X72: 21 | Y72: 21 | Z72: 21 | AA72: 21 | BM72: 21 | BN72: 21 | BO72: 21 | BP72: 21 | BQ72: 21 | BS72: 52 | BT72: 0 | BU72: 0 | BV72: 0 | BW72: 0 | BX72: 52 | BY72: 0 | BZ72: 0 | CA72: 0 | CB72: 0 | CC72: 0 | CD72: 0 | CE72: 0 | CF72: 0 | CG72: 6
A73: 22 | B73: 25 | C73: 莲塘实验学校（初中） | G73: 初中 | H73: 县直学校 | I73: 152 | K73: 120 | L73: 3 | M73: 3 | N73: 3 | P73: 0 | R73: 0 | T73: 3 | U73: 8.4 | W73: =M73*2.8+T73 -> 11.4 | X73: 11 | AA73: 8 | AB73: 10 | AC73: 12 | AE73: 0 | AG73: 0 | AL73: 0 | AM73: 0 | AU73: 0 | AW73: 0 | BB73: 0 | BE73: 0 | BF73: 0 | BG73: 0 | BH73: 0 | BI73: 0 | BJ73: 0 | BK73: 0 | BL73: 0 | BM73: =AB73+AD73+AF73+AH73+AI73+AJ73+AK73+AN73+AO73+AV73+AZ73+BA73+BD73+BF73+BG73+BH73+BI73+BJ73+BK73+BL73 -> 10 | BO73: =AB73+AE73+AG73+AL73-AM73+AU73+AW73+BB73-BC73+BE73+BF73+BG73+BH73+BI73+BJ73+BK73+BL73 -> 10 | BR73: 2 | BS73: =AA73-BO73 -> -2 | BT73: 1 | BY73: 1 | CC73: 1 | CG73: 6
A74: 24 | B74: 26 | C74: 昌南实验学校（初中） | G74: 初中 | H74: 县直学校 | I74: 225 | K74: 224 | L74: 6 | M74: 6 | N74: 6 | R74: 0 | T74: 3 | U74: 16.8 | W74: 19.8 | X74: 20 | AA74: 17 | AB74: 14 | AC74: 14 | AF74: 3 | AG74: 2 | BH74: -1 | BM74: 16 | BO74: 15 | BR74: 2 | BS74: 2 | BT74: 5 | BY74: 5 | CC74: 5
A75: 26 | B75: 27 | C75: 黄马凤凰沟实验学校（初中） | G75: 初中 | H75: 农村初级中学 | I75: 92 | K75: 92 | L75: 3 | M75: 3 | N75: 3 | P75: 0 | R75: 0 | T75: 3 | U75: 8.4 | W75: 11.4 | X75: 11 | AA75: 8 | AB75: 14 | AC75: 14 | AM75: 0 | BG75: 1 | BH75: -3 | BM75: 12 | BO75: 12 | BR75: 2 | BS75: -4 | BT75: -1 | BY75: 0 | CC75: 0 | CG75: 1 | CK75: 在编教师数含3名教辅人员
A76: 28 | B76: 28 | C76: 银三角实验学校（初中） | G76: 初中 | H76: 县直学校 | I76: 377 | K76: 378 | L76: 9 | M76: 9 | N76: 9 | P76: 0 | R76: 0 | T76: 3 | U76: 25.2 | W76: 28.2 | X76: 28 | AA76: 28 | AB76: 25 | AC76: 25 | AD76: 1 | AE76: 0 | AF76: 3 | AG76: 5 | AL76: 0 | AU76: 0 | AW76: 0 | BB76: 0 | BE76: 0 | BF76: 0 | BG76: 0 | BH76: -2 | BI76: 0 | BJ76: 0 | BK76: -2 | BL76: 0 | BM76: 25 | BO76: 26 | BR76: 0 | BS76: 2 | BT76: 2 | BY76: 0 | CC76: 0 | CG76: 5
A77: 38 | B77: 37 | C77: 新联学校（初中） | G77: 初中 | H77: 农村初级中学 | I77: 307 | K77: 382 | L77: 9 | M77: 9 | N77: 21 | P77: 0 | R77: 0 | T77: 3 | U77: 25.2 | W77: 28.2 | X77: 28 | AA77: 34 | AB77: 30 | AC77: 30 | AE77: 0 | AG77: 0 | AK77: 7 | AL77: 1 | AU77: 0 | AW77: 0 | BB77: 0 | BD77: -5 | BE77: -5 | BF77: 0 | BG77: 0 | BH77: -8 | BI77: 0 | BJ77: 0 | BK77: 0 | BL77: 0 | BM77: 24 | BO77: 18 | BR77: 16 | BS77: 16 | BT77: 10 | BX77: =BS77 -> 16 | BY77: =BT77 -> 10 | CC77: 10 | CG77: 21
A78: 41 | B78: 39 | C78: 幽兰学校（初中） | G78: 初中 | H78: 农村初级中学 | I78: 355 | K78: 356 | L78: 8 | M78: 8 | N78: 9 | R78: 0 | T78: 3 | U78: 22.4 | W78: 25.4 | X78: 25 | AA78: 28 | AB78: 52 | AC78: 42 | AX78: 1 | BG78: 1 | BH78: -6 | BJ78: -1 | BK78: -1 | BL78: -1 | BM78: 44 | BO78: 44 | BR78: -7 | BS78: -16 | BT78: -19 | BY78: 0 | CC78: 0 | CG78: 4
A79: 43 | B79: 40 | C79: 渡头学校（初中） | G79: 初中 | H79: 农村初级中学 | I79: 283 | K79: 285 | L79: 7 | M79: 7 | N79: 7 | P79: 0 | R79: 0 | T79: 3 | U79: 19.6 | W79: 22.6 | X79: 23 | AA79: 23 | AB79: 46 | AC79: 46 | AE79: 0 | AG79: 0 | AL79: 0 | AU79: 4 | AW79: 0 | BB79: 0 | BE79: 0 | BF79: 0 | BG79: 0 | BH79: -1 | BI79: 0 | BJ79: 0 | BK79: 0 | BL79: 0 | BM79: 45 | BO79: 49 | BR79: -26 | BS79: -26 | BT79: -26 | BY79: 0 | CC79: 0 | CG79: 26
A80: 48 | B80: 44 | C80: 向塘实验学校（初中） | G80: 初中 | H80: 农村初级中学 | I80: 1352 | K80: 1471 | L80: 21 | M80: 21 | N80: 24 | P80: 0 | R80: 0 | T80: 5 | U80: 58.8 | W80: 63.8 | X80: 64 | AA80: 72 | AB80: 92 | AC80: 92 | AD80: 2 | AE80: 0 | AF80: 4 | AG80: 6 | AK80: 3 | AL80: 1 | AU80: 0 | AW80: 0 | BB80: 0 | BD80: -1 | BE80: -1 | BF80: 0 | BG80: 0 | BH80: -5 | BI80: 0 | BJ80: 0 | BK80: -7 | BL80: -5 | BM80: 83 | BO80: 81 | BR80: 12 | BS80: -9 | BT80: -17 | BY80: 0 | CC80: 0 | CG80: 3 | CH80: 3
A81: 50 | B81: 45 | C81: 向塘向阳学校(初中） | G81: 初中 | H81: 农村初级中学 | I81: 175 | K81: 176 | L81: 6 | M81: 6 | N81: 6 | P81: 0 | R81: 0 | T81: 3 | U81: 16.8 | W81: 19.8 | X81: 20 | AA81: 23 | AB81: 23 | AC81: 23 | AE81: 0 | AG81: 1 | AK81: 2 | AL81: 2 | AU81: 0 | AW81: 0 | BB81: 0 | BD81: -2 | BE81: -2 | BF81: 0 | BG81: 0 | BH81: -1 | BI81: 0 | BJ81: 0 | BK81: 0 | BL81: 0 | BM81: 22 | BO81: 23 | BR81: 0 | BS81: 0 | BT81: -3 | BY81: 0 | CC81: 0 | CG81: 0
A82: 67 | B82: 61 | C82: 银河学校（初中） | G82: 初中 | H82: 县直学校 | I82: 1360 | K82: 1363 | L82: 24 | M82: 24 | N82: 24 | P82: 1 | R82: 0 | T82: 5 | U82: 67.2 | W82: 72.2 | X82: 72 | AA82: 74 | AB82: 73 | AC82: 73 | AD82: 1 | AE82: 1 | AF82: 19 | AG82: 19 | AM82: 0 | BD82: 1 | BE82: 1 | BG82: 1 | BH82: -7 | BM82: 88 | BO82: 88 | BR82: -13 | BS82: -14 | BT82: -16 | BY82: 0 | CC82: 0 | CG82: 2
A83: 69 | B83: 62 | C83: 洪州学校(初中） | G83: 初中 | H83: 县直学校 | I83: 1732 | K83: 1717 | L83: 28 | M83: 28 | N83: 28 | P83: 0 | R83: 0 | T83: 5 | U83: 78.4 | W83: 83.4 | X83: 83 | AA83: 79 | AB83: 81 | AC83: 81 | AE83: 0 | AF83: 6 | AG83: 6 | AL83: 0 | AU83: 0 | AW83: 0 | BB83: 0 | BE83: 0 | BF83: 0 | BG83: 21 | BI83: 0 | BJ83: 0 | BK83: 0 | BL83: 0 | BM83: 108 | BO83: 108 | BR83: 5 | BS83: -29 | BT83: -25 | BY83: 0 | CC83: 0 | CG83: 29 | CK83: 缺科老师
A84: 71 | B84: 63 | C84: 新城学校（初中） | G84: 初中 | H84: 县直学校 | I84: 1363 | K84: 1365 | L84: 23 | M84: 23 | N84: 23 | R84: 0 | T84: 5 | U84: 64.4 | W84: 69.4 | X84: 69 | AA84: 65 | AB84: 60 | AC84: 60 | AD84: 2 | AE84: 0 | AF84: 10 | AG84: 4 | AL84: 0 | AM84: 0 | AU84: 0 | AW84: 0 | BB84: 0 | BD84: 2 | BE84: 2 | BF84: 0 | BG84: 2 | BH84: -3 | BI84: 0 | BJ84: 0 | BK84: 0 | BL84: 0 | BM84: 73 | BO84: 65 | BR84: 0 | BS84: 0 | BT84: 4 | BX84: =BS84 -> 0 | BY84: =BT84 -> 4 | CC84: 4
A85: 73 | B85: 64 | C85: 诚义学校（初中） | G85: 初中 | H85: 县直学校 | I85: 1033 | K85: 1100 | L85: 18 | M85: 18 | N85: 20 | P85: 0 | R85: 0 | T85: 5 | U85: 50.4 | W85: 55.4 | X85: 55 | AA85: 105 | AB85: 62 | AC85: 62 | AD85: 3 | AF85: 15 | AG85: 12 | AU85: 0 | AW85: 0 | BB85: 0 | BD85: 1 | BE85: 0 | BG85: 1 | BH85: -4 | BI85: 0 | BJ85: 0 | BK85: 0 | BL85: 0 | BM85: 78 | BO85: 71 | BR85: 9 | BS85: 34 | BT85: -16 | BX85: 34 | BY85: 0 | CC85: 0 | CH85: 5
A86: 75 | B86: 65 | C86: 芳草学校（初中） | G86: 初中 | H86: 县直学校 | I86: 712 | K86: 937 | L86: 13 | M86: 13 | N86: 20 | R86: 0 | T86: 3 | U86: 36.4 | W86: 39.4 | X86: 39 | AA86: 56 | AB86: 36 | AC86: 36 | AD86: 3 | AE86: 3 | AF86: 11 | AG86: 10 | BD86: 1 | BE86: 2 | BG86: 4 | BM86: 55 | BO86: 55 | BR86: 18 | BS86: 1 | BT86: -16 | BX86: 1 | BY86: 0 | CC86: 0 | CG86: 0 | CH86: 9
A87: 77 | B87: 66 | C87: 洪州汇仁学校(中学） | G87: 初中 | H87: 县直学校 | I87: 679 | K87: 677 | L87: 12 | M87: 12 | N87: 12 | R87: 0 | T87: 3 | U87: 33.6 | W87: 36.6 | X87: 37 | AA87: 37 | AB87: 30 | AC87: 30 | AD87: 2 | AE87: 2 | AF87: 1 | AG87: 1 | BD87: 2 | BE87: 2 | BG87: 4 | BM87: 39 | BO87: 39 | BR87: 10 | BS87: -2 | BT87: -2 | BY87: 0 | CC87: 0 | CG87: 18 | CH87: 5 | CK87: 产假人数3人
A88: 79 | B88: 67 | C88: 洪燕学校（初中） | G88: 初中 | H88: 县直学校 | I88: 807 | K88: 802 | L88: 14 | M88: 14 | N88: 16 | R88: 0 | T88: 3 | U88: 39.2 | W88: 42.2 | X88: 42 | AA88: 49 | AB88: 38 | AC88: 38 | AD88: 4 | AE88: 4 | AF88: 9 | AG88: 11 | AM88: 0 | BD88: 2 | BG88: 2 | BM88: 55 | BO88: 55 | BR88: -6 | BS88: -6 | BT88: -13 | BY88: 0 | CC88: 0 | CG88: 10 | CH88: 5
A89: 81 | B89: 68 | C89: 洪亿学校（初中） | G89: 初中 | H89: 县直学校 | I89: 128 | K89: 129 | L89: 3 | M89: 3 | N89: 3 | R89: 0 | T89: 3 | U89: 8.4 | W89: 11.4 | X89: 11 | AA89: 20 | AB89: 8 | AC89: 6 | AD89: 2 | AE89: 2 | AF89: 2 | AG89: 1 | BD89: 1 | BE89: 1 | BG89: 2 | BH89: -1 | BM89: 14 | BO89: 13 | BR89: 9 | BS89: 7 | BT89: -2 | BX89: =BS89 -> 7 | BY89: 0 | CC89: 0 | CG89: 17 | CH89: 5 | CK89: 见批注
A90: 84 | B90: 70 | C90: 八一分校（初中） | G90: 初中 | H90: 县直学校 | I90: 414 | K90: 414 | L90: 7 | M90: 7 | N90: 13 | R90: 0 | T90: 3 | U90: 19.6 | W90: 22.6 | X90: 23 | AA90: 39 | AB90: 6 | AC90: 6 | AD90: 3 | AE90: 3 | AF90: 15 | AG90: 9 | BG90: 4 | BM90: 28 | BO90: 22 | BR90: =AA90-(AB90+AE90+AG90+AL90+AU90+AW90+BB90+BE90+BF90-BI90-BJ90-BK90-BL90+BG90-BH90) -> 17 | BS90: 17 | BT90: 1 | BX90: 17 | BY90: =BT90 -> 1 | CC90: 1 | CH90: 9 | CK90: 2020年预计七年级新增300人
A91: 86 | B91: 71 | C91: 洪范学校（初中） | G91: 初中 | H91: 县直学校 | I91: 370 | K91: 370 | L91: 8 | M91: 8 | N91: 8 | P91: 0 | R91: 0 | T91: 3 | U91: 22.4 | W91: 25.4 | X91: 25 | AA91: 52 | AC91: 0 | AE91: 0 | AF91: 9 | AG91: 9 | AL91: 0 | AU91: 0 | AV91: 4 | AW91: 0 | BB91: 0 | BD91: 7 | BE91: 7 | BF91: 0 | BG91: 6 | BH91: 0 | BI91: 0 | BJ91: 0 | BK91: 0 | BL91: 0 | BM91: 26 | BO91: 22 | BR91: 30 | BS91: 30 | BT91: 3 | BX91: 30 | BY91: =BT91 -> 3 | CC91: 3 | CG91: 7 | CH91: 15
B92: 合计 | I92: =SUM(I5:I91) -> 132931 | K92: 137183 | L92: =SUM(L5:L91) -> 2888 | N92: 3016 | P92: 120 | R92: =SUM(R5:R91) -> 286 | AA92: =SUM(AA5:AA91) -> 7836 | AB92: 7275 | AC92: 7237 | AD92: 91 | AE92: 53 | AF92: =SUM(AF5:AF91) -> 312 | AG92: 289 | AH92: 51 | AI92: 76 | AJ92: 48 | AK92: 127 | AL92: 285 | AM92: 50 | AN92: =SUM(AN5:AN91) -> 48 | AO92: 50 | AP92: 76 | AQ92: 77 | AR92: 73 | AS92: 79 | AT92: 355 | AU92: 48 | AV92: =SUM(AV5:AV91) -> 23 | AW92: 19 | AX92: 6 | AY92: 9 | AZ92: 10 | BA92: 15 | BB92: 25 | BC92: 9 | BD92: =SUM(BD5:BD91) -> 0 | BE92: -3 | BF92: 20 | BG92: 503 | BH92: -592 | BI92: -9 | BJ92: -18 | BK92: -143 | BL92: -102 | BM92: =SUM(BM5:BM91) -> 7761 | BN92: 7761 | BO92: 7350 | BP92: 7670 | BQ92: 7602 | BS92: 486 | BX92: 912 | BY92: =SUM(BY5:BY91) -> 403.56 | CC92: 403 | CD92: 363 | CE92: 363 | CF92: 287 | CT92: =SUM(CT5:CT91) -> 254
R93: =R92-R10-R14-R41 -> 159 | AA93: 7836 | AB93: 7034 | AC93: 7114

Sheet B 全省统招300人 (hidden)
A1: 南昌县2020年中小学教师招聘（教师控制数）计划申报表
A2: 县（区）教体局：(盖章) 县（区）人社局：(盖章) 县（区）编办：（盖章） 填表人：丁小省 联系电话：0791-85714049
A3: 县（区）核 定聘用教师 控制数 | B3: 845 | D3: 已使用聘 用教师控 制数 | F3: 0 | H3: 聘用教师控制数剩余数 | I3: 845 | J3: 拟招聘聘用教师控制数 | K3: 300
A4: 序号 | B4: 招聘县、 乡镇全称 | D4: 招聘学校 全称 | F4: 招聘岗位 | H4: 岗位条件 | I4: 拟招聘 人数 | J4: 备注 | K4: 联系电话
A5: 1 | B5: 南昌县初中 | F5: 初中语文教师A岗 | H5: 普通高校师范类专业本科学历或普通高校研究生及以上学历，初级中学及以上语文学科教师资格证，1984年3月1日及以后出生。 | I5: 11 | J5: 本岗位采用“聘用教师控制数”方式招聘，属编制外聘用教师。招聘人员在薪酬待遇、住房公积金、岗位设置、职称评定、竞争上岗、岗位交流等方面享受在编人员同等待遇，按城镇企业职工标准参加社会保险。考生按照考试总成绩由高到低选择岗位，总分相同的面试成绩高者优先。 | K5: 0791-85714049
A6: 2 | F6: 初中语文教师B岗 | H6: 应届普通高校师范类专业本科学历或普通高校研究生及以上学历，初级中学及以上语文学科教师资格证，1984年3月1日及以后出生。 | I6: 5 | J6: 本岗位采用“聘用教师控制数”方式招聘，属编制外聘用教师。招聘人员在薪酬待遇、住房公积金、岗位设置、职称评定、竞争上岗、岗位交流等方面享受在编人员同等待遇，按城镇企业职工标准参加社会保险。考生按照考试总成绩由高到低选择岗位，总分相同的面试成绩高者优先。 | K6: 0791-85714049
A7: 3 | F7: 初中数学教师A岗 | H7: 普通高校师范类专业本科学历或普通高校研究生及以上学历，初级中学及以上数学学科教师资格证，1984年3月1日及以后出生。 | I7: 9 | J7: 本岗位采用“聘用教师控制数”方式招聘，属编制外聘用教师。招聘人员在薪酬待遇、住房公积金、岗位设置、职称评定、竞争上岗、岗位交流等方面享受在编人员同等待遇，按城镇企业职工标准参加社会保险。考生按照考试总成绩由高到低选择岗位，总分相同的面试成绩高者优先。 | K7: 0791-85714049
A8: 4 | F8: 初中数学教师B岗 | H8: 应届普通高校师范类专业本科学历或普通高校研究生及以上学历，初级中学及以上数学学科教师资格证，1984年3月1日及以后出生。 | I8: 4 | J8: 本岗位采用“聘用教师控制数”方式招聘，属编制外聘用教师。招聘人员在薪酬待遇、住房公积金、岗位设置、职称评定、竞争上岗、岗位交流等方面享受在编人员同等待遇，按城镇企业职工标准参加社会保险。考生按照考试总成绩由高到低选择岗位，总分相同的面试成绩高者优先。 | K8: 0791-85714049
A9: 5 | F9: 初中英语教师A岗 | H9: 普通高校师范类专业本科学历或普通高校研究生及以上学历，初级中学及以上英语学科教师资格证，1984年3月1日及以后出生。 | I9: 9 | J9: 本岗位采用“聘用教师控制数”方式招聘，属编制外聘用教师。招聘人员在薪酬待遇、住房公积金、岗位设置、职称评定、竞争上岗、岗位交流等方面享受在编人员同等待遇，按城镇企业职工标准参加社会保险。考生按照考试总成绩由高到低选择岗位，总分相同的面试成绩高者优先。 | K9: 0791-85714049
A10: 6 | F10: 初中英语教师B岗 | H10: 应届普通高校师范类专业本科学历或普通高校研究生及以上学历，初级中学及以上英语学科教师资格证，1984年3月1日及以后出生。 | I10: 3 | J10: 本岗位采用“聘用教师控制数”方式招聘，属编制外聘用教师。招聘人员在薪酬待遇、住房公积金、岗位设置、职称评定、竞争上岗、岗位交流等方面享受在编人员同等待遇，按城镇企业职工标准参加社会保险。考生按照考试总成绩由高到低选择岗位，总分相同的面试成绩高者优先。 | K10: 0791-85714049
A11: 7 | F11: 初中物理教师A岗 | H11: 普通高校师范类专业本科学历或普通高校研究生及以上学历，初级中学及以上物理学科教师资格证，1984年3月1日及以后出生。 | I11: 6 | J11: 本岗位采用“聘用教师控制数”方式招聘，属编制外聘用教师。招聘人员在薪酬待遇、住房公积金、岗位设置、职称评定、竞争上岗、岗位交流等方面享受在编人员同等待遇，按城镇企业职工标准参加社会保险。考生按照考试总成绩由高到低选择岗位，总分相同的面试成绩高者优先。 | K11: 0791-85714049
A12: 8 | B12: 南昌县初中 | F12: 初中物理教师B岗 | H12: 应届普通高校师范类专业本科学历或普通高校研究生及以上学历，初级中学及以上物理学科教师资格证，1984年3月1日及以后出生。 | I12: 2 | J12: 本岗位采用“聘用教师控制数”方式招聘，属编制外聘用教师。招聘人员在薪酬待遇、住房公积金、岗位设置、职称评定、竞争上岗、岗位交流等方面享受在编人员同等待遇，按城镇企业职工标准参加社会保险。考生按照考试总成绩由高到低选择岗位，总分相同的面试成绩高者优先。 | K12: 0791-85714049
A13: 9 | F13: 初中化学教师A岗 | H13: 普通高校师范类专业本科学历或普通高校研究生及以上学历，初级中学及以上化学学科教师资格证，1984年3月1日及以后出生。 | I13: 6 | J13: 本岗位采用“聘用教师控制数”方式招聘，属编制外聘用教师。招聘人员在薪酬待遇、住房公积金、岗位设置、职称评定、竞争上岗、岗位交流等方面享受在编人员同等待遇，按城镇企业职工标准参加社会保险。考生按照考试总成绩由高到低选择岗位，总分相同的面试成绩高者优先。 | K13: 0791-85714049
A14: 10 | F14: 初中化学教师B岗 | H14: 应届普通高校师范类专业本科学历或普通高校研究生及以上学历，初级中学及以上化学学科教师资格证，1984年3月1日及以后出生。 | I14: 1 | J14: 本岗位采用“聘用教师控制数”方式招聘，属编制外聘用教师。招聘人员在薪酬待遇、住房公积金、岗位设置、职称评定、竞争上岗、岗位交流等方面享受在编人员同等待遇，按城镇企业职工标准参加社会保险。考生按照考试总成绩由高到低选择岗位，总分相同的面试成绩高者优先。 | K14: 0791-85714049
A15: 11 | F15: 初中思想品德教师A岗 | H15: 普通高校师范类专业本科学历或普通高校研究生及以上学历，初级中学及以上政治学科或思想品德学科教师资格证，1984年3月1日及以后出生。 | I15: 5 | J15: 本岗位采用“聘用教师控制数”方式招聘，属编制外聘用教师。招聘人员在薪酬待遇、住房公积金、岗位设置、职称评定、竞争上岗、岗位交流等方面享受在编人员同等待遇，按城镇企业职工标准参加社会保险。考生按照考试总成绩由高到低选择岗位，总分相同的面试成绩高者优先。 | K15: 0791-85714049
A16: 12 | F16: 初中思想品德教师B岗 | H16: 应届普通高校师范类专业本科学历或普通高校研究生及以上学历，初级中学及以上政治学科或思想品德学科教师资格证，1984年3月1日及以后出生。 | I16: 1 | J16: 本岗位采用“聘用教师控制数”方式招聘，属编制外聘用教师。招聘人员在薪酬待遇、住房公积金、岗位设置、职称评定、竞争上岗、岗位交流等方面享受在编人员同等待遇，按城镇企业职工标准参加社会保险。考生按照考试总成绩由高到低选择岗位，总分相同的面试成绩高者优先。 | K16: 0791-85714049
A17: 13 | F17: 初中历史教师A岗 | H17: 普通高校师范类专业本科学历或普通高校研究生及以上学历，初级中学及以上历史学科教师资格证，1984年3月1日及以后出生。 | I17: 6 | J17: 本岗位采用“聘用教师控制数”方式招聘，属编制外聘用教师。招聘人员在薪酬待遇、住房公积金、岗位设置、职称评定、竞争上岗、岗位交流等方面享受在编人员同等待遇，按城镇企业职工标准参加社会保险。考生按照考试总成绩由高到低选择岗位，总分相同的面试成绩高者优先。 | K17: 0791-85714049
A18: 14 | F18: 初中历史教师B岗 | H18: 应届普通高校师范类专业本科学历或普通高校研究生及以上学历，初级中学及以上历史学科教师资格证，1984年3月1日及以后出生。 | I18: 1 | J18: 本岗位采用“聘用教师控制数”方式招聘，属编制外聘用教师。招聘人员在薪酬待遇、住房公积金、岗位设置、职称评定、竞争上岗、岗位交流等方面享受在编人员同等待遇，按城镇企业职工标准参加社会保险。考生按照考试总成绩由高到低选择岗位，总分相同的面试成绩高者优先。 | K18: 0791-85714049
A19: 15 | B19: 南昌县初中 | F19: 初中地理教师 | H19: 普通高校师范类专业本科学历或普通高校研究生及以上学历，初级中学及以上地理学科教师资格证，1984年3月1日及以后出生。 | I19: 2 | J19: 本岗位采用“聘用教师控制数”方式招聘，属编制外聘用教师。招聘人员在薪酬待遇、住房公积金、岗位设置、职称评定、竞争上岗、岗位交流等方面享受在编人员同等待遇，按城镇企业职工标准参加社会保险。考生按照考试总成绩由高到低选择岗位，总分相同的面试成绩高者优先。 | K19: 0791-85714049
A20: 16 | F20: 初中生物教师 | H20: 普通高校师范类专业本科学历或普通高校研究生及以上学历，初级中学及以上生物学科教师资格证，1984年3月1日及以后出生。 | I20: 2 | J20: 本岗位采用“聘用教师控制数”方式招聘，属编制外聘用教师。招聘人员在薪酬待遇、住房公积金、岗位设置、职称评定、竞争上岗、岗位交流等方面享受在编人员同等待遇，按城镇企业职工标准参加社会保险。考生按照考试总成绩由高到低选择岗位，总分相同的面试成绩高者优先。 | K20: 0791-85714049
A21: 17 | F21: 初中信息技术教师 | H21: 普通高校师范类专业本科学历或普通高校研究生及以上学历，初级中学及以上信息技术或计算机学科教师资格证，1984年3月1日及以后出生。 | I21: 2 | J21: 本岗位采用“聘用教师控制数”方式招聘，属编制外聘用教师。招聘人员在薪酬待遇、住房公积金、岗位设置、职称评定、竞争上岗、岗位交流等方面享受在编人员同等待遇，按城镇企业职工标准参加社会保险。考生按照考试总成绩由高到低选择岗位，总分相同的面试成绩高者优先。 | K21: 0791-85714049
A22: 18 | F22: 初中体育教师A岗 | H22: 普通高校师范类专业本科学历或普通高校研究生及以上学历，初级中学及以上体育（或体育与健康）学科教师资格证，1984年3月1日及以后出生。 | I22: 6 | J22: 本岗位采用“聘用教师控制数”方式招聘，属编制外聘用教师。招聘人员在薪酬待遇、住房公积金、岗位设置、职称评定、竞争上岗、岗位交流等方面享受在编人员同等待遇，按城镇企业职工标准参加社会保险。考生按照考试总成绩由高到低选择岗位，总分相同的面试成绩高者优先。 | K22: 0791-85714049
A23: 19 | F23: 初中体育教师B岗 | H23: 应届普通高校师范类专业本科学历或普通高校研究生及以上学历，初级中学及以上体育（或体育与健康）学科教师资格证，1984年3月1日及以后出生。 | I23: 2 | J23: 本岗位采用“聘用教师控制数”方式招聘，属编制外聘用教师。招聘人员在薪酬待遇、住房公积金、岗位设置、职称评定、竞争上岗、岗位交流等方面享受在编人员同等待遇，按城镇企业职工标准参加社会保险。考生按照考试总成绩由高到低选择岗位，总分相同的面试成绩高者优先。 | K23: 0791-85714049
A24: 20 | F24: 初中美术教师 | H24: 普通高校师范类专业本科学历或普通高校研究生及以上学历，初级中学及以上美术学科教师资格证，1984年3月1日及以后出生。 | I24: 3 | J24: 本岗位采用“聘用教师控制数”方式招聘，属编制外聘用教师。招聘人员在薪酬待遇、住房公积金、岗位设置、职称评定、竞争上岗、岗位交流等方面享受在编人员同等待遇，按城镇企业职工标准参加社会保险。考生按照考试总成绩由高到低选择岗位，总分相同的面试成绩高者优先。 | K24: 0791-85714049
A25: 21 | F25: 初中音乐教师 | H25: 普通高校师范类专业本科学历或普通高校研究生及以上学历，初级中学及以上音乐学科教师资格证，1984年3月1日及以后出生。 | I25: 3 | J25: 本岗位采用“聘用教师控制数”方式招聘，属编制外聘用教师。招聘人员在薪酬待遇、住房公积金、岗位设置、职称评定、竞争上岗、岗位交流等方面享受在编人员同等待遇，按城镇企业职工标准参加社会保险。考生按照考试总成绩由高到低选择岗位，总分相同的面试成绩高者优先。 | K25: 0791-85714049
A26: 22 | B26: 南昌县初中 | F26: 初中心理健康教师 | H26: 普通高校师范类专业本科学历或普通高校研究生及以上学历，初级中学及以上心理健康学科教师资格证，1984年3月1日及以后出生。 | I26: 2 | J26: 本岗位采用“聘用教师控制数”方式招聘，属编制外聘用教师。招聘人员在薪酬待遇、住房公积金、岗位设置、职称评定、竞争上岗、岗位交流等方面享受在编人员同等待遇，按城镇企业职工标准参加社会保险。考生按照考试总成绩由高到低选择岗位，总分相同的面试成绩高者优先。 | K26: 0791-85714049
A27: 23 | B27: 南昌县小学 | F27: 小学语文教师A岗 | H27: 普通高校师范类专业大专学历或普通高校本科及以上学历，小学及以上语文学科教师资格证，1984年3月1日及以后出生。 | I27: 57 | J27: 本岗位采用“聘用教师控制数”方式招聘，属编制外聘用教师。招聘人员在薪酬待遇、住房公积金、岗位设置、职称评定、竞争上岗、岗位交流等方面享受在编人员同等待遇，按城镇企业职工标准参加社会保险。考生按照考试总成绩由高到低选择岗位，总分相同的面试成绩高者优先。 | K27: 0791-85714049
A28: 24 | F28: 小学语文教师B岗 | H28: 应届普通高校师范类专业大专学历或普通高校本科及以上学历，小学及以上语文学科教师资格证，1984年3月1日及以后出生。 | I28: 16 | J28: 本岗位采用“聘用教师控制数”方式招聘，属编制外聘用教师。招聘人员在薪酬待遇、住房公积金、岗位设置、职称评定、竞争上岗、岗位交流等方面享受在编人员同等待遇，按城镇企业职工标准参加社会保险。考生按照考试总成绩由高到低选择岗位，总分相同的面试成绩高者优先。 | K28: 0791-85714049
A29: 25 | F29: 小学数学教师A岗 | H29: 普通高校师范类专业大专学历或普通高校本科及以上学历，小学及以上数学学科教师资格证，1984年3月1日及以后出生。 | I29: 51 | J29: 本岗位采用“聘用教师控制数”方式招聘，属编制外聘用教师。招聘人员在薪酬待遇、住房公积金、岗位设置、职称评定、竞争上岗、岗位交流等方面享受在编人员同等待遇，按城镇企业职工标准参加社会保险。考生按照考试总成绩由高到低选择岗位，总分相同的面试成绩高者优先。 | K29: 0791-85714049
A30: 26 | F30: 小学数学教师B岗 | H30: 应届普通高校师范类专业大专学历或普通高校本科及以上学历，小学及以上数学学科教师资格证，1984年3月1日及以后出生。 | I30: 12 | J30: 本岗位采用“聘用教师控制数”方式招聘，属编制外聘用教师。招聘人员在薪酬待遇、住房公积金、岗位设置、职称评定、竞争上岗、岗位交流等方面享受在编人员同等待遇，按城镇企业职工标准参加社会保险。考生按照考试总成绩由高到低选择岗位，总分相同的面试成绩高者优先。 | K30: 0791-85714049
A31: 27 | F31: 小学英语教师A岗 | H31: 普通高校师范类专业大专学历或普通高校本科及以上学历，小学及以上英语学科教师资格证，1984年3月1日及以后出生。 | I31: 21 | J31: 本岗位采用“聘用教师控制数”方式招聘，属编制外聘用教师。招聘人员在薪酬待遇、住房公积金、岗位设置、职称评定、竞争上岗、岗位交流等方面享受在编人员同等待遇，按城镇企业职工标准参加社会保险。考生按照考试总成绩由高到低选择岗位，总分相同的面试成绩高者优先。 | K31: 0791-85714049
A32: 28 | F32: 小学英语教师B岗 | H32: 应届普通高校师范类专业大专学历或普通高校本科及以上学历，小学及以上英语学科教师资格证，1984年3月1日及以后出生。 | I32: 6 | J32: 本岗位采用“聘用教师控制数”方式招聘，属编制外聘用教师。招聘人员在薪酬待遇、住房公积金、岗位设置、职称评定、竞争上岗、岗位交流等方面享受在编人员同等待遇，按城镇企业职工标准参加社会保险。考生按照考试总成绩由高到低选择岗位，总分相同的面试成绩高者优先。 | K32: 0791-85714049
A33: 29 | B33: 南昌县小学 | F33: 小学音乐教师A岗 | H33: 普通高校师范类专业大专学历或普通高校本科及以上学历，小学及以上音乐学科教师资格证，1984年3月1日及以后出生。 | I33: 10 | J33: 本岗位采用“聘用教师控制数”方式招聘，属编制外聘用教师。招聘人员在薪酬待遇、住房公积金、岗位设置、职称评定、竞争上岗、岗位交流等方面享受在编人员同等待遇，按城镇企业职工标准参加社会保险。考生按照考试总成绩由高到低选择岗位，总分相同的面试成绩高者优先。 | K33: 0791-85714049
A34: 30 | F34: 小学音乐教师B岗 | H34: 应届普通高校师范类专业大专学历或普通高校本科及以上学历，小学及以上音乐学科教师资格证，1984年3月1日及以后出生。 | I34: 3 | J34: 本岗位采用“聘用教师控制数”方式招聘，属编制外聘用教师。招聘人员在薪酬待遇、住房公积金、岗位设置、职称评定、竞争上岗、岗位交流等方面享受在编人员同等待遇，按城镇企业职工标准参加社会保险。考生按照考试总成绩由高到低选择岗位，总分相同的面试成绩高者优先。 | K34: 0791-85714049
A35: 31 | F35: 小学美术教师A岗 | H35: 普通高校师范类专业大专学历或普通高校本科及以上学历，小学及以上美术学科教师资格证，1984年3月1日及以后出生。 | I35: 9 | J35: 本岗位采用“聘用教师控制数”方式招聘，属编制外聘用教师。招聘人员在薪酬待遇、住房公积金、岗位设置、职称评定、竞争上岗、岗位交流等方面享受在编人员同等待遇，按城镇企业职工标准参加社会保险。考生按照考试总成绩由高到低选择岗位，总分相同的面试成绩高者优先。 | K35: 0791-85714049
A36: 32 | F36: 小学美术教师B岗 | H36: 应届普通高校师范类专业大专学历或普通高校本科及以上学历，小学及以上美术学科教师资格证，1984年3月1日及以后出生。 | I36: 2 | J36: 本岗位采用“聘用教师控制数”方式招聘，属编制外聘用教师。招聘人员在薪酬待遇、住房公积金、岗位设置、职称评定、竞争上岗、岗位交流等方面享受在编人员同等待遇，按城镇企业职工标准参加社会保险。考生按照考试总成绩由高到低选择岗位，总分相同的面试成绩高者优先。 | K36: 0791-85714049
A37: 33 | F37: 小学体育教师A岗 | H37: 普通高校师范类专业大专学历或普通高校本科及以上学历，小学及以上体育（或体育与健康）学科教师资格证，1984年3月1日及以后出生。 | I37: 9 | J37: 本岗位采用“聘用教师控制数”方式招聘，属编制外聘用教师。招聘人员在薪酬待遇、住房公积金、岗位设置、职称评定、竞争上岗、岗位交流等方面享受在编人员同等待遇，按城镇企业职工标准参加社会保险。考生按照考试总成绩由高到低选择岗位，总分相同的面试成绩高者优先。 | K37: 0791-85714049
A38: 34 | F38: 小学体育教师B岗 | H38: 应届普通高校师范类专业大专学历或普通高校本科及以上学历，小学及以上体育（或体育与健康）学科教师资格证，1984年3月1日及以后出生。 | I38: 2 | J38: 本岗位采用“聘用教师控制数”方式招聘，属编制外聘用教师。招聘人员在薪酬待遇、住房公积金、岗位设置、职称评定、竞争上岗、岗位交流等方面享受在编人员同等待遇，按城镇企业职工标准参加社会保险。考生按照考试总成绩由高到低选择岗位，总分相同的面试成绩高者优先。 | K38: 0791-85714049
A39: 35 | F39: 小学思想品德教师 | H39: 普通高校师范类专业大专学历或普通高校本科及以上学历，小学及以上政治学科或思想品德学科教师资格证，1984年3月1日及以后出生。 | I39: 2 | J39: 本岗位采用“聘用教师控制数”方式招聘，属编制外聘用教师。招聘人员在薪酬待遇、住房公积金、岗位设置、职称评定、竞争上岗、岗位交流等方面享受在编人员同等待遇，按城镇企业职工标准参加社会保险。考生按照考试总成绩由高到低选择岗位，总分相同的面试成绩高者优先。 | K39: 0791-85714049
A40: 36 | B40: 南昌县小学 | F40: 小学科学教师A岗 | H40: 普通高校师范类专业大专学历或普通高校本科及以上学历，小学及以上科学学科教师资格证，1984年3月1日及以后出生。 | I40: 5 | J40: 本岗位采用“聘用教师控制数”方式招聘，属编制外聘用教师。招聘人员在薪酬待遇、住房公积金、岗位设置、职称评定、竞争上岗、岗位交流等方面享受在编人员同等待遇，按城镇企业职工标准参加社会保险。考生按照考试总成绩由高到低选择岗位，总分相同的面试成绩高者优先。 | K40: 0791-85714049
A41: 37 | F41: 小学科学教师B岗 | H41: 应届普通高校师范类专业大专学历或普通高校本科及以上学历，小学及以上科学学科教师资格证，1984年3月1日及以后出生。 | I41: 1 | J41: 本岗位采用“聘用教师控制数”方式招聘，属编制外聘用教师。招聘人员在薪酬待遇、住房公积金、岗位设置、职称评定、竞争上岗、岗位交流等方面享受在编人员同等待遇，按城镇企业职工标准参加社会保险。考生按照考试总成绩由高到低选择岗位，总分相同的面试成绩高者优先。 | K41: 0791-85714049
A42: 38 | F42: 小学信息技术教师 | H42: 普通高校师范类专业大专学历或普通高校本科及以上学历，小学及以上信息技术或计算机学科教师资格证，1984年3月1日及以后出生。 | I42: 3 | J42: 本岗位采用“聘用教师控制数”方式招聘，属编制外聘用教师。招聘人员在薪酬待遇、住房公积金、岗位设置、职称评定、竞争上岗、岗位交流等方面享受在编人员同等待遇，按城镇企业职工标准参加社会保险。考生按照考试总成绩由高到低选择岗位，总分相同的面试成绩高者优先。 | K42: 0791-85714049
A43: 合计 | I43: =SUM(I5:I42) -> 300

Sheet C 中央特岗50人 (hidden)
A1: 江西省2020年中小学教师招聘计划申报表（特岗）
A2: 市、县（区）教育局：(盖章) 市、县（区）人事、编制部门：(盖章) 填表人：丁小省 联系电话：85714049
A3: 招聘县区全称 | B3: 招聘岗位 | C3: 岗位条件 | D3: 招聘人数
A4: 南昌县小学 （特岗） | B4: 小学语文 | C4: 普通高校本科以上毕业生、师范类专业专科毕业生,小学及以上语文学科教师资格证，1989年3月1日及以后出生。 | D4: 7
B5: 小学数学 | C5: 普通高校本科以上毕业生、师范类专业专科毕业生,小学及以上数学学科教师资格证，1989年3月1日及以后出生。 | D5: 6
B6: 小学英语 | C6: 普通高校本科以上毕业生、师范类专业专科毕业生,小学及以上英语学科教师资格证，1989年3月1日及以后出生。 | D6: 5
B7: 小学美术 | C7: 普通高校本科以上毕业生、师范类专业专科毕业生,小学及以上美术学科教师资格证，1989年3月1日及以后出生。 | D7: 7
B8: 小学音乐 | C8: 普通高校本科以上毕业生、师范类专业专科毕业生,小学及以上音乐学科教师资格证，1989年3月1日及以后出生。 | D8: 8
B9: 小学体育 | C9: 普通高校本科以上毕业生、师范类专业专科毕业生,小学及以上体育（或体育与健康）学科教师资格证，1989年3月1日及以后出生。 | D9: 7
B10: 小学科学 | C10: 普通高校本科以上毕业生、师范类专业专科毕业生,小学及以上科学学科教师资格证，1989年3月1日及以后出生。 | D10: 3
B11: 小学信息技术 | C11: 普通高校本科以上毕业生、师范类专业专科毕业生,小学及以上信息技术或计算机学科教师资格证，1989年3月1日及以后出生。 | D11: 7
A12: 合计 | D12: =SUM(D4:D11) -> 50

Sheet D 全省选调80人 (hidden)
A1: 南昌县2020年面向全省选调中小学在编教师岗位表
A2: 招聘岗位 | B2: 岗位代码 | C2: 招聘人数 | D2: 岗位条件
A3: 初中思想品德 | B3: 2007201 | C3: 3 | D3: 1.45周岁以下。2.具有国家承认的本科及以上学历。3.持有初级中学及以上政治学科或思想品德学科教师资格证。4.具有在公办学校任教初中政治学科或思想品德学科3年及以上工作经历。
A4: 初中语文 | B4: 2007202 | C4: 5 | D4: 1.45周岁以下。2.具有国家承认的本科及以上学历。3.持有初级中学及以上语文学科教师资格证。4.具有在公办学校任教初中语文学科3年及以上工作经历。
A5: 初中数学 | B5: 2007203 | C5: 6 | D5: 1.45周岁以下。2.具有国家承认的本科及以上学历。3.持有初级中学及以上数学学科教师资格证。4.具有在公办学校任教初中数学学科3年及以上工作经历。
A6: 初中英语 | B6: 2007204 | C6: 2 | D6: 1.45周岁以下。2.具有国家承认的本科及以上学历。3.持有初级中学及以上英语学科教师资格证。4.具有在公办学校任教初中英语学科3年及以上工作经历。
A7: 初中音乐 | B7: 2007205 | C7: 1 | D7: 1.45周岁以下。2.具有国家承认的本科及以上学历。3.持有初级中学及以上音乐学科教师资格证。4.具有在公办学校任教初中音乐学科3年及以上工作经历。
A8: 初中体育 | B8: 2007206 | C8: 2 | D8: 1.45周岁以下。2.具有国家承认的本科及以上学历。3.持有初级中学及以上体育（或体育与健康）学科教师资格证。4.具有在公办学校任教初中体育（或体育与健康）学科3年及以上工作经历。
A9: 初中美术 | B9: 2007207 | C9: 1 | D9: 1.45周岁以下。2.具有国家承认的本科及以上学历。3.持有初级中学及以上美术学科教师资格证。4.具有在公办学校任教初中美术学科3年及以上工作经历。
A10: 初中物理 | B10: 2007208 | C10: 3 | D10: 1.45周岁以下。2.具有国家承认的本科及以上学历。3.持有初级中学及以上物理学科教师资格证。4.具有在公办学校任教初中物理学科3年及以上工作经历。
A11: 初中化学 | B11: 2007209 | C11: 2 | D11: 1.45周岁以下。2.具有国家承认的本科及以上学历。3.持有初级中学及以上化学学科教师资格证。4.具有在公办学校任教初中化学学科3年及以上工作经历。
A12: 初中历史 | B12: 2007210 | C12: 2 | D12: 1.45周岁以下。2.具有国家承认的本科及以上学历。3.持有初级中学及以上历史学科教师资格证。4.具有在公办学校任教初中历史学科3年及以上工作经历。
A13: 初中地理 | B13: 2007211 | C13: 1 | D13: 1.45周岁以下。2.具有国家承认的本科及以上学历。3.持有初级中学及以上地理学科教师资格证。4.具有在公办学校任教初中地理学科3年及以上工作经历。
A14: 小学思想品德 | B14: 2007212 | C14: 2 | D14: 1.45周岁以下。2.具有国家承认的大专及以上学历。3.持有小学及以上政治学科或思想品德学科教师资格证。4.具有在公办学校任教小学政治学科或思想品德学科3年及以上工作经历。
A15: 小学语文 | B15: 2007213 | C15: 16 | D15: 1.45周岁以下。2.具有国家承认的大专及以上学历。3.持有小学及以上语文学科教师资格证。4.具有在公办学校任教小学语文学科3年及以上工作经历。
A16: 小学数学 | B16: 2007214 | C16: 21 | D16: 1.45周岁以下。2.具有国家承认的大专及以上学历。3.持有小学及以上数学学科教师资格证。4.具有在公办学校任教小学数学学科3年及以上工作经历。
A17: 小学英语 | B17: 2007215 | C17: 5 | D17: 1.45周岁以下。2.具有国家承认的大专及以上学历。3.持有小学及以上英语学科教师资格证。4.具有在公办学校任教小学英语学科3年及以上工作经历。
A18: 小学音乐 | B18: 2007216 | C18: 2 | D18: 1.45周岁以下。2.具有国家承认的大专及以上学历。3.持有小学及以上音乐学科教师资格证。4.具有在公办学校任教小学音乐学科3年及以上工作经历。
A19: 小学体育 | B19: 2007217 | C19: 2 | D19: 1.45周岁以下。2.具有国家承认的大专及以上学历。3.持有小学及以上体育（或体育与健康）学科教师资格证。4.具有在公办学校任教小学体育（或体育与健康）学科3年及以上工作经历。
A20: 小学美术 | B20: 2007218 | C20: 2 | D20: 1.45周岁以下。2.具有国家承认的大专及以上学历。3.持有小学及以上美术学科教师资格证。4.具有在公办学校任教小学美术学科3年及以上工作经历。
A21: 小学科学 | B21: 2007219 | C21: 1 | D21: 1.45周岁以下。2.具有国家承认的大专及以上学历。3.持有小学及以上科学学科教师资格证。4.具有在公办学校任教小学科学学科3年及以上工作经历。
A22: 小学信息技术 | B22: 2007220 | C22: 1 | D22: 1.45周岁以下。2.具有国家承认的大专及以上学历。3.持有小学及以上信息技术或计算机学科教师资格证。4.具有在公办学校任教小学信息技术或计算机学科3年及以上工作经历。
A23: 合计 | C23: =SUM(C3:C22) -> 80

Sheet D 全省选调选岗拟录人员 (hidden)
A1: 南昌县2020年面向全省公开选调在编中小学教师 拟录人员名单
A2: 序号 | B2: 岗位名称 | C2: 姓名 | D2: 准考证号 | E2: 选岗学校
A3: 1 | B3: 全省选调初中思想品德 | C3: 邓金花 | D3: 20208010110 | E3: 莲塘四中
A4: 2 | B4: 全省选调初中思想品德 | C4: 李纯 | D4: 20208010102 | E4: 洪亿学校
A5: 3 | B5: 全省选调初中思想品德 | C5: 朱慧娟 | D5: 20208010101 | E5: 新城学校
A6: 4 | B6: 全省选调初中语文 | C6: 谌文芳 | D6: 20208010202 | E6: 洪范学校
A7: 5 | B7: 全省选调初中语文 | C7: 谢琳 | D7: 20208010127 | E7: 洪范学校
A8: 6 | B8: 全省选调初中语文 | C8: 吴陈陈 | D8: 20208010123 | E8: 莲塘四中
A9: 7 | B9: 全省选调初中语文 | C9: 谢芸 | D9: 20208010126 | E9: 莲塘一中八一分校
A10: 8 | B10: 全省选调初中语文 | C10: 程书丹 | D10: 20208010131 | E10: 武阳中学
A11: 9 | B11: 全省选调初中数学 | C11: 刘昇 | D11: 20208010213 | E11: 洪亿学校
A12: 10 | B12: 全省选调初中数学 | C12: 周燕妮 | D12: 20208010304 | E12: 洪范学校
A13: 11 | B13: 全省选调初中英语 | C13: 肖茵茵 | D13: 20208010321 | E13: 洪范学校
A14: 12 | B14: 全省选调初中音乐 | C14: 胡菁 | D14: 20208010433 | E14: 洪州汇仁学校
A15: 13 | B15: 全省选调初中体育 | C15: 陈龙 | D15: 20208010440 | E15: 洪燕学校
A16: 14 | B16: 全省选调初中体育 | C16: 吴志宗 | D16: 20208010443 | E16: 新城学校
A17: 15 | B17: 全省选调初中美术 | C17: 盛兰 | D17: 20208010503 | E17: 洪州汇仁学校
A18: 16 | B18: 全省选调初中物理 | C18: 张钱 | D18: 20208010524 | E18: 洪范学校
A19: 17 | B19: 全省选调初中物理 | C19: 余智萍 | D19: 20208010515 | E19: 洪范学校
A20: 18 | B20: 全省选调初中化学 | C20: 章毛女 | D20: 20208010530 | E20: 向塘实验学校
A21: 19 | B21: 全省选调初中历史 | C21: 吴琼 | D21: 20208010534 | E21: 莲塘四中
A22: 20 | B22: 全省选调初中历史 | C22: 温家盛 | D22: 20208010535 | E22: 新城学校
A23: 21 | B23: 全省选调初中地理 | C23: 洪文欢 | D23: 20208010545 | E23: 洪燕学校
A24: 22 | B24: 全省选调小学思想品德 | C24: 赵文燕 | D24: 20208011344 | E24: 洪燕学校
A25: 23 | B25: 全省选调小学思想品德 | C25: 刘微 | D25: 20208011401 | E25: 莲塘一中八一分校
A26: 24 | B26: 全省选调小学语文 | C26: 刘婷 | D26: 20208011422 | E26: 洪州学校
A27: 25 | B27: 全省选调小学语文 | C27: 蒋大胆 | D27: 20208011436 | E27: 洪亿学校
A28: 26 | B28: 全省选调小学语文 | C28: 付文芳 | D28: 20208011635 | E28: 洪州学校
A29: 27 | B29: 全省选调小学语文 | C29: 徐晓云 | D29: 20208012037 | E29: 洪范学校
A30: 28 | B30: 全省选调小学语文 | C30: 杨艳 | D30: 20208011945 | E30: 振兴路小学
A31: 29 | B31: 全省选调小学语文 | C31: 吴雅芳 | D31: 20208011624 | E31: 洪燕学校
A32: 30 | B32: 全省选调小学语文 | C32: 熊娇 | D32: 20208011629 | E32: 新城学校
A33: 31 | B33: 全省选调小学语文 | C33: 吴芳 | D33: 20208011530 | E33: 洪范学校
A34: 32 | B34: 全省选调小学语文 | C34: 江思 | D34: 20208011442 | E34: 洪范学校
A35: 33 | B35: 全省选调小学语文 | C35: 陈小专 | D35: 20208011501 | E35: 金沙路小学
A36: 34 | B36: 全省选调小学语文 | C36: 龚吴花 | D36: 20208011708 | E36: 洪州汇仁学校
A37: 35 | B37: 全省选调小学语文 | C37: 刘建琴 | D37: 20208011737 | E37: 洪州汇仁学校
A38: 36 | B38: 全省选调小学语文 | C38: 柯芸 | D38: 20208011731 | E38: 银河学校
A39: 37 | B39: 全省选调小学数学 | C39: 张赟莹 | D39: 20208012319 | E39: 洪亿学校
A40: 38 | B40: 全省选调小学数学 | C40: 聂笼笼 | D40: 20208012617 | E40: 洪州学校
A41: 39 | B41: 全省选调小学数学 | C41: 江归荣 | D41: 20208012201 | E41: 洪州学校
A42: 40 | B42: 全省选调小学数学 | C42: 黄津 | D42: 20208012716 | E42: 洪范学校
A43: 41 | B43: 全省选调小学数学 | C43: 苏晓霞 | D43: 20208012442 | E43: 洪范学校
A44: 42 | B44: 全省选调小学数学 | C44: 陈莹英 | D44: 20208012439 | E44: 洪亿学校
A45: 43 | B45: 全省选调小学数学 | C45: 余贵娇 | D45: 20208012738 | E45: 洪州汇仁学校
A46: 44 | B46: 全省选调小学数学 | C46: 姜贞露 | D46: 20208012529 | E46: 洪范学校
A47: 45 | B47: 全省选调小学数学 | C47: 袁美秀 | D47: 20208012121 | E47: 洪燕学校
A48: 46 | B48: 全省选调小学数学 | C48: 付会娟 | D48: 20208012217 | E48: 洪范学校
A49: 47 | B49: 全省选调小学数学 | C49: 万彩云 | D49: 20208012603 | E49: 洪科小学
A50: 48 | B50: 全省选调小学数学 | C50: 辛婷婷 | D50: 20208012314 | E50: 洪州汇仁学校
A51: 49 | B51: 全省选调小学数学 | C51: 徐业妹 | D51: 20208012302 | E51: 新城学校
A52: 50 | B52: 全省选调小学数学 | C52: 吴思程 | D52: 20208012721 | E52: 新城学校
A53: 51 | B53: 全省选调小学数学 | C53: 邓近梅 | D53: 20208012433 | E53: 银河学校
A54: 52 | B54: 全省选调小学数学 | C54: 万琼 | D54: 20208012320 | E54: 金沙路小学
A55: 53 | B55: 全省选调小学数学 | C55: 顾海燕 | D55: 20208012123 | E55: 银河学校
A56: 54 | B56: 全省选调小学数学 | C56: 范晓 | D56: 20208012401 | E56: 洪科小学
A57: 55 | B57: 全省选调小学数学 | C57: 彭丹敏 | D57: 20208012539 | E57: 莲塘一中八一分校
A58: 56 | B58: 全省选调小学英语 | C58: 胡小玲 | D58: 20208012922 | E58: 洪范学校
A59: 57 | B59: 全省选调小学英语 | C59: 杨娟 | D59: 20208012930 | E59: 洪燕学校
A60: 58 | B60: 全省选调小学英语 | C60: 沈秀秀 | D60: 20208013203 | E60: 振兴路小学
A61: 59 | B61: 全省选调小学音乐 | C61: 陈海婷 | D61: 20208013226 | E61: 墨山街小学
A62: 60 | B62: 全省选调小学体育 | C62: 唐苏琴 | D62: 20208013242 | E62: 墨山街小学
A63: 61 | B63: 全省选调小学体育 | C63: 江淑云 | D63: 20208013244 | E63: 莲塘镇中心小学（城东学校）
A64: 62 | B64: 全省选调小学美术 | C64: 赵玉磊 | D64: 20208013317 | E64: 洪范学校
A65: 63 | B65: 全省选调小学科学 | C65: 温萍 | D65: 20208013336 | E65: 莲塘一中八一分校

Sheet E 县内选调70人 (hidden)
A1: 南昌县2020年面向全县选调在编中小学教师岗位表
A2: 招聘岗位 | B2: 岗位代码 | C2: 招聘人数 | D2: 岗位条件
A3: 初中语文 | B3: 2007101 | C3: 7 | D3: 1.在南昌县乡镇学校工作满5年的中小学教师（即2015年12月31日及以前系我县在编在岗乡镇中小学教师，含我县2015年及以前通过“三支一扶”招募的支教人员）；2.本科及以上学历，初级中学及以上语文学科教师资格证；3.具有三年及以上初中阶段语文学科教学经历。
A4: 初中数学 | B4: 2007102 | C4: 7 | D4: 1.在南昌县乡镇学校工作满5年的中小学教师（即2015年12月31日及以前系我县在编在岗乡镇中小学教师，含我县2015年及以前通过“三支一扶”招募的支教人员）；2.本科及以上学历，初级中学及以上数学学科教师资格证；3.具有三年及以上初中阶段数学学科教学经历。
A5: 初中英语 | B5: 2007103 | C5: 6 | D5: 1.在南昌县乡镇学校工作满5年的中小学教师（即2015年12月31日及以前系我县在编在岗乡镇中小学教师，含我县2015年及以前通过“三支一扶”招募的支教人员）；2.本科及以上学历，初级中学及以上英语学科教师资格证；3.具有三年及以上初中阶段英语学科教学经历。
A6: 初中物理 | B6: 2007104 | C6: 2 | D6: 1.在南昌县乡镇学校工作满5年的中小学教师（即2015年12月31日及以前系我县在编在岗乡镇中小学教师，含我县2015年及以前通过“三支一扶”招募的支教人员）；2.本科及以上学历，初级中学及以上物理学科教师资格证；3.具有三年及以上初中阶段物理学科教学经历。
A7: 初中化学 | B7: 2007105 | C7: 2 | D7: 1.在南昌县乡镇学校工作满5年的中小学教师（即2015年12月31日及以前系我县在编在岗乡镇中小学教师，含我县2015年及以前通过“三支一扶”招募的支教人员）；2.本科及以上学历，初级中学及以上化学学科教师资格证；3.具有三年及以上初中阶段化学学科教学经历。
A8: 初中历史 | B8: 2007106 | C8: 1 | D8: 1.在南昌县乡镇学校工作满5年的中小学教师（即2015年12月31日及以前系我县在编在岗乡镇中小学教师，含我县2015年及以前通过“三支一扶”招募的支教人员）；2.本科及以上学历，初级中学及以上历史学科教师资格证；3.具有三年及以上初中阶段历史学科教学经历。
A9: 初中思品 | B9: 2007107 | C9: 3 | D9: 1.在南昌县乡镇学校工作满5年的中小学教师（即2015年12月31日及以前系我县在编在岗乡镇中小学教师，含我县2015年及以前通过“三支一扶”招募的支教人员）；2.本科及以上学历，初级中学及以上思品（政治）学科教师资格证；3.具有三年及以上初中阶段思品（政治）学科教学经历。
A10: 初中体育 | B10: 2007108 | C10: 2 | D10: 1.在南昌县乡镇学校工作满5年的中小学教师（即2015年12月31日及以前系我县在编在岗乡镇中小学教师，含我县2015年及以前通过“三支一扶”招募的支教人员）；2.本科及以上学历，初级中学及以上体育学科相关教师资格证；3.具有三年及以上初中阶段体育学科教学经历。
A11: 小学语文 | B11: 2007109 | C11: 12 | D11: 1.在南昌县乡镇学校工作满5年的中小学教师（即2015年12月31日及以前系我县在编在岗乡镇中小学教师，含我县2015年及以前通过“三支一扶”招募的支教人员）；2.大专及以上学历，小学及以上语文学科教师资格证；3.具有三年及以上小学阶段语文学科教学经历。
A12: 小学数学 | B12: 2007110 | C12: 15 | D12: 1.在南昌县乡镇学校工作满5年的中小学教师（即2015年12月31日及以前系我县在编在岗乡镇中小学教师，含我县2015年及以前通过“三支一扶”招募的支教人员）；2.大专及以上学历，小学及以上数学学科教师资格证；3.具有三年及以上小学阶段数学学科教学经历。
A13: 小学英语 | B13: 2007111 | C13: 6 | D13: 1.在南昌县乡镇学校工作满5年的中小学教师（即2015年12月31日及以前系我县在编在岗乡镇中小学教师，含我县2015年及以前通过“三支一扶”招募的支教人员）；2.大专及以上学历，小学及以上英语学科教师资格证；3.具有三年及以上小学阶段英语学科教学经历。
A14: 小学思品 | B14: 2007112 | C14: 1 | D14: 1.在南昌县乡镇学校工作满5年的中小学教师（即2015年12月31日及以前系我县在编在岗乡镇中小学教师，含我县2015年及以前通过“三支一扶”招募的支教人员）；2.大专及以上学历，小学及以上思品（政治）学科教师资格证；3.具有三年及以上小学阶段思品（政治）学科教学经历。
A15: 小学科学 | B15: 2007113 | C15: 1 | D15: 1.在南昌县乡镇学校工作满5年的中小学教师（即2015年12月31日及以前系我县在编在岗乡镇中小学教师，含我县2015年及以前通过“三支一扶”招募的支教人员）；2.大专及以上学历，小学及以上科学学科教师资格证；3.具有三年及以上小学阶段科学学科教学经历。
A16: 小学体育 | B16: 2007114 | C16: 1 | D16: 1.在南昌县乡镇学校工作满5年的中小学教师（即2015年12月31日及以前系我县在编在岗乡镇中小学教师，含我县2015年及以前通过“三支一扶”招募的支教人员）；2.大专及以上学历，小学及以上体育学科相关教师资格证；3.具有三年及以上小学阶段体育学科教学经历。
A17: 小学音乐 | B17: 2007115 | C17: 2 | D17: 1.在南昌县乡镇学校工作满5年的中小学教师（即2015年12月31日及以前系我县在编在岗乡镇中小学教师，含我县2015年及以前通过“三支一扶”招募的支教人员）；2.大专及以上学历，小学及以上音乐学科相关教师资格证；3.具有三年及以上小学阶段音乐学科教学经历。
A18: 小学美术 | B18: 2007116 | C18: 2 | D18: 1.在南昌县乡镇学校工作满5年的中小学教师（即2015年12月31日及以前系我县在编在岗乡镇中小学教师，含我县2015年及以前通过“三支一扶”招募的支教人员）；2.大专及以上学历，小学及以上美术学科教师资格证；3.具有三年及以上小学阶段美术学科教学经历。
A19: 合计 | C19: =SUM(C3:C18) -> 70

Sheet E 县内选调拟录人员名单 (hidden)
A1: 南昌县2020年县内选调中小学在编教师 拟录人员名单
A2: 序号 | B2: 岗位名称 | C2: 姓名 | D2: 准考证号 | E2: 选岗学校
A3: 1 | B3: 县内选调初中语文 | C3: 饶丽丽 | D3: 20208010606 | E3: 洪范学校
A4: 2 | B4: 县内选调初中语文 | C4: 蔡贤芳 | D4: 20208010615 | E4: 洪范学校
A5: 3 | B5: 县内选调初中语文 | C5: 蔡小芳 | D5: 20208010612 | E5: 莲塘四中
A6: 4 | B6: 县内选调初中语文 | C6: 魏文亭 | D6: 20208010605 | E6: 莲塘四中
A7: 5 | B7: 县内选调初中语文 | C7: 黄桂花 | D7: 20208010608 | E7: 洪州汇仁学校
A8: 6 | B8: 县内选调初中语文 | C8: 罗胜 | D8: 20208010609 | E8: 莲塘一中八一分校
A9: 7 | B9: 县内选调初中语文 | C9: 赵婧 | D9: 20208010604 | E9: 莲塘一中八一分校
A10: 8 | B10: 县内选调初中数学 | C10: 宗丽 | D10: 20208010622 | E10: 洪范学校
A11: 9 | B11: 县内选调初中数学 | C11: 邱增伟 | D11: 20208010632 | E11: 洪范学校
A12: 10 | B12: 县内选调初中数学 | C12: 万星 | D12: 20208010620 | E12: 莲塘四中
A13: 11 | B13: 县内选调初中数学 | C13: 吴芳菲 | D13: 20208010629 | E13: 莲塘四中
A14: 12 | B14: 县内选调初中数学 | C14: 万蕾 | D14: 20208010618 | E14: 洪州汇仁学校
A15: 13 | B15: 县内选调初中数学 | C15: 胡文轩 | D15: 20208010617 | E15: 洪亿学校
A16: 14 | B16: 县内选调初中数学 | C16: 匡桂平 | D16: 20208010626 | E16: 莲塘一中八一分校
A17: 15 | B17: 县内选调初中英语 | C17: 章倩 | D17: 20208010705 | E17: 莲塘四中
A18: 16 | B18: 县内选调初中英语 | C18: 涂小宁 | D18: 20208010709 | E18: 洪范学校
A19: 17 | B19: 县内选调初中英语 | C19: 乐淑莹 | D19: 20208010704 | E19: 洪亿学校
A20: 18 | B20: 县内选调初中英语 | C20: 吴星星 | D20: 20208010643 | E20: 洪范学校
A21: 19 | B21: 县内选调初中英语 | C21: 肖木兰 | D21: 20208010703 | E21: 洪州汇仁学校
A22: 20 | B22: 县内选调初中物理 | C22: 龚良军 | D22: 20208010715 | E22: 洪州学校
A23: 21 | B23: 县内选调初中物理 | C23: 唐尖尖 | D23: 20208010711 | E23: 洪范学校
A24: 22 | B24: 县内选调初中化学 | C24: 杨艳 | D24: 20208010717 | E24: 银河学校
A25: 23 | B25: 县内选调初中化学 | C25: 李道贞 | D25: 20208010718 | E25: 莲塘一中八一分校
A26: 24 | B26: 县内选调初中历史 | C26: 张慧慧 | D26: 20208010720 | E26: 洪范学校
A27: 25 | B27: 县内选调初中思想品德 | C27: 万景瑶 | D27: 20208010722 | E27: 洪范学校
A28: 26 | B28: 县内选调初中思想品德 | C28: 曾美慧 | D28: 20208010723 | E28: 洪燕学校
A29: 27 | B29: 县内选调初中体育 | C29: 王英福 | D29: 20208010727 | E29: 莲塘四中
A30: 28 | B30: 县内选调初中体育 | C30: 朱秀君 | D30: 20208010726 | E30: 洪燕学校
A31: 29 | B31: 县内选调小学语文 | C31: 万思倩 | D31: 20208010819 | E31: 洪州学校
A32: 30 | B32: 县内选调小学语文 | C32: 黄琳 | D32: 20208011002 | E32: 金沙路小学
A33: 31 | B33: 县内选调小学语文 | C33: 傅忠忠 | D33: 20208010843 | E33: 洪范学校
A34: 32 | B34: 县内选调小学语文 | C34: 周瑞芳 | D34: 20208010813 | E34: 洪州汇仁学校
A35: 33 | B35: 县内选调小学语文 | C35: 陈芳 | D35: 20208010811 | E35: 芳草学校
A36: 34 | B36: 县内选调小学语文 | C36: 祝蕾 | D36: 20208010930 | E36: 诚义学校
A37: 35 | B37: 县内选调小学语文 | C37: 黄梦婷 | D37: 20208010915 | E37: 洪科小学
A38: 36 | B38: 县内选调小学语文 | C38: 李文秀 | D38: 20208010814 | E38: 洪燕学校
A39: 37 | B39: 县内选调小学语文 | C39: 王婷 | D39: 20208010808 | E39: 银河学校
A40: 38 | B40: 县内选调小学语文 | C40: 伍紫薇 | D40: 20208010928 | E40: 新城学校
A41: 39 | B41: 县内选调小学语文 | C41: 龚丽 | D41: 20208010945 | E41: 洪亿学校
A42: 40 | B42: 县内选调小学语文 | C42: 罗红 | D42: 20208010803 | E42: 莲塘一中八一分校
A43: 41 | B43: 县内选调小学数学 | C43: 王金梅 | D43: 20208011011 | E43: 洪州学校
A44: 42 | B44: 县内选调小学数学 | C44: 郑日娜 | D44: 20208011205 | E44: 洪科小学
A45: 43 | B45: 县内选调小学数学 | C45: 袁海红 | D45: 20208011104 | E45: 洪范学校
A46: 44 | B46: 县内选调小学数学 | C46: 余冲 | D46: 20208011012 | E46: 洪范学校
A47: 45 | B47: 县内选调小学数学 | C47: 魏琴 | D47: 20208011034 | E47: 洪亿学校
A48: 46 | B48: 县内选调小学数学 | C48: 徐媛媛 | D48: 20208011107 | E48: 洪科小学
A49: 47 | B49: 县内选调小学数学 | C49: 万琮琮 | D49: 20208011131 | E49: 银河学校
A50: 48 | B50: 县内选调小学数学 | C50: 罗敏 | D50: 20208011137 | E50: 洪州汇仁学校
A51: 49 | B51: 县内选调小学数学 | C51: 万以琴 | D51: 20208011110 | E51: 芳草学校
A52: 50 | B52: 县内选调小学数学 | C52: 熊宜 | D52: 20208011036 | E52: 诚义学校
A53: 51 | B53: 县内选调小学数学 | C53: 黄荣梅 | D53: 20208011140 | E53: 金沙路小学
A54: 52 | B54: 县内选调小学数学 | C54: 陈飘飘 | D54: 20208011041 | E54: 洪燕学校
A55: 53 | B55: 县内选调小学数学 | C55: 余刚琴 | D55: 20208011132 | E55: 洪亿学校
A56: 54 | B56: 县内选调小学数学 | C56: 熊艺 | D56: 20208011017 | E56: 新城学校
A57: 55 | B57: 县内选调小学数学 | C57: 章佳慧 | D57: 20208011024 | E57: 莲塘一中八一分校
A58: 56 | B58: 县内选调小学英语 | C58: 廖芳凌 | D58: 20208011230 | E58: 振兴路小学
A59: 57 | B59: 县内选调小学英语 | C59: 胡超 | D59: 20208011218 | E59: 斗柏路小学
A60: 58 | B60: 县内选调小学英语 | C60: 李如婷 | D60: 20208011228 | E60: 洪科小学
A61: 59 | B61: 县内选调小学英语 | C61: 舒云 | D61: 20208011222 | E61: 金沙路小学
A62: 60 | B62: 县内选调小学英语 | C62: 冯平平 | D62: 20208011221 | E62: 新城学校
A63: 61 | B63: 县内选调小学英语 | C63: 何珊 | D63: 20208011223 | E63: 莲塘一中八一分校
A64: 62 | B64: 县内选调小学体育 | C64: 孙景锋 | D64: 20208011245 | E64: 金沙路小学
A65: 63 | B65: 县内选调小学音乐 | C65: 邓丁丁 | D65: 20208011318 | E65: 洪科小学
A66: 64 | B66: 县内选调小学音乐 | C66: 田李云 | D66: 20208011323 | E66: 洪燕学校
A67: 65 | B67: 县内选调小学美术 | C67: 陈玉莹 | D67: 20208011328 | E67: 洪燕学校
A68: 66 | B68: 县内选调小学美术 | C68: 刘格利 | D68: 20208011337 | E68: 莲塘一中八一分校

Sheet F 2015定向师范生50人 (hidden)
A1: 南昌县2015级豫章师范定向师范生
A2: 序号 | B2: 姓名 | C2: 性别 | D2: 考生类别 | E2: 毕业学校 | F2: 实习学校 | G2: 报考乡镇 | H2: 总等级分 | N2: 联系电话 | O2: 家庭住址 | P2: 指导教师 | Q2: 联系电话 | R2: 备注
A3: 7 | B3: 罗娇 | C3: 女 | D3: 应届 | E3: 广福中学 | F3: 诚义学校 | G3: 广福镇 | H3: 86.2 | I3: 罗娇 | J3: 女 | K3: 小教 | L3: 广福镇 | M3: 515小学教育班 | N3: 18770917309 | O3: 江西省南昌市南昌县广福镇北头村后屋小组36号 | P3: 陈婧婷 | Q3: 15970635576
A4: 24 | B4: 陈欢欢 | C4: 女 | D4: 英语 | E4: 莲塘六中 | F4: 洪燕学校 | G4: 广福镇 | H4: 90.7 | J4: 女 | K4: 小教 | L4: 泾口乡 | M4: 未入读 | N4: 13576286367 | O4: 江西省南昌市南昌县莲塘镇锦绣365 | P4: 雷虹 | Q4: 13767039857 | R4: 2014级休学
A5: 25 | B5: 李茹 | C5: 女 | D5: 应届 | E5: 广福二中 | F5: 洪燕学校 | G5: 广福镇 | H5: 84.7 | I5: 李茹 | J5: 女 | K5: 小教 | L5: 广福镇 | M5: 515小学教育班 | N5: 17779131213 | O5: 江西省南昌市南昌县广福镇溪山村88号 | P5: 陈婧婷 | Q5: 15970635576
A6: 27 | B6: 黄冬娇 | C6: 女 | D6: 应届 | E6: 黄马中学 | F6: 洪亿学校 | G6: 黄马乡 | H6: 84.45 | I6: 黄冬娇 | J6: 女 | K6: 小教 | L6: 黄马乡 | M6: 515小学教育班 | N6: 15270011683 | O6: 江西省南昌市南昌县黄马乡华标庙下村 | P6: 陈婧婷 | Q6: 15970635576
A7: 28 | B7: 周能 | C7: 女 | D7: 应届 | E7: 三江中学 | F7: 洪州学校 | G7: 黄马乡 | H7: 85.4 | I7: 周能 | J7: 女 | K7: 小教 | L7: 黄马乡 | M7: 515小学教育班 | N7: 18270910850 | O7: 江西省南昌市西湖区下塘塍街75号202室 | P7: 陈婧婷 | Q7: 15970635576
A8: 29 | B8: 饶美娟 | C8: 女 | D8: 应届 | E8: 莲塘六中 | F8: 洪州学校 | G8: 黄马乡 | H8: 84.4 | I8: 饶美娟 | J8: 女 | K8: 小教 | L8: 黄马乡 | M8: 515小学教育班 | N8: 13517086539 | O8: 江西省南昌市南昌县黄马乡鹏飞大道34号 | P8: 陈婧婷 | Q8: 15970635576
A9: 44 | B9: 王斯颖 | C9: 女 | D9: 应届 | E9: 莲塘四中 | F9: 向塘实验 | G9: 黄马乡 | H9: 86 | I9: 王斯颖 | J9: 女 | K9: 小教 | L9: 黄马乡 | M9: 515小学教育班 | N9: 18720930312 | O9: 江西省南昌市南昌县向塘镇顺达路一支路七号 | P9: 陈婧婷 | Q9: 15970635576
A10: 1 | B10: 高红 | C10: 女 | D10: 应届 | E10: 莲塘四中 | F10: 八一分校 | G10: 蒋巷镇 | H10: 79.55 | I10: 高红 | J10: 女 | K10: 小教 | L10: 蒋巷镇 | M10: 515小学教育班 | N10: 18720053161 | O10: 南昌县莲塘镇汇仁阳光花园 | P10: 陈婧婷 | Q10: 15970635576
A11: 2 | B11: 饶禄梦 | C11: 女 | D11: 应届 | E11: 黄马中学 | F11: 八一分校 | G11: 蒋巷镇 | H11: 78.5 | I11: 饶禄梦 | J11: 女 | K11: 小教 | L11: 蒋巷镇 | M11: 515小学教育班 | N11: 15270820759 | O11: 南昌县黄马乡徐家村曹门自然村7号 | P11: 陈婧婷 | Q11: 15970635576
A12: 3 | B12: 徐洋洋 | C12: 男 | D12: 应届 | E12: 莲塘六中 | F12: 八一分校 | G12: 蒋巷镇 | H12: 76.8 | I12: 徐洋洋 | J12: 男 | K12: 小教 | L12: 蒋巷镇 | M12: 515小学教育班 | N12: 18579114995 | O12: 江西省南昌市南昌县蒋巷镇 | P12: 陈婧婷 | Q12: 15970635576
A13: 8 | B13: 王腊根 | C13: 男 | D13: 应届 | E13: 蒋巷二中 | F13: 芳草学校 | G13: 蒋巷镇 | H13: 77.8 | I13: 王腊根 | J13: 男 | K13: 小教 | L13: 蒋巷镇 | M13: 515小学教育班 | N13: 17307091120 | O13: 江西省南昌市南昌县蒋巷镇高梧村 | P13: 陈婧婷 | Q13: 15970635576
A14: 18 | B14: 应思云 | C14: 女 | D14: 应届 | E14: 蒋巷二中 | F14: 洪燕学校 | G14: 蒋巷镇 | H14: 76.4 | I14: 应思云 | J14: 女 | K14: 小教 | L14: 蒋巷镇 | M14: 515小学教育班 | N14: 15179153759 | O14: 江西省南昌市南昌县蒋巷镇蒋巷街 | P14: 陈婧婷 | Q14: 15970635576
A15: 48 | B15: 龚子薇 | C15: 女 | D15: 应届 | E15: 广福二中 | F15: 新城学校 | G15: 蒋巷镇 | H15: 87.25 | I15: 龚子薇 | J15: 女 | K15: 小教 | L15: 蒋巷镇 | M15: 515小学教育班 | N15: 18270847856 | O15: 南昌县莲塘镇煌盛中央公园7栋 | P15: 陈婧婷 | Q15: 15970635576
A16: 49 | B16: 万云凤 | C16: 女 | D16: 应届 | E16: 广福中学 | F16: 振兴路小学 | G16: 蒋巷镇 | H16: 85.45 | I16: 万云凤 | J16: 女 | K16: 小教 | L16: 蒋巷镇 | M16: 515小学教育班 | N16: 18270877896 | O16: 江西省南昌市南昌县广福镇广福街 | P16: 陈婧婷 | Q16: 15970635576
A17: 50 | B17: 罗薇 | C17: 女 | D17: 应届 | E17: 广福中学 | F17: 振兴路小学 | G17: 蒋巷镇 | H17: 79.9 | I17: 罗薇 | J17: 女 | K17: 小教 | L17: 蒋巷镇 | M17: 515小学教育班 | N17: 18579193719 | O17: 江西省南昌市南昌县广福镇广福街 | P17: 陈婧婷 | Q17: 15970635576
A18: 9 | B18: 舒伟森 | C18: 男 | D18: 应届 | E18: 泾口中学 | F18: 芳草学校 | G18: 泾口乡 | H18: 79.85 | I18: 舒伟森 | J18: 男 | K18: 小教 | L18: 泾口乡 | M18: 515小学教育班 | N18: 15879155428 | O18: 江西省南昌市南昌县泾口乡 | P18: 陈婧婷 | Q18: 15970635576
A19: 10 | B19: 付诺诚 | C19: 男 | D19: 应届 | E19: 武阳中学 | F19: 芳草学校 | G19: 泾口乡 | H19: 73.35 | I19: 付诺诚 | J19: 男 | K19: 小教 | L19: 泾口乡 | M19: 515小学教育班 | N19: 17770822053 | O19: 江西省南昌市南昌县武阳镇 | P19: 陈婧婷 | Q19: 15970635576
A20: 19 | B20: 罗梦 | C20: 女 | D20: 应届 | E20: 广福二中 | F20: 洪燕学校 | G20: 泾口乡 | H20: 74.4 | I20: 罗梦 | J20: 女 | K20: 小教 | L20: 泾口乡 | M20: 515小学教育班 | N20: 13517096192 | O20: 南昌县莲塘振兴大道正荣大湖之都凌湖峰 | P20: 陈婧婷 | Q20: 15970635576
A21: 20 | B21: 舒志勇 | C21: 男 | D21: 应届 | E21: 泾口中学 | F21: 洪燕学校 | G21: 泾口乡 | H21: 73 | I21: 舒志勇 | J21: 男 | K21: 小教 | L21: 泾口乡 | M21: 515小学教育班 | N21: 15979023342 | O21: 南昌县泾口乡康庄村黄港自然村14附1号 | P21: 陈婧婷 | Q21: 15970635576
A22: 30 | B22: 万芳芳 | C22: 女 | D22: 应届 | E22: 泾口中学 | F22: 金沙路小学 | G22: 泾口乡 | H22: 72.95 | I22: 万芳芳 | J22: 女 | K22: 小教 | L22: 泾口乡 | M22: 515小学教育班 | N22: 13576956205 | O22: 江西省南昌市南昌县莲塘镇莲水巷43栋3单元 | P22: 陈婧婷 | Q22: 15970635576
A23: 31 | B23: 熊雨欣 | C23: 女 | D23: 应届 | E23: 广福二中 | F23: 金沙路小学 | G23: 泾口乡 | H23: 82.3 | I23: 熊雨欣 | J23: 女 | K23: 小教 | L23: 泾口乡 | M23: 515小学教育班 | N23: 15170453893 | O23: 南昌县莲塘镇万科城市花园小区12栋1单元2404 | P23: 陈婧婷 | Q23: 15970635576
A24: 42 | B24: 姜乐彤 | C24: 女 | D24: 应届 | E24: 泾口中学 | F24: 莲塘四中 | G24: 泾口乡 | H24: 75.5 | I24: 姜乐彤 | J24: 女 | K24: 小教 | L24: 泾口乡 | M24: 515小学教育班 | N24: 15070866935 | O24: 江西省南昌市南昌县泾口乡泾口新街 | P24: 陈婧婷 | Q24: 15970635576
A25: 43 | B25: 陶蕾 | C25: 女 | D25: 应届 | E25: 泾口中学 | F25: 莲塘四中 | G25: 泾口乡 | H25: 74.4 | I25: 陶蕾 | J25: 女 | K25: 小教 | L25: 泾口乡 | M25: 515小学教育班 | N25: 15170429261 | O25: 江西省南昌市南昌县高新开发区 | P25: 陈婧婷 | Q25: 15970635576
A26: 14 | B26: 宋家棋 | C26: 女 | D26: 应届 | E26: 莲塘五中 | F26: 洪新学校 | G26: 南新乡 | H26: 82.8 | I26: 宋家棋 | J26: 女 | K26: 小教 | L26: 南新乡 | M26: 515小学教育班 | N26: 15727640590 | O26: 南昌县向塘镇顺达路一支路七号 | P26: 陈婧婷 | Q26: 15970635576
A27: 15 | B27: 罗蓓 | C27: 女 | D27: 应届 | E27: 三江中学 | F27: 洪新学校 | G27: 南新乡 | H27: 82.7 | I27: 罗蓓 | J27: 女 | K27: 小教 | L27: 南新乡 | M27: 515小学教育班 | N27: 13677000726 | O27: 南昌县莲塘镇凤凰晴源 | P27: 陈婧婷 | Q27: 15970635576
A28: 16 | B28: 刘敏 | C28: 女 | D28: 应届 | E28: 南新中学 | F28: 洪新学校 | G28: 南新乡 | H28: 82.6 | I28: 刘敏 | J28: 女 | K28: 小教 | L28: 南新乡 | M28: 515小学教育班 | N28: 15879020902 | O28: 南昌县南新乡楼前街 | P28: 陈婧婷 | Q28: 15970635576
A29: 17 | B29: 刘洁 | C29: 女 | D29: 应届 | E29: 蒋巷二中 | F29: 洪新学校 | G29: 南新乡 | H29: 81.75 | I29: 刘洁 | J29: 女 | K29: 小教 | L29: 南新乡 | M29: 515小学教育班 | N29: 1570497172 | O29: 南昌县蒋巷镇三洞村赤江新村 | P29: 陈婧婷 | Q29: 15970635576
A30: 33 | B30: 胡佳煜 | C30: 女 | D30: 应届 | E30: 莲塘六中 | F30: 莲塘四小 | G30: 南新乡 | H30: 79.1 | I30: 胡佳煜 | J30: 女 | K30: 小教 | L30: 南新乡 | M30: 515小学教育班 | N30: 13657914237 | O30: 南昌县莲塘镇力高君御国际 | P30: 陈婧婷 | Q30: 15970635576
A31: 45 | B31: 张佳丽 | C31: 女 | D31: 应届 | E31: 广福中学 | F31: 新城学校 | G31: 南新乡 | H31: 78.75 | I31: 张佳丽 | J31: 女 | K31: 小教 | L31: 南新乡 | M31: 515小学教育班 | N31: 13576076457 | O31: 江西省南昌市南昌县广福镇广福街 | P31: 陈婧婷 | Q31: 15970635576
A32: 46 | B32: 江娴 | C32: 女 | D32: 应届 | E32: 凤凰沟 | F32: 新城学校 | G32: 南新乡 | H32: 77.6 | I32: 江娴 | J32: 女 | K32: 小教 | L32: 南新乡 | M32: 515小学教育班 | N32: 18279189118 | O32: 江西省南昌市南昌县莲塘镇锦绣江南 | P32: 陈婧婷 | Q32: 15970635576
A33: 47 | B33: 杨丰华 | C33: 男 | D33: 应届 | E33: 武阳中学 | F33: 新城学校 | G33: 南新乡 | H33: 76.6 | I33: 杨丰华 | J33: 男 | K33: 小教 | L33: 南新乡 | M33: 515小学教育班 | N33: 13627004376 | O33: 江西省南昌市南昌县武阳镇 | P33: 陈婧婷 | Q33: 15970635576
A34: 6 | B34: 杜颖 | C34: 女 | D34: 应届 | E34: 莲塘五中 | F34: 诚义学校 | G34: 三江镇 | H34: 82.85 | I34: 杜颖 | J34: 女 | K34: 小教 | L34: 三江镇 | M34: 515小学教育班 | N34: 13576024518 | O34: 南昌县莲塘镇民星集团1栋1单元 | P34: 陈婧婷 | Q34: 15970635576
A35: 23 | B35: 万丽晨 | C35: 女 | D35: 应届 | E35: 武阳中学 | F35: 洪燕学校 | G35: 三江镇 | H35: 78.9 | I35: 万丽晨 | J35: 女 | K35: 小教 | L35: 三江镇 | M35: 515小学教育班 | N35: 15179176024 | O35: 江西省南昌市南昌县象湖新城幸福时光二期 | P35: 陈婧婷 | Q35: 15970635576
A36: 26 | B36: 徐笑 | C36: 女 | D36: 应届 | E36: 武阳中学 | F36: 洪亿学校 | G36: 三江镇 | H36: 85.65 | I36: 徐笑 | J36: 女 | K36: 小教 | L36: 三江镇 | M36: 515小学教育班 | N36: 17370851310 | O36: 南昌县莲塘镇农贸街安居小区11栋二单元101 | P36: 陈婧婷 | Q36: 15970635576
A37: 11 | B37: 熊樱 | C37: 女 | D37: 应届 | E37: 莲塘六中 | F37: 洪范学校 | G37: 塘南镇 | H37: 84.2 | I37: 熊樱 | J37: 女 | K37: 小教 | L37: 塘南镇 | M37: 515小学教育班 | N37: 18870012758 | O37: 江西省南昌市南昌县莲塘桃源丰景 | P37: 陈婧婷 | Q37: 15970635576
A38: 34 | B38: 骆欣宇 | C38: 女 | D38: 应届 | E38: 武阳中学 | F38: 莲塘四小 | G38: 塘南镇 | H38: 84 | I38: 骆欣宇 | J38: 女 | K38: 小教 | L38: 塘南镇 | M38: 515小学教育班 | N38: 13627098364 | O38: 南昌县武阳镇保丰后骆自然村 | P38: 陈婧婷 | Q38: 15970635576
A39: 36 | B39: 李科镓 | C39: 女 | D39: 应届 | E39: 塘南中学 | F39: 莲塘四中 | G39: 塘南镇 | H39: 90 | I39: 李科镓 | J39: 女 | K39: 小教 | L39: 塘南镇 | M39: 515小学教育班 | N39: 15170451796 | O39: 江西省南昌市南昌县塘南镇西联村 | P39: 陈婧婷 | Q39: 15970635576
A40: 37 | B40: 梅梦丹 | C40: 女 | D40: 应届 | E40: 莲塘六中 | F40: 莲塘四中 | G40: 塘南镇 | H40: 86.45 | I40: 梅梦丹 | J40: 女 | K40: 小教 | L40: 塘南镇 | M40: 515小学教育班 | N40: 15270825731 | O40: 南昌县小蓝经开区金沙四路 | P40: 陈婧婷 | Q40: 15970635576
A41: 38 | B41: 杨文兰 | C41: 女 | D41: 应届 | E41: 蒋巷二中 | F41: 莲塘四中 | G41: 塘南镇 | H41: 84.6 | I41: 杨文兰 | J41: 女 | K41: 小教 | L41: 塘南镇 | M41: 515小学教育班 | N41: 13870686920 | O41: 江西省南昌市南昌县蒋巷镇蒋巷街东路 | P41: 陈婧婷 | Q41: 15970635576
A42: 39 | B42: 宗欣 | C42: 女 | D42: 应届 | E42: 莲塘五中 | F42: 莲塘四中 | G42: 塘南镇 | H42: 81.25 | I42: 宗欣 | J42: 女 | K42: 小教 | L42: 塘南镇 | M42: 515小学教育班 | N42: 18296155970 | O42: 江西省南昌县莲塘镇莲塘二中 | P42: 陈婧婷 | Q42: 15970635576
A43: 40 | B43: 周雯蕙 | C43: 女 | D43: 应届 | E43: 莲塘六中 | F43: 莲塘四中 | G43: 塘南镇 | H43: 79.1 | I43: 周雯蕙 | J43: 女 | K43: 小教 | L43: 塘南镇 | M43: 515小学教育班 | N43: 15907001720 | O43: 江西省南昌市莲塘镇体育馆小区四栋 | P43: 陈婧婷 | Q43: 15970635576
A44: 41 | B44: 陶然然 | C44: 女 | D44: 应届 | E44: 塘南中学 | F44: 莲塘四中 | G44: 塘南镇 | H44: 78.4 | I44: 陶然然 | J44: 女 | K44: 小教 | L44: 塘南镇 | M44: 515小学教育班 | N44: 15797652724 | O44: 江西省南昌市南昌县塘南镇近港村 | P44: 陈婧婷 | Q44: 15970635576
A45: 4 | B45: 万思琦 | C45: 女 | D45: 应届 | E45: 武阳中学 | F45: 诚义学校 | G45: 幽兰镇 | H45: 82.3 | I45: 万思琦 | J45: 女 | K45: 小教 | L45: 幽兰镇 | M45: 515小学教育班 | N45: 15180485696 | O45: 江西省南昌市南昌县武阳镇谌山自然村 | P45: 陈婧婷 | Q45: 15970635576
A46: 5 | B46: 杨帅 | C46: 女 | D46: 应届 | E46: 广福中学 | F46: 诚义学校 | G46: 幽兰镇 | H46: 78.25 | I46: 杨帅 | J46: 女 | K46: 小教 | L46: 幽兰镇 | M46: 515小学教育班 | N46: 15170415057 | O46: 江西省南昌市南昌县莲塘镇锦绣365 | P46: 陈婧婷 | Q46: 15970635576
A47: 12 | B47: 詹诗颖 | C47: 女 | D47: 应届 | E47: 黄马中学 | F47: 洪范学校 | G47: 幽兰镇 | H47: 79.55 | I47: 詹诗颖 | J47: 女 | K47: 小教 | L47: 幽兰镇 | M47: 515小学教育班 | N47: 18296150636 | O47: 南昌县莲塘北大道1588号仁兴现代城10栋2单元302室 | P47: 陈婧婷 | Q47: 15970635576
A48: 13 | B48: 刘阳 | C48: 男 | D48: 应届 | E48: 幽兰中学 | F48: 洪范学校 | G48: 幽兰镇 | H48: 75.2 | I48: 刘阳 | J48: 男 | K48: 小教 | L48: 幽兰镇 | M48: 515小学教育班 | N48: 15979143556 | O48: 江西省南昌市南昌县幽兰镇胡陶刘村 | P48: 陈婧婷 | Q48: 15970635576
A49: 21 | B49: 刘思敏 | C49: 女 | D49: 应届 | E49: 蒋巷二中 | F49: 洪燕学校 | G49: 幽兰镇 | H49: 89.2 | I49: 刘思敏 | J49: 女 | K49: 小教 | L49: 幽兰镇 | M49: 515小学教育班 | N49: 13027205602 | O49: 江西省南昌市南昌县蒋巷镇中心小学老师小区 | P49: 陈婧婷 | Q49: 15970635576
A50: 22 | B50: 张笑 | C50: 女 | D50: 应届 | E50: 武阳中学 | F50: 洪燕学校 | G50: 幽兰镇 | H50: 83.85 | I50: 张笑 | J50: 女 | K50: 小教 | L50: 幽兰镇 | M50: 515小学教育班 | N50: 15979178433 | O50: 江西省南昌市南昌县武阳镇聚龙小区 | P50: 陈婧婷 | Q50: 15970635576
A51: 32 | B51: 喻璜莹 | C51: 女 | D51: 应届 | E51: 莲塘六中 | F51: 莲塘三小 | G51: 幽兰镇 | H51: 80.75 | I51: 喻璜莹 | J51: 女 | K51: 小教 | L51: 幽兰镇 | M51: 515小学教育班 | N51: 18970960009 | O51: 南昌县莲塘镇澄湖北大道都市晴园8栋 | P51: 陈婧婷 | Q51: 15970635576
A52: 35 | B52: 陶佳琪 | C52: 女 | D52: 应届 | E52: 莲塘六中 | F52: 莲塘四小 | G52: 幽兰镇 | H52: 79.65 | I52: 陶佳琪 | J52: 女 | K52: 小教 | L52: 幽兰镇 | M52: 515小学教育班 | N52: 15270906858 | O52: 江西省南昌市南昌县莲塘镇莲糖中大道 | P52: 陈婧婷 | Q52: 15970635576

Sheet G 2016定向师范生75人（实习） (hidden)
A1: 2016定向师范实习生分配至实习学校情况表
A2: 序号 | B2: 实习学校名称 | C2: 实习人数
A3: 1 | B3: 诚义学校 | C3: 9
A4: 2 | B4: 斗柏路小学 | C4: 2
A5: 3 | B5: 芳草学校 | C5: 8
A6: 4 | B6: 洪范学校 | C6: 6
A7: 5 | B7: 洪科小学 | C7: 1
A8: 6 | B8: 洪燕学校 | C8: 9
A9: 7 | B9: 洪州汇仁学校 | C9: 2
A10: 8 | B10: 洪州学校 | C10: 3
A11: 9 | B11: 金沙路小学 | C11: 4
A12: 10 | B12: 莲塘四小 | C12: 3
A13: 11 | B13: 莲塘四中 | C13: 5
A14: 12 | B14: 莲塘一中八一分校 | C14: 4
A15: 13 | B15: 新城学校 | C15: 9
A16: 14 | B16: 银河实验 | C16: 6
A17: 15 | B17: 振兴路小学 | C17: 1
A18: 16 | B18: 洪亿学校 | C18: 2
A19: 17 | B19: 城东学校 | C19: 2
A20: 18 | B20: 莲塘三小 | C20: 2
A21: 合计 | C21: =SUM(C3:C20) -> 78

Sheet H 2015公费师范生2人 (hidden)
A1: 附件4
A2: 江西省2020届江西师范大学公费师范毕业生就业情况表
A3: 单位：南昌县教育体育局 | J3: 2020 年 6 月 1 日
A4: 序号 | B4: 姓名 | C4: 性别 | D4: 身份证号 | E4: 生源地 | F4: 毕业院校 | G4: 就业单位 | H4: 就业单位所在县市区 | I4: 就业单位类型 | J4: 任教学科 | K4: 进入单位
A5: 1 | B5: 赵丽芳 | C5: 女 | D5: 360121199801074641 | E5: 江西省南昌市南昌县 | F5: 江西师范大学 | G5: 教体局下属县城学校 | H5: 南昌县 | I5: 初中 | J5: 思想政治教育 | K5: 莲塘二中
A6: 2 | B6: 刘丹 | C6: 女 | D6: 360121199609261922 | E6: 江西省南昌市南昌县 | F6: 江西师范大学 | G6: 教体局下属县城学校 | H6: 南昌县 | I6: 初中 | J6: 英语 | K6: 洪范学校

Sheet I 2017公费师范实习生11人（实习） (hidden)
A1: 2017公费师范实习生分配至实习学校情况表
A2: 序号 | B2: 实习学校名称 | C2: 实习人数
A3: 1 | B3: 莲塘四中 | C3: 6
A4: 2 | B4: 莲塘二中 | C4: 2
A5: 3 | B5: 洪州学校 | C5: 1
A6: 4 | B6: 诚义学校 | C6: 2
A7: 合计 | C7: =SUM(C3:C6) -> 11

Sheet 补充渠道统筹表 (hidden)
A1: 南昌县2020年中小学教师补充计划测算表 | BC1: 新开班及特殊情况增派人数 | BG1: 教师缺额+新开班及特殊情况增派人数
A2: 序号 | D2: 学校名称 | E2: 类别 | H2: 参数（计算：教师需求数） | P2: 教师需求数 | T2: 参数（计算：现有教师数） | AU2: 现有教师数 | AW2: 教师需求数-现有教师数=教师缺额
A3: 总排序 | B3: 排序 （合并九年一贯制） | C3: 学校编号 | D3: 学校名称 | E3: 学段 （合并九年一贯制） | F3: 学段 | G3: 类别 | H3: 学生数 | J3: 班级数 | L3: 其中： 教学点班级数 | N3: 行政教辅人员 | P3: 教师需求数 （已计入村小计算机管理员，不含行政教辅人员） | Q3: 教师需求数 （合并九年一贯制） | R3: 教师需求数 （加行政教辅人员） | S3: 教师需求数 （去除函数） | T3: 编制册 | U3: 全省选调 | V3: 全省统招 | W3: 中央特岗 | AA3: 定向师范 | AH3: 公费师范生 | AI3: 三支一扶 | AM3: 县内选调 | AN3: 幼儿园转岗任教 | AO3: 轮岗交流人数 | AQ3: 请假人数 | AS3: 退休人数 | AU3: 现有教师数 | AV3: 现有教师数 （合并九年一贯制） | AW3: 教师缺额 （合并九年一贯制） | AX3: 教师缺额 （负数清零） | AY3: 教师缺额 （粘贴为数值） | AZ3: 教师缺额 （剔除高中） | BA3: 教师缺额 （人工微调） | BC3: 情况说明 | BD3: 拟增加 | BE3: 新开班及特殊情况实际增派人数 | BG3: 申报补充 （小学） | BH3: 申报补充 （初中） | BI3: 申报补充总计 （小学+初中） | BJ3: 缺额+新开班
H4: 2019年秋季学生数 （统计表） | I4: 2019年秋季学生数 （合并九年一贯制） | J4: 2019年秋季班级数 （统计表） | K4: 2019年秋季班级数 （扣除教学点班级数） | L4: 教学点个数 （统计表） | M4: 教学点班级数 （统计表） | N4: 行政教辅人员 | O4: 行政教辅人员 （合并九年一贯制） | T4: 在编教师数 （编制册） | U4: 2019全省选调91人（邓） | V4: 2019全省统招312人（邓） | W4: 2016特岗教师51人（邓） | X4: 2017特岗教师76人（邓） | Y4: 2018特岗教师48人（邓） | Z4: 2019特岗教师127人（邓） | AA4: 2019定向师范毕业48人（邓） | AB4: 2015招录定向师范毕业生50人（邓） | AC4: 2016招录定向师范毕业生76人（邓） | AD4: 2017招录定向师范毕业生77人（邓） | AE4: 2018招录定向师范毕业生73人（邓） | AF4: 2019招录定向师范毕业生79人（邓） | AG4: 2015-2019年招录定向师范毕业生355人（邓） | AH4: 2019公费师范毕业生23人（邓） | AI4: 2016三支一扶介绍信6人（邓） | AJ4: 2017三支一扶介绍信9人（邓） | AK4: 2018三支一扶介绍信10人（邓） | AL4: 2019三支一扶介绍信15人（邓） | AM4: 2019县内选调（邓） | AN4: 编外幼儿园转岗任教小学教师人数 | AO4: 交流接收人数 | AP4: 交流流出人数 | AQ4: 长期病假且已执行病假工资人数 | AR4: 停职领办创办企业未到返岗期人数（2021年8月31日） | AS4: 2020年1月1日至2020年12月31日退休人数 | AT4: 2021年1月1日至2020年8月31日退休人数
T5: 1 | U5: 7 | V5: 2 | W5: 3 | X5: 4 | Y5: 5 | Z5: 6 | AA5: 10 | AB5: 11 | AH5: 9 | AK5: 12 | AL5: 13 | AM5: 8
A6: 1 | B6: 1 | C6: 1 | D6: 南新中小 | E6: 小学 | F6: 小学 | G6: 乡镇中心小学 | H6: 1722 | I6: 1722 | J6: 78 | K6: =J6-M6 -> 73 | L6: 2 | M6: 5 | N6: 3 | O6: 3 | P6: =K6*2+M6*1.5+L6 -> 155.5 | Q6: 155.5 | R6: =O6+Q6 -> 158.5 | S6: 159 | T6: 192 | U6: 3 | W6: 5 | X6: 6 | Y6: 2 | Z6: 5 | AA6: 9 | AB6: 8 | AC6: 8 | AD6: 14 | AE6: 10 | AF6: 9 | AG6: =SUM(AB6:AF6) -> 49 | AI6: 1 | AJ6: 2 | AK6: 1 | AL6: 1 | AM6: -2 | AN6: 0 | AO6: 1 | AP6: -34 | AQ6: -1 | AR6: -1 | AS6: -6 | AT6: -9 | AU6: =T6+U6+V6+W6+X6+Y6+Z6+AA6+AB6+AH6+AK6+AL6+AM6+AN6+AO6+AP6+AQ6+AR6+AS6+AT6 -> 180 | AV6: 180 | AW6: =S6-AV6 -> -22 | AX6: 0 | AY6: 0 | AZ6: 0 | BA6: 0 | BG6: 9 | BI6: =BG6+BH6 -> 9 | BJ6: =BA6+BE6 -> 0
A7: 2 | B7: 2 | C7: 2 | D7: 蒋巷中小 | E7: 小学 | F7: 小学 | G7: 乡镇中心小学 | H7: 5113 | I7: 5113 | J7: 127 | K7: 120 | L7: 4 | M7: 7 | N7: 7 | O7: 7 | P7: =K7*2+M7*1.5+L7 -> 254.5 | Q7: 254.5 | R7: 261.5 | S7: 262 | T7: 235 | U7: 6 | W7: 7 | Y7: 5 | Z7: 16 | AA7: 10 | AB7: 8 | AC7: 11 | AD7: 15 | AE7: 11 | AF7: 12 | AG7: 57 | AI7: 1 | AK7: 2 | AL7: 5 | AM7: -2 | AN7: 0 | AO7: 2 | AP7: -22 | AQ7: 0 | AR7: 0 | AS7: -12 | AT7: -2 | AU7: =T7+U7+V7+W7+X7+Y7+Z7+AA7+AB7+AH7+AK7+AL7+AM7+AN7+AO7+AP7+AQ7+AR7+AS7+AT7 -> 258 | AV7: 258 | AW7: 4 | AX7: 4 | AY7: 4 | AZ7: 4 | BA7: 4 | BG7: 24 | BI7: 24 | BJ7: =BA7+BE7 -> 4
A8: 3 | B8: 3 | C8: 3 | D8: 塘南中小 | E8: 小学 | F8: 小学 | G8: 乡镇中心小学 | H8: 1682 | I8: 1682 | J8: 101 | K8: 96 | L8: 2 | M8: 5 | N8: 3 | O8: 3 | P8: 201.5 | Q8: 201.5 | R8: 204.5 | S8: 205 | T8: 172 | U8: 3 | W8: 8 | X8: 12 | Y8: 2 | Z8: 9 | AA8: 10 | AB8: 8 | AC8: 10 | AD8: 13 | AE8: 9 | AF8: 9 | AG8: 49 | AJ8: 2 | AM8: -3 | AO8: 2 | AP8: -25 | AR8: -1 | AS8: -1 | AT8: -3 | AU8: 193 | AV8: 193 | AW8: 12 | AX8: 12 | AY8: 12 | AZ8: 12 | BA8: 6 | BG8: 23 | BI8: 23 | BJ8: 6
A9: 4 | B9: 4 | C9: 4 | D9: 泾口中小 | E9: 小学 | F9: 小学 | G9: 乡镇中心小学 | H9: 1565 | I9: 1565 | J9: 71 | K9: 64 | L9: 4 | M9: 7 | N9: 3 | O9: 3 | P9: 142.5 | Q9: 142.5 | R9: 145.5 | S9: 146 | T9: 177 | U9: 3 | W9: 5 | X9: 5 | Y9: 2 | Z9: 2 | AA9: 9 | AB9: 8 | AC9: 10 | AD9: 15 | AE9: 12 | AF9: 9 | AG9: 54 | AI9: 1 | AJ9: 1 | AM9: -3 | AN9: 1 | AO9: 1 | AP9: -31 | AQ9: 0 | AR9: 0 | AS9: -6 | AT9: -2 | AU9: 171 | AV9: 171 | AW9: -26 | AX9: 0 | AY9: 0 | AZ9: 0 | BA9: 0 | BG9: 6 | BI9: 6 | BJ9: 0
A10: 5 | B10: 5 | C10: 5 | D10: 塔城中小 | E10: 小学 | F10: 小学 | G10: 乡镇中心小学 | H10: 832 | I10: 832 | J10: 24 | K10: 24 | N10: 3 | O10: 3 | P10: 48 | Q10: 48 | R10: 51 | S10: 51 | T10: 87 | W10: 1 | Z10: 2 | AM10: -2 | AN10: 0 | AO10: 0 | AP10: -10 | AQ10: -2 | AR10: 0 | AS10: -7 | AT10: -4 | AU10: 65 | AV10: 65 | AW10: -14 | AX10: 0 | AY10: 0 | AZ10: 0 | BA10: 0 | BI10: 0 | BJ10: 0
A11: 6 | B11: 6 | C11: 6 | D11: 武阳中小 | E11: 小学 | F11: 小学 | G11: 乡镇中心小学 | H11: 2263 | I11: 2263 | J11: 54 | K11: 54 | N11: 5 | O11: 5 | P11: 108 | Q11: 108 | R11: 113 | S11: 113 | T11: 147 | V11: 2 | W11: 3 | X11: 10 | Y11: 1 | Z11: 3 | AC11: 2 | AG11: =SUM(AB11:AF11) -> 2 | AJ11: 2 | AK11: 1 | AN11: 3 | AO11: 3 | AP11: -27 | AQ11: 0 | AR11: -1 | AS11: -5 | AT11: -3 | AU11: 137 | AV11: 137 | AW11: -24 | AX11: 0 | AY11: 0 | AZ11: 0 | BA11: 0 | BG11: 0 | BI11: 0 | BJ11: 0
A12: 7 | B12: 7 | C12: 7 | D12: 向塘中小 | E12: 小学 | F12: 小学 | G12: 乡镇中心小学 | H12: 3256 | I12: 3256 | J12: 115 | K12: 115 | N12: 7 | O12: 7 | P12: 230 | Q12: 230 | R12: 237 | S12: 237 | T12: 211 | U12: 3 | V12: 2 | W12: 4 | Y12: 6 | Z12: 2 | AC12: 8 | AF12: 5 | AG12: 13 | AL12: 2 | AM12: -1 | AN12: 8 | AO12: 3 | AP12: -18 | AQ12: -2 | AR12: -1 | AS12: -5 | AT12: -4 | AU12: 210 | AV12: 210 | AW12: 27 | AX12: 27 | AY12: 27 | AZ12: 27 | BA12: 11 | BG12: 44 | BI12: 44 | BJ12: 11
A13: 8 | B13: 8 | C13: 8 | D13: 黄马中小 | E13: 小学 | F13: 小学 | G13: 乡镇中心小学 | H13: 856 | I13: 856 | J13: 53 | K13: 27 | L13: 6 | M13: 26 | N13: 3 | O13: 3 | P13: 99 | Q13: 99 | R13: 102 | S13: 102 | T13: 138 | X13: 5 | Y13: 2 | Z13: 3 | AB13: 4 | AC13: 9 | AE13: 10 | AF13: 6 | AG13: 29 | AM13: -3 | AN13: 0 | AO13: 2 | AP13: -18 | AQ13: 0 | AR13: 0 | AS13: -4 | AT13: -2 | AU13: 127 | AV13: 127 | AW13: -25 | AX13: 0 | AY13: 0 | AZ13: 0 | BA13: 0 | BG13: 0 | BI13: 0 | BJ13: 0
A14: 9 | B14: 9 | C14: 9 | D14: 三江中小 | E14: 小学 | F14: 小学 | G14: 乡镇中心小学 | H14: 1500 | I14: 1500 | J14: 42 | K14: 18 | L14: 8 | M14: 24 | N14: 3 | O14: 3 | P14: 80 | Q14: 80 | R14: 83 | S14: 83 | T14: 118 | U14: 2 | X14: 2 | Y14: 4 | Z14: 5 | AB14: 3 | AC14: 6 | AD14: 10 | AE14: 8 | AF14: 8 | AG14: 35 | AM14: -1 | AO14: 1 | AP14: -21 | AS14: -7 | AT14: -7 | AU14: 99 | AV14: 99 | AW14: -16 | AX14: 0 | AY14: 0 | AZ14: 0 | BA14: 0 | BG14: 0 | BI14: 0 | BJ14: 0
A15: 10 | B15: 10 | C15: 10 | D15: 冈上中小 | E15: 小学 | F15: 小学 | G15: 乡镇中心小学 | H15: 1658 | I15: 1658 | J15: 63 | K15: 63 | N15: 3 | O15: 3 | P15: 126 | Q15: 126 | R15: 129 | S15: 129 | T15: 133 | W15: 1 | X15: 5 | Y15: 3 | Z15: 7 | AF15: 5 | AG15: 5 | AM15: -1 | AN15: 0 | AO15: 1 | AP15: -22 | AQ15: 0 | AR15: 0 | AS15: -3 | AT15: -3 | AU15: 121 | AV15: 121 | AW15: 8 | AX15: 8 | AY15: 8 | AZ15: 8 | BA15: 8 | BG15: 8 | BI15: 8 | BJ15: 8
A16: 11 | B16: 11 | C16: 11 | D16: 广福中小 | E16: 小学 | F16: 小学 | G16: 乡镇中心小学 | H16: 2154 | I16: 2154 | J16: 92 | K16: 92 | N16: 5 | O16: 5 | P16: 184 | Q16: 184 | R16: 189 | S16: 189 | T16: 157 | U16: 5 | X16: 14 | Y16: 3 | Z16: 16 | AB16: 3 | AC16: 3 | AD16: 10 | AE16: 10 | AF16: 8 | AG16: 34 | AJ16: 2 | AL16: 4 | AM16: -4 | AN16: 3 | AO16: 3 | AP16: -29 | AQ16: 0 | AR16: -1 | AS16: -5 | AT16: -4 | AU16: 165 | AV16: 165 | AW16: 24 | AX16: 24 | AY16: 24 | AZ16: 24 | BA16: 9 | BG16: 22 | BI16: 22 | BJ16: 9
A17: 12 | B17: 12 | C17: 12 | D17: 富山中小 | E17: 小学 | F17: 小学 | G17: 乡镇中心小学 | H17: 2000 | I17: 2000 | J17: 84 | K17: 84 | N17: 5 | O17: 5 | P17: 168 | Q17: 168 | R17: 173 | S17: 173 | T17: 131 | V17: 7 | W17: 3 | X17: 8 | Y17: 5 | Z17: 6 | AM17: -3 | AN17: 2 | AO17: 1 | AP17: -20 | AS17: -8 | AT17: -5 | AU17: 127 | AV17: 127 | AW17: 46 | AX17: 46 | AY17: 46 | AZ17: 46 | BA17: 10 | BG17: 48 | BI17: 48 | BJ17: 10
A18: 13 | B18: 13 | C18: 13 | D18: 东新中小 | E18: 小学 | F18: 小学 | G18: 乡镇中心小学 | H18: 1769 | I18: 1769 | J18: 45 | K18: 45 | N18: 3 | O18: 3 | P18: 90 | Q18: 90 | R18: 93 | S18: 93 | T18: 92 | V18: 15 | W18: 3 | X18: 3 | Y18: 4 | Z18: 3 | AN18: 0 | AO18: 4 | AP18: -7 | AR18: -2 | AS18: -4 | AT18: -1 | AU18: 110 | AV18: 110 | AW18: -17 | AX18: 0 | AY18: 0 | AZ18: 0 | BA18: 0 | BG18: 20 | BI18: 20 | BJ18: 0
A19: 14 | B19: 14 | C19: 14 | D19: 八一中小 | E19: 小学 | F19: 小学 | G19: 乡镇中心小学 | H19: 1410 | I19: 1410 | J19: 64 | K19: 54 | L19: 2 | M19: 10 | N19: 3 | O19: 3 | P19: 125 | Q19: 125 | R19: 128 | S19: 128 | T19: 135 | W19: 2 | Y19: 2 | Z19: 5 | AN19: 1 | AO19: 2 | AP19: -18 | AQ19: 0 | AR19: 0 | AS19: -4 | AT19: -2 | AU19: 123 | AV19: 123 | AW19: 5 | AX19: 5 | AY19: 5 | AZ19: 5 | BA19: 3 | BG19: 4 | BI19: 4 | BJ19: 3
A20: 15 | B20: 15 | C20: 15 | D20: 莲塘中小 | E20: 小学 | F20: 小学 | G20: 县直学校 | H20: 1848 | I20: 1848 | J20: 40 | K20: 40 | N20: 3 | O20: 5 | P20: 80 | Q20: 80 | R20: 85 | S20: 85 | T20: 73 | V20: 10 | AN20: 0 | AO20: 6 | AP20: -6 | AQ20: 0 | AR20: 0 | AS20: -1 | AT20: -1 | AU20: 81 | AV20: 81 | AW20: 4 | AX20: 4 | AY20: 4 | AZ20: 4 | BA20: 4 | BG20: 14 | BI20: 14 | BJ20: 4
A21: 16 | B21: 16 | C21: 16 | D21: 莲塘一小 | E21: 小学 | F21: 小学 | G21: 县直学校 | H21: 3961 | I21: 3961 | J21: 69 | K21: 69 | N21: 9 | O21: 9 | P21: 138 | Q21: 138 | R21: 147 | S21: 147 | T21: 161 | V21: 2 | AO21: 14 | AP21: -16 | AS21: -1 | AT21: -3 | AU21: 157 | AV21: 157 | AW21: -10 | AX21: 0 | AY21: 0 | AZ21: 0 | BA21: 0 | BG21: 6 | BI21: 6 | BJ21: 0
A22: 17 | B22: 17 | C22: 17 | D22: 莲塘二小 | E22: 小学 | F22: 小学 | G22: 县直学校 | H22: 3446 | I22: 3446 | J22: 54 | K22: 54 | N22: 9 | O22: 9 | P22: 108 | Q22: 108 | R22: 117 | S22: 117 | T22: 116 | V22: 4 | AN22: 0 | AO22: 19 | AP22: -2 | AQ22: 0 | AR22: -1 | AS22: -2 | AT22: -3 | AU22: 131 | AV22: 131 | AW22: -14 | AX22: 0 | AY22: 0 | AZ22: 0 | BA22: 0 | BG22: 0 | BI22: 0 | BJ22: 0
A23: 18 | B23: 18 | C23: 18 | D23: 莲塘三小 | E23: 小学 | F23: 小学 | G23: 县直学校 | H23: 5250 | I23: 5250 | J23: 82 | K23: 82 | N23: 9 | O23: 9 | P23: 164 | Q23: 164 | R23: 173 | S23: 173 | T23: 202 | V23: 1 | AN23: 1 | AO23: 26 | AP23: -25 | AU23: 205 | AV23: 205 | AW23: -32 | AX23: 0 | AY23: 0 | AZ23: 0 | BA23: 0 | BG23: 0 | BI23: 0 | BJ23: 0
A24: 19 | B24: 19 | C24: 19 | D24: 莲塘四小 | E24: 小学 | F24: 小学 | G24: 县直学校 | H24: 2851 | I24: 2851 | J24: 44 | K24: 44 | N24: 7 | O24: 7 | P24: 88 | Q24: 88 | R24: 95 | S24: 95 | T24: 71 | V24: 2 | AN24: 0 | AO24: 36 | AP24: -10 | AQ24: 0 | AR24: -1 | AS24: 0 | AT24: 0 | AU24: 98 | AV24: 98 | AW24: -3 | AX24: 0 | AY24: 0 | AZ24: 0 | BA24: 0 | BG24: 22 | BI24: 22 | BJ24: 0
A25: 20 | B25: 20 | C25: 20 | D25: 特殊教育学校 | E25: 特殊教育 | F25: 特殊教育 | G25: 县直学校 | H25: 76 | I25: 76 | J25: 7 | K25: 7 | N25: 3 | O25: 3 | P25: 14 | Q25: 14 | R25: 17 | S25: 17 | T25: 18 | AN25: 0 | AO25: 4 | AP25: -6 | AQ25: 0 | AR25: 0 | AS25: -1 | AT25: -1 | AU25: 14 | AV25: 14 | AW25: 3 | AX25: 0 | AY25: 0 | AZ25: 0 | BA25: 0 | BD25: 1 | BE25: 1 | BI25: 0 | BJ25: 1
A26: 21 | B26: 25 | C26: 25 | D26: 莲塘实验学校（小学） | E26: 县直九年一贯制学校 | F26: 小学 | G26: 县直学校 | H26: 402 | I26: 554 | J26: 7 | K26: 7 | N26: 3 | O26: 3 | P26: 14 | Q26: 22.4 | R26: 25.4 | S26: 25 | T26: 19 | AN26: 0 | AO26: 2 | AP26: 0 | AQ26: 0 | AR26: 0 | AS26: 0 | AT26: 0 | AU26: 21 | AV26: 31 | AW26: -6 | AX26: 0 | AY26: 0 | AZ26: 0 | BA26: 0 | BI26: 0 | BJ26: 0
A27: 23 | B27: 26 | C27: 26 | D27: 昌南实验学校（小学） | E27: 县直九年一贯制学校 | F27: 小学 | G27: 县直学校 | H27: 378 | I27: 603 | J27: 7 | K27: 7 | N27: 3 | O27: 3 | P27: 14 | Q27: 30.8 | R27: 33.8 | S27: 34 | T27: 22 | V27: 2 | AO27: 2 | AP27: -5 | AU27: 21 | AV27: 37 | AW27: -3 | AX27: 0 | AY27: 0 | AZ27: 0 | BA27: 0 | BG27: 4 | BH27: 2 | BI27: 6 | BJ27: 0
A28: 25 | B28: 27 | C28: 27 | D28: 黄马凤凰沟实验学校（小学） | E28: 乡镇九年一贯制学校 | F28: 小学 | G28: 乡镇中心小学 | H28: 219 | I28: 311 | J28: 6 | K28: 6 | N28: 3 | O28: 3 | P28: 12 | Q28: 20.4 | R28: 23.4 | S28: 23 | T28: 13 | Z28: 1 | AM28: -1 | AU28: 13 | AV28: 25 | AW28: -2 | AX28: 0 | AY28: 0 | AZ28: 0 | BA28: 0 | BH28: 2 | BI28: 2 | BJ28: 0
A29: 27 | B29: 28 | C29: 28 | D29: 银三角实验学校（小学） | E29: 县直九年一贯制学校 | F29: 小学 | G29: 县直学校 | H29: 863 | I29: 1240 | J29: 18 | K29: 18 | N29: 3 | O29: 5 | P29: 36 | Q29: 61.2 | R29: 66.2 | S29: 66 | T29: 33 | U29: 2 | V29: 10 | AN29: 0 | AO29: 2 | AP29: -1 | AQ29: 0 | AR29: 0 | AS29: -3 | AT29: 0 | AU29: 43 | AV29: 68 | AW29: -2 | AX29: 0 | AY29: 0 | AZ29: 0 | BA29: 0 | BI29: 0 | BJ29: 0
A30: 29 | B30: 29 | C30: 29 | D30: 县中专 | E30: 县中专 | F30: 县中专 | G30: 县直学校 | H30: 2348 | I30: 2348 | K30: 0 | N30: 7 | O30: 7 | P30: 0 | R30: 7 | S30: 0 | T30: 26 | AO30: 18 | AP30: -2 | AQ30: 0 | AR30: 0 | AS30: -1 | AT30: -1 | AU30: 40 | AV30: 40 | AW30: -40 | AX30: 0 | AY30: 0 | AZ30: 0 | BA30: 0 | BI30: 0 | BJ30: 0
A31: 30 | B31: 30 | C31: 30 | D31: 金沙路小学 | E31: 小学 | F31: 小学 | G31: 县直学校 | H31: 3606 | I31: 3606 | J31: 58 | K31: 58 | N31: 9 | O31: 9 | P31: 116 | Q31: 116 | R31: 125 | S31: 125 | T31: 126 | U31: 4 | V31: 6 | AM31: 2 | AO31: 5 | AP31: -6 | AS31: -1 | AU31: 136 | AV31: 136 | AW31: -11 | AX31: 0 | AY31: 0 | AZ31: 0 | BA31: 0 | BD31: 9 | BE31: 9 | BG31: 33 | BI31: 33 | BJ31: 9
A32: 31 | B32: 31 | C32: 31 | D32: 振兴路小学 | E32: 小学 | F32: 小学 | G32: 县直学校 | H32: 3882 | I32: 3882 | J32: 59 | K32: 59 | N32: 9 | O32: 9 | P32: 118 | Q32: 118 | R32: 127 | S32: 127 | T32: 109 | U32: 4 | V32: 2 | AN32: 1 | AO32: 15 | AP32: -5 | AQ32: 0 | AR32: 0 | AS32: -2 | AT32: -3 | AU32: 121 | AV32: 121 | AW32: 6 | AX32: 6 | AY32: 6 | AZ32: 6 | BA32: 6 | BG32: 21 | BI32: 21 | BJ32: 6
A33: 32 | B33: 32 | C33: 32 | D33: 墨山街小学 | E33: 小学 | F33: 小学 | G33: 县直学校 | H33: 719 | I33: 719 | J33: 17 | K33: 17 | N33: 3 | O33: 3 | P33: 34 | Q33: 34 | R33: 37 | S33: 37 | T33: 35 | U33: 2 | V33: 3 | AM33: 1 | AN33: 0 | AO33: 4 | AP33: -7 | AQ33: 0 | AR33: 0 | AS33: -2 | AT33: -1 | AU33: 35 | AV33: 35 | AW33: 2 | AX33: 2 | AY33: 2 | AZ33: 2 | BA33: 2 | BG33: 3 | BI33: 3 | BJ33: 2
A34: 33 | B34: 33 | C34: 33 | D34: 斗柏路小学 | E34: 小学 | F34: 小学 | G34: 县直学校 | H34: 2729 | I34: 2729 | J34: 48 | K34: 48 | N34: 7 | O34: 7 | P34: 96 | Q34: 96 | R34: 103 | S34: 103 | T34: 63 | V34: 1 | AN34: 0 | AO34: 72 | AP34: -10 | AQ34: 0 | AR34: 0 | AS34: -1 | AT34: 0 | AU34: 125 | AV34: 125 | AW34: -22 | AX34: 0 | AY34: 0 | AZ34: 0 | BA34: 0 | BD34: 1 | BE34: 1 | BG34: 4 | BI34: 4 | BJ34: 1
A35: 34 | B35: 34 | C35: 34 | D35: 南新中学 | E35: 初中 | F35: 初中 | G35: 农村初级中学 | H35: 938 | I35: 938 | J35: 18 | K35: 18 | N35: 3 | O35: 3 | P35: =K35*2.8 -> 50.4 | Q35: 50.4 | R35: 53.4 | S35: 53 | T35: 84 | Z35: 2 | AK35: 1 | AL35: 2 | AN35: 0 | AO35: 0 | AP35: -2 | AQ35: 0 | AR35: 0 | AS35: -2 | AT35: 0 | AU35: 85 | AV35: 85 | AW35: -32 | AX35: 0 | AY35: 0 | AZ35: 0 | BA35: 0 | BC35: 我校无音乐教师，因结构比例原因，申请补充1名初中音乐教师 | BD35: 1 | BE35: 1 | BH35: 1 | BI35: 1 | BJ35: 1
A36: 35 | B36: 35 | C36: 35 | D36: 蒋巷二中 | E36: 初中 | F36: 初中 | G36: 农村初级中学 | H36: 2588 | I36: 2588 | J36: 42 | K36: 42 | N36: 7 | O36: 7 | P36: 117.6 | Q36: 117.6 | R36: 124.6 | S36: 125 | T36: 127 | U36: 3 | Z36: 7 | AI36: 1 | AM36: -1 | AO36: 1 | AP36: -7 | AQ36: -2 | AS36: -2 | AU36: 126 | AV36: 126 | AW36: -1 | AX36: 0 | AY36: 0 | AZ36: 0 | BA36: 0 | BG36: 9 | BH36: 4 | BI36: 13 | BJ36: 0
A37: 36 | B37: 36 | C37: 36 | D37: 塘南中学 | E37: 初中 | F37: 初中 | G37: 农村初级中学 | H37: 702 | I37: 702 | J37: 12 | K37: 12 | N37: 3 | O37: 3 | P37: 33.6 | Q37: 33.6 | R37: 36.6 | S37: 37 | T37: 55 | AK37: 2 | AN37: 0 | AO37: 1 | AP37: -5 | AQ37: 0 | AR37: 0 | AS37: 0 | AT37: 0 | AU37: 53 | AV37: 53 | AW37: -16 | AX37: 0 | AY37: 0 | AZ37: 0 | BA37: 0 | BC37: 我校因教师结构性缺员，严重缺少初中数学、初中英语、初中体育等专业教师，导致很难按需求开展正常班级授课 | BD37: 3 | BE37: 2 | BH37: 3 | BI37: 3 | BJ37: 2
A38: 37 | B38: 37 | C38: 37 | D38: 新联学校（小学） | E38: 乡镇九年一贯制学校 | F38: 小学 | G38: 乡镇中心小学 | H38: 344 | I38: 651 | J38: 20 | K38: 20 | N38: 3 | O38: 3 | P38: =K38*2+M38*1.5+L38 -> 40 | Q38: 65.2 | R38: 68.2 | S38: 68 | T38: 39 | X38: 6 | Y38: 1 | Z38: 8 | AE38: 3 | AF38: 5 | AG38: =SUM(AB38:AF38) -> 8 | AN38: 0 | AO38: 0 | AP38: -4 | AQ38: 0 | AR38: 0 | AS38: -2 | AT38: 0 | AU38: 48 | AV38: 72 | AW38: -4 | AX38: 0 | AY38: 0 | AZ38: 0 | BA38: 0 | BH38: 6 | BI38: 6 | BJ38: 0
A39: 39 | B39: 38 | C39: 38 | D39: 泾口中学 | E39: 初中 | F39: 初中 | G39: 农村初级中学 | H39: 551 | I39: 551 | J39: 12 | K39: 12 | N39: 3 | O39: 3 | P39: =K39*2.8 -> 33.6 | Q39: 33.6 | R39: 36.6 | S39: 37 | T39: 83 | AK39: 1 | AO39: 1 | AP39: -6 | AS39: -1 | AU39: 78 | AV39: 78 | AW39: -41 | AX39: 0 | AY39: 0 | AZ39: 0 | BA39: 0 | BH39: 5 | BI39: 5 | BJ39: =BA39+BE39 -> 0
A40: 40 | B40: 39 | C40: 39 | D40: 幽兰学校（小学） | E40: 乡镇九年一贯制学校 | F40: 小学 | G40: 乡镇中心小学 | H40: 513 | I40: 868 | J40: 20 | K40: 20 | N40: 3 | O40: 3 | P40: 40 | Q40: 62.4 | R40: 65.4 | S40: 65 | T40: 107 | W40: 9 | AA40: 5 | AB40: 4 | AC40: 9 | AG40: 13 | AM40: -1 | AO40: 2 | AP40: -16 | AS40: -5 | AT40: -1 | AU40: 104 | AV40: 148 | AW40: -83 | AX40: 0 | AY40: 0 | AZ40: 0 | BA40: 0 | BH40: 0 | BI40: 0 | BJ40: 0
A41: 42 | B41: 40 | C41: 40 | D41: 渡头学校（小学） | E41: 乡镇九年一贯制学校 | F41: 小学 | G41: 乡镇中心小学 | H41: 603 | I41: 886 | J41: 23 | K41: 17 | L41: 5 | M41: 6 | N41: 3 | O41: 3 | P41: 48 | Q41: 67.6 | R41: 70.6 | S41: 71 | T41: 75 | AA41: 5 | AB41: 4 | AG41: 4 | AM41: -3 | AN41: 0 | AO41: 0 | AP41: -21 | AQ41: 0 | AR41: 0 | AS41: 0 | AT41: 0 | AU41: 60 | AV41: 105 | AW41: -34 | AX41: 0 | AY41: 0 | AZ41: 0 | BA41: 0 | BH41: 0 | BI41: 0 | BJ41: 0
A42: 44 | B42: 41 | C42: 41 | D42: 塔城中学 | E42: 初中 | F42: 初中 | G42: 农村初级中学 | H42: 350 | I42: 350 | J42: 9 | K42: 9 | N42: 3 | O42: 3 | P42: 25.2 | Q42: 25.2 | R42: 28.2 | S42: 28 | T42: 50 | AI42: 1 | AM42: -1 | AP42: -10 | AR42: -2 | AS42: -1 | AU42: 36 | AV42: 36 | AW42: -8 | AX42: 0 | AY42: 0 | AZ42: 0 | BA42: 0 | BC42: 因农村中学教师年龄结构偏大，学校数学教师结构性缺少。因此2020年申请补充初中数学教师1人。 | BD42: 1 | BE42: 1 | BH42: 1 | BI42: 1 | BJ42: 1
A43: 45 | B43: 42 | C43: 42 | D43: 武阳中学 | E43: 初中 | F43: 初中 | G43: 农村初级中学 | H43: 1489 | I43: 1489 | J43: 28 | K43: 28 | N43: 5 | O43: 5 | P43: 78.4 | Q43: 78.4 | R43: 83.4 | S43: 83 | T43: 76 | U43: 1 | V43: 5 | AK43: 1 | AM43: -1 | AO43: 2 | AP43: -4 | AS43: -1 | AT43: -1 | AU43: 78 | AV43: 78 | AW43: 5 | AX43: 5 | AY43: 6 | AZ43: 6 | BA43: 6 | BH43: 12 | BI43: 12 | BJ43: 6
A44: 46 | B44: 43 | C44: 43 | D44: 向塘二中 | E44: 初中 | F44: 初中 | G44: 农村初级中学 | H44: 1324 | I44: 1324 | J44: 26 | K44: 26 | N44: 5 | O44: 5 | P44: 72.8 | Q44: 72.8 | R44: 77.8 | S44: 78 | T44: 131 | AN44: 0 | AO44: 0 | AP44: -7 | AQ44: 0 | AR44: -1 | AS44: -6 | AT44: -3 | AU44: 114 | AV44: 114 | AW44: -36 | AX44: 0 | AY44: 0 | AZ44: 0 | BA44: 0 | BH44: 0 | BI44: 0 | BJ44: 0
A45: 47 | B45: 44 | C45: 44 | D45: 向塘实验学校（小学） | E45: 乡镇九年一贯制学校 | F45: 小学 | G45: 乡镇中心小学 | H45: 2243 | I45: 3595 | J45: 34 | K45: 34 | N45: 5 | O45: 7 | P45: =K45*2+M45*1.5+L45 -> 68 | Q45: 126.8 | R45: 133.8 | S45: 134 | T45: 98 | V45: 6 | Y45: 5 | Z45: 2 | AN45: 0 | AO45: 3 | AP45: -2 | AQ45: 0 | AR45: 0 | AS45: 0 | AT45: -3 | AU45: 109 | AV45: 192 | AW45: -58 | AX45: 0 | AY45: 0 | AZ45: 0 | BA45: 0 | BE45: 3 | BG45: 8 | BH45: 12 | BI45: 20 | BJ45: 3
A46: 49 | B46: 45 | C46: 45 | D46: 向塘向阳学校(小学） | E46: 乡镇九年一贯制学校 | F46: 小学 | G46: 乡镇中心小学 | H46: 204 | I46: 379 | J46: 14 | K46: 4 | L46: 3 | M46: 10 | N46: 3 | O46: 3 | P46: =K46*2+M46*1.5+L46 -> 26 | Q46: 42.8 | R46: 45.8 | S46: 46 | T46: 32 | Y46: 1 | Z46: 1 | AF46: 3 | AG46: =SUM(AB46:AF46) -> 3 | AN46: 0 | AO46: 0 | AP46: -5 | AQ46: 0 | AR46: 0 | AS46: 0 | AT46: 0 | AU46: 29 | AV46: 51 | AW46: -5 | AX46: 0 | AY46: 0 | AZ46: 0 | BA46: 0 | BH46: 0 | BI46: 0 | BJ46: 0
A47: 51 | B47: 46 | C47: 46 | D47: 黄马中学 | E47: 初中 | F47: 初中 | G47: 农村初级中学 | H47: 494 | I47: 494 | J47: 11 | K47: 11 | N47: 3 | O47: 3 | P47: =K47*2.8 -> 30.8 | Q47: 30.8 | R47: 33.8 | S47: 34 | T47: 52 | Z47: 1 | AM47: -1 | AO47: 1 | AP47: -1 | AS47: -1 | AT47: -1 | AU47: 50 | AV47: 50 | AW47: -16 | AX47: 0 | AY47: 0 | AZ47: 0 | BA47: 0 | BH47: 1 | BI47: 1 | BJ47: 0
A48: 52 | B48: 47 | C48: 47 | D48: 三江中学 | E48: 初中 | F48: 初中 | G48: 农村初级中学 | H48: 839 | I48: 839 | J48: 15 | K48: 15 | N48: 3 | O48: 3 | P48: 42 | Q48: 42 | R48: 45 | S48: 45 | T48: 68 | Z48: 1 | AP48: -3 | AQ48: -2 | AR48: -1 | AS48: -2 | AT48: -2 | AU48: 59 | AV48: 59 | AW48: -14 | AX48: 0 | AY48: 0 | AZ48: 0 | BA48: 0 | BH48: 5 | BI48: 5 | BJ48: 0
A49: 53 | B49: 48 | C49: 48 | D49: 广福一中 | E49: 初中 | F49: 初中 | G49: 农村初级中学 | H49: 559 | I49: 559 | J49: 12 | K49: 12 | N49: 3 | O49: 3 | P49: 33.6 | Q49: 33.6 | R49: 36.6 | S49: 37 | T49: 48 | U49: 1 | V49: 1 | Z49: 1 | AK49: 1 | AL49: 1 | AN49: 0 | AO49: 1 | AP49: -10 | AQ49: 0 | AR49: 0 | AS49: 0 | AT49: 0 | AU49: 44 | AV49: 44 | AW49: -7 | AX49: 0 | AY49: 0 | AZ49: 0 | BA49: 0 | BH49: 6 | BI49: 6 | BJ49: 0
A50: 54 | B50: 49 | C50: 49 | D50: 广福二中 | E50: 初中 | F50: 初中 | G50: 农村初级中学 | H50: 1041 | I50: 1041 | J50: 17 | K50: 17 | N50: 5 | O50: 5 | P50: 47.6 | Q50: 47.6 | R50: 52.6 | S50: 53 | T50: 53 | U50: 2 | V50: 4 | Z50: 7 | AM50: -6 | AN50: 0 | AO50: 1 | AP50: -7 | AQ50: 0 | AR50: 0 | AS50: 0 | AT50: -1 | AU50: 53 | AV50: 53 | AW50: -0 | AX50: 0 | AY50: 0 | AZ50: 0 | BA50: 0 | BC50: 因结构性缺编，特申报2020年补充教师5人。具体学科分别为:初中语文2人，初中物理2人，初中地理1人。 | BD50: 5 | BE50: 1 | BH50: 5 | BI50: 5 | BJ50: 1
A51: 55 | B51: 50 | C51: 50 | D51: 冈上中学 | E51: 初中 | F51: 初中 | G51: 农村初级中学 | H51: 533 | I51: 533 | J51: 11 | K51: 11 | N51: 3 | O51: 3 | P51: 30.8 | Q51: 30.8 | R51: 33.8 | S51: 34 | T51: 58 | AN51: 0 | AO51: 0 | AP51: -5 | AQ51: 0 | AR51: 0 | AS51: -1 | AT51: 0 | AU51: 52 | AV51: 52 | AW51: -18 | AX51: 0 | AY51: 0 | AZ51: 0 | BA51: 0 | BH51: 2 | BI51: 2 | BJ51: 0
A52: 56 | B52: 51 | C52: 51 | D52: 富山中学 | E52: 初中 | F52: 初中 | G52: 农村初级中学 | H52: 1451 | I52: 1451 | J52: 23 | K52: 23 | N52: 5 | O52: 5 | P52: 64.4 | Q52: 64.4 | R52: 69.4 | S52: 69 | T52: 97 | AO52: 1 | AP52: -14 | AQ52: 0 | AR52: -1 | AS52: 0 | AT52: -2 | AU52: 81 | AV52: 81 | AW52: -12 | AX52: 0 | AY52: 0 | AZ52: 0 | BA52: 0 | BH52: 2 | BI52: 2 | BJ52: 0
A53: 57 | B53: 52 | C53: 52 | D53: 东新中学 | E53: 初中 | F53: 初中 | G53: 农村初级中学 | H53: 1134 | I53: 1134 | J53: 21 | K53: 21 | N53: 5 | O53: 5 | P53: 58.8 | Q53: 58.8 | R53: 63.8 | S53: 64 | T53: 66 | AN53: 0 | AO53: 3 | AP53: -3 | AQ53: 0 | AR53: 0 | AS53: -1 | AT53: 0 | AU53: 65 | AV53: 65 | AW53: -1 | AX53: 0 | AY53: 0 | AZ53: 0 | BA53: 0 | BH53: 7 | BI53: 7 | BJ53: 0
A54: 58 | B54: 53 | C54: 53 | D54: 八一中学 | E54: 初中 | F54: 初中 | G54: 农村初级中学 | H54: 668 | I54: 668 | J54: 14 | K54: 14 | N54: 3 | O54: 3 | P54: 39.2 | Q54: 39.2 | R54: 42.2 | S54: 42 | T54: 97 | AN54: 0 | AO54: 0 | AP54: -11 | AQ54: 0 | AR54: -1 | AS54: -8 | AT54: -5 | AU54: 72 | AV54: 72 | AW54: -30 | AX54: 0 | AY54: 0 | AZ54: 0 | BA54: 0 | BH54: 0 | BI54: 0 | BJ54: 0
A55: 59 | B55: 54 | C55: 54 | D55: 莲塘一中 | E55: 高中 | F55: 高中 | G55: 县直学校 | H55: 4956 | I55: 4956 | J55: 86 | K55: 86 | N55: 9 | O55: 9 | P55: =H55/12.5 -> 396.48 | Q55: 396.48 | R55: 405.48 | S55: 405 | T55: 393 | AH55: 5 | AO55: 2 | AP55: -3 | AS55: -1 | AT55: -5 | AU55: 391 | AV55: 391 | AW55: 14 | AX55: 14 | AY55: 14 | BI55: 0 | BJ55: 0
A56: 60 | B56: 55 | C56: 55 | D56: 莲塘二中 | E56: 高中 | F56: 高中 | G56: 县直学校 | H56: 3367 | I56: 3367 | J56: 63 | K56: 63 | N56: 9 | O56: 9 | P56: 269.36 | Q56: 269.36 | R56: 278.36 | S56: 278 | T56: 230 | AH56: 9 | AP56: -4 | AR56: -1 | AS56: -1 | AT56: -1 | AU56: 232 | AV56: 232 | AW56: 46 | AX56: 46 | AY56: 46 | BI56: 0 | BJ56: 0
A57: 61 | B57: 56 | C57: 56 | D57: 莲塘三中 | E57: 高中 | F57: 高中 | G57: 县直学校 | H57: 3309 | I57: 3309 | J57: 52 | K57: 52 | N57: 9 | O57: 9 | P57: 264.72 | Q57: 264.72 | R57: 273.72 | S57: 274 | T57: 241 | AH57: 5 | AO57: 1 | AS57: -2 | AT57: -4 | AU57: 241 | AV57: 241 | AW57: 33 | AX57: 33 | AY57: 33 | BI57: 0 | BJ57: 0
A58: 62 | B58: 57 | C58: 57 | D58: 莲塘四中 | E58: 初中 | F58: 初中 | G58: 县直学校 | H58: 5069 | I58: 5069 | J58: 76 | K58: 76 | N58: 9 | O58: 9 | P58: =K58*2.8 -> 212.8 | Q58: 212.8 | R58: 221.8 | S58: 222 | T58: 151 | V58: 18 | AM58: 1 | AO58: 30 | AP58: -3 | AS58: -2 | AT58: -2 | AU58: 193 | AV58: 193 | AW58: 29 | AX58: 29 | AY58: 29 | AZ58: 29 | BA58: 25 | BC58: 补充计划数需+1（1人被判刑待办理下编手续） | BD58: 1 | BE58: 1 | BH58: 55 | BI58: 55 | BJ58: 26
A59: 63 | B59: 58 | C59: 58 | D59: 莲塘五中 | E59: 初中 | F59: 初中 | G59: 县直学校 | H59: 2606 | I59: 2606 | J59: 42 | K59: 42 | N59: 7 | O59: 7 | P59: 117.6 | Q59: 117.6 | R59: 124.6 | S59: 125 | T59: 133 | V59: 3 | AO59: 7 | AP59: -5 | AS59: -3 | AU59: 135 | AV59: 135 | AW59: -10 | AX59: 0 | AY59: 0 | AZ59: 0 | BA59: 0 | BH59: 12 | BI59: 12 | BJ59: 0
A60: 64 | B60: 59 | C60: 59 | D60: 莲塘六中 | E60: 初中 | F60: 初中 | G60: 县直学校 | H60: 2770 | I60: 2770 | J60: 44 | K60: 44 | N60: 7 | O60: 7 | P60: 123.2 | Q60: 123.2 | R60: 130.2 | S60: 130 | T60: 136 | V60: 5 | AO60: 9 | AP60: -1 | AS60: -3 | AT60: -3 | AU60: 143 | AV60: 143 | AW60: -13 | AX60: 0 | AY60: 0 | AZ60: 0 | BA60: 0 | BH60: 4 | BI60: 4 | BJ60: 0
A61: 65 | B61: 60 | C61: 60 | D61: 莲塘七中 | E61: 初中 | F61: 初中 | G61: 县直学校 | H61: 1877 | I61: 1877 | J61: 30 | K61: 30 | N61: 5 | O61: 5 | P61: 84 | Q61: 84 | R61: 89 | S61: 89 | T61: 109 | V61: 3 | AO61: 1 | AP61: -8 | AQ61: 0 | AR61: 0 | AS61: -2 | AT61: -2 | AU61: 101 | AV61: 101 | AW61: -12 | AX61: 0 | AY61: 0 | AZ61: 0 | BA61: 0 | BH61: 7 | BI61: 7 | BJ61: 0
A62: 66 | B62: 61 | C62: 61 | D62: 银河学校（小学） | E62: 县直九年一贯制学校 | F62: 小学 | G62: 县直学校 | H62: 2980 | I62: 4340 | J62: 48 | K62: 48 | N62: 7 | O62: 9 | P62: =K62*2+M62*1.5+L62 -> 96 | Q62: 163.2 | R62: 172.2 | S62: 172 | T62: 92 | U62: 2 | V62: 15 | AM62: 1 | AO62: 12 | AP62: -19 | AU62: 103 | AV62: 191 | AW62: -19 | AX62: 0 | AY62: 0 | AZ62: 0 | BA62: 0 | BC62: 虽现有教师数大于需求数，但因学科人数不平衡，还需申报2020年补充教师12人。 | BD62: 12 | BE62: 11 | BG62: 10 | BH62: 2 | BI62: 12 | BJ62: 11
A63: 68 | B63: 62 | C63: 62 | D63: 洪州学校(小学含莲六小） | E63: 县直九年一贯制学校 | F63: 小学 | G63: 县直学校 | H63: 3549 | I63: 5281 | J63: 57 | K63: 57 | N63: 9 | O63: 9 | P63: 114 | Q63: 192.4 | R63: 201.4 | S63: 201 | T63: 69 | V63: 5 | AN63: 0 | AO63: 49 | AP63: -2 | AQ63: 0 | AR63: -1 | AS63: 0 | AT63: 0 | AU63: 120 | AV63: 228 | AW63: -27 | AX63: 0 | AY63: 0 | AZ63: 0 | BA63: 0 | BC63: 由于化解大班额问题，故教师需求数61人。 | BD63: 34 | BE63: 28 | BG63: 56 | BH63: 5 | BI63: 61 | BJ63: 28
A64: 70 | B64: 63 | C64: 63 | D64: 新城学校（小学） | E64: 县直九年一贯制学校 | F64: 小学 | G64: 县直学校 | H64: 1743 | I64: 3106 | J64: 31 | K64: 31 | N64: 5 | O64: 9 | P64: 62 | Q64: 126.4 | R64: 135.4 | S64: 135 | T64: 53 | U64: 3 | V64: 6 | AM64: 2 | AN64: 0 | AO64: 1 | AP64: -1 | AQ64: 0 | AR64: 0 | AS64: 0 | AT64: 0 | AU64: 64 | AV64: 137 | AW64: -2 | AX64: 0 | AY64: 0 | AZ64: 0 | BA64: 0 | BC64: 小学增加9个班，初中增加4个班 | BD64: 29 | BE64: 27 | BG64: 4 | BI64: 4 | BJ64: 27
A65: 72 | B65: 64 | C65: 64 | D65: 诚义学校（小学） | E65: 县直九年一贯制学校 | F65: 小学 | G65: 县直学校 | H65: 2622 | I65: 3655 | J65: 44 | K65: 44 | N65: 7 | O65: 9 | P65: 88 | Q65: 138.4 | R65: 147.4 | S65: 147 | T65: 61 | U65: 5 | V65: 12 | AM65: 2 | AN65: 0 | AO65: 11 | AP65: -2 | AQ65: 0 | AR65: 0 | AS65: 0 | AT65: 0 | AU65: 89 | AV65: 167 | AW65: -20 | AX65: 0 | AY65: 0 | AZ65: 0 | BA65: 0 | BG65: 28 | BH65: 9 | BI65: 37 | BJ65: 0
A66: 74 | B66: 65 | C66: 65 | D66: 芳草学校（小学） | E66: 县直九年一贯制学校 | F66: 小学 | G66: 县直学校 | H66: 2222 | I66: 2934 | J66: 42 | K66: 42 | N66: 7 | O66: 7 | P66: 84 | Q66: 120.4 | R66: 127.4 | S66: 127 | T66: 72 | U66: 3 | V66: 10 | AM66: 1 | AO66: 8 | AU66: 94 | AV66: 149 | AW66: -22 | AX66: 0 | AY66: 0 | AZ66: 0 | BA66: 0 | BG66: 8 | BH66: 18 | BI66: 26 | BJ66: 0
A67: 76 | B67: 66 | C67: 66 | D67: 洪州汇仁学校(小学） | E67: 县直九年一贯制学校 | F67: 小学 | G67: 县直学校 | H67: 1658 | I67: 2337 | J67: 26 | K67: 26 | N67: 5 | O67: 7 | P67: 52 | Q67: 85.6 | R67: 92.6 | S67: 93 | T67: 40 | U67: 2 | AM67: 1 | AO67: 16 | AS67: -1 | AU67: 58 | AV67: 97 | AW67: -4 | AX67: 0 | AY67: 0 | AZ67: 0 | BA67: 0 | BC67: 预计一年级净增9个班需教师21人，七年级净增3个班需教师10人。 | BD67: 27 | BE67: 23 | BG67: 21 | BH67: 10 | BI67: 31 | BJ67: 23
A68: 78 | B68: 67 | C68: 67 | D68: 洪燕学校（小学） | E68: 县直九年一贯制学校 | F68: 小学 | G68: 县直学校 | H68: 2474 | I68: 3281 | J68: 41 | K68: 41 | N68: 7 | O68: 9 | P68: 82 | Q68: 121.2 | R68: 130.2 | S68: 130 | T68: 51 | U68: 3 | V68: 13 | AM68: 3 | AO68: 5 | AP68: -2 | AU68: 73 | AV68: 128 | AW68: 2 | AX68: 2 | AY68: 2 | AZ68: 2 | BA68: 2 | BD68: 27 | BE68: 29 | BG68: 19 | BH68: 10 | BI68: 29 | BJ68: 31
A69: 80 | B69: 68 | C69: 68 | D69: 洪亿学校（小学） | E69: 县直九年一贯制学校 | F69: 小学 | G69: 县直学校 | H69: 618 | I69: 746 | J69: 15 | K69: 15 | N69: 3 | O69: 3 | P69: 30 | Q69: 38.4 | R69: 41.4 | S69: 41 | T69: 22 | U69: 2 | V69: 1 | AM69: 2 | AO69: 10 | AP69: 0 | AU69: 37 | AV69: 51 | AW69: -10 | AX69: 0 | AY69: 0 | AZ69: 0 | BA69: 0 | BC69: 预计接收新生一年级6个班，七年级4个班，转学生200人左右4个班。申报2020年补充教师28人。 | BD69: 24 | BE69: 21 | BG69: 19 | BH69: 9 | BI69: 28 | BJ69: 21
A70: 82 | B70: 69 | C70: 69 | D70: 洪科小学 | E70: 小学 | F70: 小学 | G70: 县直学校 | H70: 781 | I70: 781 | J70: 20 | K70: =J70-M70 -> 20 | N70: 3 | O70: 3 | P70: 40 | Q70: 40 | R70: =O70+Q70 -> 43 | S70: 43 | T70: 10 | U70: 2 | V70: 12 | AM70: 1 | AN70: 0 | AO70: 14 | AP70: 0 | AQ70: 0 | AR70: 0 | AS70: 0 | AT70: 0 | AU70: =T70+U70+V70+W70+X70+Y70+Z70+AA70+AB70+AH70+AK70+AL70+AM70+AN70+AO70+AP70+AQ70+AR70+AS70+AT70 -> 39 | AV70: 39 | AW70: =S70-AV70 -> 4 | AX70: 4 | AY70: 4 | AZ70: 4 | BA70: 4 | BC70: 鉴于万科楼盘入住率不断提高，2020年学校秋季计划扩班招生，故申报2020年补充教师26人。 | BD70: 22 | BE70: 8 | BG70: 26 | BI70: =BG70+BH70 -> 26 | BJ70: 12
A71: 83 | B71: 70 | C71: 70 | D71: 八一分校（小学） | E71: 县直九年一贯制学校 | F71: 小学 | G71: 县直学校 | H71: 1317 | I71: 1731 | J71: 22 | K71: 22 | N71: 5 | O71: 5 | P71: 44 | Q71: 63.6 | R71: 68.6 | S71: 69 | T71: 4 | U71: 2 | V71: 8 | AM71: 2 | AO71: 11 | AS71: -1 | AU71: 26 | AV71: 54 | AW71: 15 | AX71: 15 | AY71: 15 | AZ71: 15 | BA71: 15 | BC71: 预计初中新增6个年级，学生300名；小学新增5个班级学生200名。 | BD71: 22 | BE71: 24 | BG71: 24 | BH71: 13 | BI71: 37 | BJ71: 39
A72: 85 | B72: 71 | C72: 71 | D72: 洪范学校（小学） | E72: 县直九年一贯制学校 | F72: 小学 | G72: 县直学校 | H72: 595 | I72: 965 | J72: 14 | K72: 14 | N72: 3 | O72: 3 | P72: 28 | Q72: 50.4 | R72: 53.4 | S72: 53 | V72: 9 | AM72: 12 | AN72: 0 | AO72: 12 | AP72: 0 | AQ72: 0 | AR72: 0 | AS72: 0 | AT72: 0 | AU72: 33 | AV72: 59 | AW72: -6 | AX72: 0 | AY72: 0 | AZ72: 0 | BA72: 0 | BC72: 预计初中新增10个班级，小学新增12个班级 | BD72: 52 | BE72: 46 | BG72: 26 | BH72: 30 | BI72: 56 | BJ72: 46
A73: 87 | B73: 72 | C73: 72 | D73: 洪新小学 | E73: 小学 | F73: 小学 | G73: 县直学校 | J73: 9 | K73: 9 | N73: 3 | O73: 3 | P73: 18 | Q73: 18 | R73: 21 | S73: 21 | AU73: 21 | AV73: 21 | AW73: 0 | AX73: 0 | AY73: 0 | AZ73: 0 | BA73: 0
A74: 22 | C74: 25 | D74: 莲塘实验学校（初中） | E74: 县直九年一贯制学校 | F74: 初中 | G74: 县直学校 | H74: 152 | J74: 3 | K74: 3 | N74: 3 | P74: =K74*2.8 -> 8.4 | T74: 10 | AN74: 0 | AO74: 0 | AP74: 0 | AQ74: 0 | AR74: 0 | AS74: 0 | AT74: 0 | AU74: =T74+U74+V74+W74+X74+Y74+Z74+AA74+AB74+AH74+AK74+AL74+AM74+AN74+AO74+AP74+AQ74+AR74+AS74+AT74 -> 10
A75: 24 | C75: 26 | D75: 昌南实验学校（初中） | E75: 县直九年一贯制学校 | F75: 初中 | G75: 县直学校 | H75: 225 | J75: 6 | K75: 6 | N75: 3 | P75: 16.8 | T75: 14 | V75: 3 | AP75: -1 | AU75: 16
A76: 26 | C76: 27 | D76: 黄马凤凰沟实验学校（初中） | E76: 县直九年一贯制学校 | F76: 初中 | G76: 农村初级中学 | H76: 92 | J76: 3 | K76: 3 | N76: 3 | P76: 8.4 | T76: 14 | AO76: 1 | AP76: -3 | AU76: 12
A77: 28 | C77: 28 | D77: 银三角实验学校（初中） | E77: 县直九年一贯制学校 | F77: 初中 | G77: 县直学校 | H77: 377 | J77: 9 | K77: 9 | N77: 3 | P77: 25.2 | T77: 25 | U77: 1 | V77: 3 | AN77: 0 | AO77: 0 | AP77: -2 | AQ77: 0 | AR77: 0 | AS77: -2 | AT77: 0 | AU77: 25
A78: 38 | C78: 37 | D78: 新联学校（初中） | E78: 县直九年一贯制学校 | F78: 初中 | G78: 农村初级中学 | H78: 307 | J78: 9 | K78: 9 | N78: 3 | P78: 25.2 | T78: 30 | Z78: 7 | AM78: -5 | AN78: 0 | AO78: 0 | AP78: -8 | AQ78: 0 | AR78: 0 | AS78: 0 | AT78: 0 | AU78: 24
A79: 41 | C79: 39 | D79: 幽兰学校（初中） | E79: 县直九年一贯制学校 | F79: 初中 | G79: 农村初级中学 | H79: 355 | J79: 8 | K79: 8 | N79: 3 | P79: 22.4 | T79: 52 | AI79: 1 | AO79: 1 | AP79: -6 | AR79: -1 | AS79: -1 | AT79: -1 | AU79: 44
A80: 43 | C80: 40 | D80: 渡头学校（初中） | E80: 县直九年一贯制学校 | F80: 初中 | G80: 农村初级中学 | H80: 283 | J80: 7 | K80: 7 | N80: 3 | P80: 19.6 | T80: 46 | AN80: 0 | AO80: 0 | AP80: -1 | AQ80: 0 | AR80: 0 | AS80: 0 | AT80: 0 | AU80: 45
A81: 48 | C81: 44 | D81: 向塘实验学校（初中） | E81: 县直九年一贯制学校 | F81: 初中 | G81: 农村初级中学 | H81: 1352 | J81: 21 | K81: 21 | N81: 5 | P81: 58.8 | T81: 92 | U81: 2 | V81: 4 | Z81: 3 | AM81: -1 | AN81: 0 | AO81: 0 | AP81: -5 | AQ81: 0 | AR81: 0 | AS81: -7 | AT81: -5 | AU81: 83
A82: 50 | C82: 45 | D82: 向塘向阳学校(初中） | E82: 县直九年一贯制学校 | F82: 初中 | G82: 农村初级中学 | H82: 175 | J82: 6 | K82: 6 | N82: 3 | P82: 16.8 | T82: 23 | Z82: 2 | AM82: -2 | AN82: 0 | AO82: 0 | AP82: -1 | AQ82: 0 | AR82: 0 | AS82: 0 | AT82: 0 | AU82: 22
A83: 67 | C83: 61 | D83: 银河学校（初中） | E83: 县直九年一贯制学校 | F83: 初中 | G83: 县直学校 | H83: 1360 | J83: 24 | K83: 24 | N83: 5 | P83: 67.2 | T83: 73 | U83: 1 | V83: 19 | AM83: 1 | AO83: 1 | AP83: -7 | AU83: 88
A84: 69 | C84: 62 | D84: 洪州学校(初中） | E84: 县直九年一贯制学校 | F84: 初中 | G84: 县直学校 | H84: 1732 | J84: 28 | K84: 28 | N84: 5 | P84: 78.4 | T84: 81 | V84: 6 | AN84: 0 | AO84: 21 | AQ84: 0 | AR84: 0 | AS84: 0 | AT84: 0 | AU84: 108
A85: 71 | C85: 63 | D85: 新城学校（初中） | E85: 县直九年一贯制学校 | F85: 初中 | G85: 县直学校 | H85: 1363 | J85: 23 | K85: 23 | N85: 5 | P85: 64.4 | T85: 60 | U85: 2 | V85: 10 | AM85: 2 | AN85: 0 | AO85: 2 | AP85: -3 | AQ85: 0 | AR85: 0 | AS85: 0 | AT85: 0 | AU85: 73
A86: 73 | C86: 64 | D86: 诚义学校（初中） | E86: 县直九年一贯制学校 | F86: 初中 | G86: 县直学校 | H86: 1033 | J86: 18 | K86: 18 | N86: 5 | P86: 50.4 | T86: 62 | U86: 3 | V86: 15 | AM86: 1 | AO86: 1 | AP86: -4 | AQ86: 0 | AR86: 0 | AS86: 0 | AT86: 0 | AU86: 78
A87: 75 | C87: 65 | D87: 芳草学校（初中） | E87: 县直九年一贯制学校 | F87: 初中 | G87: 县直学校 | H87: 712 | J87: 13 | K87: 13 | N87: 3 | P87: 36.4 | T87: 36 | U87: 3 | V87: 11 | AM87: 1 | AO87: 4 | AU87: 55
A88: 77 | C88: 66 | D88: 洪州汇仁学校(中学） | E88: 县直九年一贯制学校 | F88: 初中 | G88: 县直学校 | H88: 679 | J88: 12 | K88: 12 | N88: 3 | P88: 33.6 | T88: 30 | U88: 2 | V88: 1 | AM88: 2 | AO88: 4 | AU88: 39
A89: 79 | C89: 67 | D89: 洪燕学校（初中） | E89: 县直九年一贯制学校 | F89: 初中 | G89: 县直学校 | H89: 807 | J89: 14 | K89: 14 | N89: 3 | P89: 39.2 | T89: 38 | U89: 4 | V89: 9 | AM89: 2 | AO89: 2 | AU89: 55
A90: 81 | C90: 68 | D90: 洪亿学校（初中） | E90: 县直九年一贯制学校 | F90: 初中 | G90: 县直学校 | H90: 128 | J90: 3 | K90: 3 | N90: 3 | P90: 8.4 | T90: 8 | U90: 2 | V90: 2 | AM90: 1 | AO90: 2 | AP90: -1 | AU90: 14
A91: 84 | C91: 70 | D91: 八一分校（初中） | E91: 县直九年一贯制学校 | F91: 初中 | G91: 县直学校 | H91: 414 | J91: 7 | K91: 7 | N91: 3 | P91: 19.6 | T91: 6 | U91: 3 | V91: 15 | AO91: 4 | AU91: 28
A92: 86 | C92: 71 | D92: 洪范学校（初中） | E92: 县直九年一贯制学校 | F92: 初中 | G92: 县直学校 | H92: 370 | J92: 8 | K92: 8 | N92: 3 | P92: 22.4 | V92: 9 | AH92: 4 | AM92: 7 | AN92: 0 | AO92: 6 | AP92: 0 | AQ92: 0 | AR92: 0 | AS92: 0 | AT92: 0 | AU92: 26
A93: 合计 | H93: =SUM(H6:H92) -> 135355 | I93: 135355 | J93: 2895 | K93: =SUM(K6:K92) -> 2795 | L93: 36 | M93: 100 | O93: =SUM(O6:O92) -> 356 | S93: 7202 | T93: 7275 | U93: =SUM(U6:U92) -> 91 | V93: 312 | W93: 51 | X93: 76 | Y93: 48 | Z93: 127 | AA93: 48 | AB93: 50 | AC93: 76 | AD93: 77 | AE93: 73 | AF93: 79 | AG93: 355 | AH93: 23 | AI93: =SUM(AI6:AI92) -> 6 | AJ93: 9 | AK93: 10 | AL93: 15 | AM93: 0 | AN93: 20 | AO93: =SUM(AO6:AO92) -> 516 | AP93: -638 | AQ93: -9 | AR93: -18 | AS93: -151 | AT93: -106 | AU93: 7761 | AV93: 7761 | BA93: =SUM(BA6:BA92) -> 115 | BE93: =SUM(BE6:BE92) -> 237 | BJ93: =SUM(BJ6:BJ92) -> 352

Sheet 补充计划测算表 (hidden)
A1: 南昌县2020年中小学教师补充计划测算表 | BC1: 新开班及特殊情况增派人数 | BG1: 教师缺额+新开班及特殊情况增派人数
A2: 序号 | D2: 学校名称 | E2: 类别 | H2: 参数（计算：教师需求数） | P2: 教师需求数 | T2: 参数（计算：现有教师数） | AU2: 现有教师数 | AW2: 教师需求数-现有教师数=教师缺额
A3: 总排序 | B3: 排序 （合并九年一贯制） | C3: 学校编号 | D3: 学校名称 | E3: 学段 （合并九年一贯制） | F3: 学段 | G3: 类别 | H3: 学生数 | J3: 班级数 | L3: 其中： 教学点班级数 | N3: 行政教辅人员 | P3: 教师需求数 （已计入村小计算机管理员，不含行政教辅人员） | Q3: 教师需求数 （合并九年一贯制） | R3: 教师需求数 （加行政教辅人员） | S3: 教师需求数 （去除函数） | T3: 编制册 | U3: 全省选调 | V3: 全省统招 | W3: 中央特岗 | AA3: 定向师范 | AH3: 公费师范生 | AI3: 三支一扶 | AM3: 县内选调 | AN3: 幼儿园转岗任教 | AO3: 轮岗交流人数 | AQ3: 请假人数 | AS3: 退休人数 | AU3: 现有教师数 | AV3: 现有教师数 （合并九年一贯制） | AW3: 教师缺额 （合并九年一贯制） | AX3: 教师缺额 （负数清零） | AY3: 教师缺额 （粘贴为数值） | AZ3: 教师缺额 （剔除高中） | BA3: 教师缺额 （人工微调） | BC3: 情况说明 | BD3: 拟增加 | BE3: 新开班及特殊情况实际增派人数 | BG3: 申报补充 （小学） | BH3: 申报补充 （初中） | BI3: 申报补充总计 （小学+初中） | BJ3: 缺额+新开班
H4: 2019年秋季学生数 （统计表） | I4: 2019年秋季学生数 （合并九年一贯制） | J4: 2019年秋季班级数 （统计表） | K4: 2019年秋季班级数 （扣除教学点班级数） | L4: 教学点个数 （统计表） | M4: 教学点班级数 （统计表） | N4: 行政教辅人员 | O4: 行政教辅人员 （合并九年一贯制） | T4: 在编教师数 （编制册） | U4: 2019全省选调91人（邓） | V4: 2019全省统招312人（邓） | W4: 2016特岗教师51人（邓） | X4: 2017特岗教师76人（邓） | Y4: 2018特岗教师48人（邓） | Z4: 2019特岗教师127人（邓） | AA4: 2019定向师范毕业48人（邓） | AB4: 2015招录定向师范毕业生50人（邓） | AC4: 2016招录定向师范毕业生76人（邓） | AD4: 2017招录定向师范毕业生77人（邓） | AE4: 2018招录定向师范毕业生73人（邓） | AF4: 2019招录定向师范毕业生79人（邓） | AG4: 2015-2019年招录定向师范毕业生355人（邓） | AH4: 2019公费师范毕业生23人（邓） | AI4: 2016三支一扶介绍信6人（邓） | AJ4: 2017三支一扶介绍信9人（邓） | AK4: 2018三支一扶介绍信10人（邓） | AL4: 2019三支一扶介绍信15人（邓） | AM4: 2019县内选调（邓） | AN4: 编外幼儿园转岗任教小学教师人数 | AO4: 交流接收人数 | AP4: 交流流出人数 | AQ4: 长期病假且已执行病假工资人数 | AR4: 停职领办创办企业未到返岗期人数（2021年8月31日） | AS4: 2020年1月1日至2020年12月31日退休人数 | AT4: 2021年1月1日至2020年8月31日退休人数
T5: 1 | U5: 7 | V5: 2 | W5: 3 | X5: 4 | Y5: 5 | Z5: 6 | AA5: 10 | AB5: 11 | AH5: 9 | AK5: 12 | AL5: 13 | AM5: 8
A6: 1 | B6: 1 | C6: 1 | D6: 南新中小 | E6: 小学 | F6: 小学 | G6: 乡镇中心小学 | H6: 1722 | I6: 1722 | J6: 78 | K6: =J6-M6 -> 73 | L6: 2 | M6: 5 | N6: 3 | O6: 3 | P6: =K6*2+M6*1.5+L6 -> 155.5 | Q6: 155.5 | R6: =O6+Q6 -> 158.5 | S6: 159 | T6: 192 | U6: 3 | W6: 5 | X6: 6 | Y6: 2 | Z6: 5 | AA6: 9 | AB6: 8 | AC6: 8 | AD6: 14 | AE6: 10 | AF6: 9 | AG6: =SUM(AB6:AF6) -> 49 | AI6: 1 | AJ6: 2 | AK6: 1 | AL6: 1 | AM6: -2 | AN6: 0 | AO6: 1 | AP6: -34 | AQ6: -1 | AR6: -1 | AS6: -6 | AT6: -9 | AU6: =T6+U6+V6+W6+X6+Y6+Z6+AA6+AB6+AH6+AK6+AL6+AM6+AN6+AO6+AP6+AQ6+AR6+AS6+AT6 -> 180 | AV6: 180 | AW6: =S6-AV6 -> -22 | AX6: 0 | AY6: 0 | AZ6: 0 | BA6: 0 | BG6: 9 | BI6: =BG6+BH6 -> 9 | BJ6: =BA6+BE6 -> 0
A7: 2 | B7: 2 | C7: 2 | D7: 蒋巷中小 | E7: 小学 | F7: 小学 | G7: 乡镇中心小学 | H7: 5113 | I7: 5113 | J7: 127 | K7: 120 | L7: 4 | M7: 7 | N7: 7 | O7: 7 | P7: 254.5 | Q7: 254.5 | R7: 261.5 | S7: 262 | T7: 235 | U7: 6 | W7: 7 | Y7: 5 | Z7: 16 | AA7: 10 | AB7: 8 | AC7: 11 | AD7: 15 | AE7: 11 | AF7: 12 | AG7: 57 | AI7: 1 | AK7: 2 | AL7: 5 | AM7: -2 | AN7: 0 | AO7: 2 | AP7: -22 | AQ7: 0 | AR7: 0 | AS7: -12 | AT7: -2 | AU7: 258 | AV7: 258 | AW7: 4 | AX7: 4 | AY7: 4 | AZ7: 4 | BA7: 4 | BG7: 24 | BI7: 24 | BJ7: 4
A8: 3 | B8: 3 | C8: 3 | D8: 塘南中小 | E8: 小学 | F8: 小学 | G8: 乡镇中心小学 | H8: 1682 | I8: 1682 | J8: 101 | K8: 96 | L8: 2 | M8: 5 | N8: 3 | O8: 3 | P8: 201.5 | Q8: 201.5 | R8: 204.5 | S8: 205 | T8: 172 | U8: 3 | W8: 8 | X8: 12 | Y8: 2 | Z8: 9 | AA8: 10 | AB8: 8 | AC8: 10 | AD8: 13 | AE8: 9 | AF8: 9 | AG8: 49 | AJ8: 2 | AM8: -3 | AO8: 2 | AP8: -25 | AR8: -1 | AS8: -1 | AT8: -3 | AU8: 193 | AV8: 193 | AW8: 12 | AX8: 12 | AY8: 12 | AZ8: 12 | BA8: 6 | BG8: 23 | BI8: 23 | BJ8: 6
A9: 4 | B9: 4 | C9: 4 | D9: 泾口中小 | E9: 小学 | F9: 小学 | G9: 乡镇中心小学 | H9: 1565 | I9: 1565 | J9: 71 | K9: 64 | L9: 4 | M9: 7 | N9: 3 | O9: 3 | P9: 142.5 | Q9: 142.5 | R9: 145.5 | S9: 146 | T9: 177 | U9: 3 | W9: 5 | X9: 5 | Y9: 2 | Z9: 2 | AA9: 9 | AB9: 8 | AC9: 10 | AD9: 15 | AE9: 12 | AF9: 9 | AG9: 54 | AI9: 1 | AJ9: 1 | AM9: -3 | AN9: 1 | AO9: 1 | AP9: -31 | AQ9: 0 | AR9: 0 | AS9: -6 | AT9: -2 | AU9: 171 | AV9: 171 | AW9: -26 | AX9: 0 | AY9: 0 | AZ9: 0 | BA9: 0 | BG9: 6 | BI9: 6 | BJ9: 0
A10: 5 | B10: 5 | C10: 5 | D10: 塔城中小 | E10: 小学 | F10: 小学 | G10: 乡镇中心小学 | H10: 832 | I10: 832 | J10: 24 | K10: 24 | N10: 3 | O10: 3 | P10: 48 | Q10: 48 | R10: 51 | S10: 51 | T10: 87 | W10: 1 | Z10: 2 | AM10: -2 | AN10: 0 | AO10: 0 | AP10: -10 | AQ10: -2 | AR10: 0 | AS10: -7 | AT10: -4 | AU10: 65 | AV10: 65 | AW10: -14 | AX10: 0 | AY10: 0 | AZ10: 0 | BA10: 0 | BI10: 0 | BJ10: 0
A11: 6 | B11: 6 | C11: 6 | D11: 武阳中小 | E11: 小学 | F11: 小学 | G11: 乡镇中心小学 | H11: 2263 | I11: 2263 | J11: 54 | K11: 54 | N11: 5 | O11: 5 | P11: 108 | Q11: 108 | R11: 113 | S11: 113 | T11: 147 | V11: 2 | W11: 3 | X11: 10 | Y11: 1 | Z11: 3 | AC11: 2 | AG11: =SUM(AB11:AF11) -> 2 | AJ11: 2 | AK11: 1 | AN11: 3 | AO11: 3 | AP11: -27 | AQ11: 0 | AR11: -1 | AS11: -5 | AT11: -3 | AU11: 137 | AV11: 137 | AW11: -24 | AX11: 0 | AY11: 0 | AZ11: 0 | BA11: 0 | BG11: 0 | BI11: 0 | BJ11: 0
A12: 7 | B12: 7 | C12: 7 | D12: 向塘中小 | E12: 小学 | F12: 小学 | G12: 乡镇中心小学 | H12: 3256 | I12: 3256 | J12: 115 | K12: 115 | N12: 7 | O12: 7 | P12: 230 | Q12: 230 | R12: 237 | S12: 237 | T12: 211 | U12: 3 | V12: 2 | W12: 4 | Y12: 6 | Z12: 2 | AC12: 8 | AF12: 5 | AG12: 13 | AL12: 2 | AM12: -1 | AN12: 8 | AO12: 3 | AP12: -18 | AQ12: -2 | AR12: -1 | AS12: -5 | AT12: -4 | AU12: 210 | AV12: 210 | AW12: 27 | AX12: 27 | AY12: 27 | AZ12: 27 | BA12: 11 | BG12: 44 | BI12: 44 | BJ12: 11
A13: 8 | B13: 8 | C13: 8 | D13: 黄马中小 | E13: 小学 | F13: 小学 | G13: 乡镇中心小学 | H13: 856 | I13: 856 | J13: 53 | K13: 27 | L13: 6 | M13: 26 | N13: 3 | O13: 3 | P13: 99 | Q13: 99 | R13: 102 | S13: 102 | T13: 138 | X13: 5 | Y13: 2 | Z13: 3 | AB13: 4 | AC13: 9 | AE13: 10 | AF13: 6 | AG13: 29 | AM13: -3 | AN13: 0 | AO13: 2 | AP13: -18 | AQ13: 0 | AR13: 0 | AS13: -4 | AT13: -2 | AU13: 127 | AV13: 127 | AW13: -25 | AX13: 0 | AY13: 0 | AZ13: 0 | BA13: 0 | BG13: 0 | BI13: 0 | BJ13: 0
A14: 9 | B14: 9 | C14: 9 | D14: 三江中小 | E14: 小学 | F14: 小学 | G14: 乡镇中心小学 | H14: 1500 | I14: 1500 | J14: 42 | K14: 18 | L14: 8 | M14: 24 | N14: 3 | O14: 3 | P14: 80 | Q14: 80 | R14: 83 | S14: 83 | T14: 118 | U14: 2 | X14: 2 | Y14: 4 | Z14: 5 | AB14: 3 | AC14: 6 | AD14: 10 | AE14: 8 | AF14: 8 | AG14: 35 | AM14: -1 | AO14: 1 | AP14: -21 | AS14: -7 | AT14: -7 | AU14: 99 | AV14: 99 | AW14: -16 | AX14: 0 | AY14: 0 | AZ14: 0 | BA14: 0 | BG14: 0 | BI14: 0 | BJ14: 0
A15: 10 | B15: 10 | C15: 10 | D15: 冈上中小 | E15: 小学 | F15: 小学 | G15: 乡镇中心小学 | H15: 1658 | I15: 1658 | J15: 63 | K15: 63 | N15: 3 | O15: 3 | P15: 126 | Q15: 126 | R15: 129 | S15: 129 | T15: 133 | W15: 1 | X15: 5 | Y15: 3 | Z15: 7 | AF15: 5 | AG15: 5 | AM15: -1 | AN15: 0 | AO15: 1 | AP15: -22 | AQ15: 0 | AR15: 0 | AS15: -3 | AT15: -3 | AU15: 121 | AV15: 121 | AW15: 8 | AX15: 8 | AY15: 8 | AZ15: 8 | BA15: 8 | BG15: 8 | BI15: 8 | BJ15: 8
A16: 11 | B16: 11 | C16: 11 | D16: 广福中小 | E16: 小学 | F16: 小学 | G16: 乡镇中心小学 | H16: 2154 | I16: 2154 | J16: 92 | K16: 92 | N16: 5 | O16: 5 | P16: 184 | Q16: 184 | R16: 189 | S16: 189 | T16: 157 | U16: 5 | X16: 14 | Y16: 3 | Z16: 16 | AB16: 3 | AC16: 3 | AD16: 10 | AE16: 10 | AF16: 8 | AG16: 34 | AJ16: 2 | AL16: 4 | AM16: -4 | AN16: 3 | AO16: 3 | AP16: -29 | AQ16: 0 | AR16: -1 | AS16: -5 | AT16: -4 | AU16: 165 | AV16: 165 | AW16: 24 | AX16: 24 | AY16: 24 | AZ16: 24 | BA16: 9 | BG16: 22 | BI16: 22 | BJ16: 9
A17: 12 | B17: 12 | C17: 12 | D17: 富山中小 | E17: 小学 | F17: 小学 | G17: 乡镇中心小学 | H17: 2000 | I17: 2000 | J17: 84 | K17: 84 | N17: 5 | O17: 5 | P17: 168 | Q17: 168 | R17: 173 | S17: 173 | T17: 131 | V17: 7 | W17: 3 | X17: 8 | Y17: 5 | Z17: 6 | AM17: -3 | AN17: 2 | AO17: 1 | AP17: -20 | AS17: -8 | AT17: -5 | AU17: 127 | AV17: 127 | AW17: 46 | AX17: 46 | AY17: 46 | AZ17: 46 | BA17: 10 | BG17: 48 | BI17: 48 | BJ17: 10
A18: 13 | B18: 13 | C18: 13 | D18: 东新中小 | E18: 小学 | F18: 小学 | G18: 乡镇中心小学 | H18: 1769 | I18: 1769 | J18: 45 | K18: 45 | N18: 3 | O18: 3 | P18: 90 | Q18: 90 | R18: 93 | S18: 93 | T18: 92 | V18: 15 | W18: 3 | X18: 3 | Y18: 4 | Z18: 3 | AN18: 0 | AO18: 4 | AP18: -7 | AR18: -2 | AS18: -4 | AT18: -1 | AU18: 110 | AV18: 110 | AW18: -17 | AX18: 0 | AY18: 0 | AZ18: 0 | BA18: 0 | BG18: 20 | BI18: 20 | BJ18: 0
A19: 14 | B19: 14 | C19: 14 | D19: 八一中小 | E19: 小学 | F19: 小学 | G19: 乡镇中心小学 | H19: 1410 | I19: 1410 | J19: 64 | K19: 54 | L19: 2 | M19: 10 | N19: 3 | O19: 3 | P19: 125 | Q19: 125 | R19: 128 | S19: 128 | T19: 135 | W19: 2 | Y19: 2 | Z19: 5 | AN19: 1 | AO19: 2 | AP19: -18 | AQ19: 0 | AR19: 0 | AS19: -4 | AT19: -2 | AU19: 123 | AV19: 123 | AW19: 5 | AX19: 5 | AY19: 5 | AZ19: 5 | BA19: 3 | BG19: 4 | BI19: 4 | BJ19: 3
A20: 15 | B20: 15 | C20: 15 | D20: 莲塘中小 | E20: 小学 | F20: 小学 | G20: 县直学校 | H20: 1848 | I20: 1848 | J20: 40 | K20: 40 | N20: 3 | O20: 5 | P20: 80 | Q20: 80 | R20: 85 | S20: 85 | T20: 73 | V20: 10 | AN20: 0 | AO20: 6 | AP20: -6 | AQ20: 0 | AR20: 0 | AS20: -1 | AT20: -1 | AU20: 81 | AV20: 81 | AW20: 4 | AX20: 4 | AY20: 4 | AZ20: 4 | BA20: 4 | BG20: 14 | BI20: 14 | BJ20: 4
A21: 16 | B21: 16 | C21: 16 | D21: 莲塘一小 | E21: 小学 | F21: 小学 | G21: 县直学校 | H21: 3961 | I21: 3961 | J21: 69 | K21: 69 | N21: 9 | O21: 9 | P21: 138 | Q21: 138 | R21: 147 | S21: 147 | T21: 161 | V21: 2 | AO21: 14 | AP21: -16 | AS21: -1 | AT21: -3 | AU21: 157 | AV21: 157 | AW21: -10 | AX21: 0 | AY21: 0 | AZ21: 0 | BA21: 0 | BG21: 6 | BI21: 6 | BJ21: 0
A22: 17 | B22: 17 | C22: 17 | D22: 莲塘二小 | E22: 小学 | F22: 小学 | G22: 县直学校 | H22: 3446 | I22: 3446 | J22: 54 | K22: 54 | N22: 9 | O22: 9 | P22: 108 | Q22: 108 | R22: 117 | S22: 117 | T22: 116 | V22: 4 | AN22: 0 | AO22: 19 | AP22: -2 | AQ22: 0 | AR22: -1 | AS22: -2 | AT22: -3 | AU22: 131 | AV22: 131 | AW22: -14 | AX22: 0 | AY22: 0 | AZ22: 0 | BA22: 0 | BG22: 0 | BI22: 0 | BJ22: 0
A23: 18 | B23: 18 | C23: 18 | D23: 莲塘三小 | E23: 小学 | F23: 小学 | G23: 县直学校 | H23: 5250 | I23: 5250 | J23: 82 | K23: 82 | N23: 9 | O23: 9 | P23: 164 | Q23: 164 | R23: 173 | S23: 173 | T23: 202 | V23: 1 | AN23: 1 | AO23: 26 | AP23: -25 | AU23: 205 | AV23: 205 | AW23: -32 | AX23: 0 | AY23: 0 | AZ23: 0 | BA23: 0 | BG23: 0 | BI23: 0 | BJ23: 0
A24: 19 | B24: 19 | C24: 19 | D24: 莲塘四小 | E24: 小学 | F24: 小学 | G24: 县直学校 | H24: 2851 | I24: 2851 | J24: 44 | K24: 44 | N24: 7 | O24: 7 | P24: 88 | Q24: 88 | R24: 95 | S24: 95 | T24: 71 | V24: 2 | AN24: 0 | AO24: 36 | AP24: -10 | AQ24: 0 | AR24: -1 | AS24: 0 | AT24: 0 | AU24: 98 | AV24: 98 | AW24: -3 | AX24: 0 | AY24: 0 | AZ24: 0 | BA24: 0 | BG24: 22 | BI24: 22 | BJ24: 0
A25: 20 | B25: 20 | C25: 20 | D25: 特殊教育学校 | E25: 特殊教育 | F25: 特殊教育 | G25: 县直学校 | H25: 76 | I25: 76 | J25: 7 | K25: 7 | N25: 3 | O25: 3 | P25: 14 | Q25: 14 | R25: 17 | S25: 17 | T25: 18 | AN25: 0 | AO25: 4 | AP25: -6 | AQ25: 0 | AR25: 0 | AS25: -1 | AT25: -1 | AU25: 14 | AV25: 14 | AW25: 3 | AX25: 0 | AY25: 0 | AZ25: 0 | BA25: 0 | BD25: 1 | BE25: 1 | BI25: 0 | BJ25: 1
A26: 21 | B26: 25 | C26: 25 | D26: 莲塘实验学校（小学） | E26: 县直九年一贯制学校 | F26: 小学 | G26: 县直学校 | H26: 402 | I26: 554 | J26: 7 | K26: 7 | N26: 3 | O26: 3 | P26: 14 | Q26: 22.4 | R26: 25.4 | S26: 25 | T26: 19 | AN26: 0 | AO26: 2 | AP26: 0 | AQ26: 0 | AR26: 0 | AS26: 0 | AT26: 0 | AU26: 21 | AV26: 31 | AW26: -6 | AX26: 0 | AY26: 0 | AZ26: 0 | BA26: 0 | BI26: 0 | BJ26: 0
A27: 23 | B27: 26 | C27: 26 | D27: 昌南实验学校（小学） | E27: 县直九年一贯制学校 | F27: 小学 | G27: 县直学校 | H27: 378 | I27: 603 | J27: 7 | K27: 7 | N27: 3 | O27: 3 | P27: 14 | Q27: 30.8 | R27: 33.8 | S27: 34 | T27: 22 | V27: 2 | AO27: 2 | AP27: -5 | AU27: 21 | AV27: 37 | AW27: -3 | AX27: 0 | AY27: 0 | AZ27: 0 | BA27: 0 | BG27: 4 | BH27: 2 | BI27: 6 | BJ27: 0
A28: 25 | B28: 27 | C28: 27 | D28: 黄马凤凰沟实验学校（小学） | E28: 乡镇九年一贯制学校 | F28: 小学 | G28: 乡镇中心小学 | H28: 219 | I28: 311 | J28: 6 | K28: 6 | N28: 3 | O28: 3 | P28: 12 | Q28: 20.4 | R28: 23.4 | S28: 23 | T28: 13 | Z28: 1 | AM28: -1 | AU28: 13 | AV28: 25 | AW28: -2 | AX28: 0 | AY28: 0 | AZ28: 0 | BA28: 0 | BH28: 2 | BI28: 2 | BJ28: 0
A29: 27 | B29: 28 | C29: 28 | D29: 银三角实验学校（小学） | E29: 县直九年一贯制学校 | F29: 小学 | G29: 县直学校 | H29: 863 | I29: 1240 | J29: 18 | K29: 18 | N29: 3 | O29: 5 | P29: 36 | Q29: 61.2 | R29: 66.2 | S29: 66 | T29: 33 | U29: 2 | V29: 10 | AN29: 0 | AO29: 2 | AP29: -1 | AQ29: 0 | AR29: 0 | AS29: -3 | AT29: 0 | AU29: 43 | AV29: 68 | AW29: -2 | AX29: 0 | AY29: 0 | AZ29: 0 | BA29: 0 | BI29: 0 | BJ29: 0
A30: 29 | B30: 29 | C30: 29 | D30: 县中专 | E30: 县中专 | F30: 县中专 | G30: 县直学校 | H30: 2348 | I30: 2348 | K30: 0 | N30: 7 | O30: 7 | P30: 0 | R30: 7 | S30: 0 | T30: 26 | AO30: 18 | AP30: -2 | AQ30: 0 | AR30: 0 | AS30: -1 | AT30: -1 | AU30: 40 | AV30: 40 | AW30: -40 | AX30: 0 | AY30: 0 | AZ30: 0 | BA30: 0 | BI30: 0 | BJ30: 0
A31: 30 | B31: 30 | C31: 30 | D31: 金沙路小学 | E31: 小学 | F31: 小学 | G31: 县直学校 | H31: 3606 | I31: 3606 | J31: 58 | K31: 58 | N31: 9 | O31: 9 | P31: 116 | Q31: 116 | R31: 125 | S31: 125 | T31: 126 | U31: 4 | V31: 6 | AM31: 2 | AO31: 5 | AP31: -6 | AS31: -1 | AU31: 136 | AV31: 136 | AW31: -11 | AX31: 0 | AY31: 0 | AZ31: 0 | BA31: 0 | BD31: 9 | BE31: 9 | BG31: 33 | BI31: 33 | BJ31: 9
A32: 31 | B32: 31 | C32: 31 | D32: 振兴路小学 | E32: 小学 | F32: 小学 | G32: 县直学校 | H32: 3882 | I32: 3882 | J32: 59 | K32: 59 | N32: 9 | O32: 9 | P32: 118 | Q32: 118 | R32: 127 | S32: 127 | T32: 109 | U32: 4 | V32: 2 | AN32: 1 | AO32: 15 | AP32: -5 | AQ32: 0 | AR32: 0 | AS32: -2 | AT32: -3 | AU32: 121 | AV32: 121 | AW32: 6 | AX32: 6 | AY32: 6 | AZ32: 6 | BA32: 6 | BG32: 21 | BI32: 21 | BJ32: 6
A33: 32 | B33: 32 | C33: 32 | D33: 墨山街小学 | E33: 小学 | F33: 小学 | G33: 县直学校 | H33: 719 | I33: 719 | J33: 17 | K33: 17 | N33: 3 | O33: 3 | P33: 34 | Q33: 34 | R33: 37 | S33: 37 | T33: 35 | U33: 2 | V33: 3 | AM33: 1 | AN33: 0 | AO33: 4 | AP33: -7 | AQ33: 0 | AR33: 0 | AS33: -2 | AT33: -1 | AU33: 35 | AV33: 35 | AW33: 2 | AX33: 2 | AY33: 2 | AZ33: 2 | BA33: 2 | BG33: 3 | BI33: 3 | BJ33: 2
A34: 33 | B34: 33 | C34: 33 | D34: 斗柏路小学 | E34: 小学 | F34: 小学 | G34: 县直学校 | H34: 2729 | I34: 2729 | J34: 48 | K34: 48 | N34: 7 | O34: 7 | P34: 96 | Q34: 96 | R34: 103 | S34: 103 | T34: 63 | V34: 1 | AN34: 0 | AO34: 72 | AP34: -10 | AQ34: 0 | AR34: 0 | AS34: -1 | AT34: 0 | AU34: 125 | AV34: 125 | AW34: -22 | AX34: 0 | AY34: 0 | AZ34: 0 | BA34: 0 | BD34: 1 | BE34: 1 | BG34: 4 | BI34: 4 | BJ34: 1
A35: 34 | B35: 34 | C35: 34 | D35: 南新中学 | E35: 初中 | F35: 初中 | G35: 农村初级中学 | H35: 938 | I35: 938 | J35: 18 | K35: 18 | N35: 3 | O35: 3 | P35: =K35*2.8 -> 50.4 | Q35: 50.4 | R35: 53.4 | S35: 53 | T35: 84 | Z35: 2 | AK35: 1 | AL35: 2 | AN35: 0 | AO35: 0 | AP35: -2 | AQ35: 0 | AR35: 0 | AS35: -2 | AT35: 0 | AU35: 85 | AV35: 85 | AW35: -32 | AX35: 0 | AY35: 0 | AZ35: 0 | BA35: 0 | BC35: 我校无音乐教师，因结构比例原因，申请补充1名初中音乐教师 | BD35: 1 | BE35: 1 | BH35: 1 | BI35: 1 | BJ35: 1
A36: 35 | B36: 35 | C36: 35 | D36: 蒋巷二中 | E36: 初中 | F36: 初中 | G36: 农村初级中学 | H36: 2588 | I36: 2588 | J36: 42 | K36: 42 | N36: 7 | O36: 7 | P36: 117.6 | Q36: 117.6 | R36: 124.6 | S36: 125 | T36: 127 | U36: 3 | Z36: 7 | AI36: 1 | AM36: -1 | AO36: 1 | AP36: -7 | AQ36: -2 | AS36: -2 | AU36: 126 | AV36: 126 | AW36: -1 | AX36: 0 | AY36: 0 | AZ36: 0 | BA36: 0 | BG36: 9 | BH36: 4 | BI36: 13 | BJ36: 0
A37: 36 | B37: 36 | C37: 36 | D37: 塘南中学 | E37: 初中 | F37: 初中 | G37: 农村初级中学 | H37: 702 | I37: 702 | J37: 12 | K37: 12 | N37: 3 | O37: 3 | P37: 33.6 | Q37: 33.6 | R37: 36.6 | S37: 37 | T37: 55 | AK37: 2 | AN37: 0 | AO37: 1 | AP37: -5 | AQ37: 0 | AR37: 0 | AS37: 0 | AT37: 0 | AU37: 53 | AV37: 53 | AW37: -16 | AX37: 0 | AY37: 0 | AZ37: 0 | BA37: 0 | BC37: 我校因教师结构性缺员，严重缺少初中数学、初中英语、初中体育等专业教师，导致很难按需求开展正常班级授课 | BD37: 3 | BE37: 2 | BH37: 3 | BI37: 3 | BJ37: 2
A38: 37 | B38: 37 | C38: 37 | D38: 新联学校（小学） | E38: 乡镇九年一贯制学校 | F38: 小学 | G38: 乡镇中心小学 | H38: 344 | I38: 651 | J38: 20 | K38: 20 | N38: 3 | O38: 3 | P38: =K38*2+M38*1.5+L38 -> 40 | Q38: 65.2 | R38: 68.2 | S38: 68 | T38: 39 | X38: 6 | Y38: 1 | Z38: 8 | AE38: 3 | AF38: 5 | AG38: =SUM(AB38:AF38) -> 8 | AN38: 0 | AO38: 0 | AP38: -4 | AQ38: 0 | AR38: 0 | AS38: -2 | AT38: 0 | AU38: 48 | AV38: 72 | AW38: -4 | AX38: 0 | AY38: 0 | AZ38: 0 | BA38: 0 | BH38: 6 | BI38: 6 | BJ38: 0
A39: 39 | B39: 38 | C39: 38 | D39: 泾口中学 | E39: 初中 | F39: 初中 | G39: 农村初级中学 | H39: 551 | I39: 551 | J39: 12 | K39: 12 | N39: 3 | O39: 3 | P39: =K39*2.8 -> 33.6 | Q39: 33.6 | R39: 36.6 | S39: 37 | T39: 83 | AK39: 1 | AO39: 1 | AP39: -6 | AS39: -1 | AU39: 78 | AV39: 78 | AW39: -41 | AX39: 0 | AY39: 0 | AZ39: 0 | BA39: 0 | BH39: 5 | BI39: 5 | BJ39: 0
A40: 40 | B40: 39 | C40: 39 | D40: 幽兰学校（小学） | E40: 乡镇九年一贯制学校 | F40: 小学 | G40: 乡镇中心小学 | H40: 513 | I40: 868 | J40: 20 | K40: 20 | N40: 3 | O40: 3 | P40: 40 | Q40: 62.4 | R40: 65.4 | S40: 65 | T40: 107 | W40: 9 | AA40: 5 | AB40: 4 | AC40: 9 | AG40: 13 | AM40: -1 | AO40: 2 | AP40: -16 | AS40: -5 | AT40: -1 | AU40: 104 | AV40: 148 | AW40: -83 | AX40: 0 | AY40: 0 | AZ40: 0 | BA40: 0 | BH40: 0 | BI40: 0 | BJ40: 0
A41: 42 | B41: 40 | C41: 40 | D41: 渡头学校（小学） | E41: 乡镇九年一贯制学校 | F41: 小学 | G41: 乡镇中心小学 | H41: 603 | I41: 886 | J41: 23 | K41: 17 | L41: 5 | M41: 6 | N41: 3 | O41: 3 | P41: 48 | Q41: 67.6 | R41: 70.6 | S41: 71 | T41: 75 | AA41: 5 | AB41: 4 | AG41: 4 | AM41: -3 | AN41: 0 | AO41: 0 | AP41: -21 | AQ41: 0 | AR41: 0 | AS41: 0 | AT41: 0 | AU41: 60 | AV41: 105 | AW41: -34 | AX41: 0 | AY41: 0 | AZ41: 0 | BA41: 0 | BH41: 0 | BI41: 0 | BJ41: 0
A42: 44 | B42: 41 | C42: 41 | D42: 塔城中学 | E42: 初中 | F42: 初中 | G42: 农村初级中学 | H42: 350 | I42: 350 | J42: 9 | K42: 9 | N42: 3 | O42: 3 | P42: 25.2 | Q42: 25.2 | R42: 28.2 | S42: 28 | T42: 50 | AI42: 1 | AM42: -1 | AP42: -10 | AR42: -2 | AS42: -1 | AU42: 36 | AV42: 36 | AW42: -8 | AX42: 0 | AY42: 0 | AZ42: 0 | BA42: 0 | BC42: 因农村中学教师年龄结构偏大，学校数学教师结构性缺少。因此2020年申请补充初中数学教师1人。 | BD42: 1 | BE42: 1 | BH42: 1 | BI42: 1 | BJ42: 1
A43: 45 | B43: 42 | C43: 42 | D43: 武阳中学 | E43: 初中 | F43: 初中 | G43: 农村初级中学 | H43: 1489 | I43: 1489 | J43: 28 | K43: 28 | N43: 5 | O43: 5 | P43: 78.4 | Q43: 78.4 | R43: 83.4 | S43: 83 | T43: 76 | U43: 1 | V43: 5 | AK43: 1 | AM43: -1 | AO43: 2 | AP43: -4 | AS43: -1 | AT43: -1 | AU43: 78 | AV43: 78 | AW43: 5 | AX43: 5 | AY43: 6 | AZ43: 6 | BA43: 6 | BH43: 12 | BI43: 12 | BJ43: 6
A44: 46 | B44: 43 | C44: 43 | D44: 向塘二中 | E44: 初中 | F44: 初中 | G44: 农村初级中学 | H44: 1324 | I44: 1324 | J44: 26 | K44: 26 | N44: 5 | O44: 5 | P44: 72.8 | Q44: 72.8 | R44: 77.8 | S44: 78 | T44: 131 | AN44: 0 | AO44: 0 | AP44: -7 | AQ44: 0 | AR44: -1 | AS44: -6 | AT44: -3 | AU44: 114 | AV44: 114 | AW44: -36 | AX44: 0 | AY44: 0 | AZ44: 0 | BA44: 0 | BH44: 0 | BI44: 0 | BJ44: 0
A45: 47 | B45: 44 | C45: 44 | D45: 向塘实验学校（小学） | E45: 乡镇九年一贯制学校 | F45: 小学 | G45: 乡镇中心小学 | H45: 2243 | I45: 3595 | J45: 34 | K45: 34 | N45: 5 | O45: 7 | P45: =K45*2+M45*1.5+L45 -> 68 | Q45: 126.8 | R45: 133.8 | S45: 134 | T45: 98 | V45: 6 | Y45: 5 | Z45: 2 | AN45: 0 | AO45: 3 | AP45: -2 | AQ45: 0 | AR45: 0 | AS45: 0 | AT45: -3 | AU45: 109 | AV45: 192 | AW45: -58 | AX45: 0 | AY45: 0 | AZ45: 0 | BA45: 0 | BE45: 3 | BG45: 8 | BH45: 12 | BI45: 20 | BJ45: 3
A46: 49 | B46: 45 | C46: 45 | D46: 向塘向阳学校(小学） | E46: 乡镇九年一贯制学校 | F46: 小学 | G46: 乡镇中心小学 | H46: 204 | I46: 379 | J46: 14 | K46: 4 | L46: 3 | M46: 10 | N46: 3 | O46: 3 | P46: =K46*2+M46*1.5+L46 -> 26 | Q46: 42.8 | R46: 45.8 | S46: 46 | T46: 32 | Y46: 1 | Z46: 1 | AF46: 3 | AG46: =SUM(AB46:AF46) -> 3 | AN46: 0 | AO46: 0 | AP46: -5 | AQ46: 0 | AR46: 0 | AS46: 0 | AT46: 0 | AU46: 29 | AV46: 51 | AW46: -5 | AX46: 0 | AY46: 0 | AZ46: 0 | BA46: 0 | BH46: 0 | BI46: 0 | BJ46: 0
A47: 51 | B47: 46 | C47: 46 | D47: 黄马中学 | E47: 初中 | F47: 初中 | G47: 农村初级中学 | H47: 494 | I47: 494 | J47: 11 | K47: 11 | N47: 3 | O47: 3 | P47: =K47*2.8 -> 30.8 | Q47: 30.8 | R47: 33.8 | S47: 34 | T47: 52 | Z47: 1 | AM47: -1 | AO47: 1 | AP47: -1 | AS47: -1 | AT47: -1 | AU47: 50 | AV47: 50 | AW47: -16 | AX47: 0 | AY47: 0 | AZ47: 0 | BA47: 0 | BH47: 1 | BI47: 1 | BJ47: 0
A48: 52 | B48: 47 | C48: 47 | D48: 三江中学 | E48: 初中 | F48: 初中 | G48: 农村初级中学 | H48: 839 | I48: 839 | J48: 15 | K48: 15 | N48: 3 | O48: 3 | P48: 42 | Q48: 42 | R48: 45 | S48: 45 | T48: 68 | Z48: 1 | AP48: -3 | AQ48: -2 | AR48: -1 | AS48: -2 | AT48: -2 | AU48: 59 | AV48: 59 | AW48: -14 | AX48: 0 | AY48: 0 | AZ48: 0 | BA48: 0 | BH48: 5 | BI48: 5 | BJ48: 0
A49: 53 | B49: 48 | C49: 48 | D49: 广福一中 | E49: 初中 | F49: 初中 | G49: 农村初级中学 | H49: 559 | I49: 559 | J49: 12 | K49: 12 | N49: 3 | O49: 3 | P49: 33.6 | Q49: 33.6 | R49: 36.6 | S49: 37 | T49: 48 | U49: 1 | V49: 1 | Z49: 1 | AK49: 1 | AL49: 1 | AN49: 0 | AO49: 1 | AP49: -10 | AQ49: 0 | AR49: 0 | AS49: 0 | AT49: 0 | AU49: 44 | AV49: 44 | AW49: -7 | AX49: 0 | AY49: 0 | AZ49: 0 | BA49: 0 | BH49: 6 | BI49: 6 | BJ49: 0
A50: 54 | B50: 49 | C50: 49 | D50: 广福二中 | E50: 初中 | F50: 初中 | G50: 农村初级中学 | H50: 1041 | I50: 1041 | J50: 17 | K50: 17 | N50: 5 | O50: 5 | P50: 47.6 | Q50: 47.6 | R50: 52.6 | S50: 53 | T50: 53 | U50: 2 | V50: 4 | Z50: 7 | AM50: -6 | AN50: 0 | AO50: 1 | AP50: -7 | AQ50: 0 | AR50: 0 | AS50: 0 | AT50: -1 | AU50: 53 | AV50: 53 | AW50: -0 | AX50: 0 | AY50: 0 | AZ50: 0 | BA50: 0 | BC50: 因结构性缺编，特申报2020年补充教师5人。具体学科分别为:初中语文2人，初中物理2人，初中地理1人。 | BD50: 5 | BE50: 1 | BH50: 5 | BI50: 5 | BJ50: 1
A51: 55 | B51: 50 | C51: 50 | D51: 冈上中学 | E51: 初中 | F51: 初中 | G51: 农村初级中学 | H51: 533 | I51: 533 | J51: 11 | K51: 11 | N51: 3 | O51: 3 | P51: 30.8 | Q51: 30.8 | R51: 33.8 | S51: 34 | T51: 58 | AN51: 0 | AO51: 0 | AP51: -5 | AQ51: 0 | AR51: 0 | AS51: -1 | AT51: 0 | AU51: 52 | AV51: 52 | AW51: -18 | AX51: 0 | AY51: 0 | AZ51: 0 | BA51: 0 | BH51: 2 | BI51: 2 | BJ51: 0
A52: 56 | B52: 51 | C52: 51 | D52: 富山中学 | E52: 初中 | F52: 初中 | G52: 农村初级中学 | H52: 1451 | I52: 1451 | J52: 23 | K52: 23 | N52: 5 | O52: 5 | P52: 64.4 | Q52: 64.4 | R52: 69.4 | S52: 69 | T52: 97 | AO52: 1 | AP52: -14 | AQ52: 0 | AR52: -1 | AS52: 0 | AT52: -2 | AU52: 81 | AV52: 81 | AW52: -12 | AX52: 0 | AY52: 0 | AZ52: 0 | BA52: 0 | BH52: 2 | BI52: 2 | BJ52: 0
A53: 57 | B53: 52 | C53: 52 | D53: 东新中学 | E53: 初中 | F53: 初中 | G53: 农村初级中学 | H53: 1134 | I53: 1134 | J53: 21 | K53: 21 | N53: 5 | O53: 5 | P53: 58.8 | Q53: 58.8 | R53: 63.8 | S53: 64 | T53: 66 | AN53: 0 | AO53: 3 | AP53: -3 | AQ53: 0 | AR53: 0 | AS53: -1 | AT53: 0 | AU53: 65 | AV53: 65 | AW53: -1 | AX53: 0 | AY53: 0 | AZ53: 0 | BA53: 0 | BH53: 7 | BI53: 7 | BJ53: 0
A54: 58 | B54: 53 | C54: 53 | D54: 八一中学 | E54: 初中 | F54: 初中 | G54: 农村初级中学 | H54: 668 | I54: 668 | J54: 14 | K54: 14 | N54: 3 | O54: 3 | P54: 39.2 | Q54: 39.2 | R54: 42.2 | S54: 42 | T54: 97 | AN54: 0 | AO54: 0 | AP54: -11 | AQ54: 0 | AR54: -1 | AS54: -8 | AT54: -5 | AU54: 72 | AV54: 72 | AW54: -30 | AX54: 0 | AY54: 0 | AZ54: 0 | BA54: 0 | BH54: 0 | BI54: 0 | BJ54: 0
A55: 59 | B55: 54 | C55: 54 | D55: 莲塘一中 | E55: 高中 | F55: 高中 | G55: 县直学校 | H55: 4956 | I55: 4956 | J55: 86 | K55: 86 | N55: 9 | O55: 9 | P55: =H55/12.5 -> 396.48 | Q55: 396.48 | R55: 405.48 | S55: 405 | T55: 393 | AH55: 5 | AO55: 2 | AP55: -3 | AS55: -1 | AT55: -5 | AU55: 391 | AV55: 391 | AW55: 14 | AX55: 14 | AY55: 14 | BI55: 0 | BJ55: 0
A56: 60 | B56: 55 | C56: 55 | D56: 莲塘二中 | E56: 高中 | F56: 高中 | G56: 县直学校 | H56: 3367 | I56: 3367 | J56: 63 | K56: 63 | N56: 9 | O56: 9 | P56: 269.36 | Q56: 269.36 | R56: 278.36 | S56: 278 | T56: 230 | AH56: 9 | AP56: -4 | AR56: -1 | AS56: -1 | AT56: -1 | AU56: 232 | AV56: 232 | AW56: 46 | AX56: 46 | AY56: 46 | BI56: 0 | BJ56: 0
A57: 61 | B57: 56 | C57: 56 | D57: 莲塘三中 | E57: 高中 | F57: 高中 | G57: 县直学校 | H57: 3309 | I57: 3309 | J57: 52 | K57: 52 | N57: 9 | O57: 9 | P57: 264.72 | Q57: 264.72 | R57: 273.72 | S57: 274 | T57: 241 | AH57: 5 | AO57: 1 | AS57: -2 | AT57: -4 | AU57: 241 | AV57: 241 | AW57: 33 | AX57: 33 | AY57: 33 | BI57: 0 | BJ57: 0
A58: 62 | B58: 57 | C58: 57 | D58: 莲塘四中 | E58: 初中 | F58: 初中 | G58: 县直学校 | H58: 5069 | I58: 5069 | J58: 76 | K58: 76 | N58: 9 | O58: 9 | P58: =K58*2.8 -> 212.8 | Q58: 212.8 | R58: 221.8 | S58: 222 | T58: 151 | V58: 18 | AM58: 1 | AO58: 30 | AP58: -3 | AS58: -2 | AT58: -2 | AU58: 193 | AV58: 193 | AW58: 29 | AX58: 29 | AY58: 29 | AZ58: 29 | BA58: 25 | BC58: 补充计划数需+1（1人被判刑待办理下编手续） | BD58: 1 | BE58: 1 | BH58: 55 | BI58: 55 | BJ58: 26
A59: 63 | B59: 58 | C59: 58 | D59: 莲塘五中 | E59: 初中 | F59: 初中 | G59: 县直学校 | H59: 2606 | I59: 2606 | J59: 42 | K59: 42 | N59: 7 | O59: 7 | P59: 117.6 | Q59: 117.6 | R59: 124.6 | S59: 125 | T59: 133 | V59: 3 | AO59: 7 | AP59: -5 | AS59: -3 | AU59: 135 | AV59: 135 | AW59: -10 | AX59: 0 | AY59: 0 | AZ59: 0 | BA59: 0 | BH59: 12 | BI59: 12 | BJ59: 0
A60: 64 | B60: 59 | C60: 59 | D60: 莲塘六中 | E60: 初中 | F60: 初中 | G60: 县直学校 | H60: 2770 | I60: 2770 | J60: 44 | K60: 44 | N60: 7 | O60: 7 | P60: 123.2 | Q60: 123.2 | R60: 130.2 | S60: 130 | T60: 136 | V60: 5 | AO60: 9 | AP60: -1 | AS60: -3 | AT60: -3 | AU60: 143 | AV60: 143 | AW60: -13 | AX60: 0 | AY60: 0 | AZ60: 0 | BA60: 0 | BH60: 4 | BI60: 4 | BJ60: 0
A61: 65 | B61: 60 | C61: 60 | D61: 莲塘七中 | E61: 初中 | F61: 初中 | G61: 县直学校 | H61: 1877 | I61: 1877 | J61: 30 | K61: 30 | N61: 5 | O61: 5 | P61: 84 | Q61: 84 | R61: 89 | S61: 89 | T61: 109 | V61: 3 | AO61: 1 | AP61: -8 | AQ61: 0 | AR61: 0 | AS61: -2 | AT61: -2 | AU61: 101 | AV61: 101 | AW61: -12 | AX61: 0 | AY61: 0 | AZ61: 0 | BA61: 0 | BH61: 7 | BI61: 7 | BJ61: 0
A62: 66 | B62: 61 | C62: 61 | D62: 银河学校（小学） | E62: 县直九年一贯制学校 | F62: 小学 | G62: 县直学校 | H62: 2980 | I62: 4340 | J62: 48 | K62: 48 | N62: 7 | O62: 9 | P62: =K62*2+M62*1.5+L62 -> 96 | Q62: 163.2 | R62: 172.2 | S62: 172 | T62: 92 | U62: 2 | V62: 15 | AM62: 1 | AO62: 12 | AP62: -19 | AU62: 103 | AV62: 191 | AW62: -19 | AX62: 0 | AY62: 0 | AZ62: 0 | BA62: 0 | BC62: 虽现有教师数大于需求数，但因学科人数不平衡，还需申报2020年补充教师12人。 | BD62: 12 | BE62: 11 | BG62: 10 | BH62: 2 | BI62: 12 | BJ62: 11
A63: 68 | B63: 62 | C63: 62 | D63: 洪州学校(小学含莲六小） | E63: 县直九年一贯制学校 | F63: 小学 | G63: 县直学校 | H63: 3549 | I63: 5281 | J63: 57 | K63: 57 | N63: 9 | O63: 9 | P63: 114 | Q63: 192.4 | R63: 201.4 | S63: 201 | T63: 69 | V63: 5 | AN63: 0 | AO63: 49 | AP63: -2 | AQ63: 0 | AR63: -1 | AS63: 0 | AT63: 0 | AU63: 120 | AV63: 228 | AW63: -27 | AX63: 0 | AY63: 0 | AZ63: 0 | BA63: 0 | BC63: 由于化解大班额问题，故教师需求数61人。 | BD63: 34 | BE63: 28 | BG63: 56 | BH63: 5 | BI63: 61 | BJ63: 28
A64: 70 | B64: 63 | C64: 63 | D64: 新城学校（小学） | E64: 县直九年一贯制学校 | F64: 小学 | G64: 县直学校 | H64: 1743 | I64: 3106 | J64: 31 | K64: 31 | N64: 5 | O64: 9 | P64: 62 | Q64: 126.4 | R64: 135.4 | S64: 135 | T64: 53 | U64: 3 | V64: 6 | AM64: 2 | AN64: 0 | AO64: 1 | AP64: -1 | AQ64: 0 | AR64: 0 | AS64: 0 | AT64: 0 | AU64: 64 | AV64: 137 | AW64: -2 | AX64: 0 | AY64: 0 | AZ64: 0 | BA64: 0 | BC64: 小学增加9个班，初中增加4个班 | BD64: 29 | BE64: 27 | BG64: 4 | BI64: 4 | BJ64: 27
A65: 72 | B65: 64 | C65: 64 | D65: 诚义学校（小学） | E65: 县直九年一贯制学校 | F65: 小学 | G65: 县直学校 | H65: 2622 | I65: 3655 | J65: 44 | K65: 44 | N65: 7 | O65: 9 | P65: 88 | Q65: 138.4 | R65: 147.4 | S65: 147 | T65: 61 | U65: 5 | V65: 12 | AM65: 2 | AN65: 0 | AO65: 11 | AP65: -2 | AQ65: 0 | AR65: 0 | AS65: 0 | AT65: 0 | AU65: 89 | AV65: 167 | AW65: -20 | AX65: 0 | AY65: 0 | AZ65: 0 | BA65: 0 | BG65: 28 | BH65: 9 | BI65: 37 | BJ65: 0
A66: 74 | B66: 65 | C66: 65 | D66: 芳草学校（小学） | E66: 县直九年一贯制学校 | F66: 小学 | G66: 县直学校 | H66: 2222 | I66: 2934 | J66: 42 | K66: 42 | N66: 7 | O66: 7 | P66: 84 | Q66: 120.4 | R66: 127.4 | S66: 127 | T66: 72 | U66: 3 | V66: 10 | AM66: 1 | AO66: 8 | AU66: 94 | AV66: 149 | AW66: -22 | AX66: 0 | AY66: 0 | AZ66: 0 | BA66: 0 | BG66: 8 | BH66: 18 | BI66: 26 | BJ66: 0
A67: 76 | B67: 66 | C67: 66 | D67: 洪州汇仁学校(小学） | E67: 县直九年一贯制学校 | F67: 小学 | G67: 县直学校 | H67: 1658 | I67: 2337 | J67: 26 | K67: 26 | N67: 5 | O67: 7 | P67: 52 | Q67: 85.6 | R67: 92.6 | S67: 93 | T67: 40 | U67: 2 | AM67: 1 | AO67: 16 | AS67: -1 | AU67: 58 | AV67: 97 | AW67: -4 | AX67: 0 | AY67: 0 | AZ67: 0 | BA67: 0 | BC67: 预计一年级净增9个班需教师21人，七年级净增3个班需教师10人。 | BD67: 27 | BE67: 23 | BG67: 21 | BH67: 10 | BI67: 31 | BJ67: 23
A68: 78 | B68: 67 | C68: 67 | D68: 洪燕学校（小学） | E68: 县直九年一贯制学校 | F68: 小学 | G68: 县直学校 | H68: 2474 | I68: 3281 | J68: 41 | K68: 41 | N68: 7 | O68: 9 | P68: 82 | Q68: 121.2 | R68: 130.2 | S68: 130 | T68: 51 | U68: 3 | V68: 13 | AM68: 3 | AO68: 5 | AP68: -2 | AU68: 73 | AV68: 128 | AW68: 2 | AX68: 2 | AY68: 2 | AZ68: 2 | BA68: 2 | BD68: 27 | BE68: 29 | BG68: 19 | BH68: 10 | BI68: 29 | BJ68: 31
A69: 80 | B69: 68 | C69: 68 | D69: 洪亿学校（小学） | E69: 县直九年一贯制学校 | F69: 小学 | G69: 县直学校 | H69: 618 | I69: 746 | J69: 15 | K69: 15 | N69: 3 | O69: 3 | P69: 30 | Q69: 38.4 | R69: 41.4 | S69: 41 | T69: 22 | U69: 2 | V69: 1 | AM69: 2 | AO69: 10 | AP69: 0 | AU69: 37 | AV69: 51 | AW69: -10 | AX69: 0 | AY69: 0 | AZ69: 0 | BA69: 0 | BC69: 预计接收新生一年级6个班，七年级4个班，转学生200人左右4个班。申报2020年补充教师28人。 | BD69: 24 | BE69: 21 | BG69: 19 | BH69: 9 | BI69: 28 | BJ69: 21
A70: 82 | B70: 69 | C70: 69 | D70: 洪科小学 | E70: 小学 | F70: 小学 | G70: 县直学校 | H70: 781 | I70: 781 | J70: 20 | K70: =J70-M70 -> 20 | N70: 3 | O70: 3 | P70: 40 | Q70: 40 | R70: =O70+Q70 -> 43 | S70: 43 | T70: 10 | U70: 2 | V70: 12 | AM70: 1 | AN70: 0 | AO70: 14 | AP70: 0 | AQ70: 0 | AR70: 0 | AS70: 0 | AT70: 0 | AU70: =T70+U70+V70+W70+X70+Y70+Z70+AA70+AB70+AH70+AK70+AL70+AM70+AN70+AO70+AP70+AQ70+AR70+AS70+AT70 -> 39 | AV70: 39 | AW70: =S70-AV70 -> 4 | AX70: 4 | AY70: 4 | AZ70: 4 | BA70: 4 | BC70: 鉴于万科楼盘入住率不断提高，2020年学校秋季计划扩班招生，故申报2020年补充教师26人。 | BD70: 22 | BE70: 8 | BG70: 26 | BI70: =BG70+BH70 -> 26 | BJ70: =BA70+BE70 -> 12
A71: 83 | B71: 70 | C71: 70 | D71: 八一分校（小学） | E71: 县直九年一贯制学校 | F71: 小学 | G71: 县直学校 | H71: 1317 | I71: 1731 | J71: 22 | K71: 22 | N71: 5 | O71: 5 | P71: 44 | Q71: 63.6 | R71: 68.6 | S71: 69 | T71: 4 | U71: 2 | V71: 8 | AM71: 2 | AO71: 11 | AS71: -1 | AU71: 26 | AV71: 54 | AW71: 15 | AX71: 15 | AY71: 15 | AZ71: 15 | BA71: 15 | BC71: 预计初中新增6个年级，学生300名；小学新增5个班级学生200名。 | BD71: 22 | BE71: 24 | BG71: 24 | BH71: 13 | BI71: 37 | BJ71: 39
A72: 85 | B72: 71 | C72: 71 | D72: 洪范学校（小学） | E72: 县直九年一贯制学校 | F72: 小学 | G72: 县直学校 | H72: 595 | I72: 965 | J72: 14 | K72: 14 | N72: 3 | O72: 3 | P72: 28 | Q72: 50.4 | R72: 53.4 | S72: 53 | V72: 9 | AM72: 12 | AN72: 0 | AO72: 12 | AP72: 0 | AQ72: 0 | AR72: 0 | AS72: 0 | AT72: 0 | AU72: 33 | AV72: 59 | AW72: -6 | AX72: 0 | AY72: 0 | AZ72: 0 | BA72: 0 | BC72: 预计初中新增10个班级，小学新增12个班级 | BD72: 52 | BE72: 46 | BG72: 26 | BH72: 30 | BI72: 56 | BJ72: 46
A73: 87 | B73: 72 | C73: 72 | D73: 洪新小学 | E73: 小学 | F73: 小学 | G73: 县直学校 | J73: 9 | K73: 9 | N73: 3 | O73: 3 | P73: 18 | Q73: 18 | R73: 21 | S73: 21 | AU73: 21 | AV73: 21 | AW73: 0 | AX73: 0 | AY73: 0 | AZ73: 0 | BA73: 0
A74: 22 | C74: 25 | D74: 莲塘实验学校（初中） | E74: 县直九年一贯制学校 | F74: 初中 | G74: 县直学校 | H74: 152 | J74: 3 | K74: 3 | N74: 3 | P74: =K74*2.8 -> 8.4 | T74: 10 | AN74: 0 | AO74: 0 | AP74: 0 | AQ74: 0 | AR74: 0 | AS74: 0 | AT74: 0 | AU74: =T74+U74+V74+W74+X74+Y74+Z74+AA74+AB74+AH74+AK74+AL74+AM74+AN74+AO74+AP74+AQ74+AR74+AS74+AT74 -> 10
A75: 24 | C75: 26 | D75: 昌南实验学校（初中） | E75: 县直九年一贯制学校 | F75: 初中 | G75: 县直学校 | H75: 225 | J75: 6 | K75: 6 | N75: 3 | P75: 16.8 | T75: 14 | V75: 3 | AP75: -1 | AU75: 16
A76: 26 | C76: 27 | D76: 黄马凤凰沟实验学校（初中） | E76: 县直九年一贯制学校 | F76: 初中 | G76: 农村初级中学 | H76: 92 | J76: 3 | K76: 3 | N76: 3 | P76: 8.4 | T76: 14 | AO76: 1 | AP76: -3 | AU76: 12
A77: 28 | C77: 28 | D77: 银三角实验学校（初中） | E77: 县直九年一贯制学校 | F77: 初中 | G77: 县直学校 | H77: 377 | J77: 9 | K77: 9 | N77: 3 | P77: 25.2 | T77: 25 | U77: 1 | V77: 3 | AN77: 0 | AO77: 0 | AP77: -2 | AQ77: 0 | AR77: 0 | AS77: -2 | AT77: 0 | AU77: 25
A78: 38 | C78: 37 | D78: 新联学校（初中） | E78: 县直九年一贯制学校 | F78: 初中 | G78: 农村初级中学 | H78: 307 | J78: 9 | K78: 9 | N78: 3 | P78: 25.2 | T78: 30 | Z78: 7 | AM78: -5 | AN78: 0 | AO78: 0 | AP78: -8 | AQ78: 0 | AR78: 0 | AS78: 0 | AT78: 0 | AU78: 24
A79: 41 | C79: 39 | D79: 幽兰学校（初中） | E79: 县直九年一贯制学校 | F79: 初中 | G79: 农村初级中学 | H79: 355 | J79: 8 | K79: 8 | N79: 3 | P79: 22.4 | T79: 52 | AI79: 1 | AO79: 1 | AP79: -6 | AR79: -1 | AS79: -1 | AT79: -1 | AU79: 44
A80: 43 | C80: 40 | D80: 渡头学校（初中） | E80: 县直九年一贯制学校 | F80: 初中 | G80: 农村初级中学 | H80: 283 | J80: 7 | K80: 7 | N80: 3 | P80: 19.6 | T80: 46 | AN80: 0 | AO80: 0 | AP80: -1 | AQ80: 0 | AR80: 0 | AS80: 0 | AT80: 0 | AU80: 45
A81: 48 | C81: 44 | D81: 向塘实验学校（初中） | E81: 县直九年一贯制学校 | F81: 初中 | G81: 农村初级中学 | H81: 1352 | J81: 21 | K81: 21 | N81: 5 | P81: 58.8 | T81: 92 | U81: 2 | V81: 4 | Z81: 3 | AM81: -1 | AN81: 0 | AO81: 0 | AP81: -5 | AQ81: 0 | AR81: 0 | AS81: -7 | AT81: -5 | AU81: 83
A82: 50 | C82: 45 | D82: 向塘向阳学校(初中） | E82: 县直九年一贯制学校 | F82: 初中 | G82: 农村初级中学 | H82: 175 | J82: 6 | K82: 6 | N82: 3 | P82: 16.8 | T82: 23 | Z82: 2 | AM82: -2 | AN82: 0 | AO82: 0 | AP82: -1 | AQ82: 0 | AR82: 0 | AS82: 0 | AT82: 0 | AU82: 22
A83: 67 | C83: 61 | D83: 银河学校（初中） | E83: 县直九年一贯制学校 | F83: 初中 | G83: 县直学校 | H83: 1360 | J83: 24 | K83: 24 | N83: 5 | P83: 67.2 | T83: 73 | U83: 1 | V83: 19 | AM83: 1 | AO83: 1 | AP83: -7 | AU83: 88
A84: 69 | C84: 62 | D84: 洪州学校(初中） | E84: 县直九年一贯制学校 | F84: 初中 | G84: 县直学校 | H84: 1732 | J84: 28 | K84: 28 | N84: 5 | P84: 78.4 | T84: 81 | V84: 6 | AN84: 0 | AO84: 21 | AQ84: 0 | AR84: 0 | AS84: 0 | AT84: 0 | AU84: 108
A85: 71 | C85: 63 | D85: 新城学校（初中） | E85: 县直九年一贯制学校 | F85: 初中 | G85: 县直学校 | H85: 1363 | J85: 23 | K85: 23 | N85: 5 | P85: 64.4 | T85: 60 | U85: 2 | V85: 10 | AM85: 2 | AN85: 0 | AO85: 2 | AP85: -3 | AQ85: 0 | AR85: 0 | AS85: 0 | AT85: 0 | AU85: 73
A86: 73 | C86: 64 | D86: 诚义学校（初中） | E86: 县直九年一贯制学校 | F86: 初中 | G86: 县直学校 | H86: 1033 | J86: 18 | K86: 18 | N86: 5 | P86: 50.4 | T86: 62 | U86: 3 | V86: 15 | AM86: 1 | AO86: 1 | AP86: -4 | AQ86: 0 | AR86: 0 | AS86: 0 | AT86: 0 | AU86: 78
A87: 75 | C87: 65 | D87: 芳草学校（初中） | E87: 县直九年一贯制学校 | F87: 初中 | G87: 县直学校 | H87: 712 | J87: 13 | K87: 13 | N87: 3 | P87: 36.4 | T87: 36 | U87: 3 | V87: 11 | AM87: 1 | AO87: 4 | AU87: 55
A88: 77 | C88: 66 | D88: 洪州汇仁学校(中学） | E88: 县直九年一贯制学校 | F88: 初中 | G88: 县直学校 | H88: 679 | J88: 12 | K88: 12 | N88: 3 | P88: 33.6 | T88: 30 | U88: 2 | V88: 1 | AM88: 2 | AO88: 4 | AU88: 39
A89: 79 | C89: 67 | D89: 洪燕学校（初中） | E89: 县直九年一贯制学校 | F89: 初中 | G89: 县直学校 | H89: 807 | J89: 14 | K89: 14 | N89: 3 | P89: 39.2 | T89: 38 | U89: 4 | V89: 9 | AM89: 2 | AO89: 2 | AU89: 55
A90: 81 | C90: 68 | D90: 洪亿学校（初中） | E90: 县直九年一贯制学校 | F90: 初中 | G90: 县直学校 | H90: 128 | J90: 3 | K90: 3 | N90: 3 | P90: 8.4 | T90: 8 | U90: 2 | V90: 2 | AM90: 1 | AO90: 2 | AP90: -1 | AU90: 14
A91: 84 | C91: 70 | D91: 八一分校（初中） | E91: 县直九年一贯制学校 | F91: 初中 | G91: 县直学校 | H91: 414 | J91: 7 | K91: 7 | N91: 3 | P91: 19.6 | T91: 6 | U91: 3 | V91: 15 | AO91: 4 | AU91: 28
A92: 86 | C92: 71 | D92: 洪范学校（初中） | E92: 县直九年一贯制学校 | F92: 初中 | G92: 县直学校 | H92: 370 | J92: 8 | K92: 8 | N92: 3 | P92: 22.4 | V92: 9 | AH92: 4 | AM92: 7 | AN92: 0 | AO92: 6 | AP92: 0 | AQ92: 0 | AR92: 0 | AS92: 0 | AT92: 0 | AU92: 26
A93: 合计 | H93: =SUM(H6:H92) -> 135355 | I93: 135355 | J93: 2895 | K93: 2795 | L93: 36 | M93: 100 | O93: =SUM(O6:O92) -> 356 | S93: 7202 | T93: 7275 | U93: 91 | V93: 312 | W93: 51 | X93: 76 | Y93: 48 | Z93: 127 | AA93: 48 | AB93: 50 | AC93: 76 | AD93: 77 | AE93: 73 | AF93: 79 | AG93: 355 | AH93: 23 | AI93: 6 | AJ93: 9 | AK93: 10 | AL93: 15 | AM93: 0 | AN93: 20 | AO93: 516 | AP93: -638 | AQ93: -9 | AR93: -18 | AS93: -151 | AT93: -106 | AU93: 7761 | AV93: 7761 | BA93: =SUM(BA6:BA92) -> 115 | BE93: =SUM(BE6:BE92) -> 237 | BJ93: =SUM(BJ6:BJ92) -> 352

Sheet 急需学科排序汇总表 (hidden)
A1: 附件4：
A2: 南昌县申报2020年补充教师急需学科排序表（2020年2月上报）
A3: 序号 | B3: 学校名称 | C3: 学段 | D3: 摸底核准 补充教师数 | E3: 新增班级 补充教师数 | F3: 合计 补充教师数 | G3: 合计 | H3: 县内 选调 | I3: 第1急需 | J3: 第2急需 | K3: 第3急需 | L3: 第4急需 | M3: 第5急需 | N3: 第6急需 | O3: 第7急需 | P3: 第8急需 | Q3: 第9急需 | R3: 第10急需 | S3: 第11急需 | T3: 第12急需 | U3: 第13急需 | V3: 第14急需 | W3: 第15急需 | X3: 第16急需 | Y3: 第17急需 | Z3: 第18急需 | AA3: 第19急需 | AB3: 第20急需 | AC3: 第21急需 | AD3: 第22急需 | AE3: 第23急需 | AF3: 第24急需 | AG3: 第25急需 | AH3: 第26急需 | AI3: 第27急需 | AJ3: 第28急需 | AK3: 第29急需 | AL3: 第30急需 | AM3: 第31急需 | AN3: 第32急需 | AO3: 第33急需 | AP3: 第34急需 | AQ3: 第35急需 | AR3: 第36急需 | AS3: 第37急需 | AT3: 第38急需 | AU3: 第39急需 | AV3: 第40急需 | AW3: 第41急需 | AX3: 第42急需 | AY3: 第43急需 | AZ3: 第44急需 | BA3: 第45急需 | BB3: 第46急需 | BC3: 第47急需 | BD3: 第48急需 | BE3: 第49急需 | BF3: 第50急需 | BG3: 第51急需 | BH3: 第52急需 | BI3: 第53急需 | BJ3: 第54急需 | BK3: 第55急需 | BL3: 第56急需 | BM3: 第57急需
A4: 1 | B4: 南新中小 | C4: 小学 | F4: =IF(D4+E4>0,D4+E4,"") ->  | G4: 9 | I4: 小学语文 | J4: 小学数学 | K4: 小学语文 | L4: 小学数学 | M4: 小学语文 | N4: 小学数学 | O4: 小学英语 | P4: 小学英语 | Q4: 小学英语
A5: 2 | B5: 蒋巷中小 | C5: 小学 | D5: 4 | F5: 4 | G5: 24 | I5: 小学语文 | J5: 小学数学 | K5: 小学英语 | L5: 小学语文 | M5: 小学数学 | N5: 小学英语 | O5: 小学语文 | P5: 小学数学 | Q5: 小学英语 | R5: 小学语文 | S5: 小学数学 | T5: 小学英语 | U5: 小学语文 | V5: 小学数学 | W5: 小学英语 | X5: 小学语文 | Y5: 小学数学 | Z5: 小学英语 | AA5: 小学语文 | AB5: 小学数学 | AC5: 小学英语 | AD5: 小学音乐 | AE5: 小学体育 | AF5: 小学美术
A6: 3 | B6: 塘南中小 | C6: 小学 | D6: 6 | F6: 6 | G6: 23 | I6: 小学语文 | J6: 小学语文 | K6: 小学语文 | L6: 小学数学 | M6: 小学数学 | N6: 小学数学 | O6: 小学英语 | P6: 小学语文 | Q6: 小学语文 | R6: 小学语文 | S6: 小学数学 | T6: 小学数学 | U6: 小学数学 | V6: 小学英语 | W6: 小学体育 | X6: 小学音乐 | Y6: 小学科学 | Z6: 小学美术 | AA6: 小学思品 | AB6: 小学音乐 | AC6: 小学科学 | AD6: 小学美术 | AE6: 小学体育
A7: 4 | B7: 泾口中小 | C7: 小学 | G7: 6 | I7: 小学语文 | J7: 小学体育 | K7: 小学数学 | L7: 小学音乐 | M7: 小学体育 | N7: 小学音乐
A8: 7 | B8: 向塘中小 | C8: 小学 | D8: 12 | F8: 12 | G8: 44 | I8: 小学语文 | J8: 小学数学 | K8: 小学语文 | L8: 小学数学 | M8: 小学语文 | N8: 小学数学 | O8: 小学语文 | P8: 小学数学 | Q8: 小学英语 | R8: 小学英语 | S8: 小学语文 | T8: 小学数学 | U8: 小学语文 | V8: 小学数学 | W8: 小学语文 | X8: 小学数学 | Y8: 小学语文 | Z8: 小学数学 | AA8: 小学英语 | AB8: 小学英语 | AC8: 小学语文 | AD8: 小学数学 | AE8: 小学语文 | AF8: 小学数学 | AG8: 小学语文 | AH8: 小学数学 | AI8: 小学语文 | AJ8: 小学数学 | AK8: 小学英语 | AL8: 小学英语 | AM8: 小学语文 | AN8: 小学数学 | AO8: 小学语文 | AP8: 小学数学 | AQ8: 小学语文 | AR8: 小学数学 | AS8: 小学语文 | AT8: 小学数学 | AU8: 小学英语 | AV8: 小学英语 | AW8: 小学英语 | AX8: 小学英语 | AY8: 小学音乐 | AZ8: 小学音乐
A9: 10 | B9: 冈上中小 | C9: 小学 | D9: 8 | F9: 8 | G9: 8 | I9: 小学语文 | J9: 小学数学 | K9: 小学英语 | L9: 小学体育 | M9: 小学音乐 | N9: 小学美术 | O9: 小学语文 | P9: 小学英语
A10: 11 | B10: 广福中小 | C10: 小学 | D10: 9 | F10: 9 | G10: 24 | I10: 小学数学 | J10: 小学语文 | K10: 小学数学 | L10: 小学语文 | M10: 小学数学 | N10: 小学语文 | O10: 小学数学 | P10: 小学语文 | Q10: 小学数学 | R10: 小学语文 | S10: 小学数学 | T10: 小学语文 | U10: 小学数学 | V10: 小学语文 | W10: 小学数学 | X10: 小学语文 | Y10: 小学美术 | Z10: 小学音乐 | AA10: 小学体育 | AB10: 小学信息技术
A11: 12 | B11: 富山中小 | C11: 小学 | D11: 16 | F11: =IF(D11+E11>0,D11+E11,"") -> 16 | G11: 48 | I11: 小学语文 | J11: 小学数学 | K11: 小学语文 | L11: 小学数学 | M11: 小学语文 | N11: 小学数学 | O11: 小学语文 | P11: 小学数学 | Q11: 小学语文 | R11: 小学数学 | S11: 小学语文 | T11: 小学数学 | U11: 小学语文 | V11: 小学数学 | W11: 小学语文 | X11: 小学数学 | Y11: 小学语文 | Z11: 小学数学 | AA11: 小学语文 | AB11: 小学数学 | AC11: 小学语文 | AD11: 小学数学 | AE11: 小学语文 | AF11: 小学数学 | AG11: 小学语文 | AH11: 小学数学 | AI11: 小学语文 | AJ11: 小学数学 | AK11: 小学语文 | AL11: 小学数学 | AM11: 小学英语 | AN11: 小学英语 | AO11: 小学英语 | AP11: 小学英语 | AQ11: 小学英语 | AR11: 小学英语 | AS11: 小学科学 | AT11: 小学音乐 | AU11: 小学美术 | AV11: 小学体育 | AW11: 小学科学 | AX11: 小学音乐 | AY11: 小学美术 | AZ11: 小学体育 | BA11: 小学科学 | BB11: 小学音乐 | BC11: 小学美术 | BD11: 小学体育
A12: 13 | B12: 东新中小 | C12: 小学 | G12: 20 | I12: 小学语文 | J12: 小学语文 | K12: 小学语文 | L12: 小学语文 | M12: 小学数学 | N12: 小学数学 | O12: 小学数学 | P12: 小学数学 | Q12: 小学英语 | R12: 小学英语 | S12: 小学思品 | T12: 小学音乐 | U12: 小学音乐 | V12: 小学体育 | W12: 小学体育 | X12: 小学美术 | Y12: 小学美术 | Z12: 小学科学 | AA12: 小学心理健康 | AB12: 小学信息技术 | AS12: 3 | AT12: 3 | AU12: 3 | AV12: 3
A13: 14 | B13: 八一中小 | C13: 小学 | D13: 3 | F13: 3 | G13: 5 | I13: 小学体育 | J13: 小学美术 | K13: 小学音乐 | L13: 小学体育
A14: 15 | B14: 莲塘中小 | C14: 小学 | D14: 4 | F14: 4 | G14: 14 | I14: 小学音乐 | J14: 小学美术 | K14: 小学音乐 | L14: 小学体育 | M14: 小学语文 | N14: 小学数学 | O14: 小学语文 | P14: 小学数学 | Q14: 小学语文 | R14: 小学数学 | S14: 小学语文 | T14: 小学数学 | U14: 小学语文 | V14: 小学数学
A15: 16 | B15: 莲塘一小 | C15: 小学 | G15: 4 | I15: 小学英语 | J15: 小学英语 | K15: 小学数学 | L15: 小学语文
A16: 19 | B16: 莲塘四小 | C16: 小学 | G16: 22 | I16: 小学数学 | J16: 小学语文 | K16: 小学英语 | L16: 小学体育 | M16: 小学数学 | N16: 小学语文 | O16: 小学英语 | P16: 小学体育 | Q16: 小学数学 | R16: 小学语文 | S16: 小学英语 | T16: 小学音乐 | U16: 小学音乐 | V16: 小学美术 | W16: 小学美术 | X16: 小学科学 | Y16: 小学科学 | Z16: 小学信息技术 | AA16: 小学信息技术 | AB16: 小学心理健康 | AC16: 小学心理健康 | AD16: 小学思品
A17: 20 | B17: 县特教 | C17: 小学 | E17: 1 | F17: 1 | G17: 2 | I17: 小学语文 | J17: 小学数学
A18: 26 | B18: 昌南实验（小学） | C18: 小学 | G18: 3 | I18: 小学语文 | J18: 小学数学 | K18: 小学语文
A19: 26 | B19: 昌南实验（初中） | C19: 初中 | G19: 2 | I19: 初中语文 | J19: 初中数学
A20: 27 | B20: 凤凰沟实验（初中） | C20: 初中 | G20: 2 | I20: 初中化学 | J20: 初中数学
A21: 28 | B21: 银三角实验（小学） | C21: 小学 | G21: 6 | I21: 小学语文 | J21: 小学语文 | K21: 小学数学 | L21: 小学数学 | M21: 小学美术 | N21: 小学科学
A22: 28 | B22: 银三角实验（初中） | C22: 初中 | G22: 14 | I22: 初中数学 | J22: 初中语文 | K22: 初中思品 | L22: 初中数学 | M22: 初中化学 | N22: 初中物理 | O22: 初中数学 | P22: 初中历史 | Q22: 初中地理 | R22: 初中信息技术 | S22: 初中历史 | T22: 初中地理 | U22: 初中思品 | V22: 初中美术
A23: 30 | B23: 金沙路小学 | C23: 小学 | E23: 9 | F23: 9 | G23: 3 | H23: 3 | I23: 小学语文 | J23: 小学数学 | K23: 小学英语 | L23: 小学体育 | M23: 小学语文 | N23: 小学数学 | O23: 小学英语 | P23: 小学体育 | Q23: 小学语文 | R23: 小学数学 | S23: 小学英语 | T23: 小学体育 | U23: 小学语文 | V23: 小学数学 | W23: 小学英语 | X23: 小学语文 | Y23: 小学数学 | Z23: 小学语文 | AA23: 小学数学 | AB23: 小学语文 | AC23: 小学数学 | AD23: 小学语文 | AE23: 小学数学 | AF23: 小学语文 | AG23: 小学数学 | AH23: 小学语文 | AI23: 小学数学 | AJ23: 小学语文 | AK23: 小学数学 | AL23: 小学语文 | AM23: 小学数学 | AN23: 小学语文 | AO23: 小学数学
A24: 31 | B24: 振兴路小学 | C24: 小学 | D24: 6 | F24: 6 | G24: 21 | H24: 3 | I24: 小学英语 | J24: 小学英语 | K24: 小学英语 | L24: 小学英语 | M24: 小学英语 | N24: 小学语文 | O24: 小学语文 | P24: 小学语文 | Q24: 小学语文 | R24: 小学数学 | S24: 小学数学 | T24: 小学数学 | U24: 小学数学 | V24: 小学信息技术 | W24: 小学体育 | X24: 小学体育 | Y24: 小学美术 | Z24: 小学美术 | AA24: 小学美术 | AB24: 小学音乐 | AC24: 小学音乐
A25: 32 | B25: 墨山街小学 | C25: 小学 | D25: 2 | F25: 2 | G25: 3 | H25: 1 | I25: 小学体育 | J25: 小学音乐 | K25: 小学美术
A26: 33 | B26: 斗柏路小学 | C26: 小学 | E26: 1 | F26: 1 | H26: 1 | I26: 小学英语
A27: 34 | B27: 南新中学 | C27: 初中 | E27: 1 | F27: 1 | G27: 1 | I27: 初中音乐
A28: 35 | B28: 蒋巷二中 | C28: 初中 | G28: 13 | I28: 初中物理 | J28: 初中数学 | K28: 初中物理 | L28: 初中英语 | M28: 初中数学 | N28: 初中思品 | O28: 初中语文 | P28: 初中信息技术 | Q28: 初中地理 | R28: 初中生物 | S28: 初中音乐 | T28: 初中美术 | U28: 初中心理健康
A29: 36 | B29: 塘南中学 | C29: 初中 | E29: 2 | F29: 2 | G29: 3 | I29: 初中数学 | J29: 初中英语 | K29: 初中体育
A30: 37 | B30: 新联学校（小学） | C30: 小学 | G30: 4 | I30: 小学语文 | J30: 小学数学 | K30: 小学英语 | L30: 小学信息技术
A31: 37 | B31: 新联学校（初中） | C31: 初中 | G31: 9 | I31: 初中物理 | J31: 初中物理 | K31: 初中化学 | L31: 初中化学 | M31: 初中数学 | N31: 初中英语 | O31: 初中数学 | P31: 初中体育 | Q31: 初中美术
A32: 38 | B32: 泾口中学 | C32: 初中 | G32: 5 | I32: 初中音乐 | J32: 初中英语 | K32: 初中体育 | L32: 初中数学 | M32: 初中物理
A33: 41 | B33: 塔城中学 | C33: 初中 | E33: 1 | F33: 1 | G33: 1 | I33: 初中数学
A34: 42 | B34: 武阳中学 | C34: 初中 | D34: 6 | F34: 6 | G34: 12 | I34: 初中数学 | J34: 初中数学 | K34: 初中物理 | L34: 初中化学 | M34: 初中语文 | N34: 初中语文 | O34: 初中英语 | P34: 初中英语 | Q34: 初中思品 | R34: 初中历史 | S34: 初中地理 | T34: 初中生物
A35: 44 | B35: 向塘实验（小学） | C35: 小学 | G35: 8 | I35: 小学音乐 | J35: 小学语文 | K35: 小学语文 | L35: 小学数学 | M35: 小学数学 | N35: 小学英语 | O35: 小学英语 | P35: 小学体育
A36: 44 | B36: 向塘实验（初中） | C36: 初中 | G36: 12 | I36: 初中语文 | J36: 初中语文 | K36: 初中物理 | L36: 初中物理 | M36: 初中化学 | N36: 初中数学 | O36: 初中数学 | P36: 初中历史 | Q36: 初中历史 | R36: 初中体育 | S36: 初中思品 | T36: 初中思品
A37: 46 | B37: 黄马中学 | C37: 初中 | G37: 1 | I37: 初中美术
A38: 47 | B38: 三江中学 | C38: 初中 | G38: 5 | I38: 初中语文 | J38: 初中体育 | K38: 初中英语 | L38: 初中语文 | M38: 初中英语
A39: 48 | B39: 广福一中 | C39: 初中 | G39: 6 | I39: 初中物理 | J39: 初中体育 | K39: 初中数学 | L39: 初中英语 | M39: 初中语文 | N39: 初中历史
A40: 49 | B40: 广福二中 | C40: 初中 | E40: 3 | F40: 3 | G40: 5 | I40: 初中语文 | J40: 初中语文 | K40: 初中物理 | L40: 初中物理 | M40: 初中地理
A41: 50 | B41: 冈上中学 | C41: 初中 | G41: 2 | I41: 初中英语 | J41: 初中英语
A42: 51 | B42: 富山中学 | C42: 初中 | G42: 2 | I42: 初中化学 | J42: 初中思品
A43: 52 | B43: 东新中学 | C43: 初中 | G43: 7 | I43: 初中思品 | J43: 初中物理 | K43: 初中化学 | L43: 初中历史 | M43: 初中英语 | N43: 初中音乐 | O43: 初中体育
A44: 54 | B44: 莲塘一中 | C44: 高中 | D44: 14 | G44: 17 | I44: 高中语文 | J44: 高中物理 | K44: 高中数学 | L44: 高中政治 | M44: 高中英语 | N44: 高中心理 | O44: 高中体育 | P44: 高中美术
A45: 55 | B45: 莲塘二中 | C45: 高中 | D45: 46 | G45: 14 | I45: 高中思品 | J45: 高中语文 | K45: 高中化学 | L45: 高中数学 | M45: 高中信息技术 | N45: 高中美术 | O45: 高中音乐 | P45: 高中物理 | Q45: 高中地理 | R45: 高中历史 | S45: 高中体育
A46: 55 | B46: 莲塘二中 | I46: 2 | J46: 3 | K46: 1 | L46: 1 | M46: 1 | N46: 1 | O46: 1 | P46: 1 | Q46: 1 | R46: 1 | S46: 1
A47: 56 | B47: 莲塘三中 | C47: 高中 | D47: 33 | G47: 47 | I47: 高中语文 | J47: 高中历史 | K47: 高中数学 | L47: 高中生物 | M47: 高中地理 | N47: 高中化学 | O47: 高中英语 | P47: 高中物理 | Q47: 高中政治 | R47: 高中心理健康 | S47: 高中信息技术 | T47: 高中体育
A48: 56 | B48: 莲塘三中 | I48: 8 | J48: 6 | K48: 6 | L48: 4 | M48: 4 | N48: 3 | O48: 5 | P48: 3 | Q48: 2 | R48: 3 | S48: 2 | T48: 1
A49: 57 | B49: 莲塘四中 | C49: 初中 | D49: 29 | E49: 1 | F49: =IF(D49+E49>0,D49+E49,"") -> 30 | G49: 55 | H49: 5 | I49: 初中化学 | J49: 初中化学 | K49: 初中体育 | L49: 初中体育 | M49: 初中道法 | N49: 初中道法 | O49: 初中语文 | P49: 初中英语 | Q49: 初中数学 | R49: 初中语文 | S49: 初中数学 | T49: 初中英语 | U49: 初中物理 | V49: 初中语文 | W49: 初中数学 | X49: 初中英语 | Y49: 初中物理 | Z49: 初中道法 | AA49: 初中历史 | AB49: 初中语文 | AC49: 初中数学 | AD49: 初中英语 | AE49: 初中物理 | AF49: 初中道法 | AG49: 初中化学 | AH49: 初中历史 | AI49: 初中语文 | AJ49: 初中数学 | AK49: 初中英语 | AL49: 初中物理 | AM49: 初中道法 | AN49: 初中化学 | AO49: 初中历史 | AP49: 初中语文 | AQ49: 初中数学 | AR49: 初中英语 | AS49: 初中道法 | AT49: 初中化学 | AU49: 初中历史 | AV49: 初中语文 | AW49: 初中数学 | AX49: 初中英语 | AY49: 初中物理 | AZ49: 初中道法 | BA49: 初中历史 | BB49: 初中语文 | BC49: 初中数学 | BD49: 初中英语 | BE49: 初中体育 | BF49: 初中音乐 | BG49: 初中体育 | BH49: 初中地理 | BI49: 初中生物 | BJ49: 初中计算机 | BK49: 初中音乐
A50: 58 | B50: 莲塘五中 | C50: 初中 | G50: 12 | I50: 初中物理 | J50: 初中物理 | K50: 初中语文 | L50: 初中语文 | M50: 初中历史 | N50: 初中历史 | O50: 初中政治 | P50: 初中政治 | Q50: 初中生物 | R50: 初中信息 | S50: 初中地理 | T50: 初中化学
A51: 59 | B51: 莲塘六中 | C51: 初中 | G51: 4 | I51: 初中数学 | J51: 初中政治 | K51: 初中语文 | L51: 初中历史
A52: 60 | B52: 莲塘七中 | C52: 初中 | G52: 7 | I52: 初中数学 | J52: 初中语文 | K52: 初中英语 | L52: 初中化学 | M52: 初中数学 | N52: 初中英语 | O52: 初中语文
A53: 61 | B53: 银河学校（小学） | C53: 小学 | E53: 6 | F53: 6 | G53: 12 | H53: 2 | I53: 小学数学 | J53: 小学数学 | K53: 小学数学 | L53: 小学数学 | M53: 小学语文 | N53: 小学语文 | O53: 小学语文 | P53: 小学英语 | Q53: 小学英语 | R53: 小学科学 | S53: 小学思品 | T53: 小学心理健康
A54: 61 | B54: 银河学校（初中） | C54: 初中 | E54: 2 | F54: 2 | G54: 7 | I54: 初中历史 | J54: 初中思品 | K54: 初中化学 | L54: 初中物理 | M54: 初中地理 | N54: 初中生物 | O54: 初中心理健康
A55: 62 | B55: 洪州学校（小学） | C55: 小学 | E55: 29 | F55: 29 | G55: 57 | I55: 小学语文 | J55: 小学数学 | K55: 小学语文 | L55: 小学数学 | M55: 小学语文 | N55: 小学数学 | O55: 小学语文 | P55: 小学数学 | Q55: 小学语文 | R55: 小学数学 | S55: 小学语文 | T55: 小学数学 | U55: 小学语文 | V55: 小学数学 | W55: 小学语文 | X55: 小学数学 | Y55: 小学语文 | Z55: 小学数学 | AA55: 小学语文 | AB55: 小学数学 | AC55: 小学语文 | AD55: 小学数学 | AE55: 小学语文 | AF55: 小学数学 | AG55: 小学语文 | AH55: 小学数学 | AI55: 小学语文 | AJ55: 小学数学 | AK55: 小学语文 | AL55: 小学数学 | AM55: 小学语文 | AN55: 小学数学 | AO55: 小学语文 | AP55: 小学数学 | AQ55: 小学语文 | AR55: 小学数学 | AS55: 小学语文 | AT55: 小学数学 | AU55: 小学语文 | AV55: 小学数学 | AW55: 小学语文 | AX55: 小学数学 | AY55: 小学语文 | AZ55: 小学数学 | BA55: 小学语文 | BB55: 小学数学 | BC55: 小学语文 | BD55: 小学数学 | BE55: 小学语文 | BF55: 小学数学 | BG55: 小学语文 | BH55: 小学数学 | BI55: 小学语文 | BJ55: 小学数学 | BK55: 小学语文 | BL55: 小学英语 | BM55: 小学科学
A56: 62 | B56: 洪州学校（初中） | C56: 初中 | E56: 5 | F56: 5 | G56: 5 | H56: 1 | I56: 初中物理 | J56: 初中生物 | K56: 初中思品 | L56: 初中思品 | M56: 初中历史
A57: 63 | B57: 新城学校（小学） | C57: 小学 | E57: 19 | F57: 19 | G57: 2 | H57: 4 | I57: 小学语文 | J57: 小学数学 | K57: 小学语文 | L57: 小学数学 | M57: 小学语文 | N57: 小学数学 | O57: 小学语文 | P57: 小学数学 | Q57: 小学英语 | R57: 小学语文 | S57: 小学数学 | T57: 小学语文 | U57: 小学数学 | V57: 小学语文 | W57: 小学数学 | X57: 小学数学 | Y57: 小学数学 | Z57: 小学英语 | AA57: 小学数学
A58: 63 | B58: 新城学校（初中） | C58: 初中 | E58: 8 | F58: =IF(D58+E58>0,D58+E58,"") -> 8 | G58: 2 | H58: 1 | I58: 初中政治 | J58: 初中历史 | K58: 初中政治 | L58: 初中历史 | M58: 初中体育 | N58: 初中政治 | O58: 初中历史 | P58: 初中体育
A59: 64 | B59: 诚义学校（小学） | C59: 小学 | E59: 2 | F59: 2 | G59: 28 | H59: 2 | I59: 小学语文 | J59: 小学数学 | K59: 小学语文 | L59: 小学数学 | M59: 小学语文 | N59: 小学数学 | O59: 小学语文 | P59: 小学数学 | Q59: 小学语文 | R59: 小学数学 | S59: 小学语文 | T59: 小学数学 | U59: 小学语文 | V59: 小学语文 | W59: 小学数学 | X59: 小学语文 | Y59: 小学数学 | Z59: 小学英语 | AA59: 小学语文 | AB59: 小学语文 | AC59: 小学英语 | AD59: 小学语文 | AE59: 小学英语 | AF59: 小学体育 | AG59: 小学信息技术 | AH59: 小学科学 | AI59: 小学音乐 | AJ59: 小学美术
A60: 64 | B60: 诚义学校（初中） | C60: 初中 | E60: 1 | F60: 1 | G60: 9 | H60: 1 | I60: 初中思品 | J60: 初中物理 | K60: 初中历史 | L60: 初中语文 | M60: 初中英语 | N60: 初中数学 | O60: 初中英语 | P60: 初中语文 | Q60: 初中生物
A61: 65 | B61: 芳草学校（小学） | C61: 小学 | E61: 2 | F61: 2 | G61: 9 | H61: 2 | I61: 小学语文 | J61: 小学数学 | K61: 小学语文 | L61: 小学语文 | M61: 小学数学 | N61: 小学语文 | O61: 小学语文 | P61: 小学数学 | Q61: 小学美术
A62: 65 | B62: 芳草学校（初中） | C62: 初中 | E62: 1 | F62: 1 | G62: 20 | H62: 1 | I62: 初中历史 | J62: 初中语文 | K62: 初中语文 | L62: 初中语文 | M62: 初中历史 | N62: 初中政治 | O62: 初中语文 | P62: 初中体育 | Q62: 初中语文 | R62: 初中数学 | S62: 初中数学 | T62: 初中体育 | U62: 初中音乐 | V62: 初中信息 | W62: 初中体育 | X62: 初中音乐 | Y62: 初中美术 | Z62: 初中心理 | AA62: 初中体育 | AB62: 初中音乐
A63: 66 | B63: 洪州汇仁学校（小学） | C63: 小学 | E63: 16 | F63: 16 | G63: 21 | H63: 2 | I63: 小学语文 | J63: 小学语文 | K63: 小学语文 | L63: 小学语文 | M63: 小学语文 | N63: 小学语文 | O63: 小学语文 | P63: 小学语文 | Q63: 小学语文 | R63: 小学数学 | S63: 小学数学 | T63: 小学数学 | U63: 小学数学 | V63: 小学数学 | W63: 小学数学 | X63: 小学数学 | Y63: 小学数学 | Z63: 小学数学 | AA63: 小学音乐 | AB63: 小学体育 | AC63: 小学信息技术
A64: 66 | B64: 洪州汇仁学校（初中） | C64: 初中 | E64: 7 | F64: 7 | G64: 10 | H64: 3 | I64: 初中语文 | J64: 初中数学 | K64: 初中英语 | L64: 初中思品 | M64: 初中历史 | N64: 初中地理 | O64: 初中物理 | P64: 初中音乐 | Q64: 初中体育 | R64: 初中美术
A65: 67 | B65: 洪燕学校（小学） | C65: 小学 | D65: 1 | E65: 18 | F65: 19 | G65: 19 | H65: 5 | I65: 小学语文 | J65: 小学语文 | K65: 小学语文 | L65: 小学语文 | M65: 小学语文 | N65: 小学语文 | O65: 小学数学 | P65: 小学数学 | Q65: 小学数学 | R65: 小学英语 | S65: 小学英语 | T65: 小学英语 | U65: 小学思品 | V65: 小学思品 | W65: 小学音乐 | X65: 小学音乐 | Y65: 小学美术 | Z65: 小学美术 | AA65: 小学心理健康
A66: 67 | B66: 洪燕学校（初中） | C66: 初中 | D66: 1 | E66: 9 | F66: 10 | G66: 10 | H66: 1 | I66: 初中体育 | J66: 初中体育 | K66: 初中体育 | L66: 初中英语 | M66: 初中语文 | N66: 初中数学 | O66: 初中地理 | P66: 初中思品 | Q66: 初中历史 | R66: 初中化学
A67: 68 | B67: 洪亿学校（小学） | C67: 小学 | E67: 8 | F67: 8 | G67: 19 | H67: 1 | I67: 小学语文 | J67: 小学数学 | K67: 小学语文 | L67: 小学数学 | M67: 小学语文 | N67: 小学数学 | O67: 小学语文 | P67: 小学数学 | Q67: 小学语文 | R67: 小学数学 | S67: 小学语文 | T67: 小学数学 | U67: 小学语文 | V67: 小学数学 | W67: 小学数学 | X67: 小学体育 | Y67: 小学美术 | Z67: 小学信息技术 | AA67: 小学音乐
A68: 68 | B68: 洪亿学校（初中） | C68: 初中 | E68: 6 | F68: 6 | G68: 9 | H68: 1 | I68: 初中语文 | J68: 初中数学 | K68: 初中英语 | L68: 初中语文 | M68: 初中数学 | N68: 初中思品 | O68: 初中生物 | P68: 初中地理 | Q68: 初中历史
A69: 69 | B69: 洪科小学 | C69: 小学 | D69: 4 | E69: 22 | F69: 26 | G69: 26 | H69: 3 | I69: 小学语文 | J69: 小学语文 | K69: 小学语文 | L69: 小学语文 | M69: 小学语文 | N69: 小学语文 | O69: 小学语文 | P69: 小学语文 | Q69: 小学语文 | R69: 小学语文 | S69: 小学语文 | T69: 小学数学 | U69: 小学数学 | V69: 小学数学 | W69: 小学数学 | X69: 小学数学 | Y69: 小学数学 | Z69: 小学数学 | AA69: 小学数学 | AB69: 小学数学 | AC69: 小学数学 | AD69: 小学信息技术 | AE69: 小学美术 | AF69: 小学体育 | AG69: 小学音乐 | AH69: 小学英语
A70: 70 | B70: 莲一中八一分校（小学） | C70: 小学 | D70: 9 | E70: 16 | F70: 25 | G70: 26 | H70: 3 | I70: 小学语文 | J70: 小学数学 | K70: 小学英语 | L70: 小学语文 | M70: 小学数学 | N70: 小学英语 | O70: 小学语文 | P70: 小学数学 | Q70: 小学英语 | R70: 小学语文 | S70: 小学数学 | T70: 小学语文 | U70: 小学数学 | V70: 小学语文 | W70: 小学数学 | X70: 小学语文 | Y70: 小学数学 | Z70: 小学思品 | AA70: 小学科学 | AB70: 小学体育 | AC70: 小学美术 | AD70: 小学音乐 | AE70: 小学科学 | AF70: 小学信息 | AG70: 小学美术 | AH70: 小学音乐
A71: 70 | B71: 莲一中八一分校（初中） | C71: 初中 | D71: 6 | E71: 11 | F71: 17 | G71: 17 | H71: 4 | I71: 初中化学 | J71: 初中语文 | K71: 初中英语 | L71: 初中数学 | M71: 初中语文 | N71: 初中英语 | O71: 初中数学 | P71: 初中物理 | Q71: 初中生物 | R71: 初中历史 | S71: 初中地理 | T71: 初中语文 | U71: 初中英语 | V71: 初中数学 | W71: 初中语文 | X71: 初中英语 | Y71: 初中体育
A72: 71 | B72: 洪范学校（小学） | C72: 小学 | E72: 21 | F72: 21 | G72: 26 | H72: 3 | I72: 小学语文 | J72: 小学数学 | K72: 小学体育 | L72: 小学音乐 | M72: 小学美术 | N72: 小学体育 | O72: 小学数学 | P72: 小学数学 | Q72: 小学数学 | R72: 小学数学 | S72: 小学语文 | T72: 小学数学 | U72: 小学语文 | V72: 小学数学 | W72: 小学语文 | X72: 小学数学 | Y72: 小学语文 | Z72: 小学数学 | AA72: 小学语文 | AB72: 小学数学 | AC72: 小学语文 | AD72: 小学数学 | AE72: 小学语文 | AF72: 小学数学 | AG72: 小学语文 | AH72: 小学数学 | AI72: 小学英语
A73: 71 | B73: 洪范学校（初中） | C73: 初中 | E73: 25 | F73: 25 | G73: 30 | H73: 7 | I73: 初中语文 | J73: 初中思品 | K73: 初中历史 | L73: 初中物理 | M73: 初中数学 | N73: 初中思品 | O73: 初中语文 | P73: 初中英语 | Q73: 初中数学 | R73: 初中物理 | S73: 初中语文 | T73: 初中数学 | U73: 初中英语 | V73: 初中语文 | W73: 初中数学 | X73: 初中英语 | Y73: 初中语文 | Z73: 初中数学 | AA73: 初中英语 | AB73: 初中体育 | AC73: 初中历史 | AD73: 初中生物 | AE73: 初中地理 | AF73: 初中体育 | AG73: 初中语文 | AH73: 初中音乐 | AI73: 初中美术 | AJ73: 初中音乐 | AK73: 初中思品 | AL73: 初中历史 | AM73: 初中物理
B74: 总计（不含高中） | D74: =SUM(D4:D43,D49:D73) -> 126 | E74: 253 | F74: 379 | G74: 845 | H74: 60
A75: 说明：1.请各学校根据已完成的《南昌县申报2020年补充教师学科统计表（附件3）》人数填报《南昌县申报2020年补充教师急需学科排序表（附件4）》，附件4所填学科数及人数须与附件3上报学科数及人数一致。 2.请各学校按所需学科的急需程度由重到轻依次排列。 3.此表于2020年2月16日之前发电子稿至人事科邮箱rsk20010@126.com。 4.咨询电话85714049,13657090307。

Sheet 教师补充结构统筹表 (hidden)
A2: 南昌县申报2020年补充教师摸底核准表（115人） | V2: 新开班预计补充教师（238人） | AQ2: 县内选调考试新增缺额（36人） | BL2: 各学校报告缺额（138人） | CG2: 农村特岗（50人，最后环节，用于填补县内选调所造成部分农村学校缺额） | DB2: 小学、初中全省统招（300人） | DW2: 县内选调（预计解决70个县城缺额，造成的农村缺口由特岗填补） | ER2: 全省选调（80人，农村少补充，县直多补充） | FM2: 拟使用交流人员或定向实习生填补（小学6人，初中21人） | GH2: 待补充人数
A3: 序号 | B3: 学校名称 | C3: 类别 | D3: 学段 | E3: 思品 | F3: 语文 | G3: 数学 | H3: 英语 | I3: 音乐 | J3: 体育 | K3: 美术 | L3: 科学 | M3: 物理 | N3: 化学 | O3: 生物 | P3: 历史 | Q3: 地理 | R3: 心理健康教育 | S3: 信息技术 | T3: 总计 | V3: 序号 | W3: 学校名称 | X3: 类别 | Y3: 学段 | Z3: 思品 | AA3: 语文 | AB3: 数学 | AC3: 英语 | AD3: 音乐 | AE3: 体育 | AF3: 美术 | AG3: 科学 | AH3: 物理 | AI3: 化学 | AJ3: 生物 | AK3: 历史 | AL3: 地理 | AM3: 心理健康教育 | AN3: 信息技术 | AO3: 总计 | AQ3: 序号 | AR3: 学校名称 | AS3: 类别 | AT3: 学段 | AU3: 思品 | AV3: 语文 | AW3: 数学 | AX3: 英语 | AY3: 音乐 | AZ3: 体育 | BA3: 美术 | BB3: 科学 | BC3: 物理 | BD3: 化学 | BE3: 生物 | BF3: 历史 | BG3: 地理 | BH3: 心理健康教育 | BI3: 信息技术 | BJ3: 总计 | BL3: 序号 | BM3: 学校名称 | BN3: 类别 | BO3: 学段 | BP3: 思品 | BQ3: 语文 | BR3: 数学 | BS3: 英语 | BT3: 音乐 | BU3: 体育 | BV3: 美术 | BW3: 科学 | BX3: 物理 | BY3: 化学 | BZ3: 生物 | CA3: 历史 | CB3: 地理 | CC3: 心理健康教育 | CD3: 信息技术 | CE3: 总计 | CG3: 序号 | CH3: 学校名称 | CI3: 类别 | CJ3: 学段 | CK3: 思品 | CL3: 语文 | CM3: 数学 | CN3: 英语 | CO3: 音乐 | CP3: 体育 | CQ3: 美术 | CR3: 科学 | CS3: 物理 | CT3: 化学 | CU3: 生物 | CV3: 历史 | CW3: 地理 | CX3: 心理健康教育 | CY3: 信息技术 | CZ3: 总计 | DB3: 序号 | DC3: 学校名称 | DD3: 类别 | DE3: 学段 | DF3: 思品 | DG3: 语文 | DH3: 数学 | DI3: 英语 | DJ3: 音乐 | DK3: 体育 | DL3: 美术 | DM3: 科学 | DN3: 物理 | DO3: 化学 | DP3: 生物 | DQ3: 历史 | DR3: 地理 | DS3: 心理健康教育 | DT3: 信息技术 | DU3: 总计 | DW3: 序号 | DX3: 学校名称 | DY3: 类别 | DZ3: 学段 | EA3: 思品 | EB3: 语文 | EC3: 数学 | ED3: 英语 | EE3: 音乐 | EF3: 体育 | EG3: 美术 | EH3: 科学 | EI3: 物理 | EJ3: 化学 | EK3: 生物 | EL3: 历史 | EM3: 地理 | EN3: 心理健康教育 | EO3: 信息技术 | EP3: 总计 | ER3: 序号 | ES3: 学校名称 | ET3: 类别 | EU3: 学段 | EV3: 思品 | EW3: 语文 | EX3: 数学 | EY3: 英语 | EZ3: 音乐 | FA3: 体育 | FB3: 美术 | FC3: 科学 | FD3: 物理 | FE3: 化学 | FF3: 生物 | FG3: 历史 | FH3: 地理 | FI3: 心理健康教育 | FJ3: 信息技术 | FK3: 总计 | FM3: 序号 | FN3: 学校名称 | FO3: 类别 | FP3: 学段 | FQ3: 思品 | FR3: 语文 | FS3: 数学 | FT3: 英语 | FU3: 音乐 | FV3: 体育 | FW3: 美术 | FX3: 科学 | FY3: 物理 | FZ3: 化学 | GA3: 生物 | GB3: 历史 | GC3: 地理 | GD3: 心理健康教育 | GE3: 信息技术 | GF3: 总计 | GH3: 序号 | GI3: 学校名称 | GJ3: 类别 | GK3: 学段 | GL3: 思品 | GM3: 语文 | GN3: 数学 | GO3: 英语 | GP3: 音乐 | GQ3: 体育 | GR3: 美术 | GS3: 科学 | GT3: 物理 | GU3: 化学 | GV3: 生物 | GW3: 历史 | GX3: 地理 | GY3: 心理健康教育 | GZ3: 信息技术 | HA3: 总计
B4: 小学初中总计 | T4: =T96 -> 81 | W4: 小学初中总计 | AO4: =AO96 -> 237 | AR4: 小学初中总计 | BJ4: =BJ96 -> 33 | BM4: 小学初中总计 | CE4: =CE96 -> 141 | CH4: 小学初中总计 | CZ4: =CZ96 -> 47 | DC4: 小学初中总计 | DU4: =DU96 -> 300 | DX4: 小学初中总计 | EP4: =EP96 -> 70 | ES4: 小学初中总计 | FK4: =FK96 -> 80 | FN4: 小学初中总计 | GF4: =GF96 -> 27 | GI4: 小学初中总计 | HA4: =HA96 -> -32
CH5: 特岗可分配人数 | CJ5: 小学 | CL5: 7 | CM5: 6 | CN5: 5 | CO5: 8 | CP5: 7 | CQ5: 7 | CR5: 3 | CY5: 7 | CZ5: =SUM(CK5:CY5) -> 50 | DC5: 小学统招可分配人数 | DE5: 小学 | DF5: 2 | DG5: 73 | DH5: 63 | DI5: 27 | DJ5: 13 | DK5: 11 | DL5: 11 | DM5: 6 | DT5: 3 | DU5: =SUM(DF5:DT5) -> 209
CH6: 已分配人数 | CJ6: 小学 | CK6: =IF(CK51=0,"",CK51) ->  | CL6: 7 | CM6: 6 | CN6: 5 | CO6: 7 | CP6: 7 | CQ6: 6 | CR6: 3 | CY6: 6 | CZ6: 47 | DC6: 已分配人数 | DE6: 小学 | DF6: =IF(DF51=0,"",DF51) -> 2 | DG6: =IF(DG51=0,"",DG51) -> 73 | DH6: 63 | DI6: 27 | DJ6: 13 | DK6: 11 | DL6: 11 | DM6: 6 | DT6: 3 | DU6: 209
A7: 1 | B7: 南新中小 | C7: 乡镇 | D7: 小学 | T7: =SUM(E7:S7) -> 0 | V7: 1 | W7: 南新中小 | X7: 乡镇 | Y7: 小学 | AO7: =SUM(Z7:AN7) -> 0 | AQ7: 1 | AR7: 南新中小 | AS7: 乡镇 | AT7: 小学 | BJ7: =SUM(AU7:BI7) -> 0 | BL7: 1 | BM7: 南新中小 | BN7: 乡镇 | BO7: 小学 | CE7: =SUM(BP7:CD7) -> 0 | CG7: 1 | CH7: 南新中小 | CI7: 乡镇 | CJ7: 小学 | CN7: 1 | CQ7: 1 | CZ7: 2 | DB7: 1 | DC7: 南新中小 | DD7: 乡镇 | DE7: 小学 | DU7: 0 | DW7: 1 | DX7: 南新中小 | DY7: 乡镇 | DZ7: 小学 | EP7: =SUM(EA7:EO7) -> 0 | ER7: 1 | ES7: 南新中小 | ET7: 乡镇 | EU7: 小学 | FK7: =SUM(EV7:FJ7) -> 0 | FM7: 1 | FN7: 南新中小 | FO7: 乡镇 | FP7: 小学 | GF7: =SUM(FQ7:GE7) -> 0 | GH7: 1 | GI7: 南新中小 | GJ7: 乡镇 | GK7: 小学 | GL7: =IF(E7+Z7+AU7+BP7-CK7-DF7-EA7-EV7-FQ7=0,"",E7+Z7+AU7+BP7-CK7-DF7-EA7-EV7-FQ7) ->  | GM7: =IF(F7+AA7+AV7+BQ7-CL7-DG7-EB7-EW7-FR7=0,"",F7+AA7+AV7+BQ7-CL7-DG7-EB7-EW7-FR7) ->  | GO7: -1 | GR7: -1 | HA7: =SUM(GL7:GZ7) -> -2
A8: 2 | B8: 蒋巷中小 | C8: 乡镇 | D8: 小学 | T8: =SUM(E8:S8) -> 0 | V8: 2 | W8: 蒋巷中小 | X8: 乡镇 | Y8: 小学 | AO8: =SUM(Z8:AN8) -> 0 | AQ8: 2 | AR8: 蒋巷中小 | AS8: 乡镇 | AT8: 小学 | AW8: 3 | AX8: 1 | BJ8: =SUM(AU8:BI8) -> 4 | BL8: 2 | BM8: 蒋巷中小 | BN8: 乡镇 | BO8: 小学 | CE8: =SUM(BP8:CD8) -> 0 | CG8: 2 | CH8: 蒋巷中小 | CI8: 乡镇 | CJ8: 小学 | CM8: 2 | CN8: 1 | CO8: 1 | CP8: 1 | CQ8: 1 | CR8: 1 | CY8: 1 | CZ8: 8 | DB8: 2 | DC8: 蒋巷中小 | DD8: 乡镇 | DE8: 小学 | DG8: 2 | DH8: 2 | DK8: 1 | DL8: 1 | DU8: 6 | DW8: 2 | DX8: 蒋巷中小 | DY8: 乡镇 | DZ8: 小学 | EP8: =SUM(EA8:EO8) -> 0 | ER8: 2 | ES8: 蒋巷中小 | ET8: 乡镇 | EU8: 小学 | FK8: =SUM(EV8:FJ8) -> 0 | FM8: 2 | FN8: 蒋巷中小 | FO8: 乡镇 | FP8: 小学 | GF8: =SUM(FQ8:GE8) -> 0 | GH8: 2 | GI8: 蒋巷中小 | GJ8: 乡镇 | GK8: 小学 | GL8: =IF(E8+Z8+AU8+BP8-CK8-DF8-EA8-EV8-FQ8=0,"",E8+Z8+AU8+BP8-CK8-DF8-EA8-EV8-FQ8) ->  | GM8: -2 | GN8: -1 | GP8: -1 | GQ8: -2 | GR8: -2 | GS8: -1 | GZ8: -1 | HA8: =SUM(GL8:GZ8) -> -10
A9: 3 | B9: 塘南中小 | C9: 乡镇 | D9: 小学 | T9: =SUM(E9:S9) -> 0 | V9: 3 | W9: 塘南中小 | X9: 乡镇 | Y9: 小学 | AO9: =SUM(Z9:AN9) -> 0 | AQ9: 3 | AR9: 塘南中小 | AS9: 乡镇 | AT9: 小学 | AV9: 1 | AW9: 1 | BI9: 1 | BJ9: =SUM(AU9:BI9) -> 3 | BL9: 3 | BM9: 塘南中小 | BN9: 乡镇 | BO9: 小学 | CE9: =SUM(BP9:CD9) -> 0 | CG9: 3 | CH9: 塘南中小 | CI9: 乡镇 | CJ9: 小学 | CL9: 1 | CM9: 1 | CZ9: =SUM(CK9:CY9) -> 2 | DB9: 3 | DC9: 塘南中小 | DD9: 乡镇 | DE9: 小学 | DU9: =SUM(DF9:DT9) -> 0 | DW9: 3 | DX9: 塘南中小 | DY9: 乡镇 | DZ9: 小学 | EP9: =SUM(EA9:EO9) -> 0 | ER9: 3 | ES9: 塘南中小 | ET9: 乡镇 | EU9: 小学 | FK9: =SUM(EV9:FJ9) -> 0 | FM9: 3 | FN9: 塘南中小 | FO9: 乡镇 | FP9: 小学 | GF9: =SUM(FQ9:GE9) -> 0 | GH9: 3 | GI9: 塘南中小 | GJ9: 乡镇 | GK9: 小学 | GL9: =IF(E9+Z9+AU9+BP9-CK9-DF9-EA9-EV9-FQ9=0,"",E9+Z9+AU9+BP9-CK9-DF9-EA9-EV9-FQ9) ->  | GM9: =IF(F9+AA9+AV9+BQ9-CL9-DG9-EB9-EW9-FR9=0,"",F9+AA9+AV9+BQ9-CL9-DG9-EB9-EW9-FR9) ->  | GN9: =IF(G9+AB9+AW9+BR9-CM9-DH9-EC9-EX9-FS9=0,"",G9+AB9+AW9+BR9-CM9-DH9-EC9-EX9-FS9) ->  | GO9: =IF(H9+AC9+AX9+BS9-CN9-DI9-ED9-EY9-FT9=0,"",H9+AC9+AX9+BS9-CN9-DI9-ED9-EY9-FT9) ->  | GP9: =IF(I9+AD9+AY9+BT9-CO9-DJ9-EE9-EZ9-FU9=0,"",I9+AD9+AY9+BT9-CO9-DJ9-EE9-EZ9-FU9) ->  | GQ9: =IF(J9+AE9+AZ9+BU9-CP9-DK9-EF9-FA9-FV9=0,"",J9+AE9+AZ9+BU9-CP9-DK9-EF9-FA9-FV9) ->  | GR9: =IF(K9+AF9+BA9+BV9-CQ9-DL9-EG9-FB9-FW9=0,"",K9+AF9+BA9+BV9-CQ9-DL9-EG9-FB9-FW9) ->  | GS9: =IF(L9+AG9+BB9+BW9-CR9-DM9-EH9-FC9-FX9=0,"",L9+AG9+BB9+BW9-CR9-DM9-EH9-FC9-FX9) ->  | GT9: =IF(M9+AH9+BC9+BX9-CS9-DN9-EI9-FD9-FY9=0,"",M9+AH9+BC9+BX9-CS9-DN9-EI9-FD9-FY9) ->  | GU9: =IF(N9+AI9+BD9+BY9-CT9-DO9-EJ9-FE9-FZ9=0,"",N9+AI9+BD9+BY9-CT9-DO9-EJ9-FE9-FZ9) ->  | GV9: =IF(O9+AJ9+BE9+BZ9-CU9-DP9-EK9-FF9-GA9=0,"",O9+AJ9+BE9+BZ9-CU9-DP9-EK9-FF9-GA9) ->  | GW9: =IF(P9+AK9+BF9+CA9-CV9-DQ9-EL9-FG9-GB9=0,"",P9+AK9+BF9+CA9-CV9-DQ9-EL9-FG9-GB9) ->  | GX9: =IF(Q9+AL9+BG9+CB9-CW9-DR9-EM9-FH9-GC9=0,"",Q9+AL9+BG9+CB9-CW9-DR9-EM9-FH9-GC9) ->  | GY9: =IF(R9+AM9+BH9+CC9-CX9-DS9-EN9-FI9-GD9=0,"",R9+AM9+BH9+CC9-CX9-DS9-EN9-FI9-GD9) ->  | GZ9: =IF(S9+AN9+BI9+CD9-CY9-DT9-EO9-FJ9-GE9=0,"",S9+AN9+BI9+CD9-CY9-DT9-EO9-FJ9-GE9) -> 1 | HA9: =SUM(GL9:GZ9) -> 1
A10: 4 | B10: 泾口中小 | C10: 乡镇 | D10: 小学 | T10: 0 | V10: 4 | W10: 泾口中小 | X10: 乡镇 | Y10: 小学 | AO10: 0 | AQ10: 4 | AR10: 泾口中小 | AS10: 乡镇 | AT10: 小学 | BJ10: 0 | BL10: 4 | BM10: 泾口中小 | BN10: 乡镇 | BO10: 小学 | CE10: 0 | CG10: 4 | CH10: 泾口中小 | CI10: 乡镇 | CJ10: 小学 | CP10: 1 | CZ10: 1 | DB10: 4 | DC10: 泾口中小 | DD10: 乡镇 | DE10: 小学 | DU10: 0 | DW10: 4 | DX10: 泾口中小 | DY10: 乡镇 | DZ10: 小学 | EP10: 0 | ER10: 4 | ES10: 泾口中小 | ET10: 乡镇 | EU10: 小学 | FK10: 0 | FM10: 4 | FN10: 泾口中小 | FO10: 乡镇 | FP10: 小学 | GF10: 0 | GH10: 4 | GI10: 泾口中小 | GJ10: 乡镇 | GK10: 小学 | GQ10: -1 | HA10: -1
A11: 6 | B11: 武阳中小 | C11: 乡镇 | D11: 小学 | T11: 0 | V11: 6 | W11: 武阳中小 | X11: 乡镇 | Y11: 小学 | AO11: 0 | AQ11: 6 | AR11: 武阳中小 | AS11: 乡镇 | AT11: 小学 | AV11: 2 | AW11: 1 | AZ11: 1 | BI11: 1 | BJ11: 5 | BL11: 6 | BM11: 武阳中小 | BN11: 乡镇 | BO11: 小学 | CE11: 0 | CG11: 6 | CH11: 武阳中小 | CI11: 乡镇 | CJ11: 小学 | CL11: 2 | CM11: 1 | CP11: 1 | CY11: 1 | CZ11: 5 | DB11: 6 | DC11: 武阳中小 | DD11: 乡镇 | DE11: 小学 | DU11: 0 | DW11: 6 | DX11: 武阳中小 | DY11: 乡镇 | DZ11: 小学 | EP11: 0 | ER11: 6 | ES11: 武阳中小 | ET11: 乡镇 | EU11: 小学 | FK11: 0 | FM11: 6 | FN11: 武阳中小 | FO11: 乡镇 | FP11: 小学 | GF11: 0 | GH11: 6 | GI11: 武阳中小 | GJ11: 乡镇 | GK11: 小学 | HA11: 0
A12: 7 | B12: 向塘中小 | C12: 乡镇 | D12: 小学 | F12: 2 | G12: 1 | H12: 3 | T12: 6 | V12: 7 | W12: 向塘中小 | X12: 乡镇 | Y12: 小学 | AO12: 0 | AQ12: 7 | AR12: 向塘中小 | AS12: 乡镇 | AT12: 小学 | AW12: 2 | BJ12: 2 | BL12: 7 | BM12: 向塘中小 | BN12: 乡镇 | BO12: 小学 | CE12: 0 | CG12: 7 | CH12: 向塘中小 | CI12: 乡镇 | CJ12: 小学 | CL12: 1 | CM12: 1 | CO12: 1 | CQ12: 1 | CR12: 1 | CY12: 1 | CZ12: 6 | DB12: 7 | DC12: 向塘中小 | DD12: 乡镇 | DE12: 小学 | DG12: 2 | DH12: 2 | DI12: 2 | DU12: 6 | DW12: 7 | DX12: 向塘中小 | DY12: 乡镇 | DZ12: 小学 | EP12: 0 | ER12: 7 | ES12: 向塘中小 | ET12: 乡镇 | EU12: 小学 | EX12: 1 | EY12: 1 | FK12: 2 | FM12: 7 | FN12: 向塘中小 | FO12: 乡镇 | FP12: 小学 | GF12: 0 | GH12: 7 | GI12: 向塘中小 | GJ12: 乡镇 | GK12: 小学 | GM12: -1 | GN12: -1 | GP12: -1 | GR12: -1 | GS12: -1 | GZ12: -1 | HA12: -6
A13: 8 | B13: 黄马中小 | C13: 乡镇 | D13: 小学 | T13: 0 | V13: 8 | W13: 黄马中小 | X13: 乡镇 | Y13: 小学 | AO13: 0 | AQ13: 8 | AR13: 黄马中小 | AS13: 乡镇 | AT13: 小学 | BJ13: 0 | BL13: 8 | BM13: 黄马中小 | BN13: 乡镇 | BO13: 小学 | CE13: 0 | CG13: 8 | CH13: 黄马中小 | CI13: 乡镇 | CJ13: 小学 | CZ13: 0 | DB13: 8 | DC13: 黄马中小 | DD13: 乡镇 | DE13: 小学 | DU13: 0 | DW13: 8 | DX13: 黄马中小 | DY13: 乡镇 | DZ13: 小学 | EP13: 0 | ER13: 8 | ES13: 黄马中小 | ET13: 乡镇 | EU13: 小学 | FK13: 0 | FM13: 8 | FN13: 黄马中小 | FO13: 乡镇 | FP13: 小学 | GF13: 0 | GH13: 8 | GI13: 黄马中小 | GJ13: 乡镇 | GK13: 小学 | HA13: 0
A14: 9 | B14: 三江中小 | C14: 乡镇 | D14: 小学 | T14: 0 | V14: 9 | W14: 三江中小 | X14: 乡镇 | Y14: 小学 | AO14: 0 | AQ14: 9 | AR14: 三江中小 | AS14: 乡镇 | AT14: 小学 | BJ14: 0 | BL14: 9 | BM14: 三江中小 | BN14: 乡镇 | BO14: 小学 | CE14: 0 | CG14: 9 | CH14: 三江中小 | CI14: 乡镇 | CJ14: 小学 | CO14: 1 | CY14: 1 | CZ14: 2 | DB14: 9 | DC14: 三江中小 | DD14: 乡镇 | DE14: 小学 | DH14: 1 | DU14: 1 | DW14: 9 | DX14: 三江中小 | DY14: 乡镇 | DZ14: 小学 | EP14: 0 | ER14: 9 | ES14: 三江中小 | ET14: 乡镇 | EU14: 小学 | FK14: 0 | FM14: 9 | FN14: 三江中小 | FO14: 乡镇 | FP14: 小学 | GF14: 0 | GH14: 9 | GI14: 三江中小 | GJ14: 乡镇 | GK14: 小学 | GN14: -1 | GP14: -1 | GZ14: -1 | HA14: -3
A15: 10 | B15: 冈上中小 | C15: 乡镇 | D15: 小学 | F15: 1 | G15: 1 | H15: 1 | T15: =SUM(E15:S15) -> 3 | V15: 10 | W15: 冈上中小 | X15: 乡镇 | Y15: 小学 | AO15: =SUM(Z15:AN15) -> 0 | AQ15: 10 | AR15: 冈上中小 | AS15: 乡镇 | AT15: 小学 | AV15: 1 | BJ15: =SUM(AU15:BI15) -> 1 | BL15: 10 | BM15: 冈上中小 | BN15: 乡镇 | BO15: 小学 | CE15: =SUM(BP15:CD15) -> 0 | CG15: 10 | CH15: 冈上中小 | CI15: 乡镇 | CJ15: 小学 | CL15: 1 | CN15: 1 | CP15: 1 | CZ15: =SUM(CK15:CY15) -> 3 | DB15: 10 | DC15: 冈上中小 | DD15: 乡镇 | DE15: 小学 | DG15: 1 | DH15: 1 | DI15: 1 | DU15: =SUM(DF15:DT15) -> 3 | DW15: 10 | DX15: 冈上中小 | DY15: 乡镇 | DZ15: 小学 | EP15: =SUM(EA15:EO15) -> 0 | ER15: 10 | ES15: 冈上中小 | ET15: 乡镇 | EU15: 小学 | FK15: =SUM(EV15:FJ15) -> 0 | FM15: 10 | FN15: 冈上中小 | FO15: 乡镇 | FP15: 小学 | GF15: =SUM(FQ15:GE15) -> 0 | GH15: 10 | GI15: 冈上中小 | GJ15: 乡镇 | GK15: 小学 | GL15: =IF(E15+Z15+AU15+BP15-CK15-DF15-EA15-EV15-FQ15=0,"",E15+Z15+AU15+BP15-CK15-DF15-EA15-EV15-FQ15) ->  | GM15: =IF(F15+AA15+AV15+BQ15-CL15-DG15-EB15-EW15-FR15=0,"",F15+AA15+AV15+BQ15-CL15-DG15-EB15-EW15-FR15) ->  | GN15: =IF(G15+AB15+AW15+BR15-CM15-DH15-EC15-EX15-FS15=0,"",G15+AB15+AW15+BR15-CM15-DH15-EC15-EX15-FS15) ->  | GO15: =IF(H15+AC15+AX15+BS15-CN15-DI15-ED15-EY15-FT15=0,"",H15+AC15+AX15+BS15-CN15-DI15-ED15-EY15-FT15) -> -1 | GP15: =IF(I15+AD15+AY15+BT15-CO15-DJ15-EE15-EZ15-FU15=0,"",I15+AD15+AY15+BT15-CO15-DJ15-EE15-EZ15-FU15) ->  | GQ15: =IF(J15+AE15+AZ15+BU15-CP15-DK15-EF15-FA15-FV15=0,"",J15+AE15+AZ15+BU15-CP15-DK15-EF15-FA15-FV15) -> -1 | GR15: =IF(K15+AF15+BA15+BV15-CQ15-DL15-EG15-FB15-FW15=0,"",K15+AF15+BA15+BV15-CQ15-DL15-EG15-FB15-FW15) ->  | GS15: =IF(L15+AG15+BB15+BW15-CR15-DM15-EH15-FC15-FX15=0,"",L15+AG15+BB15+BW15-CR15-DM15-EH15-FC15-FX15) ->  | GT15: =IF(M15+AH15+BC15+BX15-CS15-DN15-EI15-FD15-FY15=0,"",M15+AH15+BC15+BX15-CS15-DN15-EI15-FD15-FY15) ->  | GU15: =IF(N15+AI15+BD15+BY15-CT15-DO15-EJ15-FE15-FZ15=0,"",N15+AI15+BD15+BY15-CT15-DO15-EJ15-FE15-FZ15) ->  | GV15: =IF(O15+AJ15+BE15+BZ15-CU15-DP15-EK15-FF15-GA15=0,"",O15+AJ15+BE15+BZ15-CU15-DP15-EK15-FF15-GA15) ->  | GW15: =IF(P15+AK15+BF15+CA15-CV15-DQ15-EL15-FG15-GB15=0,"",P15+AK15+BF15+CA15-CV15-DQ15-EL15-FG15-GB15) ->  | GX15: =IF(Q15+AL15+BG15+CB15-CW15-DR15-EM15-FH15-GC15=0,"",Q15+AL15+BG15+CB15-CW15-DR15-EM15-FH15-GC15) ->  | GY15: =IF(R15+AM15+BH15+CC15-CX15-DS15-EN15-FI15-GD15=0,"",R15+AM15+BH15+CC15-CX15-DS15-EN15-FI15-GD15) ->  | GZ15: =IF(S15+AN15+BI15+CD15-CY15-DT15-EO15-FJ15-GE15=0,"",S15+AN15+BI15+CD15-CY15-DT15-EO15-FJ15-GE15) ->  | HA15: =SUM(GL15:GZ15) -> -2
A16: 11 | B16: 广福中小 | C16: 乡镇 | D16: 小学 | F16: 1 | G16: 3 | S16: 1 | T16: 5 | V16: 11 | W16: 广福中小 | X16: 乡镇 | Y16: 小学 | AO16: 0 | AQ16: 11 | AR16: 广福中小 | AS16: 乡镇 | AT16: 小学 | AV16: 1 | BJ16: 1 | BL16: 11 | BM16: 广福中小 | BN16: 乡镇 | BO16: 小学 | CE16: 0 | CG16: 11 | CH16: 广福中小 | CI16: 乡镇 | CJ16: 小学 | CL16: 1 | CN16: 1 | CP16: 1 | CQ16: 1 | CY16: 1 | CZ16: 5 | DB16: 11 | DC16: 广福中小 | DD16: 乡镇 | DE16: 小学 | DG16: 2 | DH16: 1 | DU16: 3 | DW16: 11 | DX16: 广福中小 | DY16: 乡镇 | DZ16: 小学 | EP16: 0 | ER16: 11 | ES16: 广福中小 | ET16: 乡镇 | EU16: 小学 | FK16: 0 | FM16: 11 | FN16: 广福中小 | FO16: 乡镇 | FP16: 小学 | GF16: 0 | GH16: 11 | GI16: 广福中小 | GJ16: 乡镇 | GK16: 小学 | GM16: -1 | GN16: 2 | GO16: -1 | GQ16: -1 | GR16: -1 | HA16: -2
A17: 12 | B17: 富山中小 | C17: 乡镇 | D17: 小学 | T17: 0 | V17: 12 | W17: 富山中小 | X17: 乡镇 | Y17: 小学 | AO17: 0 | AQ17: 12 | AR17: 富山中小 | AS17: 乡镇 | AT17: 小学 | AX17: 1 | BJ17: 1 | BL17: 12 | BM17: 富山中小 | BN17: 乡镇 | BO17: 小学 | CE17: 0 | CG17: 12 | CH17: 富山中小 | CI17: 乡镇 | CJ17: 小学 | CN17: 1 | CO17: 1 | CP17: 1 | CQ17: 1 | CY17: 1 | CZ17: 5 | DB17: 12 | DC17: 富山中小 | DD17: 乡镇 | DE17: 小学 | DI17: 1 | DU17: 1 | DW17: 12 | DX17: 富山中小 | DY17: 乡镇 | DZ17: 小学 | EP17: 0 | ER17: 12 | ES17: 富山中小 | ET17: 乡镇 | EU17: 小学 | FK17: 0 | FM17: 12 | FN17: 富山中小 | FO17: 乡镇 | FP17: 小学 | GF17: 0 | GH17: 12 | GI17: 富山中小 | GJ17: 乡镇 | GK17: 小学 | GO17: -1 | GP17: -1 | GQ17: -1 | GR17: -1 | GZ17: -1 | HA17: -5
A18: 13 | B18: 东新中小 | C18: 乡镇 | D18: 小学 | T18: 0 | V18: 13 | W18: 东新中小 | X18: 乡镇 | Y18: 小学 | AO18: 0 | AQ18: 13 | AR18: 东新中小 | AS18: 乡镇 | AT18: 小学 | AV18: 1 | AX18: 1 | BJ18: 2 | BL18: 13 | BM18: 东新中小 | BN18: 乡镇 | BO18: 小学 | CE18: 0 | CG18: 13 | CH18: 东新中小 | CI18: 乡镇 | CJ18: 小学 | CL18: 1 | CO18: 1 | CR18: 1 | CZ18: 3 | DB18: 13 | DC18: 东新中小 | DD18: 乡镇 | DE18: 小学 | DG18: 1 | DI18: 1 | DU18: 2 | DW18: 13 | DX18: 东新中小 | DY18: 乡镇 | DZ18: 小学 | EP18: 0 | ER18: 13 | ES18: 东新中小 | ET18: 乡镇 | EU18: 小学 | FK18: 0 | FM18: 13 | FN18: 东新中小 | FO18: 乡镇 | FP18: 小学 | GF18: 0 | GH18: 13 | GI18: 东新中小 | GJ18: 乡镇 | GK18: 小学 | GM18: -1 | GP18: -1 | GS18: -1 | HA18: -3
A19: 14 | B19: 八一中小 | C19: 乡镇 | D19: 小学 | I19: 1 | J19: 1 | K19: 1 | T19: 3 | V19: 14 | W19: 八一中小 | X19: 乡镇 | Y19: 小学 | AO19: 0 | AQ19: 14 | AR19: 八一中小 | AS19: 乡镇 | AT19: 小学 | BJ19: 0 | BL19: 14 | BM19: 八一中小 | BN19: 乡镇 | BO19: 小学 | CE19: 0 | CG19: 14 | CH19: 八一中小 | CI19: 乡镇 | CJ19: 小学 | CZ19: 0 | DB19: 14 | DC19: 八一中小 | DD19: 乡镇 | DE19: 小学 | DJ19: 1 | DK19: 1 | DU19: 2 | DW19: 14 | DX19: 八一中小 | DY19: 乡镇 | DZ19: 小学 | EP19: 0 | ER19: 14 | ES19: 八一中小 | ET19: 乡镇 | EU19: 小学 | FK19: 0 | FM19: 14 | FN19: 八一中小 | FO19: 乡镇 | FP19: 小学 | GF19: 0 | GH19: 14 | GI19: 八一中小 | GJ19: 乡镇 | GK19: 小学 | GR19: 1 | HA19: 1
A20: 37 | B20: 新联学校（小学） | C20: 乡镇 | D20: 小学 | T20: 0 | V20: 37 | W20: 新联学校（小学） | X20: 乡镇 | Y20: 小学 | AO20: 0 | AQ20: 37 | AR20: 新联学校（小学） | AS20: 乡镇 | AT20: 小学 | BJ20: 0 | BL20: 37 | BM20: 新联学校（小学） | BN20: 乡镇 | BO20: 小学 | BT20: 1 | CE20: 1 | CG20: 37 | CH20: 新联学校（小学） | CI20: 乡镇 | CJ20: 小学 | CM20: 1 | CO20: 1 | CP20: 1 | CZ20: 3 | DB20: 37 | DC20: 新联学校（小学） | DD20: 乡镇 | DE20: 小学 | DJ20: 1 | DU20: 1 | DW20: 37 | DX20: 新联学校（小学） | DY20: 乡镇 | DZ20: 小学 | EP20: 0 | ER20: 37 | ES20: 新联学校（小学） | ET20: 乡镇 | EU20: 小学 | FK20: 0 | FM20: 37 | FN20: 新联学校（小学） | FO20: 乡镇 | FP20: 小学 | GF20: 0 | GH20: 37 | GI20: 新联学校（小学） | GJ20: 乡镇 | GK20: 小学 | GN20: -1 | GP20: -1 | GQ20: -1 | HA20: -3
A21: 44 | B21: 向塘实验学校（小学） | C21: 乡镇 | D21: 小学 | T21: 0 | V21: 44 | W21: 向塘实验学校（小学） | X21: 乡镇 | Y21: 小学 | AO21: 0 | AQ21: 44 | AR21: 向塘实验学校（小学） | AS21: 乡镇 | AT21: 小学 | BJ21: 0 | BL21: 44 | BM21: 向塘实验学校（小学） | BN21: 乡镇 | BO21: 小学 | BQ21: 3 | BR21: 3 | CE21: 6 | CG21: 44 | CH21: 向塘实验学校（小学） | CI21: 乡镇 | CJ21: 小学 | CO21: 1 | CQ21: 1 | CZ21: 2 | DB21: 44 | DC21: 向塘实验学校（小学） | DD21: 乡镇 | DE21: 小学 | DG21: 2 | DH21: 3 | DJ21: 1 | DK21: 1 | DU21: 7 | DW21: 44 | DX21: 向塘实验学校（小学） | DY21: 乡镇 | DZ21: 小学 | EP21: 0 | ER21: 44 | ES21: 向塘实验学校（小学） | ET21: 乡镇 | EU21: 小学 | FK21: 0 | FM21: 44 | FN21: 向塘实验学校（小学） | FO21: 乡镇 | FP21: 小学 | GF21: 0 | GH21: 44 | GI21: 向塘实验学校（小学） | GJ21: 乡镇 | GK21: 小学 | GM21: 1 | GP21: -2 | GQ21: -1 | GR21: -1 | HA21: -3
A22: 45 | B22: 向塘向阳学校（小学） | C22: 乡镇 | D22: 小学 | T22: 0 | V22: 45 | W22: 向塘向阳学校（小学） | X22: 乡镇 | Y22: 小学 | AO22: 0 | AQ22: 45 | AR22: 向塘向阳学校（小学） | AS22: 乡镇 | AT22: 小学 | BJ22: 0 | BL22: 45 | BM22: 向塘向阳学校（小学） | BN22: 乡镇 | BO22: 小学 | CE22: 0 | CG22: 45 | CH22: 向塘向阳学校（小学） | CI22: 乡镇 | CJ22: 小学 | CZ22: 0 | DB22: 45 | DC22: 向塘向阳学校（小学） | DD22: 乡镇 | DE22: 小学 | DG22: 1 | DU22: 1 | DW22: 45 | DX22: 向塘向阳学校（小学） | DY22: 乡镇 | DZ22: 小学 | EP22: 0 | ER22: 45 | ES22: 向塘向阳学校（小学） | ET22: 乡镇 | EU22: 小学 | FK22: 0 | FM22: 45 | FN22: 向塘向阳学校（小学） | FO22: 乡镇 | FP22: 小学 | GF22: 0 | GH22: 45 | GI22: 向塘向阳学校（小学） | GJ22: 乡镇 | GK22: 小学 | GM22: -1 | HA22: -1
B23: 乡镇小学 总计 | E23: =SUM(E7:E22) -> 0 | F23: =SUM(F7:F22) -> 4 | G23: 5 | H23: 4 | I23: 1 | J23: 1 | K23: 1 | L23: 0 | M23: 0 | N23: 0 | O23: 0 | P23: 0 | Q23: 0 | R23: 0 | S23: 1 | T23: 17 | W23: 乡镇小学 总计 | Z23: =SUM(Z7:Z22) -> 0 | AA23: 0 | AB23: 0 | AC23: 0 | AD23: 0 | AE23: 0 | AF23: 0 | AG23: 0 | AH23: 0 | AI23: 0 | AJ23: 0 | AK23: 0 | AL23: 0 | AM23: 0 | AN23: 0 | AO23: 0 | AR23: 乡镇小学 总计 | AU23: =SUM(AU7:AU22) -> 0 | AV23: 6 | AW23: 7 | AX23: 3 | AY23: 0 | AZ23: 1 | BA23: 0 | BB23: 0 | BC23: 0 | BD23: 0 | BE23: 0 | BF23: 0 | BG23: 0 | BH23: 0 | BI23: 2 | BJ23: 19 | BM23: 乡镇小学 总计 | BP23: =SUM(BP7:BP22) -> 0 | BQ23: 3 | BR23: 3 | BS23: 0 | BT23: 1 | BU23: 0 | BV23: 0 | BW23: 0 | BX23: 0 | BY23: 0 | BZ23: 0 | CA23: 0 | CB23: 0 | CC23: 0 | CD23: 0 | CE23: 7 | CH23: 乡镇小学 总计 | CK23: =SUM(CK7:CK22) -> 0 | CL23: =SUM(CL7:CL22) -> 7 | CM23: 6 | CN23: 5 | CO23: 7 | CP23: 7 | CQ23: 6 | CR23: 3 | CS23: 0 | CT23: 0 | CU23: 0 | CV23: 0 | CW23: 0 | CX23: 0 | CY23: 6 | CZ23: 47 | DC23: 乡镇小学 总计 | DF23: =SUM(DF7:DF22) -> 0 | DG23: =SUM(DG7:DG22) -> 11 | DH23: 10 | DI23: 5 | DJ23: 3 | DK23: 3 | DL23: 1 | DM23: 0 | DN23: 0 | DO23: 0 | DP23: 0 | DQ23: 0 | DR23: 0 | DS23: 0 | DT23: 0 | DU23: 33 | DX23: 乡镇小学 总计 | EA23: =SUM(EA7:EA22) -> 0 | EB23: 0 | EC23: 0 | ED23: 0 | EE23: 0 | EF23: 0 | EG23: 0 | EH23: 0 | EI23: 0 | EJ23: 0 | EK23: 0 | EL23: 0 | EM23: 0 | EN23: 0 | EO23: 0 | EP23: 0 | ES23: 乡镇小学 总计 | EV23: =SUM(EV7:EV22) -> 0 | EW23: 0 | EX23: 1 | EY23: 1 | EZ23: 0 | FA23: 0 | FB23: 0 | FC23: 0 | FD23: 0 | FE23: 0 | FF23: 0 | FG23: 0 | FH23: 0 | FI23: 0 | FJ23: 0 | FK23: 2 | FN23: 乡镇小学 总计 | FQ23: =SUM(FQ7:FQ22) -> 0 | FR23: 0 | FS23: 0 | FT23: 0 | FU23: 0 | FV23: 0 | FW23: 0 | FX23: 0 | FY23: 0 | FZ23: 0 | GA23: 0 | GB23: 0 | GC23: 0 | GD23: 0 | GE23: 0 | GF23: 0 | GI23: 乡镇小学 总计 | GM23: =IF(F23+AA23+AV23+BQ23-CL23-DG23-EB23-EW23-FR23=0,"",F23+AA23+AV23+BQ23-CL23-DG23-EB23-EW23-FR23) -> -5 | GN23: -2 | GO23: -4 | GP23: -8 | GQ23: -8 | GR23: -6 | GS23: -3 | GZ23: -3 | HA23: -39
A24: 15 | B24: 莲塘中小 | C24: 县直 | D24: 小学 | I24: 2 | J24: 1 | K24: 1 | T24: 4 | V24: 15 | W24: 莲塘中小 | X24: 县直 | Y24: 小学 | AO24: 0 | AQ24: 15 | AR24: 莲塘中小 | AS24: 县直 | AT24: 小学 | BJ24: 0 | BL24: 15 | BM24: 莲塘中小 | BN24: 县直 | BO24: 小学 | BR24: 1 | CE24: 1 | CG24: 15 | CH24: 莲塘中小 | CI24: 县直 | CJ24: 小学 | CZ24: 0 | DB24: 15 | DC24: 莲塘中小 | DD24: 县直 | DE24: 小学 | DH24: 2 | DJ24: 1 | DU24: 3 | DW24: 15 | DX24: 莲塘中小 | DY24: 县直 | DZ24: 小学 | EP24: 0 | ER24: 15 | ES24: 莲塘中小 | ET24: 县直 | EU24: 小学 | EZ24: 1 | FA24: 1 | FB24: 1 | FK24: 3 | FM24: 15 | FN24: 莲塘中小 | FO24: 县直 | FP24: 小学 | GF24: 0 | GH24: 15 | GI24: 莲塘中小 | GJ24: 县直 | GK24: 小学 | GM24: =IF(F24+AA24+AV24+BQ24-CL24-DG24-EB24-EW24-FR24=0,"",F24+AA24+AV24+BQ24-CL24-DG24-EB24-EW24-FR24) ->  | GN24: -1 | HA24: -1
A25: 16 | B25: 莲塘一小 | C25: 县直 | D25: 小学 | T25: 0 | V25: 16 | W25: 莲塘一小 | X25: 县直 | Y25: 小学 | AO25: 0 | AQ25: 16 | AR25: 莲塘一小 | AS25: 县直 | AT25: 小学 | BJ25: 0 | BL25: 16 | BM25: 莲塘一小 | BN25: 县直 | BO25: 小学 | CE25: 0 | CG25: 16 | CH25: 莲塘一小 | CI25: 县直 | CJ25: 小学 | CZ25: 0 | DB25: 16 | DC25: 莲塘一小 | DD25: 县直 | DE25: 小学 | DU25: 0 | DW25: 16 | DX25: 莲塘一小 | DY25: 县直 | DZ25: 小学 | EP25: 0 | ER25: 16 | ES25: 莲塘一小 | ET25: 县直 | EU25: 小学 | FK25: 0 | FM25: 16 | FN25: 莲塘一小 | FO25: 县直 | FP25: 小学 | GF25: 0 | GH25: 16 | GI25: 莲塘一小 | GJ25: 县直 | GK25: 小学 | GL25: =IF(E25+Z25+AU25+BP25-CK25-DF25-EA25-EV25-FQ25=0,"",E25+Z25+AU25+BP25-CK25-DF25-EA25-EV25-FQ25) ->  | GM25: =IF(F25+AA25+AV25+BQ25-CL25-DG25-EB25-EW25-FR25=0,"",F25+AA25+AV25+BQ25-CL25-DG25-EB25-EW25-FR25) ->  | GN25: =IF(G25+AB25+AW25+BR25-CM25-DH25-EC25-EX25-FS25=0,"",G25+AB25+AW25+BR25-CM25-DH25-EC25-EX25-FS25) ->  | GO25: =IF(H25+AC25+AX25+BS25-CN25-DI25-ED25-EY25-FT25=0,"",H25+AC25+AX25+BS25-CN25-DI25-ED25-EY25-FT25) ->  | GP25: =IF(I25+AD25+AY25+BT25-CO25-DJ25-EE25-EZ25-FU25=0,"",I25+AD25+AY25+BT25-CO25-DJ25-EE25-EZ25-FU25) ->  | GQ25: =IF(J25+AE25+AZ25+BU25-CP25-DK25-EF25-FA25-FV25=0,"",J25+AE25+AZ25+BU25-CP25-DK25-EF25-FA25-FV25) ->  | GR25: =IF(K25+AF25+BA25+BV25-CQ25-DL25-EG25-FB25-FW25=0,"",K25+AF25+BA25+BV25-CQ25-DL25-EG25-FB25-FW25) ->  | GS25: =IF(L25+AG25+BB25+BW25-CR25-DM25-EH25-FC25-FX25=0,"",L25+AG25+BB25+BW25-CR25-DM25-EH25-FC25-FX25) ->  | GT25: =IF(M25+AH25+BC25+BX25-CS25-DN25-EI25-FD25-FY25=0,"",M25+AH25+BC25+BX25-CS25-DN25-EI25-FD25-FY25) ->  | GU25: =IF(N25+AI25+BD25+BY25-CT25-DO25-EJ25-FE25-FZ25=0,"",N25+AI25+BD25+BY25-CT25-DO25-EJ25-FE25-FZ25) ->  | GV25: =IF(O25+AJ25+BE25+BZ25-CU25-DP25-EK25-FF25-GA25=0,"",O25+AJ25+BE25+BZ25-CU25-DP25-EK25-FF25-GA25) ->  | GW25: =IF(P25+AK25+BF25+CA25-CV25-DQ25-EL25-FG25-GB25=0,"",P25+AK25+BF25+CA25-CV25-DQ25-EL25-FG25-GB25) ->  | GX25: =IF(Q25+AL25+BG25+CB25-CW25-DR25-EM25-FH25-GC25=0,"",Q25+AL25+BG25+CB25-CW25-DR25-EM25-FH25-GC25) ->  | GY25: =IF(R25+AM25+BH25+CC25-CX25-DS25-EN25-FI25-GD25=0,"",R25+AM25+BH25+CC25-CX25-DS25-EN25-FI25-GD25) ->  | GZ25: =IF(S25+AN25+BI25+CD25-CY25-DT25-EO25-FJ25-GE25=0,"",S25+AN25+BI25+CD25-CY25-DT25-EO25-FJ25-GE25) ->  | HA25: 0
A26: 17 | B26: 莲塘二小 | C26: 县直 | D26: 小学 | T26: 0 | V26: 17 | W26: 莲塘二小 | X26: 县直 | Y26: 小学 | AO26: 0 | AQ26: 17 | AR26: 莲塘二小 | AS26: 县直 | AT26: 小学 | BJ26: 0 | BL26: 17 | BM26: 莲塘二小 | BN26: 县直 | BO26: 小学 | CE26: 0 | CG26: 17 | CH26: 莲塘二小 | CI26: 县直 | CJ26: 小学 | CZ26: 0 | DB26: 17 | DC26: 莲塘二小 | DD26: 县直 | DE26: 小学 | DG26: 1 | DU26: 1 | DW26: 17 | DX26: 莲塘二小 | DY26: 县直 | DZ26: 小学 | EP26: 0 | ER26: 17 | ES26: 莲塘二小 | ET26: 县直 | EU26: 小学 | FK26: 0 | FM26: 17 | FN26: 莲塘二小 | FO26: 县直 | FP26: 小学 | GF26: 0 | GH26: 17 | GI26: 莲塘二小 | GJ26: 县直 | GK26: 小学 | GM26: -1 | HA26: -1
A27: 18 | B27: 莲塘三小 | C27: 县直 | D27: 小学 | T27: 0 | V27: 18 | W27: 莲塘三小 | X27: 县直 | Y27: 小学 | AO27: 0 | AQ27: 18 | AR27: 莲塘三小 | AS27: 县直 | AT27: 小学 | BJ27: 0 | BL27: 18 | BM27: 莲塘三小 | BN27: 县直 | BO27: 小学 | CE27: 0 | CG27: 18 | CH27: 莲塘三小 | CI27: 县直 | CJ27: 小学 | CZ27: 0 | DB27: 18 | DC27: 莲塘三小 | DD27: 县直 | DE27: 小学 | DU27: 0 | DW27: 18 | DX27: 莲塘三小 | DY27: 县直 | DZ27: 小学 | EP27: 0 | ER27: 18 | ES27: 莲塘三小 | ET27: 县直 | EU27: 小学 | FK27: 0 | FM27: 18 | FN27: 莲塘三小 | FO27: 县直 | FP27: 小学 | GF27: 0 | GH27: 18 | GI27: 莲塘三小 | GJ27: 县直 | GK27: 小学 | HA27: 0
A28: 19 | B28: 莲塘四小 | C28: 县直 | D28: 小学 | T28: 0 | V28: 19 | W28: 莲塘四小 | X28: 县直 | Y28: 小学 | AO28: 0 | AQ28: 19 | AR28: 莲塘四小 | AS28: 县直 | AT28: 小学 | BJ28: 0 | BL28: 19 | BM28: 莲塘四小 | BN28: 县直 | BO28: 小学 | BQ28: 1 | BR28: 1 | BS28: 1 | BU28: 1 | BV28: 1 | CD28: 1 | CE28: 6 | CG28: 19 | CH28: 莲塘四小 | CI28: 县直 | CJ28: 小学 | CZ28: 0 | DB28: 19 | DC28: 莲塘四小 | DD28: 县直 | DE28: 小学 | DG28: 1 | DH28: 1 | DI28: 1 | DL28: 1 | DT28: 1 | DU28: 5 | DW28: 19 | DX28: 莲塘四小 | DY28: 县直 | DZ28: 小学 | EP28: 0 | ER28: 19 | ES28: 莲塘四小 | ET28: 县直 | EU28: 小学 | FK28: 0 | FM28: 19 | FN28: 莲塘四小 | FO28: 县直 | FP28: 小学 | GF28: 0 | GH28: 19 | GI28: 莲塘四小 | GJ28: 县直 | GK28: 小学 | GQ28: 1 | HA28: 1
A29: 20 | B29: 县特教（小学） | C29: 县直 | D29: 小学 | T29: 0 | V29: 20 | W29: 县特教（小学） | X29: 县直 | Y29: 小学 | AA29: 1 | AO29: 1 | AQ29: 20 | AR29: 县特教（小学） | AS29: 县直 | AT29: 小学 | BJ29: 0 | BL29: 20 | BM29: 县特教（小学） | BN29: 县直 | BO29: 小学 | CE29: 0 | CG29: 20 | CH29: 县特教（小学） | CI29: 县直 | CJ29: 小学 | CZ29: 0 | DB29: 20 | DC29: 县特教（小学） | DD29: 县直 | DE29: 小学 | DG29: 1 | DU29: 1 | DW29: 20 | DX29: 县特教（小学） | DY29: 县直 | DZ29: 小学 | EP29: 0 | ER29: 20 | ES29: 县特教（小学） | ET29: 县直 | EU29: 小学 | FK29: 0 | FM29: 20 | FN29: 县特教（小学） | FO29: 县直 | FP29: 小学 | GF29: 0 | GH29: 20 | GI29: 县特教（小学） | GJ29: 县直 | GK29: 小学 | HA29: 0
A30: 25 | B30: 莲塘实验学校（小学） | C30: 县直 | D30: 小学 | T30: =SUM(E30:S30) -> 0 | V30: 25 | W30: 莲塘实验学校（小学） | X30: 县直 | Y30: 小学 | AO30: 0 | AQ30: 25 | AR30: 莲塘实验学校（小学） | AS30: 县直 | AT30: 小学 | BJ30: 0 | BL30: 25 | BM30: 莲塘实验学校（小学） | BN30: 县直 | BO30: 小学 | CE30: 0 | CG30: 25 | CH30: 莲塘实验学校（小学） | CI30: 县直 | CJ30: 小学 | CZ30: 0 | DB30: 25 | DC30: 莲塘实验学校（小学） | DD30: 县直 | DE30: 小学 | DU30: 0 | DW30: 25 | DX30: 莲塘实验学校（小学） | DY30: 县直 | DZ30: 小学 | EP30: 0 | ER30: 25 | ES30: 莲塘实验学校（小学） | ET30: 县直 | EU30: 小学 | FK30: 0 | FM30: 25 | FN30: 莲塘实验学校（小学） | FO30: 县直 | FP30: 小学 | GF30: 0 | GH30: 25 | GI30: 莲塘实验学校（小学） | GJ30: 县直 | GK30: 小学 | HA30: 0
A31: 26 | B31: 昌南实验学校（小学） | C31: 县直 | D31: 小学 | T31: 0 | V31: 26 | W31: 昌南实验学校（小学） | X31: 县直 | Y31: 小学 | AO31: 0 | AQ31: 26 | AR31: 昌南实验学校（小学） | AS31: 县直 | AT31: 小学 | BJ31: 0 | BL31: 26 | BM31: 昌南实验学校（小学） | BN31: 县直 | BO31: 小学 | BQ31: 1 | BR31: 1 | CE31: 2 | CG31: 26 | CH31: 昌南实验学校（小学） | CI31: 县直 | CJ31: 小学 | CZ31: 0 | DB31: 26 | DC31: 昌南实验学校（小学） | DD31: 县直 | DE31: 小学 | DG31: 1 | DH31: 1 | DU31: 2 | DW31: 26 | DX31: 昌南实验学校（小学） | DY31: 县直 | DZ31: 小学 | EP31: 0 | ER31: 26 | ES31: 昌南实验学校（小学） | ET31: 县直 | EU31: 小学 | FK31: 0 | FM31: 26 | FN31: 昌南实验学校（小学） | FO31: 县直 | FP31: 小学 | GF31: 0 | GH31: 26 | GI31: 昌南实验学校（小学） | GJ31: 县直 | GK31: 小学 | HA31: 0
A32: 28 | B32: 银三角实验学校（小学） | C32: 县直 | D32: 小学 | T32: 0 | V32: 28 | W32: 银三角实验学校（小学） | X32: 县直 | Y32: 小学 | AO32: 0 | AQ32: 28 | AR32: 银三角实验学校（小学） | AS32: 县直 | AT32: 小学 | BJ32: 0 | BL32: 28 | BM32: 银三角实验学校（小学） | BN32: 县直 | BO32: 小学 | BP32: 1 | BQ32: 4 | BR32: 2 | BS32: 1 | BU32: 1 | BV32: 1 | BW32: 1 | CE32: 11 | CG32: 28 | CH32: 银三角实验学校（小学） | CI32: 县直 | CJ32: 小学 | CZ32: 0 | DB32: 28 | DC32: 银三角实验学校（小学） | DD32: 县直 | DE32: 小学 | DF32: 1 | DG32: 4 | DH32: 2 | DI32: 1 | DK32: 1 | DL32: 1 | DM32: 1 | DU32: 11 | DW32: 28 | DX32: 银三角实验学校（小学） | DY32: 县直 | DZ32: 小学 | EP32: 0 | ER32: 28 | ES32: 银三角实验学校（小学） | ET32: 县直 | EU32: 小学 | FK32: 0 | FM32: 28 | FN32: 银三角实验学校（小学） | FO32: 县直 | FP32: 小学 | GF32: 0 | GH32: 28 | GI32: 银三角实验学校（小学） | GJ32: 县直 | GK32: 小学 | HA32: 0
A33: 30 | B33: 金沙路小学 | C33: 县直 | D33: 小学 | T33: 0 | V33: 30 | W33: 金沙路小学 | X33: 县直 | Y33: 小学 | AA33: 3 | AB33: 3 | AC33: 2 | AE33: 1 | AO33: 9 | AQ33: 30 | AR33: 金沙路小学 | AS33: 县直 | AT33: 小学 | BJ33: 0 | BL33: 30 | BM33: 金沙路小学 | BN33: 县直 | BO33: 小学 | CE33: 0 | CG33: 30 | CH33: 金沙路小学 | CI33: 县直 | CJ33: 小学 | CZ33: 0 | DB33: 30 | DC33: 金沙路小学 | DD33: 县直 | DE33: 小学 | DG33: 1 | DH33: 1 | DI33: 1 | DU33: 3 | DW33: 30 | DX33: 金沙路小学 | DY33: 县直 | DZ33: 小学 | EB33: 1 | EC33: 1 | ED33: 1 | EF33: 1 | EP33: 4 | ER33: 30 | ES33: 金沙路小学 | ET33: 县直 | EU33: 小学 | EW33: 1 | EX33: 1 | FK33: 2 | FM33: 30 | FN33: 金沙路小学 | FO33: 县直 | FP33: 小学 | GF33: 0 | GH33: 30 | GI33: 金沙路小学 | GJ33: 县直 | GK33: 小学 | HA33: 0
A34: 31 | B34: 振兴路小学 | C34: 县直 | D34: 小学 | F34: 1 | H34: 5 | T34: 6 | V34: 31 | W34: 振兴路小学 | X34: 县直 | Y34: 小学 | AO34: 0 | AQ34: 31 | AR34: 振兴路小学 | AS34: 县直 | AT34: 小学 | BJ34: 0 | BL34: 31 | BM34: 振兴路小学 | BN34: 县直 | BO34: 小学 | CE34: 0 | CG34: 31 | CH34: 振兴路小学 | CI34: 县直 | CJ34: 小学 | CZ34: 0 | DB34: 31 | DC34: 振兴路小学 | DD34: 县直 | DE34: 小学 | DI34: 3 | DU34: 3 | DW34: 31 | DX34: 振兴路小学 | DY34: 县直 | DZ34: 小学 | ED34: 1 | EP34: 1 | ER34: 31 | ES34: 振兴路小学 | ET34: 县直 | EU34: 小学 | EW34: 1 | EY34: 1 | FK34: 2 | FM34: 31 | FN34: 振兴路小学 | FO34: 县直 | FP34: 小学 | GF34: 0 | GH34: 31 | GI34: 振兴路小学 | GJ34: 县直 | GK34: 小学 | HA34: 0
A35: 32 | B35: 墨山街小学 | C35: 县直 | D35: 小学 | I35: 1 | J35: 1 | T35: 2 | V35: 32 | W35: 墨山街小学 | X35: 县直 | Y35: 小学 | AO35: 0 | AQ35: 32 | AR35: 墨山街小学 | AS35: 县直 | AT35: 小学 | BJ35: 0 | BL35: 32 | BM35: 墨山街小学 | BN35: 县直 | BO35: 小学 | BR35: 1 | BT35: 1 | CE35: 2 | CG35: 32 | CH35: 墨山街小学 | CI35: 县直 | CJ35: 小学 | CZ35: 0 | DB35: 32 | DC35: 墨山街小学 | DD35: 县直 | DE35: 小学 | DH35: 1 | DJ35: 1 | DU35: 2 | DW35: 32 | DX35: 墨山街小学 | DY35: 县直 | DZ35: 小学 | EP35: 0 | ER35: 32 | ES35: 墨山街小学 | ET35: 县直 | EU35: 小学 | EZ35: 1 | FA35: 1 | FK35: 2 | FM35: 32 | FN35: 墨山街小学 | FO35: 县直 | FP35: 小学 | GF35: 0 | GH35: 32 | GI35: 墨山街小学 | GJ35: 县直 | GK35: 小学 | HA35: 0
A36: 33 | B36: 斗柏路小学 | C36: 县直 | D36: 小学 | T36: 0 | V36: 33 | W36: 斗柏路小学 | X36: 县直 | Y36: 小学 | AC36: 1 | AO36: 1 | AQ36: 33 | AR36: 斗柏路小学 | AS36: 县直 | AT36: 小学 | BJ36: 0 | BL36: 33 | BM36: 斗柏路小学 | BN36: 县直 | BO36: 小学 | BQ36: 1 | BS36: 1 | CE36: 2 | CG36: 33 | CH36: 斗柏路小学 | CI36: 县直 | CJ36: 小学 | CZ36: 0 | DB36: 33 | DC36: 斗柏路小学 | DD36: 县直 | DE36: 小学 | DG36: 1 | DI36: 1 | DU36: 2 | DW36: 33 | DX36: 斗柏路小学 | DY36: 县直 | DZ36: 小学 | ED36: 1 | EP36: 1 | ER36: 33 | ES36: 斗柏路小学 | ET36: 县直 | EU36: 小学 | FK36: 0 | FM36: 33 | FN36: 斗柏路小学 | FO36: 县直 | FP36: 小学 | GF36: 0 | GH36: 33 | GI36: 斗柏路小学 | GJ36: 县直 | GK36: 小学 | HA36: 0
A37: 61 | B37: 银河学校（小学） | C37: 县直 | D37: 小学 | T37: 0 | V37: 61 | W37: 银河学校（小学） | X37: 县直 | Y37: 小学 | AA37: 3 | AB37: 4 | AC37: 1 | AO37: 8 | AQ37: 61 | AR37: 银河学校（小学） | AS37: 县直 | AT37: 小学 | BJ37: 0 | BL37: 61 | BM37: 银河学校（小学） | BN37: 县直 | BO37: 小学 | BQ37: 5 | BR37: 3 | BU37: 1 | CD37: 1 | CE37: 10 | CG37: 61 | CH37: 银河学校（小学） | CI37: 县直 | CJ37: 小学 | CZ37: 0 | DB37: 61 | DC37: 银河学校（小学） | DD37: 县直 | DE37: 小学 | DG37: 3 | DH37: 3 | DI37: 1 | DU37: 7 | DW37: 61 | DX37: 银河学校（小学） | DY37: 县直 | DZ37: 小学 | EB37: 1 | EC37: 1 | EP37: 2 | ER37: 61 | ES37: 银河学校（小学） | ET37: 县直 | EU37: 小学 | EW37: 1 | EX37: 2 | FK37: 3 | FM37: 61 | FN37: 银河学校（小学） | FO37: 县直 | FP37: 小学 | FR37: 3 | FS37: 1 | FV37: 1 | GE37: 1 | GF37: 6 | GH37: 61 | GI37: 银河学校（小学） | GJ37: 县直 | GK37: 小学 | HA37: 0
A38: 62 | B38: 洪州学校（小学） | C38: 县直 | D38: 小学 | T38: 0 | V38: 62 | W38: 洪州学校（小学） | X38: 县直 | Y38: 小学 | AA38: 9 | AB38: 9 | AC38: 1 | AD38: 1 | AF38: 1 | AG38: 1 | AO38: 22 | AQ38: 62 | AR38: 洪州学校（小学） | AS38: 县直 | AT38: 小学 | BJ38: 0 | BL38: 62 | BM38: 洪州学校（小学） | BN38: 县直 | BO38: 小学 | CE38: 0 | CG38: 62 | CH38: 洪州学校（小学） | CI38: 县直 | CJ38: 小学 | CZ38: 0 | DB38: 62 | DC38: 洪州学校（小学） | DD38: 县直 | DE38: 小学 | DG38: 1 | DI38: 1 | DU38: 2 | DW38: 62 | DX38: 洪州学校（小学） | DY38: 县直 | DZ38: 小学 | EB38: 1 | EC38: 1 | EP38: 2 | ER38: 62 | ES38: 洪州学校（小学） | ET38: 县直 | EU38: 小学 | EW38: 2 | EX38: 2 | FK38: 4 | FM38: 62 | FN38: 洪州学校（小学） | FO38: 县直 | FP38: 小学 | GF38: 0 | GH38: 62 | GI38: 洪州学校（小学） | GJ38: 县直 | GK38: 小学 | GM38: 5 | GN38: 6 | GP38: 1 | GR38: 1 | GS38: 1 | HA38: 14
A39: 63 | B39: 新城学校（小学） | C39: 县直 | D39: 小学 | T39: 0 | V39: 63 | W39: 新城学校（小学） | X39: 县直 | Y39: 小学 | AA39: 7 | AB39: 9 | AC39: 2 | AE39: 1 | AF39: 1 | AO39: 20 | AQ39: 63 | AR39: 新城学校（小学） | AS39: 县直 | AT39: 小学 | BJ39: 0 | BL39: 63 | BM39: 新城学校（小学） | BN39: 县直 | BO39: 小学 | CE39: 0 | CG39: 63 | CH39: 新城学校（小学） | CI39: 县直 | CJ39: 小学 | CZ39: 0 | DB39: 63 | DC39: 新城学校（小学） | DD39: 县直 | DE39: 小学 | DG39: 6 | DH39: 5 | DI39: 1 | DK39: 1 | DL39: 1 | DU39: 14 | DW39: 63 | DX39: 新城学校（小学） | DY39: 县直 | DZ39: 小学 | EB39: 1 | EC39: 1 | ED39: 1 | EP39: 3 | ER39: 63 | ES39: 新城学校（小学） | ET39: 县直 | EU39: 小学 | EW39: 1 | EX39: 2 | EY39: 1 | FK39: 4 | FM39: 63 | FN39: 新城学校（小学） | FO39: 县直 | FP39: 小学 | GF39: 0 | GH39: 63 | GI39: 新城学校（小学） | GJ39: 县直 | GK39: 小学 | GM39: -1 | GN39: 1 | GO39: -1 | HA39: -1
A40: 64 | B40: 诚义学校（小学） | C40: 县直 | D40: 小学 | T40: 0 | V40: 64 | W40: 诚义学校（小学） | X40: 县直 | Y40: 小学 | AO40: 0 | AQ40: 64 | AR40: 诚义学校（小学） | AS40: 县直 | AT40: 小学 | BJ40: 0 | BL40: 64 | BM40: 诚义学校（小学） | BN40: 县直 | BO40: 小学 | BQ40: 7 | BR40: 7 | BS40: 3 | BT40: 1 | BU40: 1 | BV40: 2 | BW40: 2 | CD40: 1 | CE40: 24 | CG40: 64 | CH40: 诚义学校（小学） | CI40: 县直 | CJ40: 小学 | CZ40: 0 | DB40: 64 | DC40: 诚义学校（小学） | DD40: 县直 | DE40: 小学 | DG40: 5 | DH40: 7 | DI40: 3 | DJ40: 1 | DK40: 1 | DL40: 2 | DM40: 2 | DT40: 1 | DU40: 22 | DW40: 64 | DX40: 诚义学校（小学） | DY40: 县直 | DZ40: 小学 | EB40: 1 | EC40: 1 | EP40: 2 | ER40: 64 | ES40: 诚义学校（小学） | ET40: 县直 | EU40: 小学 | FK40: 0 | FM40: 64 | FN40: 诚义学校（小学） | FO40: 县直 | FP40: 小学 | GF40: 0 | GH40: 64 | GI40: 诚义学校（小学） | GJ40: 县直 | GK40: 小学 | GM40: 1 | GN40: -1 | HA40: 0
A41: 65 | B41: 芳草学校（小学） | C41: 县直 | D41: 小学 | T41: 0 | V41: 65 | W41: 芳草学校（小学） | X41: 县直 | Y41: 小学 | AO41: 0 | AQ41: 65 | AR41: 芳草学校（小学） | AS41: 县直 | AT41: 小学 | BJ41: 0 | BL41: 65 | BM41: 芳草学校（小学） | BN41: 县直 | BO41: 小学 | BP41: 1 | BQ41: 7 | BR41: 6 | BT41: 2 | BV41: 1 | BW41: 1 | CE41: 18 | CG41: 65 | CH41: 芳草学校（小学） | CI41: 县直 | CJ41: 小学 | CZ41: 0 | DB41: 65 | DC41: 芳草学校（小学） | DD41: 县直 | DE41: 小学 | DF41: 1 | DG41: 5 | DH41: 5 | DJ41: 2 | DL41: 1 | DM41: 1 | DU41: 15 | DW41: 65 | DX41: 芳草学校（小学） | DY41: 县直 | DZ41: 小学 | EB41: 1 | EC41: 1 | EP41: 2 | ER41: 65 | ES41: 芳草学校（小学） | ET41: 县直 | EU41: 小学 | FK41: 0 | FM41: 65 | FN41: 芳草学校（小学） | FO41: 县直 | FP41: 小学 | GF41: 0 | GH41: 65 | GI41: 芳草学校（小学） | GJ41: 县直 | GK41: 小学 | GM41: 1 | HA41: 1
A42: 66 | B42: 洪州汇仁学校（小学） | C42: 县直 | D42: 小学 | T42: 0 | V42: 66 | W42: 洪州汇仁学校（小学） | X42: 县直 | Y42: 小学 | AA42: 9 | AB42: 4 | AC42: 1 | AD42: 1 | AE42: 1 | AO42: 16 | AQ42: 66 | AR42: 洪州汇仁学校（小学） | AS42: 县直 | AT42: 小学 | BJ42: 0 | BL42: 66 | BM42: 洪州汇仁学校（小学） | BN42: 县直 | BO42: 小学 | CE42: 0 | CG42: 66 | CH42: 洪州汇仁学校（小学） | CI42: 县直 | CJ42: 小学 | CZ42: 0 | DB42: 66 | DC42: 洪州汇仁学校（小学） | DD42: 县直 | DE42: 小学 | DG42: 3 | DH42: 1 | DJ42: 1 | DK42: 1 | DU42: 6 | DW42: 66 | DX42: 洪州汇仁学校（小学） | DY42: 县直 | DZ42: 小学 | EB42: 1 | EC42: 1 | EP42: 2 | ER42: 66 | ES42: 洪州汇仁学校（小学） | ET42: 县直 | EU42: 小学 | EW42: 2 | EX42: 2 | FK42: 4 | FM42: 66 | FN42: 洪州汇仁学校（小学） | FO42: 县直 | FP42: 小学 | GF42: 0 | GH42: 66 | GI42: 洪州汇仁学校（小学） | GJ42: 县直 | GK42: 小学 | GM42: 3 | GO42: 1 | HA42: 4
A43: 67 | B43: 洪燕学校（小学） | C43: 县直 | D43: 小学 | F43: 1 | T43: 1 | V43: 67 | W43: 洪燕学校（小学） | X43: 县直 | Y43: 小学 | Z43: 2 | AA43: 6 | AB43: 4 | AC43: 5 | AD43: 2 | AE43: 1 | AF43: 2 | AO43: 22 | AQ43: 67 | AR43: 洪燕学校（小学） | AS43: 县直 | AT43: 小学 | BJ43: 0 | BL43: 67 | BM43: 洪燕学校（小学） | BN43: 县直 | BO43: 小学 | CE43: 0 | CG43: 67 | CH43: 洪燕学校（小学） | CI43: 县直 | CJ43: 小学 | CZ43: 0 | DB43: 67 | DC43: 洪燕学校（小学） | DD43: 县直 | DE43: 小学 | DG43: 5 | DH43: 2 | DI43: 4 | DJ43: 1 | DK43: 1 | DL43: 1 | DM43: 1 | DU43: 15 | DW43: 67 | DX43: 洪燕学校（小学） | DY43: 县直 | DZ43: 小学 | EA43: 1 | EB43: 1 | EC43: 1 | EE43: 1 | EG43: 1 | EP43: 5 | ER43: 67 | ES43: 洪燕学校（小学） | ET43: 县直 | EU43: 小学 | EV43: 1 | EW43: 1 | EX43: 1 | EY43: 1 | FK43: 4 | FM43: 67 | FN43: 洪燕学校（小学） | FO43: 县直 | FP43: 小学 | GF43: 0 | GH43: 67 | GI43: 洪燕学校（小学） | GJ43: 县直 | GK43: 小学 | GS43: -1 | HA43: -1
A44: 68 | B44: 洪亿学校（小学） | C44: 县直 | D44: 小学 | T44: 0 | V44: 68 | W44: 洪亿学校（小学） | X44: 县直 | Y44: 小学 | AA44: 5 | AB44: 6 | AC44: 1 | AE44: 1 | AF44: 1 | AO44: 14 | AQ44: 68 | AR44: 洪亿学校（小学） | AS44: 县直 | AT44: 小学 | BJ44: 0 | BL44: 68 | BM44: 洪亿学校（小学） | BN44: 县直 | BO44: 小学 | CE44: 0 | CG44: 68 | CH44: 洪亿学校（小学） | CI44: 县直 | CJ44: 小学 | CZ44: 0 | DB44: 68 | DC44: 洪亿学校（小学） | DD44: 县直 | DE44: 小学 | DG44: 2 | DH44: 2 | DI44: 1 | DK44: 1 | DL44: 1 | DU44: 7 | DW44: 68 | DX44: 洪亿学校（小学） | DY44: 县直 | DZ44: 小学 | EB44: 1 | EC44: 2 | EP44: 3 | ER44: 68 | ES44: 洪亿学校（小学） | ET44: 县直 | EU44: 小学 | EW44: 1 | EX44: 2 | FK44: 3 | FM44: 68 | FN44: 洪亿学校（小学） | FO44: 县直 | FP44: 小学 | GF44: 0 | GH44: 68 | GI44: 洪亿学校（小学） | GJ44: 县直 | GK44: 小学 | GM44: 1 | HA44: 1
A45: 69 | B45: 洪科学校（小学） | C45: 县直 | D45: 小学 | F45: 3 | G45: 1 | T45: 4 | V45: 69 | W45: 洪科学校（小学） | X45: 县直 | Y45: 小学 | AA45: 1 | AB45: 4 | AC45: 1 | AD45: 1 | AN45: 1 | AO45: 8 | AQ45: 69 | AR45: 洪科学校（小学） | AS45: 县直 | AT45: 小学 | BJ45: 0 | BL45: 69 | BM45: 洪科学校（小学） | BN45: 县直 | BO45: 小学 | CE45: 0 | CG45: 69 | CH45: 洪科学校（小学） | CI45: 县直 | CJ45: 小学 | CZ45: 0 | DB45: 69 | DC45: 洪科学校（小学） | DD45: 县直 | DE45: 小学 | DG45: 2 | DH45: 2 | DU45: 4 | DW45: 69 | DX45: 洪科学校（小学） | DY45: 县直 | DZ45: 小学 | EB45: 1 | EC45: 2 | ED45: 1 | EE45: 1 | EP45: 5 | ER45: 69 | ES45: 洪科学校（小学） | ET45: 县直 | EU45: 小学 | EW45: 2 | EX45: 2 | FJ45: 1 | FK45: 5 | FM45: 69 | FN45: 洪科学校（小学） | FO45: 县直 | FP45: 小学 | GF45: 0 | GH45: 69 | GI45: 洪科学校（小学） | GJ45: 县直 | GK45: 小学 | GM45: -1 | GN45: -1 | HA45: -2
A46: 70 | B46: 莲塘一中八一分校（小学） | C46: 县直 | D46: 小学 | F46: 4 | G46: 3 | H46: 3 | T46: 10 | V46: 70 | W46: 莲塘一中八一分校（小学） | X46: 县直 | Y46: 小学 | Z46: 1 | AA46: 2 | AB46: 3 | AC46: 1 | AD46: 2 | AE46: 1 | AF46: 2 | AG46: 2 | AN46: 1 | AO46: 15 | AQ46: 70 | AR46: 莲塘一中八一分校（小学） | AS46: 县直 | AT46: 小学 | BJ46: 0 | BL46: 70 | BM46: 莲塘一中八一分校（小学） | BN46: 县直 | BO46: 小学 | CE46: 0 | CG46: 70 | CH46: 莲塘一中八一分校（小学） | CI46: 县直 | CJ46: 小学 | CZ46: 0 | DB46: 70 | DC46: 莲塘一中八一分校（小学） | DD46: 县直 | DE46: 小学 | DG46: 4 | DH46: 3 | DI46: 3 | DJ46: 2 | DK46: 1 | DL46: 1 | DT46: 1 | DU46: 15 | DW46: 70 | DX46: 莲塘一中八一分校（小学） | DY46: 县直 | DZ46: 小学 | EB46: 1 | EC46: 1 | ED46: 1 | EG46: 1 | EH46: 1 | EP46: 5 | ER46: 70 | ES46: 莲塘一中八一分校（小学） | ET46: 县直 | EU46: 小学 | EV46: 1 | EW46: 1 | EX46: 2 | FC46: 1 | FK46: 5 | FM46: 70 | FN46: 莲塘一中八一分校（小学） | FO46: 县直 | FP46: 小学 | GF46: 0 | GH46: 70 | GI46: 莲塘一中八一分校（小学） | GJ46: 县直 | GK46: 小学 | HA46: 0
A47: 71 | B47: 洪范学校（小学） | C47: 县直 | D47: 小学 | T47: 0 | V47: 71 | W47: 洪范学校（小学） | X47: 县直 | Y47: 小学 | AA47: 9 | AB47: 11 | AC47: 2 | AD47: 1 | AE47: 2 | AF47: 1 | AG47: 1 | AO47: 27 | AQ47: 71 | AR47: 洪范学校（小学） | AS47: 县直 | AT47: 小学 | BJ47: 0 | BL47: 71 | BM47: 洪范学校（小学） | BN47: 县直 | BO47: 小学 | CE47: 0 | CG47: 71 | CH47: 洪范学校（小学） | CI47: 县直 | CJ47: 小学 | CZ47: 0 | DB47: 71 | DC47: 洪范学校（小学） | DD47: 县直 | DE47: 小学 | DG47: 6 | DH47: 5 | DI47: 1 | DJ47: 1 | DK47: 1 | DM47: 1 | DU47: 15 | DW47: 71 | DX47: 洪范学校（小学） | DY47: 县直 | DZ47: 小学 | EB47: 1 | EC47: 2 | EP47: 3 | ER47: 71 | ES47: 洪范学校（小学） | ET47: 县直 | EU47: 小学 | EW47: 3 | EX47: 4 | EY47: 1 | FB47: 1 | FK47: 9 | FM47: 71 | FN47: 洪范学校（小学） | FO47: 县直 | FP47: 小学 | GF47: 0 | GH47: 71 | GI47: 洪范学校（小学） | GJ47: 县直 | GK47: 小学 | GM47: -1 | GQ47: 1 | HA47: 0
A48: 72 | B48: 洪新学校（小学） | C48: 县直 | D48: 小学 | T48: 0 | V48: 72 | W48: 洪新学校（小学） | X48: 县直 | Y48: 小学 | AO48: 0 | AQ48: 72 | AR48: 洪新学校（小学） | AS48: 县直 | AT48: 小学 | BJ48: 0 | BL48: 72 | BM48: 洪新学校（小学） | BN48: 县直 | BO48: 小学 | BQ48: 2 | BR48: 2 | CE48: 4 | CG48: 72 | CH48: 洪新学校（小学） | CI48: 县直 | CJ48: 小学 | CZ48: 0 | DB48: 72 | DC48: 洪新学校（小学） | DD48: 县直 | DE48: 小学 | DG48: 6 | DH48: 5 | DL48: 1 | DU48: 12 | DW48: 72 | DX48: 洪新学校（小学） | DY48: 县直 | DZ48: 小学 | EP48: 0 | ER48: 72 | ES48: 洪新学校（小学） | ET48: 县直 | EU48: 小学 | FK48: 0 | FM48: 72 | FN48: 洪新学校（小学） | FO48: 县直 | FP48: 小学 | GF48: 0 | GH48: 72 | GI48: 洪新学校（小学） | GJ48: 县直 | GK48: 小学 | GM48: -4 | GN48: -3 | GR48: -1 | HA48: -8
A49: 81 | B49: 城东学校（小学） | C49: 县直 | D49: 小学 | T49: 0 | V49: 81 | W49: 城东学校（小学） | X49: 县直 | Y49: 小学 | AO49: 0 | AQ49: 81 | AR49: 城东学校（小学） | AS49: 县直 | AT49: 小学 | BJ49: 0 | BL49: 81 | BM49: 城东学校（小学） | BN49: 县直 | BO49: 小学 | BQ49: 4 | BR49: 5 | CE49: 9 | CG49: 81 | CH49: 城东学校（小学） | CI49: 县直 | CJ49: 小学 | CZ49: 0 | DB49: 81 | DC49: 城东学校（小学） | DD49: 县直 | DE49: 小学 | DG49: 4 | DH49: 5 | DU49: 9 | DW49: 81 | DX49: 城东学校（小学） | DY49: 县直 | DZ49: 小学 | EP49: 0 | ER49: 81 | ES49: 城东学校（小学） | ET49: 县直 | EU49: 小学 | FK49: 0 | FM49: 81 | FN49: 城东学校（小学） | FO49: 县直 | FP49: 小学 | GF49: 0 | GH49: 81 | GI49: 城东学校（小学） | GJ49: 县直 | GK49: 小学 | HA49: 0
B50: 县直小学 总计 | E50: =SUM(E24:E49) -> 0 | F50: =SUM(F24:F49) -> 9 | G50: 4 | H50: 8 | I50: 3 | J50: 2 | K50: 1 | L50: 0 | M50: 0 | N50: 0 | O50: 0 | P50: 0 | Q50: 0 | R50: 0 | S50: 0 | T50: 27 | W50: 县直小学 总计 | Z50: =SUM(Z24:Z49) -> 3 | AA50: 55 | AB50: 57 | AC50: 18 | AD50: 8 | AE50: 8 | AF50: 8 | AG50: 4 | AH50: 0 | AI50: 0 | AJ50: 0 | AK50: 0 | AL50: 0 | AM50: 0 | AN50: 2 | AO50: 163 | AR50: 县直小学 总计 | AU50: =SUM(AU24:AU49) -> 0 | AV50: 0 | AW50: 0 | AX50: 0 | AY50: 0 | AZ50: 0 | BA50: 0 | BB50: 0 | BC50: 0 | BD50: 0 | BE50: 0 | BF50: 0 | BG50: 0 | BH50: 0 | BI50: 0 | BJ50: 0 | BM50: 县直小学 总计 | BP50: =SUM(BP24:BP49) -> 2 | BQ50: 32 | BR50: 29 | BS50: 6 | BT50: 4 | BU50: 4 | BV50: 5 | BW50: 4 | BX50: 0 | BY50: 0 | BZ50: 0 | CA50: 0 | CB50: 0 | CC50: 0 | CD50: 3 | CE50: 89 | CH50: 县直小学 总计 | CK50: =SUM(CK24:CK49) -> 0 | CL50: 0 | CM50: 0 | CN50: 0 | CO50: 0 | CP50: 0 | CQ50: 0 | CR50: 0 | CS50: 0 | CT50: 0 | CU50: 0 | CV50: 0 | CW50: 0 | CX50: 0 | CY50: 0 | CZ50: 0 | DC50: 县直小学 总计 | DF50: =SUM(DF24:DF49) -> 2 | DG50: =SUM(DG24:DG49) -> 62 | DH50: 53 | DI50: 22 | DJ50: 10 | DK50: 8 | DL50: 10 | DM50: 6 | DN50: 0 | DO50: 0 | DP50: 0 | DQ50: 0 | DR50: 0 | DS50: 0 | DT50: 3 | DU50: 176 | DX50: 县直小学 总计 | EA50: =SUM(EA24:EA49) -> 1 | EB50: 12 | EC50: 15 | ED50: 6 | EE50: 2 | EF50: 1 | EG50: 2 | EH50: 1 | EI50: 0 | EJ50: 0 | EK50: 0 | EL50: 0 | EM50: 0 | EN50: 0 | EO50: 0 | EP50: 40 | ES50: 县直小学 总计 | EV50: =SUM(EV24:EV49) -> 2 | EW50: 16 | EX50: 20 | EY50: 4 | EZ50: 2 | FA50: 2 | FB50: 2 | FC50: 1 | FD50: 0 | FE50: 0 | FF50: 0 | FG50: 0 | FH50: 0 | FI50: 0 | FJ50: 1 | FK50: 50 | FN50: 县直小学 总计 | FQ50: =SUM(FQ24:FQ49) -> 0 | FR50: 3 | FS50: 1 | FT50: 0 | FU50: 0 | FV50: 1 | FW50: 0 | FX50: 0 | FY50: 0 | FZ50: 0 | GA50: 0 | GB50: 0 | GC50: 0 | GD50: 0 | GE50: 1 | GF50: 6 | GI50: 县直小学 总计 | GL50: =IF(E50+Z50+AU50+BP50-CK50-DF50-EA50-EV50-FQ50=0,"",E50+Z50+AU50+BP50-CK50-DF50-EA50-EV50-FQ50) ->  | GM50: =IF(F50+AA50+AV50+BQ50-CL50-DG50-EB50-EW50-FR50=0,"",F50+AA50+AV50+BQ50-CL50-DG50-EB50-EW50-FR50) -> 3 | GN50: 1 | GP50: 1 | GQ50: 2 | HA50: 7
B51: 小学总计 | E51: =E50+E23 -> 0 | F51: =F50+F23 -> 13 | G51: 9 | H51: 12 | I51: 4 | J51: 3 | K51: 2 | L51: 0 | M51: 0 | N51: 0 | O51: 0 | P51: 0 | Q51: 0 | R51: 0 | S51: 1 | T51: 44 | W51: 小学总计 | Z51: =Z50+Z23 -> 3 | AA51: 55 | AB51: 57 | AC51: 18 | AD51: 8 | AE51: 8 | AF51: 8 | AG51: 4 | AH51: 0 | AI51: 0 | AJ51: 0 | AK51: 0 | AL51: 0 | AM51: 0 | AN51: 2 | AO51: 163 | AR51: 小学总计 | AU51: =AU50+AU23 -> 0 | AV51: 6 | AW51: 7 | AX51: 3 | AY51: 0 | AZ51: 1 | BA51: 0 | BB51: 0 | BC51: 0 | BD51: 0 | BE51: 0 | BF51: 0 | BG51: 0 | BH51: 0 | BI51: 2 | BJ51: 19 | BM51: 小学总计 | BP51: =BP50+BP23 -> 2 | BQ51: 35 | BR51: 32 | BS51: 6 | BT51: 5 | BU51: 4 | BV51: 5 | BW51: 4 | BX51: 0 | BY51: 0 | BZ51: 0 | CA51: 0 | CB51: 0 | CC51: 0 | CD51: 3 | CE51: 96 | CH51: 小学总计 | CK51: =CK50+CK23 -> 0 | CL51: 7 | CM51: 6 | CN51: 5 | CO51: 7 | CP51: 7 | CQ51: 6 | CR51: 3 | CS51: 0 | CT51: 0 | CU51: 0 | CV51: 0 | CW51: 0 | CX51: 0 | CY51: 6 | CZ51: 47 | DC51: 小学总计 | DF51: =DF50+DF23 -> 2 | DG51: =DG50+DG23 -> 73 | DH51: 63 | DI51: 27 | DJ51: 13 | DK51: 11 | DL51: 11 | DM51: 6 | DN51: 0 | DO51: 0 | DP51: 0 | DQ51: 0 | DR51: 0 | DS51: 0 | DT51: 3 | DU51: 209 | DX51: 小学总计 | EA51: =EA50+EA23 -> 1 | EB51: 12 | EC51: 15 | ED51: 6 | EE51: 2 | EF51: 1 | EG51: 2 | EH51: 1 | EI51: 0 | EJ51: 0 | EK51: 0 | EL51: 0 | EM51: 0 | EN51: 0 | EO51: 0 | EP51: 40 | ES51: 小学总计 | EV51: =EV50+EV23 -> 2 | EW51: 16 | EX51: 21 | EY51: 5 | EZ51: 2 | FA51: 2 | FB51: 2 | FC51: 1 | FD51: 0 | FE51: 0 | FF51: 0 | FG51: 0 | FH51: 0 | FI51: 0 | FJ51: 1 | FK51: 52 | FN51: 小学总计 | FQ51: =FQ50+FQ23 -> 0 | FR51: 3 | FS51: 1 | FT51: 0 | FU51: 0 | FV51: 1 | FW51: 0 | FX51: 0 | FY51: 0 | FZ51: 0 | GA51: 0 | GB51: 0 | GC51: 0 | GD51: 0 | GE51: 1 | GF51: 6 | GI51: 小学总计 | GM51: =IF(F51+AA51+AV51+BQ51-CL51-DG51-EB51-EW51-FR51=0,"",F51+AA51+AV51+BQ51-CL51-DG51-EB51-EW51-FR51) -> -2 | GN51: -1 | GO51: -4 | GP51: -7 | GQ51: -6 | GR51: -6 | GS51: -3 | GZ51: -3 | HA51: -32
CK52: =IF(CK5-CK51=0,"",CK5-CK51) ->  | CO52: 1 | CQ52: 1 | CY52: 1 | CZ52: 3 | DF52: =IF(DF5-DF51=0,"",DF5-DF51) ->  | DG52: =IF(DG5-DG51=0,"",DG5-DG51) ->  | DU52: 0
DC53: 初中统招可分配人数 | DE53: 初中 | DF53: 6 | DG53: 16 | DH53: 13 | DI53: 12 | DJ53: 3 | DK53: 8 | DL53: 3 | DN53: 8 | DO53: 7 | DP53: 2 | DQ53: 7 | DR53: 2 | DS53: 2 | DT53: 2 | DU53: 91
DC54: 已分配人数 | DE54: 初中 | DF54: =IF(DF94=0,"",DF94) -> 6 | DG54: =IF(DG94=0,"",DG94) -> 16 | DH54: 13 | DI54: 12 | DJ54: 3 | DK54: 8 | DL54: 3 | DN54: 8 | DO54: 7 | DP54: 2 | DQ54: 7 | DR54: 2 | DS54: 2 | DT54: 2 | DU54: 91
A55: 27 | B55: 黄马凤凰沟实验学校 | C55: 乡镇 | D55: 初中 | T55: =SUM(E55:S55) -> 0 | V55: 27 | W55: 黄马凤凰沟实验学校 | X55: 乡镇 | Y55: 初中 | AO55: =SUM(Z55:AN55) -> 0 | AQ55: 27 | AR55: 黄马凤凰沟实验学校 | AS55: 乡镇 | AT55: 初中 | BJ55: =SUM(AU55:BI55) -> 0 | BL55: 27 | BM55: 黄马凤凰沟实验学校 | BN55: 乡镇 | BO55: 初中 | BT55: 1 | BY55: 1 | CE55: =SUM(BP55:CD55) -> 2 | CG55: 27 | CH55: 黄马凤凰沟实验学校 | CI55: 乡镇 | CJ55: 初中 | CZ55: =SUM(CK55:CY55) -> 0 | DB55: 27 | DC55: 黄马凤凰沟实验学校 | DD55: 乡镇 | DE55: 初中 | DJ55: 1 | DO55: 1 | DU55: =SUM(DF55:DT55) -> 2 | DW55: 27 | DX55: 黄马凤凰沟实验学校 | DY55: 乡镇 | DZ55: 初中 | EP55: =SUM(EA55:EO55) -> 0 | ER55: 27 | ES55: 黄马凤凰沟实验学校 | ET55: 乡镇 | EU55: 初中 | FK55: =SUM(EV55:FJ55) -> 0 | FM55: 27 | FN55: 黄马凤凰沟实验学校 | FO55: 乡镇 | FP55: 初中 | GF55: =SUM(FQ55:GE55) -> 0 | GH55: 27 | GI55: 黄马凤凰沟实验学校 | GJ55: 乡镇 | GK55: 初中 | GM55: =IF(F55+AA55+AV55+BQ55-CL55-DG55-EB55-EW55-FR55=0,"",F55+AA55+AV55+BQ55-CL55-DG55-EB55-EW55-FR55) ->  | HA55: =SUM(GL55:GZ55) -> 0
A56: 34 | B56: 南新中学 | C56: 乡镇 | D56: 初中 | T56: 0 | V56: 34 | W56: 南新中学 | X56: 乡镇 | Y56: 初中 | AD56: 1 | AO56: 1 | AQ56: 34 | AR56: 南新中学 | AS56: 乡镇 | AT56: 初中 | AW56: 1 | BC56: 1 | BJ56: 2 | BL56: 34 | BM56: 南新中学 | BN56: 乡镇 | BO56: 初中 | CE56: 0 | CG56: 34 | CH56: 南新中学 | CI56: 乡镇 | CJ56: 初中 | CZ56: 0 | DB56: 34 | DC56: 南新中学 | DD56: 乡镇 | DE56: 初中 | DH56: 1 | DJ56: 1 | DU56: 2 | DW56: 34 | DX56: 南新中学 | DY56: 乡镇 | DZ56: 初中 | EP56: 0 | ER56: 34 | ES56: 南新中学 | ET56: 乡镇 | EU56: 初中 | FK56: 0 | FM56: 34 | FN56: 南新中学 | FO56: 乡镇 | FP56: 初中 | GF56: 0 | GH56: 34 | GI56: 南新中学 | GJ56: 乡镇 | GK56: 初中 | GL56: =IF(E56+Z56+AU56+BP56-CK56-DF56-EA56-EV56-FQ56=0,"",E56+Z56+AU56+BP56-CK56-DF56-EA56-EV56-FQ56) ->  | GM56: =IF(F56+AA56+AV56+BQ56-CL56-DG56-EB56-EW56-FR56=0,"",F56+AA56+AV56+BQ56-CL56-DG56-EB56-EW56-FR56) ->  | GN56: =IF(G56+AB56+AW56+BR56-CM56-DH56-EC56-EX56-FS56=0,"",G56+AB56+AW56+BR56-CM56-DH56-EC56-EX56-FS56) ->  | GO56: =IF(H56+AC56+AX56+BS56-CN56-DI56-ED56-EY56-FT56=0,"",H56+AC56+AX56+BS56-CN56-DI56-ED56-EY56-FT56) ->  | GP56: =IF(I56+AD56+AY56+BT56-CO56-DJ56-EE56-EZ56-FU56=0,"",I56+AD56+AY56+BT56-CO56-DJ56-EE56-EZ56-FU56) ->  | GQ56: =IF(J56+AE56+AZ56+BU56-CP56-DK56-EF56-FA56-FV56=0,"",J56+AE56+AZ56+BU56-CP56-DK56-EF56-FA56-FV56) ->  | GR56: =IF(K56+AF56+BA56+BV56-CQ56-DL56-EG56-FB56-FW56=0,"",K56+AF56+BA56+BV56-CQ56-DL56-EG56-FB56-FW56) ->  | GS56: =IF(L56+AG56+BB56+BW56-CR56-DM56-EH56-FC56-FX56=0,"",L56+AG56+BB56+BW56-CR56-DM56-EH56-FC56-FX56) ->  | GT56: =IF(M56+AH56+BC56+BX56-CS56-DN56-EI56-FD56-FY56=0,"",M56+AH56+BC56+BX56-CS56-DN56-EI56-FD56-FY56) -> 1 | GU56: =IF(N56+AI56+BD56+BY56-CT56-DO56-EJ56-FE56-FZ56=0,"",N56+AI56+BD56+BY56-CT56-DO56-EJ56-FE56-FZ56) ->  | GV56: =IF(O56+AJ56+BE56+BZ56-CU56-DP56-EK56-FF56-GA56=0,"",O56+AJ56+BE56+BZ56-CU56-DP56-EK56-FF56-GA56) ->  | GW56: =IF(P56+AK56+BF56+CA56-CV56-DQ56-EL56-FG56-GB56=0,"",P56+AK56+BF56+CA56-CV56-DQ56-EL56-FG56-GB56) ->  | GX56: =IF(Q56+AL56+BG56+CB56-CW56-DR56-EM56-FH56-GC56=0,"",Q56+AL56+BG56+CB56-CW56-DR56-EM56-FH56-GC56) ->  | GY56: =IF(R56+AM56+BH56+CC56-CX56-DS56-EN56-FI56-GD56=0,"",R56+AM56+BH56+CC56-CX56-DS56-EN56-FI56-GD56) ->  | GZ56: =IF(S56+AN56+BI56+CD56-CY56-DT56-EO56-FJ56-GE56=0,"",S56+AN56+BI56+CD56-CY56-DT56-EO56-FJ56-GE56) ->  | HA56: 1
A57: 35 | B57: 蒋巷二中 | C57: 乡镇 | D57: 初中 | T57: 0 | V57: 35 | W57: 蒋巷二中 | X57: 乡镇 | Y57: 初中 | AO57: 0 | AQ57: 35 | AR57: 蒋巷二中 | AS57: 乡镇 | AT57: 初中 | AX57: 1 | BJ57: 1 | BL57: 35 | BM57: 蒋巷二中 | BN57: 乡镇 | BO57: 初中 | BP57: 1 | BZ57: 1 | CB57: 1 | CD57: 1 | CE57: 4 | CG57: 35 | CH57: 蒋巷二中 | CI57: 乡镇 | CJ57: 初中 | CZ57: 0 | DB57: 35 | DC57: 蒋巷二中 | DD57: 乡镇 | DE57: 初中 | DF57: 1 | DI57: 1 | DP57: 1 | DR57: 1 | DT57: 1 | DU57: 5 | DW57: 35 | DX57: 蒋巷二中 | DY57: 乡镇 | DZ57: 初中 | EP57: 0 | ER57: 35 | ES57: 蒋巷二中 | ET57: 乡镇 | EU57: 初中 | FK57: 0 | FM57: 35 | FN57: 蒋巷二中 | FO57: 乡镇 | FP57: 初中 | GF57: 0 | GH57: 35 | GI57: 蒋巷二中 | GJ57: 乡镇 | GK57: 初中 | HA57: 0
A58: 36 | B58: 塘南中学 | C58: 乡镇 | D58: 初中 | T58: 0 | V58: 36 | W58: 塘南中学 | X58: 乡镇 | Y58: 初中 | AB58: 1 | AC58: 1 | AO58: 2 | AQ58: 36 | AR58: 塘南中学 | AS58: 乡镇 | AT58: 初中 | BJ58: 0 | BL58: 36 | BM58: 塘南中学 | BN58: 乡镇 | BO58: 初中 | CE58: 0 | CG58: 36 | CH58: 塘南中学 | CI58: 乡镇 | CJ58: 初中 | CZ58: 0 | DB58: 36 | DC58: 塘南中学 | DD58: 乡镇 | DE58: 初中 | DH58: 1 | DI58: 1 | DU58: 2 | DW58: 36 | DX58: 塘南中学 | DY58: 乡镇 | DZ58: 初中 | EP58: 0 | ER58: 36 | ES58: 塘南中学 | ET58: 乡镇 | EU58: 初中 | FK58: 0 | FM58: 36 | FN58: 塘南中学 | FO58: 乡镇 | FP58: 初中 | GF58: 0 | GH58: 36 | GI58: 塘南中学 | GJ58: 乡镇 | GK58: 初中 | HA58: 0
A59: 37 | B59: 新联学校（初中） | C59: 乡镇 | D59: 初中 | T59: 0 | V59: 37 | W59: 新联学校（初中） | X59: 乡镇 | Y59: 初中 | AO59: 0 | AQ59: 37 | AR59: 新联学校（初中） | AS59: 乡镇 | AT59: 初中 | BJ59: 0 | BL59: 37 | BM59: 新联学校（初中） | BN59: 乡镇 | BO59: 初中 | BX59: 1 | BY59: 1 | CE59: 2 | CG59: 37 | CH59: 新联学校（初中） | CI59: 乡镇 | CJ59: 初中 | CZ59: 0 | DB59: 37 | DC59: 新联学校（初中） | DD59: 乡镇 | DE59: 初中 | DN59: 1 | DO59: 1 | DU59: 2 | DW59: 37 | DX59: 新联学校（初中） | DY59: 乡镇 | DZ59: 初中 | EP59: 0 | ER59: 37 | ES59: 新联学校（初中） | ET59: 乡镇 | EU59: 初中 | FK59: 0 | FM59: 37 | FN59: 新联学校（初中） | FO59: 乡镇 | FP59: 初中 | GF59: 0 | GH59: 37 | GI59: 新联学校（初中） | GJ59: 乡镇 | GK59: 初中 | HA59: 0
A60: 38 | B60: 泾口中学 | C60: 乡镇 | D60: 初中 | T60: 0 | V60: 38 | W60: 泾口中学 | X60: 乡镇 | Y60: 初中 | AO60: 0 | AQ60: 38 | AR60: 泾口中学 | AS60: 乡镇 | AT60: 初中 | BJ60: 0 | BL60: 38 | BM60: 泾口中学 | BN60: 乡镇 | BO60: 初中 | CE60: 0 | CG60: 38 | CH60: 泾口中学 | CI60: 乡镇 | CJ60: 初中 | CZ60: 0 | DB60: 38 | DC60: 泾口中学 | DD60: 乡镇 | DE60: 初中 | DU60: 0 | DW60: 38 | DX60: 泾口中学 | DY60: 乡镇 | DZ60: 初中 | EP60: 0 | ER60: 38 | ES60: 泾口中学 | ET60: 乡镇 | EU60: 初中 | FK60: 0 | FM60: 38 | FN60: 泾口中学 | FO60: 乡镇 | FP60: 初中 | GF60: 0 | GH60: 38 | GI60: 泾口中学 | GJ60: 乡镇 | GK60: 初中 | HA60: 0
A61: 41 | B61: 塔城中学 | C61: 乡镇 | D61: 初中 | T61: 0 | V61: 41 | W61: 塔城中学 | X61: 乡镇 | Y61: 初中 | AB61: 1 | AO61: 1 | AQ61: 41 | AR61: 塔城中学 | AS61: 乡镇 | AT61: 初中 | BJ61: 0 | BL61: 41 | BM61: 塔城中学 | BN61: 乡镇 | BO61: 初中 | CE61: 0 | CG61: 41 | CH61: 塔城中学 | CI61: 乡镇 | CJ61: 初中 | CZ61: 0 | DB61: 41 | DC61: 塔城中学 | DD61: 乡镇 | DE61: 初中 | DU61: 0 | DW61: 41 | DX61: 塔城中学 | DY61: 乡镇 | DZ61: 初中 | EP61: 0 | ER61: 41 | ES61: 塔城中学 | ET61: 乡镇 | EU61: 初中 | FK61: 0 | FM61: 41 | FN61: 塔城中学 | FO61: 乡镇 | FP61: 初中 | GF61: 0 | GH61: 41 | GI61: 塔城中学 | GJ61: 乡镇 | GK61: 初中 | GN61: 1 | HA61: 1
A62: 42 | B62: 武阳中学 | C62: 乡镇 | D62: 初中 | F62: 2 | G62: 2 | H62: 1 | N62: 1 | T62: 6 | V62: 42 | W62: 武阳中学 | X62: 乡镇 | Y62: 初中 | AO62: 0 | AQ62: 42 | AR62: 武阳中学 | AS62: 乡镇 | AT62: 初中 | BJ62: 0 | BL62: 42 | BM62: 武阳中学 | BN62: 乡镇 | BO62: 初中 | CE62: 0 | CG62: 42 | CH62: 武阳中学 | CI62: 乡镇 | CJ62: 初中 | CZ62: 0 | DB62: 42 | DC62: 武阳中学 | DD62: 乡镇 | DE62: 初中 | DG62: 1 | DH62: 1 | DI62: 1 | DU62: 3 | DW62: 42 | DX62: 武阳中学 | DY62: 乡镇 | DZ62: 初中 | EP62: 0 | ER62: 42 | ES62: 武阳中学 | ET62: 乡镇 | EU62: 初中 | EW62: 1 | EX62: 1 | FE62: 1 | FK62: 3 | FM62: 42 | FN62: 武阳中学 | FO62: 乡镇 | FP62: 初中 | GF62: 0 | GH62: 42 | GI62: 武阳中学 | GJ62: 乡镇 | GK62: 初中 | HA62: 0
A63: 43 | B63: 向塘二中 | C63: 乡镇 | D63: 初中 | T63: 0 | V63: 43 | W63: 向塘二中 | X63: 乡镇 | Y63: 初中 | AO63: 0 | AQ63: 43 | AR63: 向塘二中 | AS63: 乡镇 | AT63: 初中 | BJ63: 0 | BL63: 43 | BM63: 向塘二中 | BN63: 乡镇 | BO63: 初中 | CE63: 0 | CG63: 43 | CH63: 向塘二中 | CI63: 乡镇 | CJ63: 初中 | CZ63: 0 | DB63: 43 | DC63: 向塘二中 | DD63: 乡镇 | DE63: 初中 | DU63: 0 | DW63: 43 | DX63: 向塘二中 | DY63: 乡镇 | DZ63: 初中 | EP63: 0 | ER63: 43 | ES63: 向塘二中 | ET63: 乡镇 | EU63: 初中 | FK63: 0 | FM63: 43 | FN63: 向塘二中 | FO63: 乡镇 | FP63: 初中 | GF63: 0 | GH63: 43 | GI63: 向塘二中 | GJ63: 乡镇 | GK63: 初中 | HA63: 0
A64: 44 | B64: 向塘实验学校（初中） | C64: 乡镇 | D64: 初中 | T64: 0 | V64: 44 | W64: 向塘实验学校（初中） | X64: 乡镇 | Y64: 初中 | AB64: 1 | AH64: 1 | AI64: 1 | AO64: 3 | AQ64: 44 | AR64: 向塘实验学校（初中） | AS64: 乡镇 | AT64: 初中 | BJ64: 0 | BL64: 44 | BM64: 向塘实验学校（初中） | BN64: 乡镇 | BO64: 初中 | BP64: 1 | BQ64: 1 | BS64: 1 | CA64: 1 | CE64: 4 | CG64: 44 | CH64: 向塘实验学校（初中） | CI64: 乡镇 | CJ64: 初中 | CZ64: 0 | DB64: 44 | DC64: 向塘实验学校（初中） | DD64: 乡镇 | DE64: 初中 | DF64: 1 | DG64: 1 | DH64: 1 | DI64: 1 | DQ64: 1 | DU64: 5 | DW64: 44 | DX64: 向塘实验学校（初中） | DY64: 乡镇 | DZ64: 初中 | EP64: 0 | ER64: 44 | ES64: 向塘实验学校（初中） | ET64: 乡镇 | EU64: 初中 | EX64: 1 | FD64: 1 | FE64: 1 | FK64: 3 | FM64: 44 | FN64: 向塘实验学校（初中） | FO64: 乡镇 | FP64: 初中 | GF64: 0 | GH64: 44 | GI64: 向塘实验学校（初中） | GJ64: 乡镇 | GK64: 初中 | GN64: -1 | HA64: -1
A65: 45 | B65: 向塘向阳学校（初中） | C65: 乡镇 | D65: 初中 | T65: 0 | V65: 45 | W65: 向塘向阳学校（初中） | X65: 乡镇 | Y65: 初中 | AO65: 0 | AQ65: 45 | AR65: 向塘向阳学校（初中） | AS65: 乡镇 | AT65: 初中 | BJ65: 0 | BL65: 45 | BM65: 向塘向阳学校（初中） | BN65: 乡镇 | BO65: 初中 | BQ65: 1 | CE65: 1 | CG65: 45 | CH65: 向塘向阳学校（初中） | CI65: 乡镇 | CJ65: 初中 | CZ65: 0 | DB65: 45 | DC65: 向塘向阳学校（初中） | DD65: 乡镇 | DE65: 初中 | DH65: 1 | DU65: 1 | DW65: 45 | DX65: 向塘向阳学校（初中） | DY65: 乡镇 | DZ65: 初中 | EP65: 0 | ER65: 45 | ES65: 向塘向阳学校（初中） | ET65: 乡镇 | EU65: 初中 | FK65: 0 | FM65: 45 | FN65: 向塘向阳学校（初中） | FO65: 乡镇 | FP65: 初中 | GF65: 0 | GH65: 45 | GI65: 向塘向阳学校（初中） | GJ65: 乡镇 | GK65: 初中 | GM65: 1 | GN65: -1 | HA65: 0
A66: 46 | B66: 黄马中学 | C66: 乡镇 | D66: 初中 | T66: 0 | V66: 46 | W66: 黄马中学 | X66: 乡镇 | Y66: 初中 | AO66: 0 | AQ66: 46 | AR66: 黄马中学 | AS66: 乡镇 | AT66: 初中 | BJ66: 0 | BL66: 46 | BM66: 黄马中学 | BN66: 乡镇 | BO66: 初中 | CE66: 0 | CG66: 46 | CH66: 黄马中学 | CI66: 乡镇 | CJ66: 初中 | CZ66: 0 | DB66: 46 | DC66: 黄马中学 | DD66: 乡镇 | DE66: 初中 | DU66: 0 | DW66: 46 | DX66: 黄马中学 | DY66: 乡镇 | DZ66: 初中 | EP66: 0 | ER66: 46 | ES66: 黄马中学 | ET66: 乡镇 | EU66: 初中 | FK66: 0 | FM66: 46 | FN66: 黄马中学 | FO66: 乡镇 | FP66: 初中 | GF66: 0 | GH66: 46 | GI66: 黄马中学 | GJ66: 乡镇 | GK66: 初中 | HA66: 0
A67: 47 | B67: 三江中学 | C67: 乡镇 | D67: 初中 | T67: 0 | V67: 47 | W67: 三江中学 | X67: 乡镇 | Y67: 初中 | AO67: 0 | AQ67: 47 | AR67: 三江中学 | AS67: 乡镇 | AT67: 初中 | AV67: 1 | AX67: 1 | BJ67: 2 | BL67: 47 | BM67: 三江中学 | BN67: 乡镇 | BO67: 初中 | CE67: 0 | CG67: 47 | CH67: 三江中学 | CI67: 乡镇 | CJ67: 初中 | CZ67: 0 | DB67: 47 | DC67: 三江中学 | DD67: 乡镇 | DE67: 初中 | DG67: 1 | DI67: 1 | DU67: 2 | DW67: 47 | DX67: 三江中学 | DY67: 乡镇 | DZ67: 初中 | EP67: 0 | ER67: 47 | ES67: 三江中学 | ET67: 乡镇 | EU67: 初中 | FK67: 0 | FM67: 47 | FN67: 三江中学 | FO67: 乡镇 | FP67: 初中 | GF67: 0 | GH67: 47 | GI67: 三江中学 | GJ67: 乡镇 | GK67: 初中 | HA67: 0
A68: 48 | B68: 广福一中 | C68: 乡镇 | D68: 初中 | T68: 0 | V68: 48 | W68: 广福一中 | X68: 乡镇 | Y68: 初中 | AO68: 0 | AQ68: 48 | AR68: 广福一中 | AS68: 乡镇 | AT68: 初中 | AV68: 1 | AW68: 1 | AX68: 1 | AZ68: 1 | BJ68: 4 | BL68: 48 | BM68: 广福一中 | BN68: 乡镇 | BO68: 初中 | CE68: 0 | CG68: 48 | CH68: 广福一中 | CI68: 乡镇 | CJ68: 初中 | CZ68: 0 | DB68: 48 | DC68: 广福一中 | DD68: 乡镇 | DE68: 初中 | DG68: 1 | DH68: 2 | DK68: 1 | DU68: 4 | DW68: 48 | DX68: 广福一中 | DY68: 乡镇 | DZ68: 初中 | EP68: 0 | ER68: 48 | ES68: 广福一中 | ET68: 乡镇 | EU68: 初中 | FK68: 0 | FM68: 48 | FN68: 广福一中 | FO68: 乡镇 | FP68: 初中 | GF68: 0 | GH68: 48 | GI68: 广福一中 | GJ68: 乡镇 | GK68: 初中 | GN68: -1 | GO68: 1 | HA68: 0
A69: 49 | B69: 广福二中 | C69: 乡镇 | D69: 初中 | T69: 0 | V69: 49 | W69: 广福二中 | X69: 乡镇 | Y69: 初中 | AH69: 1 | AO69: 1 | AQ69: 49 | AR69: 广福二中 | AS69: 乡镇 | AT69: 初中 | AU69: 1 | AV69: 1 | AW69: 1 | AZ69: 1 | BJ69: 4 | BL69: 49 | BM69: 广福二中 | BN69: 乡镇 | BO69: 初中 | CE69: 0 | CG69: 49 | CH69: 广福二中 | CI69: 乡镇 | CJ69: 初中 | CZ69: 0 | DB69: 49 | DC69: 广福二中 | DD69: 乡镇 | DE69: 初中 | DF69: 1 | DG69: 1 | DH69: 1 | DK69: 1 | DN69: 1 | DU69: 5 | DW69: 49 | DX69: 广福二中 | DY69: 乡镇 | DZ69: 初中 | EP69: 0 | ER69: 49 | ES69: 广福二中 | ET69: 乡镇 | EU69: 初中 | FK69: 0 | FM69: 49 | FN69: 广福二中 | FO69: 乡镇 | FP69: 初中 | GF69: 0 | GH69: 49 | GI69: 广福二中 | GJ69: 乡镇 | GK69: 初中 | HA69: 0
A70: 50 | B70: 冈上中学 | C70: 乡镇 | D70: 初中 | T70: 0 | V70: 50 | W70: 冈上中学 | X70: 乡镇 | Y70: 初中 | AO70: 0 | AQ70: 50 | AR70: 冈上中学 | AS70: 乡镇 | AT70: 初中 | BJ70: 0 | BL70: 50 | BM70: 冈上中学 | BN70: 乡镇 | BO70: 初中 | CE70: 0 | CG70: 50 | CH70: 冈上中学 | CI70: 乡镇 | CJ70: 初中 | CZ70: 0 | DB70: 50 | DC70: 冈上中学 | DD70: 乡镇 | DE70: 初中 | DU70: 0 | DW70: 50 | DX70: 冈上中学 | DY70: 乡镇 | DZ70: 初中 | EP70: 0 | ER70: 50 | ES70: 冈上中学 | ET70: 乡镇 | EU70: 初中 | FK70: 0 | FM70: 50 | FN70: 冈上中学 | FO70: 乡镇 | FP70: 初中 | GF70: 0 | GH70: 50 | GI70: 冈上中学 | GJ70: 乡镇 | GK70: 初中 | HA70: 0
A71: 51 | B71: 富山中学 | C71: 乡镇 | D71: 初中 | T71: 0 | V71: 51 | W71: 富山中学 | X71: 乡镇 | Y71: 初中 | AO71: 0 | AQ71: 51 | AR71: 富山中学 | AS71: 乡镇 | AT71: 初中 | BJ71: 0 | BL71: 51 | BM71: 富山中学 | BN71: 乡镇 | BO71: 初中 | BP71: 1 | BY71: 1 | CE71: 2 | CG71: 51 | CH71: 富山中学 | CI71: 乡镇 | CJ71: 初中 | CZ71: 0 | DB71: 51 | DC71: 富山中学 | DD71: 乡镇 | DE71: 初中 | DF71: 1 | DO71: 1 | DU71: 2 | DW71: 51 | DX71: 富山中学 | DY71: 乡镇 | DZ71: 初中 | EP71: 0 | ER71: 51 | ES71: 富山中学 | ET71: 乡镇 | EU71: 初中 | FK71: 0 | FM71: 51 | FN71: 富山中学 | FO71: 乡镇 | FP71: 初中 | GF71: 0 | GH71: 51 | GI71: 富山中学 | GJ71: 乡镇 | GK71: 初中 | HA71: 0
A72: 52 | B72: 东新中学 | C72: 乡镇 | D72: 初中 | T72: 0 | V72: 52 | W72: 东新中学 | X72: 乡镇 | Y72: 初中 | AO72: 0 | AQ72: 52 | AR72: 东新中学 | AS72: 乡镇 | AT72: 初中 | BJ72: 0 | BL72: 52 | BM72: 东新中学 | BN72: 乡镇 | BO72: 初中 | BX72: 1 | CE72: 1 | CG72: 52 | CH72: 东新中学 | CI72: 乡镇 | CJ72: 初中 | CZ72: 0 | DB72: 52 | DC72: 东新中学 | DD72: 乡镇 | DE72: 初中 | DN72: 1 | DU72: 1 | DW72: 52 | DX72: 东新中学 | DY72: 乡镇 | DZ72: 初中 | EP72: 0 | ER72: 52 | ES72: 东新中学 | ET72: 乡镇 | EU72: 初中 | FK72: 0 | FM72: 52 | FN72: 东新中学 | FO72: 乡镇 | FP72: 初中 | GF72: 0 | GH72: 52 | GI72: 东新中学 | GJ72: 乡镇 | GK72: 初中 | HA72: 0
A73: 53 | B73: 八一中学 | C73: 乡镇 | D73: 初中 | T73: 0 | V73: 53 | W73: 八一中学 | X73: 乡镇 | Y73: 初中 | AO73: 0 | AQ73: 53 | AR73: 八一中学 | AS73: 乡镇 | AT73: 初中 | BJ73: 0 | BL73: 53 | BM73: 八一中学 | BN73: 乡镇 | BO73: 初中 | CE73: 0 | CG73: 53 | CH73: 八一中学 | CI73: 乡镇 | CJ73: 初中 | CZ73: 0 | DB73: 53 | DC73: 八一中学 | DD73: 乡镇 | DE73: 初中 | DU73: 0 | DW73: 53 | DX73: 八一中学 | DY73: 乡镇 | DZ73: 初中 | EP73: 0 | ER73: 53 | ES73: 八一中学 | ET73: 乡镇 | EU73: 初中 | FK73: 0 | FM73: 53 | FN73: 八一中学 | FO73: 乡镇 | FP73: 初中 | GF73: 0 | GH73: 53 | GI73: 八一中学 | GJ73: 乡镇 | GK73: 初中 | HA73: 0
B74: 乡镇初中 总计 | E74: =SUM(E55:E73) -> 0 | F74: =SUM(F55:F73) -> 2 | G74: 2 | H74: 1 | I74: 0 | J74: 0 | K74: 0 | L74: 0 | M74: 0 | N74: 1 | O74: 0 | P74: 0 | Q74: 0 | R74: 0 | S74: 0 | T74: 6 | W74: 乡镇初中 总计 | Z74: =SUM(Z55:Z73) -> 0 | AA74: 0 | AB74: 3 | AC74: 1 | AD74: 1 | AE74: 0 | AF74: 0 | AG74: 0 | AH74: 2 | AI74: 1 | AJ74: 0 | AK74: 0 | AL74: 0 | AM74: 0 | AN74: 0 | AO74: 8 | AR74: 乡镇初中 总计 | AU74: =SUM(AU55:AU73) -> 1 | AV74: 3 | AW74: 3 | AX74: 3 | AY74: 0 | AZ74: 2 | BA74: 0 | BB74: 0 | BC74: 1 | BD74: 0 | BE74: 0 | BF74: 0 | BG74: 0 | BH74: 0 | BI74: 0 | BJ74: 13 | BM74: 乡镇初中 总计 | BP74: =SUM(BP55:BP73) -> 3 | BQ74: 2 | BR74: 0 | BS74: 1 | BT74: 1 | BU74: 0 | BV74: 0 | BW74: 0 | BX74: 2 | BY74: 3 | BZ74: 1 | CA74: 1 | CB74: 1 | CC74: 0 | CD74: 1 | CE74: 16 | CH74: 乡镇初中 总计 | CK74: =SUM(CK55:CK73) -> 0 | CL74: 0 | CM74: 0 | CN74: 0 | CO74: 0 | CP74: 0 | CQ74: 0 | CR74: 0 | CS74: 0 | CT74: 0 | CU74: 0 | CV74: 0 | CW74: 0 | CX74: 0 | CY74: 0 | CZ74: 0 | DC74: 乡镇初中 总计 | DF74: =SUM(DF55:DF73) -> 4 | DG74: =SUM(DG55:DG73) -> 5 | DH74: 8 | DI74: 5 | DJ74: 2 | DK74: 2 | DL74: 0 | DM74: 0 | DN74: 3 | DO74: 3 | DP74: 1 | DQ74: 1 | DR74: 1 | DS74: 0 | DT74: 1 | DU74: 36 | DX74: 乡镇初中 总计 | EA74: =SUM(EA55:EA73) -> 0 | EB74: 0 | EC74: 0 | ED74: 0 | EE74: 0 | EF74: 0 | EG74: 0 | EH74: 0 | EI74: 0 | EJ74: 0 | EK74: 0 | EL74: 0 | EM74: 0 | EN74: 0 | EO74: 0 | EP74: 0 | ES74: 乡镇初中 总计 | EV74: =SUM(EV55:EV73) -> 0 | EW74: 1 | EX74: 2 | EY74: 0 | EZ74: 0 | FA74: 0 | FB74: 0 | FC74: 0 | FD74: 1 | FE74: 2 | FF74: 0 | FG74: 0 | FH74: 0 | FI74: 0 | FJ74: 0 | FK74: 6 | FN74: 乡镇初中 总计 | FQ74: =SUM(FQ55:FQ73) -> 0 | FR74: 0 | FS74: 0 | FT74: 0 | FU74: 0 | FV74: 0 | FW74: 0 | FX74: 0 | FY74: 0 | FZ74: 0 | GA74: 0 | GB74: 0 | GC74: 0 | GD74: 0 | GE74: 0 | GF74: 0 | GI74: 乡镇初中 总计 | GM74: =IF(F74+AA74+AV74+BQ74-CL74-DG74-EB74-EW74-FR74=0,"",F74+AA74+AV74+BQ74-CL74-DG74-EB74-EW74-FR74) -> 1 | GN74: -2 | GO74: 1 | GT74: 1 | HA74: 1
A75: 25 | B75: 县特教（初中） | C75: 县直 | D75: 初中 | T75: 0 | V75: 25 | W75: 县特教（初中） | X75: 县直 | Y75: 初中 | AO75: 0 | AQ75: 25 | AR75: 县特教（初中） | AS75: 县直 | AT75: 初中 | BJ75: 0 | BL75: 25 | BM75: 县特教（初中） | BN75: 县直 | BO75: 初中 | CE75: 0 | CG75: 25 | CH75: 县特教（初中） | CI75: 县直 | CJ75: 初中 | CZ75: 0 | DB75: 25 | DC75: 县特教（初中） | DD75: 县直 | DE75: 初中 | DU75: 0 | DW75: 25 | DX75: 县特教（初中） | DY75: 县直 | DZ75: 初中 | EP75: 0 | ER75: 25 | ES75: 县特教（初中） | ET75: 县直 | EU75: 初中 | FK75: 0 | FM75: 25 | FN75: 县特教（初中） | FO75: 县直 | FP75: 初中 | GF75: 0 | GH75: 25 | GI75: 县特教（初中） | GJ75: 县直 | GK75: 初中 | GM75: =IF(F75+AA75+AV75+BQ75-CL75-DG75-EB75-EW75-FR75=0,"",F75+AA75+AV75+BQ75-CL75-DG75-EB75-EW75-FR75) ->  | HA75: 0
A76: 26 | B76: 昌南实验学校（初中） | C76: 县直 | D76: 初中 | T76: 0 | V76: 26 | W76: 昌南实验学校（初中） | X76: 县直 | Y76: 初中 | AO76: 0 | AQ76: 26 | AR76: 昌南实验学校（初中） | AS76: 县直 | AT76: 初中 | BJ76: 0 | BL76: 26 | BM76: 昌南实验学校（初中） | BN76: 县直 | BO76: 初中 | BQ76: 1 | BR76: 1 | BY76: 1 | CE76: 3 | CG76: 26 | CH76: 昌南实验学校（初中） | CI76: 县直 | CJ76: 初中 | CZ76: 0 | DB76: 26 | DC76: 昌南实验学校（初中） | DD76: 县直 | DE76: 初中 | DG76: 1 | DH76: 1 | DO76: 1 | DU76: 3 | DW76: 26 | DX76: 昌南实验学校（初中） | DY76: 县直 | DZ76: 初中 | EP76: 0 | ER76: 26 | ES76: 昌南实验学校（初中） | ET76: 县直 | EU76: 初中 | FK76: 0 | FM76: 26 | FN76: 昌南实验学校（初中） | FO76: 县直 | FP76: 初中 | GF76: 0 | GH76: 26 | GI76: 昌南实验学校（初中） | GJ76: 县直 | GK76: 初中 | GL76: =IF(E76+Z76+AU76+BP76-CK76-DF76-EA76-EV76-FQ76=0,"",E76+Z76+AU76+BP76-CK76-DF76-EA76-EV76-FQ76) ->  | GM76: =IF(F76+AA76+AV76+BQ76-CL76-DG76-EB76-EW76-FR76=0,"",F76+AA76+AV76+BQ76-CL76-DG76-EB76-EW76-FR76) ->  | GN76: =IF(G76+AB76+AW76+BR76-CM76-DH76-EC76-EX76-FS76=0,"",G76+AB76+AW76+BR76-CM76-DH76-EC76-EX76-FS76) ->  | GO76: =IF(H76+AC76+AX76+BS76-CN76-DI76-ED76-EY76-FT76=0,"",H76+AC76+AX76+BS76-CN76-DI76-ED76-EY76-FT76) ->  | GP76: =IF(I76+AD76+AY76+BT76-CO76-DJ76-EE76-EZ76-FU76=0,"",I76+AD76+AY76+BT76-CO76-DJ76-EE76-EZ76-FU76) ->  | GQ76: =IF(J76+AE76+AZ76+BU76-CP76-DK76-EF76-FA76-FV76=0,"",J76+AE76+AZ76+BU76-CP76-DK76-EF76-FA76-FV76) ->  | GR76: =IF(K76+AF76+BA76+BV76-CQ76-DL76-EG76-FB76-FW76=0,"",K76+AF76+BA76+BV76-CQ76-DL76-EG76-FB76-FW76) ->  | GS76: =IF(L76+AG76+BB76+BW76-CR76-DM76-EH76-FC76-FX76=0,"",L76+AG76+BB76+BW76-CR76-DM76-EH76-FC76-FX76) ->  | GT76: =IF(M76+AH76+BC76+BX76-CS76-DN76-EI76-FD76-FY76=0,"",M76+AH76+BC76+BX76-CS76-DN76-EI76-FD76-FY76) ->  | GU76: =IF(N76+AI76+BD76+BY76-CT76-DO76-EJ76-FE76-FZ76=0,"",N76+AI76+BD76+BY76-CT76-DO76-EJ76-FE76-FZ76) ->  | GV76: =IF(O76+AJ76+BE76+BZ76-CU76-DP76-EK76-FF76-GA76=0,"",O76+AJ76+BE76+BZ76-CU76-DP76-EK76-FF76-GA76) ->  | GW76: =IF(P76+AK76+BF76+CA76-CV76-DQ76-EL76-FG76-GB76=0,"",P76+AK76+BF76+CA76-CV76-DQ76-EL76-FG76-GB76) ->  | GX76: =IF(Q76+AL76+BG76+CB76-CW76-DR76-EM76-FH76-GC76=0,"",Q76+AL76+BG76+CB76-CW76-DR76-EM76-FH76-GC76) ->  | GY76: =IF(R76+AM76+BH76+CC76-CX76-DS76-EN76-FI76-GD76=0,"",R76+AM76+BH76+CC76-CX76-DS76-EN76-FI76-GD76) ->  | GZ76: =IF(S76+AN76+BI76+CD76-CY76-DT76-EO76-FJ76-GE76=0,"",S76+AN76+BI76+CD76-CY76-DT76-EO76-FJ76-GE76) ->  | HA76: 0
A77: 28 | B77: 银三角实验学校（初中） | C77: 县直 | D77: 初中 | T77: 0 | V77: 28 | W77: 银三角实验学校（初中） | X77: 县直 | Y77: 初中 | AO77: =SUM(Z77:AN77) -> 0 | AQ77: 28 | AR77: 银三角实验学校（初中） | AS77: 县直 | AT77: 初中 | BJ77: 0 | BL77: 28 | BM77: 银三角实验学校（初中） | BN77: 县直 | BO77: 初中 | BV77: 1 | CA77: 1 | CE77: 2 | CG77: 28 | CH77: 银三角实验学校（初中） | CI77: 县直 | CJ77: 初中 | CZ77: =SUM(CK77:CY77) -> 0 | DB77: 28 | DC77: 银三角实验学校（初中） | DD77: 县直 | DE77: 初中 | DG77: 1 | DI77: 1 | DL77: 1 | DQ77: 1 | DU77: =SUM(DF77:DT77) -> 4 | DW77: 28 | DX77: 银三角实验学校（初中） | DY77: 县直 | DZ77: 初中 | EP77: 0 | ER77: 28 | ES77: 银三角实验学校（初中） | ET77: 县直 | EU77: 初中 | FK77: 0 | FM77: 28 | FN77: 银三角实验学校（初中） | FO77: 县直 | FP77: 初中 | GF77: 0 | GH77: 28 | GI77: 银三角实验学校（初中） | GJ77: 县直 | GK77: 初中 | GM77: -1 | GO77: -1 | HA77: =SUM(GL77:GZ77) -> -2
A78: 57 | B78: 莲塘四中 | C78: 县直 | D78: 初中 | E78: 3 | F78: 5 | G78: 4 | H78: 3 | J78: 2 | M78: 1 | N78: 4 | P78: 2 | R78: 1 | T78: 25 | V78: 57 | W78: 莲塘四中 | X78: 县直 | Y78: 初中 | AH78: 1 | AO78: 1 | AQ78: 57 | AR78: 莲塘四中 | AS78: 县直 | AT78: 初中 | BJ78: 0 | BL78: 57 | BM78: 莲塘四中 | BN78: 县直 | BO78: 初中 | CE78: 0 | CG78: 57 | CH78: 莲塘四中 | CI78: 县直 | CJ78: 初中 | CZ78: 0 | DB78: 57 | DC78: 莲塘四中 | DD78: 县直 | DE78: 初中 | DF78: 1 | DG78: 3 | DH78: 1 | DI78: 2 | DK78: 1 | DN78: 1 | DO78: 1 | DQ78: 1 | DS78: 1 | DU78: 12 | DW78: 57 | DX78: 莲塘四中 | DY78: 县直 | DZ78: 初中 | EB78: 2 | EC78: 2 | ED78: 1 | EF78: 1 | EP78: 6 | ER78: 57 | ES78: 莲塘四中 | ET78: 县直 | EU78: 初中 | EV78: 1 | EW78: 1 | FG78: 1 | FK78: 3 | FM78: 57 | FN78: 莲塘四中 | FO78: 县直 | FP78: 初中 | FQ78: 1 | FY78: 1 | FZ78: 3 | GF78: 5 | GH78: 57 | GI78: 莲塘四中 | GJ78: 县直 | GK78: 初中 | GM78: -1 | GN78: 1 | HA78: 0
A79: 58 | B79: 莲塘五中 | C79: 县直 | D79: 初中 | T79: 0 | V79: 58 | W79: 莲塘五中 | X79: 县直 | Y79: 初中 | AO79: 0 | AQ79: 58 | AR79: 莲塘五中 | AS79: 县直 | AT79: 初中 | AV79: 1 | BJ79: 1 | BL79: 58 | BM79: 莲塘五中 | BN79: 县直 | BO79: 初中 | CE79: 0 | CG79: 58 | CH79: 莲塘五中 | CI79: 县直 | CJ79: 初中 | CZ79: 0 | DB79: 58 | DC79: 莲塘五中 | DD79: 县直 | DE79: 初中 | DG79: 1 | DU79: 1 | DW79: 58 | DX79: 莲塘五中 | DY79: 县直 | DZ79: 初中 | EP79: 0 | ER79: 58 | ES79: 莲塘五中 | ET79: 县直 | EU79: 初中 | FK79: 0 | FM79: 58 | FN79: 莲塘五中 | FO79: 县直 | FP79: 初中 | GF79: 0 | GH79: 58 | GI79: 莲塘五中 | GJ79: 县直 | GK79: 初中 | HA79: 0
A80: 59 | B80: 莲塘六中 | C80: 县直 | D80: 初中 | T80: 0 | V80: 59 | W80: 莲塘六中 | X80: 县直 | Y80: 初中 | AO80: 0 | AQ80: 59 | AR80: 莲塘六中 | AS80: 县直 | AT80: 初中 | BJ80: 0 | BL80: 59 | BM80: 莲塘六中 | BN80: 县直 | BO80: 初中 | BP80: 1 | BQ80: 1 | BR80: 1 | CE80: 3 | CG80: 59 | CH80: 莲塘六中 | CI80: 县直 | CJ80: 初中 | CZ80: 0 | DB80: 59 | DC80: 莲塘六中 | DD80: 县直 | DE80: 初中 | DF80: 1 | DG80: 1 | DH80: 1 | DU80: 3 | DW80: 59 | DX80: 莲塘六中 | DY80: 县直 | DZ80: 初中 | EP80: 0 | ER80: 59 | ES80: 莲塘六中 | ET80: 县直 | EU80: 初中 | FK80: 0 | FM80: 59 | FN80: 莲塘六中 | FO80: 县直 | FP80: 初中 | GF80: 0 | GH80: 59 | GI80: 莲塘六中 | GJ80: 县直 | GK80: 初中 | HA80: 0
A81: 60 | B81: 莲塘七中 | C81: 县直 | D81: 初中 | T81: 0 | V81: 60 | W81: 莲塘七中 | X81: 县直 | Y81: 初中 | AO81: 0 | AQ81: 60 | AR81: 莲塘七中 | AS81: 县直 | AT81: 初中 | BJ81: 0 | BL81: 60 | BM81: 莲塘七中 | BN81: 县直 | BO81: 初中 | BU81: 1 | CE81: 1 | CG81: 60 | CH81: 莲塘七中 | CI81: 县直 | CJ81: 初中 | CZ81: 0 | DB81: 60 | DC81: 莲塘七中 | DD81: 县直 | DE81: 初中 | DK81: 1 | DU81: 1 | DW81: 60 | DX81: 莲塘七中 | DY81: 县直 | DZ81: 初中 | EP81: 0 | ER81: 60 | ES81: 莲塘七中 | ET81: 县直 | EU81: 初中 | FK81: 0 | FM81: 60 | FN81: 莲塘七中 | FO81: 县直 | FP81: 初中 | GF81: 0 | GH81: 60 | GI81: 莲塘七中 | GJ81: 县直 | GK81: 初中 | HA81: 0
A82: 61 | B82: 银河学校（初中） | C82: 县直 | D82: 初中 | T82: 0 | V82: 61 | W82: 银河学校（初中） | X82: 县直 | Y82: 初中 | AA82: 1 | AI82: 1 | AN82: 1 | AO82: 3 | AQ82: 61 | AR82: 银河学校（初中） | AS82: 县直 | AT82: 初中 | BJ82: 0 | BL82: 61 | BM82: 银河学校（初中） | BN82: 县直 | BO82: 初中 | CE82: 0 | CG82: 61 | CH82: 银河学校（初中） | CI82: 县直 | CJ82: 初中 | CZ82: 0 | DB82: 61 | DC82: 银河学校（初中） | DD82: 县直 | DE82: 初中 | DG82: 1 | DT82: 1 | DU82: 2 | DW82: 61 | DX82: 银河学校（初中） | DY82: 县直 | DZ82: 初中 | EJ82: 1 | EP82: 1 | ER82: 61 | ES82: 银河学校（初中） | ET82: 县直 | EU82: 初中 | FK82: 0 | FM82: 61 | FN82: 银河学校（初中） | FO82: 县直 | FP82: 初中 | GF82: 0 | GH82: 61 | GI82: 银河学校（初中） | GJ82: 县直 | GK82: 初中 | HA82: 0
A83: 62 | B83: 洪州学校（初中） | C83: 县直 | D83: 初中 | T83: 0 | V83: 62 | W83: 洪州学校（初中） | X83: 县直 | Y83: 初中 | Z83: 2 | AA83: 1 | AH83: 1 | AJ83: 1 | AK83: 1 | AO83: 6 | AQ83: 62 | AR83: 洪州学校（初中） | AS83: 县直 | AT83: 初中 | BJ83: 0 | BL83: 62 | BM83: 洪州学校（初中） | BN83: 县直 | BO83: 初中 | CE83: 0 | CG83: 62 | CH83: 洪州学校（初中） | CI83: 县直 | CJ83: 初中 | CZ83: 0 | DB83: 62 | DC83: 洪州学校（初中） | DD83: 县直 | DE83: 初中 | DU83: 0 | DW83: 62 | DX83: 洪州学校（初中） | DY83: 县直 | DZ83: 初中 | EI83: 1 | EP83: 1 | ER83: 62 | ES83: 洪州学校（初中） | ET83: 县直 | EU83: 初中 | FK83: 0 | FM83: 62 | FN83: 洪州学校（初中） | FO83: 县直 | FP83: 初中 | FQ83: 2 | GA83: 1 | GB83: 1 | GF83: 4 | GH83: 62 | GI83: 洪州学校（初中） | GJ83: 县直 | GK83: 初中 | GM83: 1 | HA83: 1
A84: 63 | B84: 新城学校（初中） | C84: 县直 | D84: 初中 | T84: 0 | V84: 63 | W84: 新城学校（初中） | X84: 县直 | Y84: 初中 | Z84: 3 | AD84: 1 | AE84: 1 | AK84: 2 | AO84: 7 | AQ84: 63 | AR84: 新城学校（初中） | AS84: 县直 | AT84: 初中 | BJ84: 0 | BL84: 63 | BM84: 新城学校（初中） | BN84: 县直 | BO84: 初中 | CE84: 0 | CG84: 63 | CH84: 新城学校（初中） | CI84: 县直 | CJ84: 初中 | CZ84: 0 | DB84: 63 | DC84: 新城学校（初中） | DD84: 县直 | DE84: 初中 | DJ84: 1 | DQ84: 1 | DU84: 2 | DW84: 63 | DX84: 新城学校（初中） | DY84: 县直 | DZ84: 初中 | EA84: 1 | EP84: 1 | ER84: 63 | ES84: 新城学校（初中） | ET84: 县直 | EU84: 初中 | EV84: 1 | FA84: 1 | FG84: 1 | FK84: 3 | FM84: 63 | FN84: 新城学校（初中） | FO84: 县直 | FP84: 初中 | FQ84: 1 | GF84: 1 | GH84: 63 | GI84: 新城学校（初中） | GJ84: 县直 | GK84: 初中 | HA84: 0
A85: 64 | B85: 诚义学校（初中） | C85: 县直 | D85: 初中 | T85: 0 | V85: 64 | W85: 诚义学校（初中） | X85: 县直 | Y85: 初中 | AO85: 0 | AQ85: 64 | AR85: 诚义学校（初中） | AS85: 县直 | AT85: 初中 | BJ85: 0 | BL85: 64 | BM85: 诚义学校（初中） | BN85: 县直 | BO85: 初中 | BQ85: 1 | BS85: 2 | BX85: 1 | CA85: 1 | CE85: 5 | CG85: 64 | CH85: 诚义学校（初中） | CI85: 县直 | CJ85: 初中 | CZ85: 0 | DB85: 64 | DC85: 诚义学校（初中） | DD85: 县直 | DE85: 初中 | DI85: 2 | DN85: 1 | DO85: 1 | DQ85: 1 | DU85: 5 | DW85: 64 | DX85: 诚义学校（初中） | DY85: 县直 | DZ85: 初中 | EP85: 0 | ER85: 64 | ES85: 诚义学校（初中） | ET85: 县直 | EU85: 初中 | FK85: 0 | FM85: 64 | FN85: 诚义学校（初中） | FO85: 县直 | FP85: 初中 | FR85: 1 | GF85: 1 | GH85: 64 | GI85: 诚义学校（初中） | GJ85: 县直 | GK85: 初中 | GU85: -1 | HA85: -1
A86: 65 | B86: 芳草学校（初中） | C86: 县直 | D86: 初中 | T86: 0 | V86: 65 | W86: 芳草学校（初中） | X86: 县直 | Y86: 初中 | AO86: 0 | AQ86: 65 | AR86: 芳草学校（初中） | AS86: 县直 | AT86: 初中 | BJ86: 0 | BL86: 65 | BM86: 芳草学校（初中） | BN86: 县直 | BO86: 初中 | BQ86: 3 | BR86: 1 | BU86: 1 | BX86: 1 | BY86: 1 | CA86: 1 | CC86: 1 | CE86: 9 | CG86: 65 | CH86: 芳草学校（初中） | CI86: 县直 | CJ86: 初中 | CZ86: 0 | DB86: 65 | DC86: 芳草学校（初中） | DD86: 县直 | DE86: 初中 | DG86: 1 | DK86: 1 | DN86: 1 | DQ86: 1 | DS86: 1 | DU86: 5 | DW86: 65 | DX86: 芳草学校（初中） | DY86: 县直 | DZ86: 初中 | EP86: 0 | ER86: 65 | ES86: 芳草学校（初中） | ET86: 县直 | EU86: 初中 | FK86: 0 | FM86: 65 | FN86: 芳草学校（初中） | FO86: 县直 | FP86: 初中 | FR86: 2 | FS86: 1 | GF86: 3 | GH86: 65 | GI86: 芳草学校（初中） | GJ86: 县直 | GK86: 初中 | GU86: 1 | HA86: 1
A87: 66 | B87: 洪州汇仁学校（初中） | C87: 县直 | D87: 初中 | T87: 0 | V87: 66 | W87: 洪州汇仁学校（初中） | X87: 县直 | Y87: 初中 | AA87: 1 | AB87: 1 | AC87: 1 | AD87: 1 | AE87: 1 | AF87: 1 | AH87: 1 | AO87: 7 | AQ87: 66 | AR87: 洪州汇仁学校（初中） | AS87: 县直 | AT87: 初中 | BJ87: 0 | BL87: 66 | BM87: 洪州汇仁学校（初中） | BN87: 县直 | BO87: 初中 | CE87: 0 | CG87: 66 | CH87: 洪州汇仁学校（初中） | CI87: 县直 | CJ87: 初中 | CZ87: 0 | DB87: 66 | DC87: 洪州汇仁学校（初中） | DD87: 县直 | DE87: 初中 | DK87: 1 | DN87: 1 | DU87: 2 | DW87: 66 | DX87: 洪州汇仁学校（初中） | DY87: 县直 | DZ87: 初中 | EB87: 1 | EC87: 1 | ED87: 1 | EP87: 3 | ER87: 66 | ES87: 洪州汇仁学校（初中） | ET87: 县直 | EU87: 初中 | EZ87: 1 | FB87: 1 | FK87: 2 | FM87: 66 | FN87: 洪州汇仁学校（初中） | FO87: 县直 | FP87: 初中 | GF87: 0 | GH87: 66 | GI87: 洪州汇仁学校（初中） | GJ87: 县直 | GK87: 初中 | HA87: 0
A88: 67 | B88: 洪燕学校（初中） | C88: 县直 | D88: 初中 | J88: 1 | T88: 1 | V88: 67 | W88: 洪燕学校（初中） | X88: 县直 | Y88: 初中 | Z88: 1 | AA88: 1 | AB88: 1 | AE88: 1 | AI88: 1 | AK88: 1 | AL88: 1 | AO88: 7 | AQ88: 67 | AR88: 洪燕学校（初中） | AS88: 县直 | AT88: 初中 | BJ88: 0 | BL88: 67 | BM88: 洪燕学校（初中） | BN88: 县直 | BO88: 初中 | CE88: 0 | CG88: 67 | CH88: 洪燕学校（初中） | CI88: 县直 | CJ88: 初中 | CZ88: 0 | DB88: 67 | DC88: 洪燕学校（初中） | DD88: 县直 | DE88: 初中 | DO88: 1 | DQ88: 1 | DU88: 2 | DW88: 67 | DX88: 洪燕学校（初中） | DY88: 县直 | DZ88: 初中 | EA88: 1 | EF88: 1 | EP88: 2 | ER88: 67 | ES88: 洪燕学校（初中） | ET88: 县直 | EU88: 初中 | EX88: 1 | FA88: 1 | FH88: 1 | FK88: 3 | FM88: 67 | FN88: 洪燕学校（初中） | FO88: 县直 | FP88: 初中 | FR88: 1 | GF88: 1 | GH88: 67 | GI88: 洪燕学校（初中） | GJ88: 县直 | GK88: 初中 | HA88: 0
A89: 68 | B89: 洪亿学校（初中） | C89: 县直 | D89: 初中 | T89: 0 | V89: 68 | W89: 洪亿学校（初中） | X89: 县直 | Y89: 初中 | Z89: 1 | AA89: 2 | AB89: 3 | AC89: 1 | AO89: 7 | AQ89: 68 | AR89: 洪亿学校（初中） | AS89: 县直 | AT89: 初中 | BJ89: 0 | BL89: 68 | BM89: 洪亿学校（初中） | BN89: 县直 | BO89: 初中 | CE89: 0 | CG89: 68 | CH89: 洪亿学校（初中） | CI89: 县直 | CJ89: 初中 | CZ89: 0 | DB89: 68 | DC89: 洪亿学校（初中） | DD89: 县直 | DE89: 初中 | DH89: 1 | DU89: 1 | DW89: 68 | DX89: 洪亿学校（初中） | DY89: 县直 | DZ89: 初中 | EC89: 1 | ED89: 1 | EP89: 2 | ER89: 68 | ES89: 洪亿学校（初中） | ET89: 县直 | EU89: 初中 | EV89: 1 | EX89: 1 | FK89: 2 | FM89: 68 | FN89: 洪亿学校（初中） | FO89: 县直 | FP89: 初中 | FR89: 2 | GF89: 2 | GH89: 68 | GI89: 洪亿学校（初中） | GJ89: 县直 | GK89: 初中 | HA89: 0
A90: 70 | B90: 莲塘一中八一分校（初中） | C90: 县直 | D90: 初中 | F90: 2 | G90: 1 | H90: 1 | N90: 1 | T90: 5 | V90: 70 | W90: 莲塘一中八一分校（初中） | X90: 县直 | Y90: 初中 | AA90: 1 | AB90: 1 | AC90: 2 | AE90: 1 | AH90: 1 | AJ90: 1 | AK90: 1 | AL90: 1 | AO90: 9 | AQ90: 70 | AR90: 莲塘一中八一分校（初中） | AS90: 县直 | AT90: 初中 | BJ90: 0 | BL90: 70 | BM90: 莲塘一中八一分校（初中） | BN90: 县直 | BO90: 初中 | CE90: 0 | CG90: 70 | CH90: 莲塘一中八一分校（初中） | CI90: 县直 | CJ90: 初中 | CZ90: 0 | DB90: 70 | DC90: 莲塘一中八一分校（初中） | DD90: 县直 | DE90: 初中 | DI90: 1 | DK90: 1 | DP90: 1 | DR90: 1 | DU90: 4 | DW90: 70 | DX90: 莲塘一中八一分校（初中） | DY90: 县直 | DZ90: 初中 | EB90: 2 | EC90: 1 | ED90: 1 | EJ90: 1 | EP90: 5 | ER90: 70 | ES90: 莲塘一中八一分校（初中） | ET90: 县直 | EU90: 初中 | EW90: 1 | EY90: 1 | FK90: 2 | FM90: 70 | FN90: 莲塘一中八一分校（初中） | FO90: 县直 | FP90: 初中 | FS90: 1 | FY90: 1 | GB90: 1 | GF90: 3 | GH90: 70 | GI90: 莲塘一中八一分校（初中） | GJ90: 县直 | GK90: 初中 | HA90: 0
A91: 71 | B91: 洪范学校（初中） | C91: 县直 | D91: 初中 | T91: 0 | V91: 71 | W91: 洪范学校（初中） | X91: 县直 | Y91: 初中 | Z91: 2 | AA91: 4 | AB91: 4 | AC91: 3 | AE91: 1 | AF91: 1 | AH91: 3 | AK91: 1 | AO91: 19 | AQ91: 71 | AR91: 洪范学校（初中） | AS91: 县直 | AT91: 初中 | BJ91: 0 | BL91: 71 | BM91: 洪范学校（初中） | BN91: 县直 | BO91: 初中 | CE91: 0 | CG91: 71 | CH91: 洪范学校（初中） | CI91: 县直 | CJ91: 初中 | CZ91: 0 | DB91: 71 | DC91: 洪范学校（初中） | DD91: 县直 | DE91: 初中 | DG91: 1 | DH91: 1 | DK91: 1 | DL91: 1 | DN91: 1 | DU91: 5 | DW91: 71 | DX91: 洪范学校（初中） | DY91: 县直 | DZ91: 初中 | EA91: 1 | EB91: 2 | EC91: 2 | ED91: 2 | EI91: 1 | EL91: 1 | EP91: 9 | ER91: 71 | ES91: 洪范学校（初中） | ET91: 县直 | EU91: 初中 | EW91: 2 | EX91: 2 | EY91: 1 | FD91: 2 | FK91: 7 | FM91: 71 | FN91: 洪范学校（初中） | FO91: 县直 | FP91: 初中 | FQ91: 1 | GF91: 1 | GH91: 71 | GI91: 洪范学校（初中） | GJ91: 县直 | GK91: 初中 | GM91: -1 | GN91: -1 | GT91: -1 | HA91: -3
A92: 81 | B92: 城东学校（初中） | C92: 县直 | D92: 初中 | T92: 0 | V92: 81 | W92: 城东学校（初中） | X92: 县直 | Y92: 初中 | AO92: 0 | AQ92: 81 | AR92: 城东学校（初中） | AS92: 县直 | AT92: 初中 | BJ92: 0 | BL92: 81 | BM92: 城东学校（初中） | BN92: 县直 | BO92: 初中 | BQ92: 2 | BR92: 2 | BS92: 1 | BV92: 1 | CE92: 6 | CG92: 81 | CH92: 城东学校（初中） | CI92: 县直 | CJ92: 初中 | CZ92: 0 | DB92: 81 | DC92: 城东学校（初中） | DD92: 县直 | DE92: 初中 | DG92: 1 | DI92: 1 | DL92: 1 | DU92: 3 | DW92: 81 | DX92: 城东学校（初中） | DY92: 县直 | DZ92: 初中 | EP92: 0 | ER92: 81 | ES92: 城东学校（初中） | ET92: 县直 | EU92: 初中 | FK92: 0 | FM92: 81 | FN92: 城东学校（初中） | FO92: 县直 | FP92: 初中 | GF92: 0 | GH92: 81 | GI92: 城东学校（初中） | GJ92: 县直 | GK92: 初中 | GM92: 1 | GN92: 2 | HA92: 3
B93: 县直初中 总计 | E93: =SUM(E75:E92) -> 3 | F93: =SUM(F75:F92) -> 7 | G93: 5 | H93: 4 | I93: 0 | J93: 3 | K93: 0 | L93: 0 | M93: 1 | N93: 5 | O93: 0 | P93: 2 | Q93: 0 | R93: 1 | S93: 0 | T93: 31 | W93: 县直初中 总计 | Z93: =SUM(Z75:Z92) -> 9 | AA93: 11 | AB93: 10 | AC93: 7 | AD93: 2 | AE93: 5 | AF93: 2 | AG93: 0 | AH93: 7 | AI93: 2 | AJ93: 2 | AK93: 6 | AL93: 2 | AM93: 0 | AN93: 1 | AO93: 66 | AR93: 县直初中 总计 | AU93: =SUM(AU75:AU92) -> 0 | AV93: 1 | AW93: 0 | AX93: 0 | AY93: 0 | AZ93: 0 | BA93: 0 | BB93: 0 | BC93: 0 | BD93: 0 | BE93: 0 | BF93: 0 | BG93: 0 | BH93: 0 | BI93: 0 | BJ93: 1 | BM93: 县直初中 总计 | BP93: =SUM(BP75:BP92) -> 1 | BQ93: 8 | BR93: 5 | BS93: 3 | BT93: 0 | BU93: 2 | BV93: 2 | BW93: 0 | BX93: 2 | BY93: 2 | BZ93: 0 | CA93: 3 | CB93: 0 | CC93: 1 | CD93: 0 | CE93: 29 | CH93: 县直初中 总计 | CK93: =SUM(CK75:CK92) -> 0 | CL93: 0 | CM93: 0 | CN93: 0 | CO93: 0 | CP93: 0 | CQ93: 0 | CR93: 0 | CS93: 0 | CT93: 0 | CU93: 0 | CV93: 0 | CW93: 0 | CX93: 0 | CY93: 0 | CZ93: 0 | DC93: 县直初中 总计 | DF93: =SUM(DF75:DF92) -> 2 | DG93: =SUM(DG75:DG92) -> 11 | DH93: 5 | DI93: 7 | DJ93: 1 | DK93: 6 | DL93: 3 | DM93: 0 | DN93: 5 | DO93: 4 | DP93: 1 | DQ93: 6 | DR93: 1 | DS93: 2 | DT93: 1 | DU93: 55 | DX93: 县直初中 总计 | EA93: =SUM(EA75:EA92) -> 3 | EB93: 7 | EC93: 7 | ED93: 6 | EE93: 0 | EF93: 2 | EG93: 0 | EH93: 0 | EI93: 2 | EJ93: 2 | EK93: 0 | EL93: 1 | EM93: 0 | EN93: 0 | EO93: 0 | EP93: 30 | ES93: 县直初中 总计 | EV93: =SUM(EV75:EV92) -> 3 | EW93: 4 | EX93: 4 | EY93: 2 | EZ93: 1 | FA93: 2 | FB93: 1 | FC93: 0 | FD93: 2 | FE93: 0 | FF93: 0 | FG93: 2 | FH93: 1 | FI93: 0 | FJ93: 0 | FK93: 22 | FN93: 县直初中 总计 | FQ93: =SUM(FQ75:FQ92) -> 5 | FR93: 6 | FS93: 2 | FT93: 0 | FU93: 0 | FV93: 0 | FW93: 0 | FX93: 0 | FY93: 2 | FZ93: 3 | GA93: 1 | GB93: 2 | GC93: 0 | GD93: 0 | GE93: 0 | GF93: 21 | GI93: 县直初中 总计 | GM93: =IF(F93+AA93+AV93+BQ93-CL93-DG93-EB93-EW93-FR93=0,"",F93+AA93+AV93+BQ93-CL93-DG93-EB93-EW93-FR93) -> -1 | GN93: 2 | GO93: -1 | GT93: -1 | HA93: -1
B94: 初中总计 | E94: =E93+E74 -> 3 | F94: =F93+F74 -> 9 | G94: 7 | H94: 5 | I94: 0 | J94: 3 | K94: 0 | L94: 0 | M94: 1 | N94: 6 | O94: 0 | P94: 2 | Q94: 0 | R94: 1 | S94: 0 | T94: 37 | W94: 初中总计 | Z94: =Z93+Z74 -> 9 | AA94: 11 | AB94: 13 | AC94: 8 | AD94: 3 | AE94: 5 | AF94: 2 | AG94: 0 | AH94: 9 | AI94: 3 | AJ94: 2 | AK94: 6 | AL94: 2 | AM94: 0 | AN94: 1 | AO94: 74 | AR94: 初中总计 | AU94: =AU93+AU74 -> 1 | AV94: 4 | AW94: 3 | AX94: 3 | AY94: 0 | AZ94: 2 | BA94: 0 | BB94: 0 | BC94: 1 | BD94: 0 | BE94: 0 | BF94: 0 | BG94: 0 | BH94: 0 | BI94: 0 | BJ94: 14 | BM94: 初中总计 | BP94: =BP93+BP74 -> 4 | BQ94: 10 | BR94: 5 | BS94: 4 | BT94: 1 | BU94: 2 | BV94: 2 | BW94: 0 | BX94: 4 | BY94: 5 | BZ94: 1 | CA94: 4 | CB94: 1 | CC94: 1 | CD94: 1 | CE94: 45 | CH94: 初中总计 | CK94: =CK93+CK74 -> 0 | CL94: 0 | CM94: 0 | CN94: 0 | CO94: 0 | CP94: 0 | CQ94: 0 | CR94: 0 | CS94: 0 | CT94: 0 | CU94: 0 | CV94: 0 | CW94: 0 | CX94: 0 | CY94: 0 | CZ94: 0 | DC94: 初中总计 | DF94: =DF93+DF74 -> 6 | DG94: =DG93+DG74 -> 16 | DH94: 13 | DI94: 12 | DJ94: 3 | DK94: 8 | DL94: 3 | DM94: 0 | DN94: 8 | DO94: 7 | DP94: 2 | DQ94: 7 | DR94: 2 | DS94: 2 | DT94: 2 | DU94: 91 | DX94: 初中总计 | EA94: =EA93+EA74 -> 3 | EB94: 7 | EC94: 7 | ED94: 6 | EE94: 0 | EF94: 2 | EG94: 0 | EH94: 0 | EI94: 2 | EJ94: 2 | EK94: 0 | EL94: 1 | EM94: 0 | EN94: 0 | EO94: 0 | EP94: 30 | ES94: 初中总计 | EV94: =EV93+EV74 -> 3 | EW94: 5 | EX94: 6 | EY94: 2 | EZ94: 1 | FA94: 2 | FB94: 1 | FC94: 0 | FD94: 3 | FE94: 2 | FF94: 0 | FG94: 2 | FH94: 1 | FI94: 0 | FJ94: 0 | FK94: 28 | FN94: 初中总计 | FQ94: =FQ93+FQ74 -> 5 | FR94: 6 | FS94: 2 | FT94: 0 | FU94: 0 | FV94: 0 | FW94: 0 | FX94: 0 | FY94: 2 | FZ94: 3 | GA94: 1 | GB94: 2 | GC94: 0 | GD94: 0 | GE94: 0 | GF94: 21 | GI94: 初中总计 | GM94: =IF(F94+AA94+AV94+BQ94-CL94-DG94-EB94-EW94-FR94=0,"",F94+AA94+AV94+BQ94-CL94-DG94-EB94-EW94-FR94) ->  | HA94: 0
DF95: =IF(DF53-DF94=0,"",DF53-DF94) ->  | DG95: =IF(DG53-DG94=0,"",DG53-DG94) ->  | DU95: 0
B96: 小学初中总计 | T96: =T94+T51 -> 81 | W96: 小学初中总计 | AO96: =AO94+AO51 -> 237 | AR96: 小学初中总计 | BJ96: =BJ94+BJ51 -> 33 | BM96: 小学初中总计 | CE96: =CE94+CE51 -> 141 | CH96: 小学初中总计 | CZ96: =CZ94+CZ51 -> 47 | DC96: 小学初中总计 | DU96: =DU94+DU51 -> 300 | DX96: 小学初中总计 | EP96: =EP94+EP51 -> 70 | ES96: 小学初中总计 | FK96: =FK94+FK51 -> 80 | FN96: 小学初中总计 | GF96: =GF94+GF51 -> 27 | GI96: 小学初中总计 | HA96: =HA94+HA51 -> -32

Sheet 统招（小学）
A1: 南昌县2022年全省中小学教师招聘岗位分解表（小学）
A2: 序号 | B2: 学校名称 | C2: 语文A岗 | D2: 语文B岗 | E2: 语文C岗 | F2: 数学A岗 | G2: 数学B岗 | H2: 数学C岗 | I2: 英语A岗 | J2: 英语B岗 | K2: 道德与法治A岗 | L2: 道德与法治B岗 | M2: 音乐A岗 | N2: 音乐B岗 | O2: 体育与健康A岗 | P2: 体育与健康B岗 | Q2: 美术A岗 | R2: 美术B岗 | S2: 综合实践活动 含信息技术A岗 | T2: 综合实践活动 含信息技术B岗 | U2: 心理健康 | V2: 科学 | W2: 合计
A3: 1 | B3: 南昌县武阳镇中心小学 | H3: 1 | J3: 1 | W3: =IF(SUM(C3:V3)=0,"",SUM(C3:V3)) -> 2
A4: 2 | B4: 南昌县向塘镇中心小学 | C4: 1 | E4: 1 | H4: 1 | W4: =IF(SUM(C4:V4)=0,"",SUM(C4:V4)) -> 3
A5: 3 | B5: 南昌县冈上镇中心小学 | O5: 1 | W5: 1
A6: 4 | B6: 南昌县富山乡中心小学 | J6: 1 | N6: 1 | W6: 2
A7: 5 | B7: 南昌县向塘实验学校（小学） | E7: 2 | H7: 2 | J7: 1 | W7: 5
A8: 6 | B8: 南昌县莲塘第四小学 | C8: 1 | I8: 1 | W8: 2
A9: 7 | B9: 南昌县特殊教育学校 | U9: 1 | W9: 1
A10: 8 | B10: 南昌县莲塘实验学校（新莲塘六中） （小学） | C10: 1 | F10: 1 | G10: 1 | I10: 1 | O10: 1 | P10: 1 | W10: 6
A11: 9 | B11: 南昌县银三角实验学校（小学） | S11: 1 | W11: 1
A12: 10 | B12: 南昌县金沙路小学 | C12: 1 | W12: 1
A13: 11 | B13: 南昌县振兴路小学 | C13: 1 | F13: 1 | M13: 1 | W13: 3
A14: 12 | B14: 南昌县墨山街小学 | D14: 1 | W14: 1
A15: 13 | B15: 南昌县斗柏路小学 | G15: 1 | I15: 1 | J15: 1 | N15: 1 | W15: 4
A16: 14 | B16: 南昌县银河学校（小学） | F16: 1 | O16: 1 | W16: 2
A17: 15 | B17: 南昌县新城学校（小学） | C17: 1 | D17: 1 | F17: 1 | H17: 1 | I17: 1 | M17: 1 | Q17: 1 | W17: 7
A18: 16 | B18: 南昌县诚义学校（小学） | D18: 1 | E18: 1 | F18: 1 | G18: 1 | W18: 4
A19: 17 | B19: 南昌县洪州汇仁学校（小学） | D19: 1 | W19: 1
A20: 18 | B20: 南昌县洪燕学校（小学） | C20: 1 | D20: 1 | F20: 1 | G20: 1 | M20: 1 | W20: 5
A21: 19 | B21: 南昌县洪亿学校（小学） | C21: 1 | D21: 1 | F21: 1 | H21: 1 | I21: 1 | P21: 1 | R21: 1 | V21: 1 | W21: 8
A22: 20 | B22: 南昌县洪科小学 | D22: 1 | G22: 1 | I22: 1 | L22: 1 | O22: 1 | W22: 5
A23: 21 | B23: 南昌县莲塘第一中学八一分校（小学） | E23: 2 | H23: 1 | J23: 1 | K23: 1 | Q23: 1 | W23: 6
A24: 22 | B24: 南昌县洪范学校（小学） | C24: 1 | D24: 1 | G24: 1 | I24: 1 | K24: 1 | M24: 1 | W24: 6
A25: 23 | B25: 南昌县洪新学校（小学） | E25: 1 | H25: 1 | J25: 1 | P25: 1 | S25: 1 | W25: 5
A26: 24 | B26: 南昌县文山路学校（小学） | E26: 2 | G26: 1 | H26: 1 | P26: 1 | W26: 5
A27: 25 | B27: 南昌县城南学校（小学） | D27: 1 | E27: 1 | H27: 2 | I27: 2 | M27: 1 | W27: 7
A28: 26 | B28: 南昌县雄溪路小学 | E28: 3 | H28: 1 | J28: 1 | N28: 1 | O28: 1 | T28: 1 | W28: 8
A29: 27 | B29: 南昌县东新乡中心小学（洪安小学） | E29: 1 | H29: 1 | W29: 2
A30: 28 | B30: 南昌县东新乡中心小学（滨江小学） | E30: 1 | J30: 1 | W30: 2
A31: 合计 | C31: =SUM(C3:C30) -> 9 | D31: =SUM(D3:D30) -> 9 | E31: 15 | F31: 7 | G31: 7 | H31: 13 | I31: 9 | J31: 8 | K31: 2 | L31: =SUM(L3:L30) -> 1 | M31: 5 | N31: 3 | O31: 5 | P31: 4 | Q31: 2 | R31: 1 | S31: 2 | T31: 1 | U31: 1 | V31: 1 | W31: 105

Sheet 附B 全省统招300人（分解）整合九年一贯制 (hidden)
A1: 南昌县2020年中小学教师招聘岗位分解表
A2: 学校名称 | B2: 序号 | C2: 学校 编号 | D2: 2019年秋季学生数 | E2: 2020.09在校生数 | F2: 2019年秋季班级数 | G2: 2020.09班级数 | H2: 截止2020年8月31日实有教师数 | I2: 平均 班额 | J2: 班师比 | K2: 师生比 | L2: 标准 师生比 | M2: （班师比+师生比）/2 | N2: 需求数-现有教师数（生师比） | O2: 差额2（超额归零处理） | P2: 需求数-现有教师数（班师比） | AQ2: 合计1 | AR2: 特岗 教师 | AS2: 全省选调 | AT2: 县内选调 | AU2: 2015定向师范 | AV2: 2016定向师范实习 | AW2: 2017公费师范实习生 | AX2: 2019编外幼儿园 | AY2: 合计2 | AZ2: 合计3 | BA2: 合计（不含编外幼儿园）
Q3: 思品A | R3: 思品B | S3: 语文A | T3: 语文B | U3: 数学A | V3: 数学B | W3: 英语A | X3: 英语B | Y3: 音乐A | Z3: 音乐B | AA3: 体育A | AB3: 体育B | AC3: 美术A | AD3: 美术B | AE3: 科学A | AF3: 科学B | AG3: 物理A | AH3: 物理B | AI3: 化学A | AJ3: 化学B | AK3: 生物 | AL3: 历史A | AM3: 历史B | AN3: 地理 | AO3: 心理健康教育 | AP3: 信息技术
A5: 合计 | E5: =SUM(E9:E94) -> 124502 | F5: 2685 | G5: 2773 | H5: 6861 | Q5: =SUM(Q9:Q94) ->  | R5: =SUM(R9:R94) ->  | AR5: 50 | AS5: 63 | AT5: 66 | AU5: 50 | AV5: 78 | AW5: 9 | AX5: 44 | AY5: 360
A6: 监测数据（小计） | Q6: =IF(Q7-Q56=0,"",Q7-Q56) -> 
A7: 小学岗位（小计） | Q7: 2 | S7: 57 | T7: 16 | U7: 51 | V7: 12 | W7: 21 | X7: 6 | Y7: 10 | Z7: 3 | AA7: 9 | AB7: 2 | AC7: 9 | AD7: 2 | AE7: 5 | AF7: 1 | AP7: 3 | AQ7: =SUM(Q7:AP7) -> 209 | AY7: =AY56 -> 1 | AZ7: =AZ56 -> 
A9: 南新中小 | B9: 1 | C9: 1 | D9: 1722 | E9: 1670 | F9: 78 | G9: 77 | H9: 180 | I9: =E9/G9 -> 22 | J9: =G9*2 -> 154 | K9: =E9/19 -> 88 | M9: =(J9+K9)/2 -> 121 | N9: =K9-H9 -> -92 | O9: 0 | P9: =J9-H9 -> -26 | Q9: =IF('统招（小学）'!#REF!=0,"",'统招（小学）'!#REF!) ->  | R9: =IF('统招（小学）'!#REF!=0,"",'统招（小学）'!#REF!) ->  | S9: =IF('统招（小学）'!#REF!=0,"",'统招（小学）'!#REF!) ->  | T9: =IF('统招（小学）'!#REF!=0,"",'统招（小学）'!#REF!) ->  | U9: =IF('统招（小学）'!#REF!=0,"",'统招（小学）'!#REF!) ->  | V9: =IF('统招（小学）'!#REF!=0,"",'统招（小学）'!#REF!) ->  | W9: =IF('统招（小学）'!#REF!=0,"",'统招（小学）'!#REF!) ->  | X9: =IF('统招（小学）'!#REF!=0,"",'统招（小学）'!#REF!) ->  | Y9: =IF('统招（小学）'!#REF!=0,"",'统招（小学）'!#REF!) ->  | Z9: =IF('统招（小学）'!#REF!=0,"",'统招（小学）'!#REF!) ->  | AA9: =IF('统招（小学）'!#REF!=0,"",'统招（小学）'!#REF!) ->  | AB9: =IF('统招（小学）'!#REF!=0,"",'统招（小学）'!#REF!) ->  | AC9: =IF('统招（小学）'!#REF!=0,"",'统招（小学）'!#REF!) ->  | AD9: =IF('统招（小学）'!#REF!=0,"",'统招（小学）'!#REF!) ->  | AE9: =IF('统招（小学）'!#REF!=0,"",'统招（小学）'!#REF!) ->  | AF9: =IF('统招（小学）'!#REF!=0,"",'统招（小学）'!#REF!) ->  | AG9: =IF('统招（小学）'!#REF!=0,"",'统招（小学）'!#REF!) ->  | AH9: =IF('统招（小学）'!#REF!=0,"",'统招（小学）'!#REF!) ->  | AI9: =IF('统招（小学）'!#REF!=0,"",'统招（小学）'!#REF!) ->  | AJ9: =IF('统招（小学）'!#REF!=0,"",'统招（小学）'!#REF!) ->  | AK9: =IF('统招（小学）'!#REF!=0,"",'统招（小学）'!#REF!) ->  | AL9: =IF('统招（小学）'!#REF!=0,"",'统招（小学）'!#REF!) ->  | AM9: =IF('统招（小学）'!#REF!=0,"",'统招（小学）'!#REF!) ->  | AN9: =IF('统招（小学）'!#REF!=0,"",'统招（小学）'!#REF!) ->  | AO9: =IF('统招（小学）'!#REF!=0,"",'统招（小学）'!#REF!) ->  | AP9: =IF('统招（小学）'!#REF!=0,"",'统招（小学）'!#REF!) ->  | AQ9: =IF(SUM(Q9:AP9)=0,"",SUM(Q9:AP9)) ->  | AU9: 8 | AY9: =SUM(AR9:AX9) -> 8 | AZ9: =SUM(AQ9:AX9) ->  | BA9: =AZ9-AX9 ->  | BB9: =BA9+H9 -> 
A10: 蒋巷中小 | B10: 2 | C10: 2 | D10: 5113 | E10: 4918 | F10: 127 | G10: 124 | H10: 258 | I10: 40 | J10: 248 | K10: 259 | M10: 253 | N10: 1 | O10: 1 | P10: -10 | Q10: =IF('统招（小学）'!#REF!=0,"",'统招（小学）'!#REF!) ->  | R10: =IF('统招（小学）'!#REF!=0,"",'统招（小学）'!#REF!) ->  | S10: =IF('统招（小学）'!#REF!=0,"",'统招（小学）'!#REF!) ->  | T10: =IF('统招（小学）'!#REF!=0,"",'统招（小学）'!#REF!) ->  | U10: =IF('统招（小学）'!#REF!=0,"",'统招（小学）'!#REF!) ->  | V10: =IF('统招（小学）'!#REF!=0,"",'统招（小学）'!#REF!) ->  | W10: =IF('统招（小学）'!#REF!=0,"",'统招（小学）'!#REF!) ->  | X10: =IF('统招（小学）'!#REF!=0,"",'统招（小学）'!#REF!) ->  | Y10: =IF('统招（小学）'!#REF!=0,"",'统招（小学）'!#REF!) ->  | Z10: =IF('统招（小学）'!#REF!=0,"",'统招（小学）'!#REF!) ->  | AA10: =IF('统招（小学）'!#REF!=0,"",'统招（小学）'!#REF!) ->  | AB10: =IF('统招（小学）'!#REF!=0,"",'统招（小学）'!#REF!) ->  | AC10: =IF('统招（小学）'!#REF!=0,"",'统招（小学）'!#REF!) ->  | AD10: =IF('统招（小学）'!#REF!=0,"",'统招（小学）'!#REF!) ->  | AE10: =IF('统招（小学）'!#REF!=0,"",'统招（小学）'!#REF!) ->  | AF10: =IF('统招（小学）'!#REF!=0,"",'统招（小学）'!#REF!) ->  | AG10: =IF('统招（小学）'!#REF!=0,"",'统招（小学）'!#REF!) ->  | AH10: =IF('统招（小学）'!#REF!=0,"",'统招（小学）'!#REF!) ->  | AI10: =IF('统招（小学）'!#REF!=0,"",'统招（小学）'!#REF!) ->  | AJ10: =IF('统招（小学）'!#REF!=0,"",'统招（小学）'!#REF!) ->  | AK10: =IF('统招（小学）'!#REF!=0,"",'统招（小学）'!#REF!) ->  | AL10: =IF('统招（小学）'!#REF!=0,"",'统招（小学）'!#REF!) ->  | AM10: =IF('统招（小学）'!#REF!=0,"",'统招（小学）'!#REF!) ->  | AN10: =IF('统招（小学）'!#REF!=0,"",'统招（小学）'!#REF!) ->  | AO10: =IF('统招（小学）'!#REF!=0,"",'统招（小学）'!#REF!) ->  | AP10: =IF('统招（小学）'!#REF!=0,"",'统招（小学）'!#REF!) ->  | AQ10: =IF(SUM(Q10:AP10)=0,"",SUM(Q10:AP10)) ->  | AR10: 12 | AU10: 8 | AY10: 20
A11: 塘南中小 | B11: 3 | C11: 3 | D11: 1682 | E11: 1510 | F11: 101 | G11: 93 | H11: 193 | I11: 16 | J11: 186 | K11: 79 | M11: 133 | N11: -114 | O11: 0 | P11: -7 | Q11: =IF('统招（小学）'!#REF!=0,"",'统招（小学）'!#REF!) ->  | R11: =IF('统招（小学）'!#REF!=0,"",'统招（小学）'!#REF!) ->  | S11: =IF('统招（小学）'!#REF!=0,"",'统招（小学）'!#REF!) ->  | T11: =IF('统招（小学）'!#REF!=0,"",'统招（小学）'!#REF!) ->  | U11: =IF('统招（小学）'!#REF!=0,"",'统招（小学）'!#REF!) ->  | V11: =IF('统招（小学）'!#REF!=0,"",'统招（小学）'!#REF!) ->  | W11: =IF('统招（小学）'!#REF!=0,"",'统招（小学）'!#REF!) ->  | X11: =IF('统招（小学）'!#REF!=0,"",'统招（小学）'!#REF!) ->  | Y11: =IF('统招（小学）'!#REF!=0,"",'统招（小学）'!#REF!) ->  | Z11: =IF('统招（小学）'!#REF!=0,"",'统招（小学）'!#REF!) ->  | AA11: =IF('统招（小学）'!#REF!=0,"",'统招（小学）'!#REF!) ->  | AB11: =IF('统招（小学）'!#REF!=0,"",'统招（小学）'!#REF!) ->  | AC11: =IF('统招（小学）'!#REF!=0,"",'统招（小学）'!#REF!) ->  | AD11: =IF('统招（小学）'!#REF!=0,"",'统招（小学）'!#REF!) ->  | AE11: =IF('统招（小学）'!#REF!=0,"",'统招（小学）'!#REF!) ->  | AF11: =IF('统招（小学）'!#REF!=0,"",'统招（小学）'!#REF!) ->  | AG11: =IF('统招（小学）'!#REF!=0,"",'统招（小学）'!#REF!) ->  | AH11: =IF('统招（小学）'!#REF!=0,"",'统招（小学）'!#REF!) ->  | AI11: =IF('统招（小学）'!#REF!=0,"",'统招（小学）'!#REF!) ->  | AJ11: =IF('统招（小学）'!#REF!=0,"",'统招（小学）'!#REF!) ->  | AK11: =IF('统招（小学）'!#REF!=0,"",'统招（小学）'!#REF!) ->  | AL11: =IF('统招（小学）'!#REF!=0,"",'统招（小学）'!#REF!) ->  | AM11: =IF('统招（小学）'!#REF!=0,"",'统招（小学）'!#REF!) ->  | AN11: =IF('统招（小学）'!#REF!=0,"",'统招（小学）'!#REF!) ->  | AO11: =IF('统招（小学）'!#REF!=0,"",'统招（小学）'!#REF!) ->  | AP11: =IF('统招（小学）'!#REF!=0,"",'统招（小学）'!#REF!) ->  | AQ11: =IF(SUM(Q11:AP11)=0,"",SUM(Q11:AP11)) ->  | AU11: 8 | AY11: 8
A12: 泾口中小 | B12: 4 | C12: 4 | D12: 1565 | E12: 1426 | F12: 71 | G12: 69 | H12: 171 | I12: 21 | J12: 138 | K12: 75 | M12: 107 | N12: -96 | O12: 0 | P12: -33 | Q12: =IF('统招（小学）'!#REF!=0,"",'统招（小学）'!#REF!) ->  | R12: =IF('统招（小学）'!#REF!=0,"",'统招（小学）'!#REF!) ->  | S12: =IF('统招（小学）'!#REF!=0,"",'统招（小学）'!#REF!) ->  | T12: =IF('统招（小学）'!#REF!=0,"",'统招（小学）'!#REF!) ->  | U12: =IF('统招（小学）'!#REF!=0,"",'统招（小学）'!#REF!) ->  | V12: =IF('统招（小学）'!#REF!=0,"",'统招（小学）'!#REF!) ->  | W12: =IF('统招（小学）'!#REF!=0,"",'统招（小学）'!#REF!) ->  | X12: =IF('统招（小学）'!#REF!=0,"",'统招（小学）'!#REF!) ->  | Y12: =IF('统招（小学）'!#REF!=0,"",'统招（小学）'!#REF!) ->  | Z12: =IF('统招（小学）'!#REF!=0,"",'统招（小学）'!#REF!) ->  | AA12: =IF('统招（小学）'!#REF!=0,"",'统招（小学）'!#REF!) ->  | AB12: =IF('统招（小学）'!#REF!=0,"",'统招（小学）'!#REF!) ->  | AC12: =IF('统招（小学）'!#REF!=0,"",'统招（小学）'!#REF!) ->  | AD12: =IF('统招（小学）'!#REF!=0,"",'统招（小学）'!#REF!) ->  | AE12: =IF('统招（小学）'!#REF!=0,"",'统招（小学）'!#REF!) ->  | AF12: =IF('统招（小学）'!#REF!=0,"",'统招（小学）'!#REF!) ->  | AG12: =IF('统招（小学）'!#REF!=0,"",'统招（小学）'!#REF!) ->  | AH12: =IF('统招（小学）'!#REF!=0,"",'统招（小学）'!#REF!) ->  | AI12: =IF('统招（小学）'!#REF!=0,"",'统招（小学）'!#REF!) ->  | AJ12: =IF('统招（小学）'!#REF!=0,"",'统招（小学）'!#REF!) ->  | AK12: =IF('统招（小学）'!#REF!=0,"",'统招（小学）'!#REF!) ->  | AL12: =IF('统招（小学）'!#REF!=0,"",'统招（小学）'!#REF!) ->  | AM12: =IF('统招（小学）'!#REF!=0,"",'统招（小学）'!#REF!) ->  | AN12: =IF('统招（小学）'!#REF!=0,"",'统招（小学）'!#REF!) ->  | AO12: =IF('统招（小学）'!#REF!=0,"",'统招（小学）'!#REF!) ->  | AP12: =IF('统招（小学）'!#REF!=0,"",'统招（小学）'!#REF!) ->  | AU12: 8 | AY12: 8
A13: 塔城中小 | B13: 5 | C13: 5 | D13: 832 | E13: 684 | F13: 24 | G13: 22 | H13: 65 | I13: 31 | J13: 44 | K13: 36 | M13: 40 | N13: -29 | O13: 0 | P13: -21 | Q13: =IF('统招（小学）'!#REF!=0,"",'统招（小学）'!#REF!) ->  | R13: =IF('统招（小学）'!#REF!=0,"",'统招（小学）'!#REF!) ->  | S13: =IF('统招（小学）'!#REF!=0,"",'统招（小学）'!#REF!) ->  | T13: =IF('统招（小学）'!#REF!=0,"",'统招（小学）'!#REF!) ->  | U13: =IF('统招（小学）'!#REF!=0,"",'统招（小学）'!#REF!) ->  | V13: =IF('统招（小学）'!#REF!=0,"",'统招（小学）'!#REF!) ->  | W13: =IF('统招（小学）'!#REF!=0,"",'统招（小学）'!#REF!) ->  | X13: =IF('统招（小学）'!#REF!=0,"",'统招（小学）'!#REF!) ->  | Y13: =IF('统招（小学）'!#REF!=0,"",'统招（小学）'!#REF!) ->  | Z13: =IF('统招（小学）'!#REF!=0,"",'统招（小学）'!#REF!) ->  | AA13: =IF('统招（小学）'!#REF!=0,"",'统招（小学）'!#REF!) ->  | AB13: =IF('统招（小学）'!#REF!=0,"",'统招（小学）'!#REF!) ->  | AC13: =IF('统招（小学）'!#REF!=0,"",'统招（小学）'!#REF!) ->  | AD13: =IF('统招（小学）'!#REF!=0,"",'统招（小学）'!#REF!) ->  | AE13: =IF('统招（小学）'!#REF!=0,"",'统招（小学）'!#REF!) ->  | AF13: =IF('统招（小学）'!#REF!=0,"",'统招（小学）'!#REF!) ->  | AG13: =IF('统招（小学）'!#REF!=0,"",'统招（小学）'!#REF!) ->  | AH13: =IF('统招（小学）'!#REF!=0,"",'统招（小学）'!#REF!) ->  | AI13: =IF('统招（小学）'!#REF!=0,"",'统招（小学）'!#REF!) ->  | AJ13: =IF('统招（小学）'!#REF!=0,"",'统招（小学）'!#REF!) ->  | AK13: =IF('统招（小学）'!#REF!=0,"",'统招（小学）'!#REF!) ->  | AL13: =IF('统招（小学）'!#REF!=0,"",'统招（小学）'!#REF!) ->  | AM13: =IF('统招（小学）'!#REF!=0,"",'统招（小学）'!#REF!) ->  | AN13: =IF('统招（小学）'!#REF!=0,"",'统招（小学）'!#REF!) ->  | AO13: =IF('统招（小学）'!#REF!=0,"",'统招（小学）'!#REF!) ->  | AP13: =IF('统招（小学）'!#REF!=0,"",'统招（小学）'!#REF!) ->  | AY13: 0
A14: 武阳中小 | B14: 6 | C14: 6 | D14: 2263 | E14: 2137 | F14: 54 | G14: 56 | H14: 137 | I14: 38 | J14: 112 | K14: 112 | M14: 112 | N14: -25 | O14: 0 | P14: -25 | Q14: =IF('统招（小学）'!#REF!=0,"",'统招（小学）'!#REF!) ->  | R14: =IF('统招（小学）'!#REF!=0,"",'统招（小学）'!#REF!) ->  | S14: =IF('统招（小学）'!#REF!=0,"",'统招（小学）'!#REF!) ->  | T14: =IF('统招（小学）'!#REF!=0,"",'统招（小学）'!#REF!) ->  | U14: =IF('统招（小学）'!#REF!=0,"",'统招（小学）'!#REF!) ->  | V14: =IF('统招（小学）'!#REF!=0,"",'统招（小学）'!#REF!) ->  | W14: =IF('统招（小学）'!#REF!=0,"",'统招（小学）'!#REF!) ->  | X14: =IF('统招（小学）'!#REF!=0,"",'统招（小学）'!#REF!) ->  | Y14: =IF('统招（小学）'!#REF!=0,"",'统招（小学）'!#REF!) ->  | Z14: =IF('统招（小学）'!#REF!=0,"",'统招（小学）'!#REF!) ->  | AA14: =IF('统招（小学）'!#REF!=0,"",'统招（小学）'!#REF!) ->  | AB14: =IF('统招（小学）'!#REF!=0,"",'统招（小学）'!#REF!) ->  | AC14: =IF('统招（小学）'!#REF!=0,"",'统招（小学）'!#REF!) ->  | AD14: =IF('统招（小学）'!#REF!=0,"",'统招（小学）'!#REF!) ->  | AE14: =IF('统招（小学）'!#REF!=0,"",'统招（小学）'!#REF!) ->  | AF14: =IF('统招（小学）'!#REF!=0,"",'统招（小学）'!#REF!) ->  | AG14: =IF('统招（小学）'!#REF!=0,"",'统招（小学）'!#REF!) ->  | AH14: =IF('统招（小学）'!#REF!=0,"",'统招（小学）'!#REF!) ->  | AI14: =IF('统招（小学）'!#REF!=0,"",'统招（小学）'!#REF!) ->  | AJ14: =IF('统招（小学）'!#REF!=0,"",'统招（小学）'!#REF!) ->  | AK14: =IF('统招（小学）'!#REF!=0,"",'统招（小学）'!#REF!) ->  | AL14: =IF('统招（小学）'!#REF!=0,"",'统招（小学）'!#REF!) ->  | AM14: =IF('统招（小学）'!#REF!=0,"",'统招（小学）'!#REF!) ->  | AN14: =IF('统招（小学）'!#REF!=0,"",'统招（小学）'!#REF!) ->  | AO14: =IF('统招（小学）'!#REF!=0,"",'统招（小学）'!#REF!) ->  | AP14: =IF('统招（小学）'!#REF!=0,"",'统招（小学）'!#REF!) ->  | AR14: 6 | AX14: 1 | AY14: 7
A15: 向塘中小 | B15: 7 | C15: 7 | D15: 3256 | E15: 3029 | F15: 115 | G15: 110 | H15: 210 | I15: 28 | J15: 220 | K15: 159 | M15: 190 | N15: -51 | O15: 0 | P15: 10 | Q15: =IF('统招（小学）'!#REF!=0,"",'统招（小学）'!#REF!) ->  | R15: =IF('统招（小学）'!#REF!=0,"",'统招（小学）'!#REF!) ->  | S15: =IF('统招（小学）'!#REF!=0,"",'统招（小学）'!#REF!) ->  | T15: =IF('统招（小学）'!#REF!=0,"",'统招（小学）'!#REF!) ->  | U15: =IF('统招（小学）'!#REF!=0,"",'统招（小学）'!#REF!) ->  | V15: =IF('统招（小学）'!#REF!=0,"",'统招（小学）'!#REF!) ->  | W15: =IF('统招（小学）'!#REF!=0,"",'统招（小学）'!#REF!) ->  | X15: =IF('统招（小学）'!#REF!=0,"",'统招（小学）'!#REF!) ->  | Y15: =IF('统招（小学）'!#REF!=0,"",'统招（小学）'!#REF!) ->  | Z15: =IF('统招（小学）'!#REF!=0,"",'统招（小学）'!#REF!) ->  | AA15: =IF('统招（小学）'!#REF!=0,"",'统招（小学）'!#REF!) ->  | AB15: =IF('统招（小学）'!#REF!=0,"",'统招（小学）'!#REF!) ->  | AC15: =IF('统招（小学）'!#REF!=0,"",'统招（小学）'!#REF!) ->  | AD15: =IF('统招（小学）'!#REF!=0,"",'统招（小学）'!#REF!) ->  | AE15: =IF('统招（小学）'!#REF!=0,"",'统招（小学）'!#REF!) ->  | AF15: =IF('统招（小学）'!#REF!=0,"",'统招（小学）'!#REF!) ->  | AG15: =IF('统招（小学）'!#REF!=0,"",'统招（小学）'!#REF!) ->  | AH15: =IF('统招（小学）'!#REF!=0,"",'统招（小学）'!#REF!) ->  | AI15: =IF('统招（小学）'!#REF!=0,"",'统招（小学）'!#REF!) ->  | AJ15: =IF('统招（小学）'!#REF!=0,"",'统招（小学）'!#REF!) ->  | AK15: =IF('统招（小学）'!#REF!=0,"",'统招（小学）'!#REF!) ->  | AL15: =IF('统招（小学）'!#REF!=0,"",'统招（小学）'!#REF!) ->  | AM15: =IF('统招（小学）'!#REF!=0,"",'统招（小学）'!#REF!) ->  | AN15: =IF('统招（小学）'!#REF!=0,"",'统招（小学）'!#REF!) ->  | AO15: =IF('统招（小学）'!#REF!=0,"",'统招（小学）'!#REF!) ->  | AP15: =IF('统招（小学）'!#REF!=0,"",'统招（小学）'!#REF!) ->  | AR15: 7 | AS15: 0 | AX15: 9 | AY15: 16
A16: 黄马中小 | B16: 8 | C16: 8 | D16: 856 | E16: 626 | F16: 53 | G16: 27 | H16: 127 | I16: 23 | J16: 54 | K16: 33 | M16: 43 | N16: -94 | O16: 0 | P16: -73 | Q16: =IF('统招（小学）'!#REF!=0,"",'统招（小学）'!#REF!) ->  | R16: =IF('统招（小学）'!#REF!=0,"",'统招（小学）'!#REF!) ->  | S16: =IF('统招（小学）'!#REF!=0,"",'统招（小学）'!#REF!) ->  | T16: =IF('统招（小学）'!#REF!=0,"",'统招（小学）'!#REF!) ->  | U16: =IF('统招（小学）'!#REF!=0,"",'统招（小学）'!#REF!) ->  | V16: =IF('统招（小学）'!#REF!=0,"",'统招（小学）'!#REF!) ->  | W16: =IF('统招（小学）'!#REF!=0,"",'统招（小学）'!#REF!) ->  | X16: =IF('统招（小学）'!#REF!=0,"",'统招（小学）'!#REF!) ->  | Y16: =IF('统招（小学）'!#REF!=0,"",'统招（小学）'!#REF!) ->  | Z16: =IF('统招（小学）'!#REF!=0,"",'统招（小学）'!#REF!) ->  | AA16: =IF('统招（小学）'!#REF!=0,"",'统招（小学）'!#REF!) ->  | AB16: =IF('统招（小学）'!#REF!=0,"",'统招（小学）'!#REF!) ->  | AC16: =IF('统招（小学）'!#REF!=0,"",'统招（小学）'!#REF!) ->  | AD16: =IF('统招（小学）'!#REF!=0,"",'统招（小学）'!#REF!) ->  | AE16: =IF('统招（小学）'!#REF!=0,"",'统招（小学）'!#REF!) ->  | AF16: =IF('统招（小学）'!#REF!=0,"",'统招（小学）'!#REF!) ->  | AG16: =IF('统招（小学）'!#REF!=0,"",'统招（小学）'!#REF!) ->  | AH16: =IF('统招（小学）'!#REF!=0,"",'统招（小学）'!#REF!) ->  | AI16: =IF('统招（小学）'!#REF!=0,"",'统招（小学）'!#REF!) ->  | AJ16: =IF('统招（小学）'!#REF!=0,"",'统招（小学）'!#REF!) ->  | AK16: =IF('统招（小学）'!#REF!=0,"",'统招（小学）'!#REF!) ->  | AL16: =IF('统招（小学）'!#REF!=0,"",'统招（小学）'!#REF!) ->  | AM16: =IF('统招（小学）'!#REF!=0,"",'统招（小学）'!#REF!) ->  | AN16: =IF('统招（小学）'!#REF!=0,"",'统招（小学）'!#REF!) ->  | AO16: =IF('统招（小学）'!#REF!=0,"",'统招（小学）'!#REF!) ->  | AP16: =IF('统招（小学）'!#REF!=0,"",'统招（小学）'!#REF!) ->  | AU16: 4 | AX16: 1 | AY16: 5
A17: 三江中小 | B17: 9 | C17: 9 | D17: 1500 | E17: 1464 | F17: 42 | G17: 30 | H17: 99 | I17: 49 | J17: 60 | K17: 77 | M17: 69 | N17: -22 | O17: 0 | P17: -39 | Q17: =IF('统招（小学）'!#REF!=0,"",'统招（小学）'!#REF!) ->  | R17: =IF('统招（小学）'!#REF!=0,"",'统招（小学）'!#REF!) ->  | S17: =IF('统招（小学）'!#REF!=0,"",'统招（小学）'!#REF!) ->  | T17: =IF('统招（小学）'!#REF!=0,"",'统招（小学）'!#REF!) ->  | U17: =IF('统招（小学）'!#REF!=0,"",'统招（小学）'!#REF!) ->  | V17: =IF('统招（小学）'!#REF!=0,"",'统招（小学）'!#REF!) ->  | W17: =IF('统招（小学）'!#REF!=0,"",'统招（小学）'!#REF!) ->  | X17: =IF('统招（小学）'!#REF!=0,"",'统招（小学）'!#REF!) ->  | Y17: =IF('统招（小学）'!#REF!=0,"",'统招（小学）'!#REF!) ->  | Z17: =IF('统招（小学）'!#REF!=0,"",'统招（小学）'!#REF!) ->  | AA17: =IF('统招（小学）'!#REF!=0,"",'统招（小学）'!#REF!) ->  | AB17: =IF('统招（小学）'!#REF!=0,"",'统招（小学）'!#REF!) ->  | AC17: =IF('统招（小学）'!#REF!=0,"",'统招（小学）'!#REF!) ->  | AD17: =IF('统招（小学）'!#REF!=0,"",'统招（小学）'!#REF!) ->  | AE17: =IF('统招（小学）'!#REF!=0,"",'统招（小学）'!#REF!) ->  | AF17: =IF('统招（小学）'!#REF!=0,"",'统招（小学）'!#REF!) ->  | AG17: =IF('统招（小学）'!#REF!=0,"",'统招（小学）'!#REF!) ->  | AH17: =IF('统招（小学）'!#REF!=0,"",'统招（小学）'!#REF!) ->  | AI17: =IF('统招（小学）'!#REF!=0,"",'统招（小学）'!#REF!) ->  | AJ17: =IF('统招（小学）'!#REF!=0,"",'统招（小学）'!#REF!) ->  | AK17: =IF('统招（小学）'!#REF!=0,"",'统招（小学）'!#REF!) ->  | AL17: =IF('统招（小学）'!#REF!=0,"",'统招（小学）'!#REF!) ->  | AM17: =IF('统招（小学）'!#REF!=0,"",'统招（小学）'!#REF!) ->  | AN17: =IF('统招（小学）'!#REF!=0,"",'统招（小学）'!#REF!) ->  | AO17: =IF('统招（小学）'!#REF!=0,"",'统招（小学）'!#REF!) ->  | AP17: =IF('统招（小学）'!#REF!=0,"",'统招（小学）'!#REF!) ->  | AR17: 1 | AU17: 3 | AX17: 1 | AY17: 5
A18: 冈上中小 | B18: 10 | C18: 10 | D18: 1658 | E18: 1488 | F18: 63 | G18: 61 | H18: 121 | I18: 24 | J18: 122 | K18: 78 | M18: 100 | N18: -43 | O18: 0 | P18: 1 | Q18: =IF('统招（小学）'!C3=0,"",'统招（小学）'!C3) ->  | R18: =IF('统招（小学）'!#REF!=0,"",'统招（小学）'!#REF!) ->  | S18: =IF('统招（小学）'!D3=0,"",'统招（小学）'!D3) ->  | T18: =IF('统招（小学）'!E3=0,"",'统招（小学）'!E3) ->  | U18: =IF('统招（小学）'!F3=0,"",'统招（小学）'!F3) ->  | V18: =IF('统招（小学）'!G3=0,"",'统招（小学）'!G3) ->  | W18: =IF('统招（小学）'!H3=0,"",'统招（小学）'!H3) -> 1 | X18: =IF('统招（小学）'!I3=0,"",'统招（小学）'!I3) ->  | Y18: =IF('统招（小学）'!J3=0,"",'统招（小学）'!J3) -> 1 | Z18: =IF('统招（小学）'!K3=0,"",'统招（小学）'!K3) ->  | AA18: =IF('统招（小学）'!S3=0,"",'统招（小学）'!S3) ->  | AB18: =IF('统招（小学）'!T3=0,"",'统招（小学）'!T3) ->  | AC18: =IF('统招（小学）'!U3=0,"",'统招（小学）'!U3) ->  | AD18: =IF('统招（小学）'!V3=0,"",'统招（小学）'!V3) ->  | AE18: =IF('统招（小学）'!#REF!=0,"",'统招（小学）'!#REF!) ->  | AF18: =IF('统招（小学）'!#REF!=0,"",'统招（小学）'!#REF!) ->  | AG18: =IF('统招（小学）'!#REF!=0,"",'统招（小学）'!#REF!) ->  | AH18: =IF('统招（小学）'!#REF!=0,"",'统招（小学）'!#REF!) ->  | AI18: =IF('统招（小学）'!#REF!=0,"",'统招（小学）'!#REF!) ->  | AJ18: =IF('统招（小学）'!#REF!=0,"",'统招（小学）'!#REF!) ->  | AK18: =IF('统招（小学）'!#REF!=0,"",'统招（小学）'!#REF!) ->  | AL18: =IF('统招（小学）'!#REF!=0,"",'统招（小学）'!#REF!) ->  | AM18: =IF('统招（小学）'!#REF!=0,"",'统招（小学）'!#REF!) ->  | AN18: =IF('统招（小学）'!#REF!=0,"",'统招（小学）'!#REF!) ->  | AO18: =IF('统招（小学）'!#REF!=0,"",'统招（小学）'!#REF!) ->  | AP18: =IF('统招（小学）'!#REF!=0,"",'统招（小学）'!#REF!) ->  | AR18: 3 | AY18: 3
A19: 广福中小 | B19: 11 | C19: 11 | D19: 2154 | E19: 1900 | F19: 92 | G19: 80 | H19: 165 | I19: 24 | J19: 160 | K19: 100 | M19: 130 | N19: -65 | O19: 0 | P19: -5 | Q19: =IF('统招（小学）'!#REF!=0,"",'统招（小学）'!#REF!) ->  | R19: =IF('统招（小学）'!#REF!=0,"",'统招（小学）'!#REF!) ->  | S19: =IF('统招（小学）'!#REF!=0,"",'统招（小学）'!#REF!) ->  | T19: =IF('统招（小学）'!#REF!=0,"",'统招（小学）'!#REF!) ->  | U19: =IF('统招（小学）'!#REF!=0,"",'统招（小学）'!#REF!) ->  | V19: =IF('统招（小学）'!#REF!=0,"",'统招（小学）'!#REF!) ->  | W19: =IF('统招（小学）'!#REF!=0,"",'统招（小学）'!#REF!) ->  | X19: =IF('统招（小学）'!#REF!=0,"",'统招（小学）'!#REF!) ->  | Y19: =IF('统招（小学）'!#REF!=0,"",'统招（小学）'!#REF!) ->  | Z19: =IF('统招（小学）'!#REF!=0,"",'统招（小学）'!#REF!) ->  | AA19: =IF('统招（小学）'!#REF!=0,"",'统招（小学）'!#REF!) ->  | AB19: =IF('统招（小学）'!#REF!=0,"",'统招（小学）'!#REF!) ->  | AC19: =IF('统招（小学）'!#REF!=0,"",'统招（小学）'!#REF!) ->  | AD19: =IF('统招（小学）'!#REF!=0,"",'统招（小学）'!#REF!) ->  | AE19: =IF('统招（小学）'!#REF!=0,"",'统招（小学）'!#REF!) ->  | AF19: =IF('统招（小学）'!#REF!=0,"",'统招（小学）'!#REF!) ->  | AG19: =IF('统招（小学）'!#REF!=0,"",'统招（小学）'!#REF!) ->  | AH19: =IF('统招（小学）'!#REF!=0,"",'统招（小学）'!#REF!) ->  | AI19: =IF('统招（小学）'!#REF!=0,"",'统招（小学）'!#REF!) ->  | AJ19: =IF('统招（小学）'!#REF!=0,"",'统招（小学）'!#REF!) ->  | AK19: =IF('统招（小学）'!#REF!=0,"",'统招（小学）'!#REF!) ->  | AL19: =IF('统招（小学）'!#REF!=0,"",'统招（小学）'!#REF!) ->  | AM19: =IF('统招（小学）'!#REF!=0,"",'统招（小学）'!#REF!) ->  | AN19: =IF('统招（小学）'!#REF!=0,"",'统招（小学）'!#REF!) ->  | AO19: =IF('统招（小学）'!#REF!=0,"",'统招（小学）'!#REF!) ->  | AP19: =IF('统招（小学）'!#REF!=0,"",'统招（小学）'!#REF!) ->  | AR19: 3 | AU19: 3 | AY19: 6
A20: 富山中小 | B20: 12 | C20: 12 | D20: 2000 | E20: 1832 | F20: 84 | G20: 81 | H20: 127 | I20: 23 | J20: 162 | K20: 96 | M20: 129 | N20: -31 | O20: 0 | P20: 35 | Q20: =IF('统招（小学）'!#REF!=0,"",'统招（小学）'!#REF!) ->  | R20: =IF('统招（小学）'!#REF!=0,"",'统招（小学）'!#REF!) ->  | S20: =IF('统招（小学）'!#REF!=0,"",'统招（小学）'!#REF!) ->  | T20: =IF('统招（小学）'!#REF!=0,"",'统招（小学）'!#REF!) ->  | U20: =IF('统招（小学）'!#REF!=0,"",'统招（小学）'!#REF!) ->  | V20: =IF('统招（小学）'!#REF!=0,"",'统招（小学）'!#REF!) ->  | W20: =IF('统招（小学）'!#REF!=0,"",'统招（小学）'!#REF!) ->  | X20: =IF('统招（小学）'!#REF!=0,"",'统招（小学）'!#REF!) ->  | Y20: =IF('统招（小学）'!#REF!=0,"",'统招（小学）'!#REF!) ->  | Z20: =IF('统招（小学）'!#REF!=0,"",'统招（小学）'!#REF!) ->  | AA20: =IF('统招（小学）'!#REF!=0,"",'统招（小学）'!#REF!) ->  | AB20: =IF('统招（小学）'!#REF!=0,"",'统招（小学）'!#REF!) ->  | AC20: =IF('统招（小学）'!#REF!=0,"",'统招（小学）'!#REF!) ->  | AD20: =IF('统招（小学）'!#REF!=0,"",'统招（小学）'!#REF!) ->  | AE20: =IF('统招（小学）'!#REF!=0,"",'统招（小学）'!#REF!) ->  | AF20: =IF('统招（小学）'!#REF!=0,"",'统招（小学）'!#REF!) ->  | AG20: =IF('统招（小学）'!#REF!=0,"",'统招（小学）'!#REF!) ->  | AH20: =IF('统招（小学）'!#REF!=0,"",'统招（小学）'!#REF!) ->  | AI20: =IF('统招（小学）'!#REF!=0,"",'统招（小学）'!#REF!) ->  | AJ20: =IF('统招（小学）'!#REF!=0,"",'统招（小学）'!#REF!) ->  | AK20: =IF('统招（小学）'!#REF!=0,"",'统招（小学）'!#REF!) ->  | AL20: =IF('统招（小学）'!#REF!=0,"",'统招（小学）'!#REF!) ->  | AM20: =IF('统招（小学）'!#REF!=0,"",'统招（小学）'!#REF!) ->  | AN20: =IF('统招（小学）'!#REF!=0,"",'统招（小学）'!#REF!) ->  | AO20: =IF('统招（小学）'!#REF!=0,"",'统招（小学）'!#REF!) ->  | AP20: =IF('统招（小学）'!#REF!=0,"",'统招（小学）'!#REF!) ->  | AR20: 2 | AX20: 12 | AY20: 14
A21: 东新中小 | B21: 13 | C21: 13 | D21: 1769 | E21: 1692 | F21: 45 | G21: 46 | H21: 110 | I21: 37 | J21: 92 | K21: 89 | M21: 91 | N21: -21 | O21: 0 | P21: -18 | Q21: =IF('统招（小学）'!#REF!=0,"",'统招（小学）'!#REF!) ->  | R21: =IF('统招（小学）'!#REF!=0,"",'统招（小学）'!#REF!) ->  | S21: =IF('统招（小学）'!#REF!=0,"",'统招（小学）'!#REF!) ->  | T21: =IF('统招（小学）'!#REF!=0,"",'统招（小学）'!#REF!) ->  | U21: =IF('统招（小学）'!#REF!=0,"",'统招（小学）'!#REF!) ->  | V21: =IF('统招（小学）'!#REF!=0,"",'统招（小学）'!#REF!) ->  | W21: =IF('统招（小学）'!#REF!=0,"",'统招（小学）'!#REF!) ->  | X21: =IF('统招（小学）'!#REF!=0,"",'统招（小学）'!#REF!) ->  | Y21: =IF('统招（小学）'!#REF!=0,"",'统招（小学）'!#REF!) ->  | Z21: =IF('统招（小学）'!#REF!=0,"",'统招（小学）'!#REF!) ->  | AA21: =IF('统招（小学）'!#REF!=0,"",'统招（小学）'!#REF!) ->  | AB21: =IF('统招（小学）'!#REF!=0,"",'统招（小学）'!#REF!) ->  | AC21: =IF('统招（小学）'!#REF!=0,"",'统招（小学）'!#REF!) ->  | AD21: =IF('统招（小学）'!#REF!=0,"",'统招（小学）'!#REF!) ->  | AE21: =IF('统招（小学）'!#REF!=0,"",'统招（小学）'!#REF!) ->  | AF21: =IF('统招（小学）'!#REF!=0,"",'统招（小学）'!#REF!) ->  | AG21: =IF('统招（小学）'!#REF!=0,"",'统招（小学）'!#REF!) ->  | AH21: =IF('统招（小学）'!#REF!=0,"",'统招（小学）'!#REF!) ->  | AI21: =IF('统招（小学）'!#REF!=0,"",'统招（小学）'!#REF!) ->  | AJ21: =IF('统招（小学）'!#REF!=0,"",'统招（小学）'!#REF!) ->  | AK21: =IF('统招（小学）'!#REF!=0,"",'统招（小学）'!#REF!) ->  | AL21: =IF('统招（小学）'!#REF!=0,"",'统招（小学）'!#REF!) ->  | AM21: =IF('统招（小学）'!#REF!=0,"",'统招（小学）'!#REF!) ->  | AN21: =IF('统招（小学）'!#REF!=0,"",'统招（小学）'!#REF!) ->  | AO21: =IF('统招（小学）'!#REF!=0,"",'统招（小学）'!#REF!) ->  | AP21: =IF('统招（小学）'!#REF!=0,"",'统招（小学）'!#REF!) ->  | AR21: 2 | AX21: 20 | AY21: 22
A22: 八一中小 | B22: 14 | C22: 14 | D22: 1410 | E22: 1274 | F22: 64 | G22: 52 | H22: 123 | I22: 25 | J22: 104 | K22: 67 | M22: 86 | N22: -56 | O22: 0 | P22: -19 | Q22: =IF('统招（小学）'!#REF!=0,"",'统招（小学）'!#REF!) ->  | R22: =IF('统招（小学）'!#REF!=0,"",'统招（小学）'!#REF!) ->  | S22: =IF('统招（小学）'!#REF!=0,"",'统招（小学）'!#REF!) ->  | T22: =IF('统招（小学）'!#REF!=0,"",'统招（小学）'!#REF!) ->  | U22: =IF('统招（小学）'!#REF!=0,"",'统招（小学）'!#REF!) ->  | V22: =IF('统招（小学）'!#REF!=0,"",'统招（小学）'!#REF!) ->  | W22: =IF('统招（小学）'!#REF!=0,"",'统招（小学）'!#REF!) ->  | X22: =IF('统招（小学）'!#REF!=0,"",'统招（小学）'!#REF!) ->  | Y22: =IF('统招（小学）'!#REF!=0,"",'统招（小学）'!#REF!) ->  | Z22: =IF('统招（小学）'!#REF!=0,"",'统招（小学）'!#REF!) ->  | AA22: =IF('统招（小学）'!#REF!=0,"",'统招（小学）'!#REF!) ->  | AB22: =IF('统招（小学）'!#REF!=0,"",'统招（小学）'!#REF!) ->  | AC22: =IF('统招（小学）'!#REF!=0,"",'统招（小学）'!#REF!) ->  | AD22: =IF('统招（小学）'!#REF!=0,"",'统招（小学）'!#REF!) ->  | AE22: =IF('统招（小学）'!#REF!=0,"",'统招（小学）'!#REF!) ->  | AF22: =IF('统招（小学）'!#REF!=0,"",'统招（小学）'!#REF!) ->  | AG22: =IF('统招（小学）'!#REF!=0,"",'统招（小学）'!#REF!) ->  | AH22: =IF('统招（小学）'!#REF!=0,"",'统招（小学）'!#REF!) ->  | AI22: =IF('统招（小学）'!#REF!=0,"",'统招（小学）'!#REF!) ->  | AJ22: =IF('统招（小学）'!#REF!=0,"",'统招（小学）'!#REF!) ->  | AK22: =IF('统招（小学）'!#REF!=0,"",'统招（小学）'!#REF!) ->  | AL22: =IF('统招（小学）'!#REF!=0,"",'统招（小学）'!#REF!) ->  | AM22: =IF('统招（小学）'!#REF!=0,"",'统招（小学）'!#REF!) ->  | AN22: =IF('统招（小学）'!#REF!=0,"",'统招（小学）'!#REF!) ->  | AO22: =IF('统招（小学）'!#REF!=0,"",'统招（小学）'!#REF!) ->  | AP22: =IF('统招（小学）'!#REF!=0,"",'统招（小学）'!#REF!) ->  | AY22: 0
A23: 莲塘中小 | B23: 22 | C23: 15 | D23: 1848 | E23: 1266 | F23: 40 | G23: 29 | H23: 81 | I23: 44 | J23: =G23*2.4 -> 70 | K23: 67 | M23: 68 | N23: -14 | O23: 0 | P23: -11 | Q23: =IF('统招（小学）'!C5=0,"",'统招（小学）'!C5) ->  | R23: =IF('统招（小学）'!#REF!=0,"",'统招（小学）'!#REF!) ->  | S23: =IF('统招（小学）'!D5=0,"",'统招（小学）'!D5) ->  | T23: =IF('统招（小学）'!E5=0,"",'统招（小学）'!E5) ->  | U23: =IF('统招（小学）'!F5=0,"",'统招（小学）'!F5) ->  | V23: =IF('统招（小学）'!G5=0,"",'统招（小学）'!G5) ->  | W23: =IF('统招（小学）'!H5=0,"",'统招（小学）'!H5) ->  | X23: =IF('统招（小学）'!I5=0,"",'统招（小学）'!I5) ->  | Y23: =IF('统招（小学）'!J5=0,"",'统招（小学）'!J5) ->  | Z23: =IF('统招（小学）'!K5=0,"",'统招（小学）'!K5) ->  | AA23: =IF('统招（小学）'!S5=0,"",'统招（小学）'!S5) ->  | AB23: =IF('统招（小学）'!T5=0,"",'统招（小学）'!T5) ->  | AC23: =IF('统招（小学）'!U5=0,"",'统招（小学）'!U5) ->  | AD23: =IF('统招（小学）'!V5=0,"",'统招（小学）'!V5) ->  | AE23: =IF('统招（小学）'!#REF!=0,"",'统招（小学）'!#REF!) ->  | AF23: =IF('统招（小学）'!#REF!=0,"",'统招（小学）'!#REF!) ->  | AG23: =IF('统招（小学）'!#REF!=0,"",'统招（小学）'!#REF!) ->  | AH23: =IF('统招（小学）'!#REF!=0,"",'统招（小学）'!#REF!) ->  | AI23: =IF('统招（小学）'!#REF!=0,"",'统招（小学）'!#REF!) ->  | AJ23: =IF('统招（小学）'!#REF!=0,"",'统招（小学）'!#REF!) ->  | AK23: =IF('统招（小学）'!#REF!=0,"",'统招（小学）'!#REF!) ->  | AL23: =IF('统招（小学）'!#REF!=0,"",'统招（小学）'!#REF!) ->  | AM23: =IF('统招（小学）'!#REF!=0,"",'统招（小学）'!#REF!) ->  | AN23: =IF('统招（小学）'!#REF!=0,"",'统招（小学）'!#REF!) ->  | AO23: =IF('统招（小学）'!#REF!=0,"",'统招（小学）'!#REF!) ->  | AP23: =IF('统招（小学）'!#REF!=0,"",'统招（小学）'!#REF!) ->  | AS23: 1 | AY23: 1
A24: 莲塘一小 | B24: 23 | C24: 16 | D24: 3961 | E24: 3981 | F24: 69 | G24: 74 | H24: 157 | I24: 54 | J24: 178 | K24: 210 | M24: 194 | N24: 53 | O24: =N24 -> 53 | P24: 21 | Q24: =IF('统招（小学）'!#REF!=0,"",'统招（小学）'!#REF!) ->  | R24: =IF('统招（小学）'!#REF!=0,"",'统招（小学）'!#REF!) ->  | S24: =IF('统招（小学）'!#REF!=0,"",'统招（小学）'!#REF!) ->  | T24: =IF('统招（小学）'!#REF!=0,"",'统招（小学）'!#REF!) ->  | U24: =IF('统招（小学）'!#REF!=0,"",'统招（小学）'!#REF!) ->  | V24: =IF('统招（小学）'!#REF!=0,"",'统招（小学）'!#REF!) ->  | W24: =IF('统招（小学）'!#REF!=0,"",'统招（小学）'!#REF!) ->  | X24: =IF('统招（小学）'!#REF!=0,"",'统招（小学）'!#REF!) ->  | Y24: =IF('统招（小学）'!#REF!=0,"",'统招（小学）'!#REF!) ->  | Z24: =IF('统招（小学）'!#REF!=0,"",'统招（小学）'!#REF!) ->  | AA24: =IF('统招（小学）'!#REF!=0,"",'统招（小学）'!#REF!) ->  | AB24: =IF('统招（小学）'!#REF!=0,"",'统招（小学）'!#REF!) ->  | AC24: =IF('统招（小学）'!#REF!=0,"",'统招（小学）'!#REF!) ->  | AD24: =IF('统招（小学）'!#REF!=0,"",'统招（小学）'!#REF!) ->  | AE24: =IF('统招（小学）'!#REF!=0,"",'统招（小学）'!#REF!) ->  | AF24: =IF('统招（小学）'!#REF!=0,"",'统招（小学）'!#REF!) ->  | AG24: =IF('统招（小学）'!#REF!=0,"",'统招（小学）'!#REF!) ->  | AH24: =IF('统招（小学）'!#REF!=0,"",'统招（小学）'!#REF!) ->  | AI24: =IF('统招（小学）'!#REF!=0,"",'统招（小学）'!#REF!) ->  | AJ24: =IF('统招（小学）'!#REF!=0,"",'统招（小学）'!#REF!) ->  | AK24: =IF('统招（小学）'!#REF!=0,"",'统招（小学）'!#REF!) ->  | AL24: =IF('统招（小学）'!#REF!=0,"",'统招（小学）'!#REF!) ->  | AM24: =IF('统招（小学）'!#REF!=0,"",'统招（小学）'!#REF!) ->  | AN24: =IF('统招（小学）'!#REF!=0,"",'统招（小学）'!#REF!) ->  | AO24: =IF('统招（小学）'!#REF!=0,"",'统招（小学）'!#REF!) ->  | AP24: =IF('统招（小学）'!#REF!=0,"",'统招（小学）'!#REF!) ->  | AY24: 0
A25: 莲塘二小 | B25: 24 | C25: 17 | D25: 3446 | E25: 3340 | F25: 54 | G25: 56 | H25: 131 | I25: 60 | J25: 134 | K25: 176 | M25: 155 | N25: 45 | O25: 45 | P25: 3 | Q25: =IF('统招（小学）'!#REF!=0,"",'统招（小学）'!#REF!) ->  | R25: =IF('统招（小学）'!#REF!=0,"",'统招（小学）'!#REF!) ->  | S25: =IF('统招（小学）'!#REF!=0,"",'统招（小学）'!#REF!) ->  | T25: =IF('统招（小学）'!#REF!=0,"",'统招（小学）'!#REF!) ->  | U25: =IF('统招（小学）'!#REF!=0,"",'统招（小学）'!#REF!) ->  | V25: =IF('统招（小学）'!#REF!=0,"",'统招（小学）'!#REF!) ->  | W25: =IF('统招（小学）'!#REF!=0,"",'统招（小学）'!#REF!) ->  | X25: =IF('统招（小学）'!#REF!=0,"",'统招（小学）'!#REF!) ->  | Y25: =IF('统招（小学）'!#REF!=0,"",'统招（小学）'!#REF!) ->  | Z25: =IF('统招（小学）'!#REF!=0,"",'统招（小学）'!#REF!) ->  | AA25: =IF('统招（小学）'!#REF!=0,"",'统招（小学）'!#REF!) ->  | AB25: =IF('统招（小学）'!#REF!=0,"",'统招（小学）'!#REF!) ->  | AC25: =IF('统招（小学）'!#REF!=0,"",'统招（小学）'!#REF!) ->  | AD25: =IF('统招（小学）'!#REF!=0,"",'统招（小学）'!#REF!) ->  | AE25: =IF('统招（小学）'!#REF!=0,"",'统招（小学）'!#REF!) ->  | AF25: =IF('统招（小学）'!#REF!=0,"",'统招（小学）'!#REF!) ->  | AG25: =IF('统招（小学）'!#REF!=0,"",'统招（小学）'!#REF!) ->  | AH25: =IF('统招（小学）'!#REF!=0,"",'统招（小学）'!#REF!) ->  | AI25: =IF('统招（小学）'!#REF!=0,"",'统招（小学）'!#REF!) ->  | AJ25: =IF('统招（小学）'!#REF!=0,"",'统招（小学）'!#REF!) ->  | AK25: =IF('统招（小学）'!#REF!=0,"",'统招（小学）'!#REF!) ->  | AL25: =IF('统招（小学）'!#REF!=0,"",'统招（小学）'!#REF!) ->  | AM25: =IF('统招（小学）'!#REF!=0,"",'统招（小学）'!#REF!) ->  | AN25: =IF('统招（小学）'!#REF!=0,"",'统招（小学）'!#REF!) ->  | AO25: =IF('统招（小学）'!#REF!=0,"",'统招（小学）'!#REF!) ->  | AP25: =IF('统招（小学）'!#REF!=0,"",'统招（小学）'!#REF!) ->  | AY25: 0
A26: 莲塘三小 | B26: 25 | C26: 18 | D26: 5250 | E26: 5443 | F26: 82 | G26: 88 | H26: 205 | I26: 62 | J26: 211 | K26: 286 | M26: 249 | N26: 81 | O26: 81 | P26: 6 | Q26: =IF('统招（小学）'!#REF!=0,"",'统招（小学）'!#REF!) ->  | R26: =IF('统招（小学）'!#REF!=0,"",'统招（小学）'!#REF!) ->  | S26: =IF('统招（小学）'!#REF!=0,"",'统招（小学）'!#REF!) ->  | T26: =IF('统招（小学）'!#REF!=0,"",'统招（小学）'!#REF!) ->  | U26: =IF('统招（小学）'!#REF!=0,"",'统招（小学）'!#REF!) ->  | V26: =IF('统招（小学）'!#REF!=0,"",'统招（小学）'!#REF!) ->  | W26: =IF('统招（小学）'!#REF!=0,"",'统招（小学）'!#REF!) ->  | X26: =IF('统招（小学）'!#REF!=0,"",'统招（小学）'!#REF!) ->  | Y26: =IF('统招（小学）'!#REF!=0,"",'统招（小学）'!#REF!) ->  | Z26: =IF('统招（小学）'!#REF!=0,"",'统招（小学）'!#REF!) ->  | AA26: =IF('统招（小学）'!#REF!=0,"",'统招（小学）'!#REF!) ->  | AB26: =IF('统招（小学）'!#REF!=0,"",'统招（小学）'!#REF!) ->  | AC26: =IF('统招（小学）'!#REF!=0,"",'统招（小学）'!#REF!) ->  | AD26: =IF('统招（小学）'!#REF!=0,"",'统招（小学）'!#REF!) ->  | AE26: =IF('统招（小学）'!#REF!=0,"",'统招（小学）'!#REF!) ->  | AF26: =IF('统招（小学）'!#REF!=0,"",'统招（小学）'!#REF!) ->  | AG26: =IF('统招（小学）'!#REF!=0,"",'统招（小学）'!#REF!) ->  | AH26: =IF('统招（小学）'!#REF!=0,"",'统招（小学）'!#REF!) ->  | AI26: =IF('统招（小学）'!#REF!=0,"",'统招（小学）'!#REF!) ->  | AJ26: =IF('统招（小学）'!#REF!=0,"",'统招（小学）'!#REF!) ->  | AK26: =IF('统招（小学）'!#REF!=0,"",'统招（小学）'!#REF!) ->  | AL26: =IF('统招（小学）'!#REF!=0,"",'统招（小学）'!#REF!) ->  | AM26: =IF('统招（小学）'!#REF!=0,"",'统招（小学）'!#REF!) ->  | AN26: =IF('统招（小学）'!#REF!=0,"",'统招（小学）'!#REF!) ->  | AO26: =IF('统招（小学）'!#REF!=0,"",'统招（小学）'!#REF!) ->  | AP26: =IF('统招（小学）'!#REF!=0,"",'统招（小学）'!#REF!) ->  | AV26: 2 | AY26: 2
A27: 莲塘四小 | B27: 26 | C27: 19 | D27: 2851 | E27: 2980 | F27: 44 | G27: 48 | H27: 98 | I27: 62 | J27: 115 | K27: 157 | M27: 136 | N27: 59 | O27: 59 | P27: 17 | Q27: =IF('统招（小学）'!#REF!=0,"",'统招（小学）'!#REF!) ->  | R27: =IF('统招（小学）'!#REF!=0,"",'统招（小学）'!#REF!) ->  | S27: =IF('统招（小学）'!#REF!=0,"",'统招（小学）'!#REF!) ->  | T27: =IF('统招（小学）'!#REF!=0,"",'统招（小学）'!#REF!) ->  | U27: =IF('统招（小学）'!#REF!=0,"",'统招（小学）'!#REF!) ->  | V27: =IF('统招（小学）'!#REF!=0,"",'统招（小学）'!#REF!) ->  | W27: =IF('统招（小学）'!#REF!=0,"",'统招（小学）'!#REF!) ->  | X27: =IF('统招（小学）'!#REF!=0,"",'统招（小学）'!#REF!) ->  | Y27: =IF('统招（小学）'!#REF!=0,"",'统招（小学）'!#REF!) ->  | Z27: =IF('统招（小学）'!#REF!=0,"",'统招（小学）'!#REF!) ->  | AA27: =IF('统招（小学）'!#REF!=0,"",'统招（小学）'!#REF!) ->  | AB27: =IF('统招（小学）'!#REF!=0,"",'统招（小学）'!#REF!) ->  | AC27: =IF('统招（小学）'!#REF!=0,"",'统招（小学）'!#REF!) ->  | AD27: =IF('统招（小学）'!#REF!=0,"",'统招（小学）'!#REF!) ->  | AE27: =IF('统招（小学）'!#REF!=0,"",'统招（小学）'!#REF!) ->  | AF27: =IF('统招（小学）'!#REF!=0,"",'统招（小学）'!#REF!) ->  | AG27: =IF('统招（小学）'!#REF!=0,"",'统招（小学）'!#REF!) ->  | AH27: =IF('统招（小学）'!#REF!=0,"",'统招（小学）'!#REF!) ->  | AI27: =IF('统招（小学）'!#REF!=0,"",'统招（小学）'!#REF!) ->  | AJ27: =IF('统招（小学）'!#REF!=0,"",'统招（小学）'!#REF!) ->  | AK27: =IF('统招（小学）'!#REF!=0,"",'统招（小学）'!#REF!) ->  | AL27: =IF('统招（小学）'!#REF!=0,"",'统招（小学）'!#REF!) ->  | AM27: =IF('统招（小学）'!#REF!=0,"",'统招（小学）'!#REF!) ->  | AN27: =IF('统招（小学）'!#REF!=0,"",'统招（小学）'!#REF!) ->  | AO27: =IF('统招（小学）'!#REF!=0,"",'统招（小学）'!#REF!) ->  | AP27: =IF('统招（小学）'!#REF!=0,"",'统招（小学）'!#REF!) ->  | AV27: 3 | AY27: 3
A28: 县特教（小学） | B28: 27 | C28: 20 | D28: 76 | F28: 7 | H28: 14 | J28: 0 | K28: 0 | M28: 0 | N28: -14 | O28: 0 | P28: -14 | Q28: =IF('统招（小学）'!#REF!=0,"",'统招（小学）'!#REF!) ->  | R28: =IF('统招（小学）'!#REF!=0,"",'统招（小学）'!#REF!) ->  | S28: =IF('统招（小学）'!#REF!=0,"",'统招（小学）'!#REF!) ->  | T28: =IF('统招（小学）'!#REF!=0,"",'统招（小学）'!#REF!) ->  | U28: =IF('统招（小学）'!#REF!=0,"",'统招（小学）'!#REF!) ->  | V28: =IF('统招（小学）'!#REF!=0,"",'统招（小学）'!#REF!) ->  | W28: =IF('统招（小学）'!#REF!=0,"",'统招（小学）'!#REF!) ->  | X28: =IF('统招（小学）'!#REF!=0,"",'统招（小学）'!#REF!) ->  | Y28: =IF('统招（小学）'!#REF!=0,"",'统招（小学）'!#REF!) ->  | Z28: =IF('统招（小学）'!#REF!=0,"",'统招（小学）'!#REF!) ->  | AA28: =IF('统招（小学）'!#REF!=0,"",'统招（小学）'!#REF!) ->  | AB28: =IF('统招（小学）'!#REF!=0,"",'统招（小学）'!#REF!) ->  | AC28: =IF('统招（小学）'!#REF!=0,"",'统招（小学）'!#REF!) ->  | AD28: =IF('统招（小学）'!#REF!=0,"",'统招（小学）'!#REF!) ->  | AE28: =IF('统招（小学）'!#REF!=0,"",'统招（小学）'!#REF!) ->  | AF28: =IF('统招（小学）'!#REF!=0,"",'统招（小学）'!#REF!) ->  | AG28: =IF('统招（小学）'!#REF!=0,"",'统招（小学）'!#REF!) ->  | AH28: =IF('统招（小学）'!#REF!=0,"",'统招（小学）'!#REF!) ->  | AI28: =IF('统招（小学）'!#REF!=0,"",'统招（小学）'!#REF!) ->  | AJ28: =IF('统招（小学）'!#REF!=0,"",'统招（小学）'!#REF!) ->  | AK28: =IF('统招（小学）'!#REF!=0,"",'统招（小学）'!#REF!) ->  | AL28: =IF('统招（小学）'!#REF!=0,"",'统招（小学）'!#REF!) ->  | AM28: =IF('统招（小学）'!#REF!=0,"",'统招（小学）'!#REF!) ->  | AN28: =IF('统招（小学）'!#REF!=0,"",'统招（小学）'!#REF!) ->  | AO28: =IF('统招（小学）'!#REF!=0,"",'统招（小学）'!#REF!) ->  | AP28: =IF('统招（小学）'!#REF!=0,"",'统招（小学）'!#REF!) ->  | AY28: 0
A29: 莲塘实验学校（小学） | B29: 28 | C29: 25 | D29: 402 | E29: 407 | F29: 7 | G29: 8 | H29: 21 | I29: 51 | J29: 19 | K29: 21 | M29: 20 | N29: 0 | O29: =N29 -> 0 | P29: -2 | Q29: =IF('统招（小学）'!#REF!=0,"",'统招（小学）'!#REF!) ->  | R29: =IF('统招（小学）'!#REF!=0,"",'统招（小学）'!#REF!) ->  | S29: =IF('统招（小学）'!#REF!=0,"",'统招（小学）'!#REF!) ->  | T29: =IF('统招（小学）'!#REF!=0,"",'统招（小学）'!#REF!) ->  | U29: =IF('统招（小学）'!#REF!=0,"",'统招（小学）'!#REF!) ->  | V29: =IF('统招（小学）'!#REF!=0,"",'统招（小学）'!#REF!) ->  | W29: =IF('统招（小学）'!#REF!=0,"",'统招（小学）'!#REF!) ->  | X29: =IF('统招（小学）'!#REF!=0,"",'统招（小学）'!#REF!) ->  | Y29: =IF('统招（小学）'!#REF!=0,"",'统招（小学）'!#REF!) ->  | Z29: =IF('统招（小学）'!#REF!=0,"",'统招（小学）'!#REF!) ->  | AA29: =IF('统招（小学）'!#REF!=0,"",'统招（小学）'!#REF!) ->  | AB29: =IF('统招（小学）'!#REF!=0,"",'统招（小学）'!#REF!) ->  | AC29: =IF('统招（小学）'!#REF!=0,"",'统招（小学）'!#REF!) ->  | AD29: =IF('统招（小学）'!#REF!=0,"",'统招（小学）'!#REF!) ->  | AE29: =IF('统招（小学）'!#REF!=0,"",'统招（小学）'!#REF!) ->  | AF29: =IF('统招（小学）'!#REF!=0,"",'统招（小学）'!#REF!) ->  | AG29: =IF('统招（小学）'!#REF!=0,"",'统招（小学）'!#REF!) ->  | AH29: =IF('统招（小学）'!#REF!=0,"",'统招（小学）'!#REF!) ->  | AI29: =IF('统招（小学）'!#REF!=0,"",'统招（小学）'!#REF!) ->  | AJ29: =IF('统招（小学）'!#REF!=0,"",'统招（小学）'!#REF!) ->  | AK29: =IF('统招（小学）'!#REF!=0,"",'统招（小学）'!#REF!) ->  | AL29: =IF('统招（小学）'!#REF!=0,"",'统招（小学）'!#REF!) ->  | AM29: =IF('统招（小学）'!#REF!=0,"",'统招（小学）'!#REF!) ->  | AN29: =IF('统招（小学）'!#REF!=0,"",'统招（小学）'!#REF!) ->  | AO29: =IF('统招（小学）'!#REF!=0,"",'统招（小学）'!#REF!) ->  | AP29: =IF('统招（小学）'!#REF!=0,"",'统招（小学）'!#REF!) ->  | AY29: 0
A30: 莲塘实验学校（初中） | B30: 75 | C30: 25 | D30: 152 | E30: 147 | F30: 3 | G30: 3 | H30: 10 | I30: 49 | J30: =G30*2.8 -> 8 | K30: =E30/13.5 -> 11 | L30: =G30*50/13.5 -> 11 | Q30: =IF('统招（小学）'!#REF!=0,"",'统招（小学）'!#REF!) ->  | R30: =IF('统招（小学）'!#REF!=0,"",'统招（小学）'!#REF!) ->  | S30: =IF('统招（小学）'!#REF!=0,"",'统招（小学）'!#REF!) ->  | T30: =IF('统招（小学）'!#REF!=0,"",'统招（小学）'!#REF!) ->  | U30: =IF('统招（小学）'!#REF!=0,"",'统招（小学）'!#REF!) ->  | V30: =IF('统招（小学）'!#REF!=0,"",'统招（小学）'!#REF!) ->  | W30: =IF('统招（小学）'!#REF!=0,"",'统招（小学）'!#REF!) ->  | X30: =IF('统招（小学）'!#REF!=0,"",'统招（小学）'!#REF!) ->  | Y30: =IF('统招（小学）'!#REF!=0,"",'统招（小学）'!#REF!) ->  | Z30: =IF('统招（小学）'!#REF!=0,"",'统招（小学）'!#REF!) ->  | AA30: =IF('统招（小学）'!#REF!=0,"",'统招（小学）'!#REF!) ->  | AB30: =IF('统招（小学）'!#REF!=0,"",'统招（小学）'!#REF!) ->  | AC30: =IF('统招（小学）'!#REF!=0,"",'统招（小学）'!#REF!) ->  | AD30: =IF('统招（小学）'!#REF!=0,"",'统招（小学）'!#REF!) ->  | AE30: =IF('统招（小学）'!#REF!=0,"",'统招（小学）'!#REF!) ->  | AF30: =IF('统招（小学）'!#REF!=0,"",'统招（小学）'!#REF!) ->  | AG30: =IF('统招（小学）'!#REF!=0,"",'统招（小学）'!#REF!) ->  | AH30: =IF('统招（小学）'!#REF!=0,"",'统招（小学）'!#REF!) ->  | AI30: =IF('统招（小学）'!#REF!=0,"",'统招（小学）'!#REF!) ->  | AJ30: =IF('统招（小学）'!#REF!=0,"",'统招（小学）'!#REF!) ->  | AK30: =IF('统招（小学）'!#REF!=0,"",'统招（小学）'!#REF!) ->  | AL30: =IF('统招（小学）'!#REF!=0,"",'统招（小学）'!#REF!) ->  | AM30: =IF('统招（小学）'!#REF!=0,"",'统招（小学）'!#REF!) ->  | AN30: =IF('统招（小学）'!#REF!=0,"",'统招（小学）'!#REF!) ->  | AO30: =IF('统招（小学）'!#REF!=0,"",'统招（小学）'!#REF!) ->  | AP30: =IF('统招（小学）'!#REF!=0,"",'统招（小学）'!#REF!) ->  | AY30: 0
A31: 昌南实验学校（小学） | B31: 29 | C31: 26 | D31: 378 | E31: 357 | F31: 7 | G31: 7 | H31: 21 | I31: 51 | J31: =G31*2.4 -> 17 | K31: =E31/19 -> 19 | M31: =(J31+K31)/2 -> 18 | N31: =K31-H31 -> -2 | O31: 0 | P31: =J31-H31 -> -4 | Q31: =IF('统招（小学）'!#REF!=0,"",'统招（小学）'!#REF!) ->  | R31: =IF('统招（小学）'!#REF!=0,"",'统招（小学）'!#REF!) ->  | S31: =IF('统招（小学）'!#REF!=0,"",'统招（小学）'!#REF!) ->  | T31: =IF('统招（小学）'!#REF!=0,"",'统招（小学）'!#REF!) ->  | U31: =IF('统招（小学）'!#REF!=0,"",'统招（小学）'!#REF!) ->  | V31: =IF('统招（小学）'!#REF!=0,"",'统招（小学）'!#REF!) ->  | W31: =IF('统招（小学）'!#REF!=0,"",'统招（小学）'!#REF!) ->  | X31: =IF('统招（小学）'!#REF!=0,"",'统招（小学）'!#REF!) ->  | Y31: =IF('统招（小学）'!#REF!=0,"",'统招（小学）'!#REF!) ->  | Z31: =IF('统招（小学）'!#REF!=0,"",'统招（小学）'!#REF!) ->  | AA31: =IF('统招（小学）'!#REF!=0,"",'统招（小学）'!#REF!) ->  | AB31: =IF('统招（小学）'!#REF!=0,"",'统招（小学）'!#REF!) ->  | AC31: =IF('统招（小学）'!#REF!=0,"",'统招（小学）'!#REF!) ->  | AD31: =IF('统招（小学）'!#REF!=0,"",'统招（小学）'!#REF!) ->  | AE31: =IF('统招（小学）'!#REF!=0,"",'统招（小学）'!#REF!) ->  | AF31: =IF('统招（小学）'!#REF!=0,"",'统招（小学）'!#REF!) ->  | AG31: =IF('统招（小学）'!#REF!=0,"",'统招（小学）'!#REF!) ->  | AH31: =IF('统招（小学）'!#REF!=0,"",'统招（小学）'!#REF!) ->  | AI31: =IF('统招（小学）'!#REF!=0,"",'统招（小学）'!#REF!) ->  | AJ31: =IF('统招（小学）'!#REF!=0,"",'统招（小学）'!#REF!) ->  | AK31: =IF('统招（小学）'!#REF!=0,"",'统招（小学）'!#REF!) ->  | AL31: =IF('统招（小学）'!#REF!=0,"",'统招（小学）'!#REF!) ->  | AM31: =IF('统招（小学）'!#REF!=0,"",'统招（小学）'!#REF!) ->  | AN31: =IF('统招（小学）'!#REF!=0,"",'统招（小学）'!#REF!) ->  | AO31: =IF('统招（小学）'!#REF!=0,"",'统招（小学）'!#REF!) ->  | AP31: =IF('统招（小学）'!#REF!=0,"",'统招（小学）'!#REF!) ->  | AY31: 0 | AZ31: =SUM(AQ31:AX31) ->  | BA31: =AZ31-AX31 ->  | BB31: =BA31+H31 -> 
